Workbook

Sheet EventConfig
A1: ID | B1: EventLinksId | C1: EventTriggerType | D1: EventTag | E1: EventType | F1: Score | G1: EventQuality | H1: PrizeType | I1: PrizeIDs | J1: PrizeNums | K1: RefreshProbability | L1: RefreshCount | M1: placeID | N1: SmallPlacesId | Q1: XiantuID | R1: =SUMIF(C:C,2,K:K) -> 0 | S1: EventConditionId | T1: EventValue | U1: EventCount | V1: EventName | W1: Description
A2: int | B2: int[] | C2: int | D2: int | E2: int | F2: int | G2: int | H2: int[] | I2: int[] | J2: int[] | K2: int | L2: int | M2: int | N2: int | Q2: int | S2: int[] | T2: int[] | U2: int[] | V2: int | W2: int
O3: =(SUM(K5:K7)+SUM(K10:K11))/SUM(K5:K13) -> 0.3577981651 | X3: 语言表最大值 | Y3: =MAX(V:W) -> 4395 | AA3: 1 | AB3: 2 | AC3: 3 | AD3: 4 | AE3: 5 | AF3: 6 | AG3: 7 | AH3: 8 | AI3: 9 | AJ3: 10 | AK3: 11 | AL3: 12 | AM3: 13 | AN3: 14 | AO3: 15 | AP3: 16 | AQ3: 17 | AR3: 18 | AS3: 19 | AT3: 20 | AV3: =COUNTIF(AU:AU,22008)+COUNTIF(AW:AW,22008)+COUNTIF(AY:AY,22008) -> 20
A4: ID | B4: 事件包含的ID | C4: 事件类型： 1.通用事件 2.挂机事件 4.主线任务 5.仙山探险 6.支线事件 98.特定任务触发的事件 99.无标记 | D4: tag 1主线2支线 3通用 4地图通用 5道友6任务 7资源 | E4: 1.正常触发 2.直接结算 | F4: 增加进度值 | G4: 事件品质 | H4: 产出tag 在辅助表查询 | I4: 事件结局奖励 | J4: 事件结局奖励数量 | K4: 刷新的概率 （100=100%） | L4: 最大刷新数量 | M4: 属于哪张地图 | N4: 属于哪张小地图 | O4: 地图 | P4: 参考等级 | Q4: 仙途日志ID | S4: 触发条件类型 只能配处于什么状态和数值，不能配变化的数值 | T4: 触发效果值 | U4: 触发判定数量or次数 | V4: 任务标题 | W4: 任务详情界面的总描述 | X4: 标题 | Y4: 整体描述 | Z4: 总步数 | AA4: 步骤1 | AB4: 步骤2 | AC4: 步骤3 | AD4: 步骤4 | AE4: 步骤5 | AF4: 步骤6 | AG4: 步骤7 | AH4: 步骤8 | AI4: 步骤9 | AJ4: 步骤10 | AK4: 步骤11 | AL4: 步骤12 | AM4: 步骤13 | AN4: 步骤14 | AO4: 步骤15 | AP4: 步骤16 | AQ4: 步骤17 | AR4: 步骤18 | AS4: 步骤19 | AT4: 步骤20 | AU4: 道具1 | AV4: 数量1 | AW4: 道具2 | AX4: 数量2 | AY4: 道具3 | AZ4: 数量3 | BA4: 奖励1 | BB4: 奖励2 | BC4: 奖励3 | BD4: 触发类型1 | BE4: 触发值1 | BF4: 触发类型2 | BG4: 触发值2 | BH4: 触发1 | BI4: 触发2
A5: 101 | B5: =IF(Z5>0,_xlfn.TEXTJOIN(";",1,ROW(INDIRECT(CONCATENATE("",A5*100+1,":",A5*100+Z5,""))),102,103),"") -> 10101;102;103 | C5: 1 | D5: 7 | E5: 1 | F5: 0 | G5: 1 | H5: 6 | I5: =_xlfn.TEXTJOIN(";",1,AU5,AW5,AY5) -> 1003;999001 | J5: =_xlfn.TEXTJOIN(";",1,AV5,AX5,AZ5) -> -6000;1 | K5: 20 | O5: =IF(M5="","",CONCATENATE(VLOOKUP(M5,[1]PlacesConfig!$A:$C,3,FALSE),IF(N5="",""," - "&VLOOKUP(N5,[1]SmallPlacesConfig!$A:$I,9,FALSE)))) ->  | R5: =K5/SUM(K$5:K$13) -> 0.01834862385 | S5: =_xlfn.TEXTJOIN(";",-1,BD5,BF5) ->  | T5: =_xlfn.TEXTJOIN(";",-1,BE5,BG5) ->  | V5: 4001 | W5: 4076 | X5: =CONCATENATE("[资源]",VLOOKUP(AW5,[2]DropConfig!$A:$C,3,FALSE)) -> [资源]法宝掉落 | Y5: 伏魔证道之遗宝 | Z5: =COUNTIF(EventLinkConfig!O:O,EventConfig!A5) -> 1 | AT5: 100 | AU5: 1003 | AV5: -6000 | AW5: 999001 | AX5: 1 | BA5: =IF(AU5="","",CONCATENATE(VLOOKUP(AU5,[2]DropConfig!$A:$F,3,FALSE),"×",AV5)) -> 修为×-6000 | BB5: =IF(AW5="","",CONCATENATE(VLOOKUP(AW5,[2]DropConfig!$A:$F,3,FALSE),"×",AX5)) -> 法宝掉落×1 | BC5: =IF(AY5="","",CONCATENATE(VLOOKUP(AY5,[2]DropConfig!$A:$F,3,FALSE),"×",AZ5)) ->  | BH5: =IF(BD5="","",VLOOKUP(BD5,条件类型查询!A:B,2,FALSE)) ->  | BI5: =IF(BF5="","",VLOOKUP(BF5,条件类型查询!A:B,2,FALSE)) -> 
A6: 102 | B6: =IF(Z6>0,_xlfn.TEXTJOIN(";",1,ROW(INDIRECT(CONCATENATE("",A6*100+1,":",A6*100+Z6,""))),102,103),"") -> 10201;102;103 | C6: 1 | D6: 7 | E6: 1 | F6: 0 | G6: 1 | H6: 5 | I6: =_xlfn.TEXTJOIN(";",1,AU6,AW6,AY6) -> 1003;999002 | J6: =_xlfn.TEXTJOIN(";",1,AV6,AX6,AZ6) -> -6000;1 | K6: 20 | O6: =IF(M6="","",CONCATENATE(VLOOKUP(M6,[1]PlacesConfig!$A:$C,3,FALSE),IF(N6="",""," - "&VLOOKUP(N6,[1]SmallPlacesConfig!$A:$I,9,FALSE)))) ->  | R6: =K6/SUM(K$5:K$13) -> 0.01834862385 | S6: =_xlfn.TEXTJOIN(";",-1,BD6,BF6) ->  | T6: =_xlfn.TEXTJOIN(";",-1,BE6,BG6) ->  | V6: 4002 | W6: 4077 | X6: =CONCATENATE("[资源]",VLOOKUP(AW6,[2]DropConfig!$A:$C,3,FALSE)) -> [资源]功法掉落 | Y6: 斩孽顿悟之残章 | Z6: =COUNTIF(EventLinkConfig!O:O,EventConfig!A6) -> 1 | AT6: 100 | AU6: 1003 | AV6: -6000 | AW6: 999002 | AX6: 1 | BA6: =IF(AU6="","",CONCATENATE(VLOOKUP(AU6,[2]DropConfig!$A:$F,3,FALSE),"×",AV6)) -> 修为×-6000 | BB6: =IF(AW6="","",CONCATENATE(VLOOKUP(AW6,[2]DropConfig!$A:$F,3,FALSE),"×",AX6)) -> 功法掉落×1 | BC6: =IF(AY6="","",CONCATENATE(VLOOKUP(AY6,[2]DropConfig!$A:$F,3,FALSE),"×",AZ6)) ->  | BH6: =IF(BD6="","",VLOOKUP(BD6,条件类型查询!A:B,2,FALSE)) ->  | BI6: =IF(BF6="","",VLOOKUP(BF6,条件类型查询!A:B,2,FALSE)) -> 
A7: 103 | B7: =IF(Z7>0,_xlfn.TEXTJOIN(";",1,ROW(INDIRECT(CONCATENATE("",A7*100+1,":",A7*100+Z7,""))),102,103),"") -> 10301;102;103 | C7: 1 | D7: 7 | E7: 1 | F7: 0 | G7: 1 | H7: 1 | I7: 1003;1001 | J7: -6000;-10000 | K7: 200 | O7: =IF(M7="","",CONCATENATE(VLOOKUP(M7,[1]PlacesConfig!$A:$C,3,FALSE),IF(N7="",""," - "&VLOOKUP(N7,[1]SmallPlacesConfig!$A:$I,9,FALSE)))) ->  | R7: 0.1834862385 | V7: 4003 | W7: 4078 | X7: =CONCATENATE("[资源]",VLOOKUP(AW7,[2]DropConfig!$A:$C,3,FALSE)) -> [资源]灵石 | Y7: 天地蕴生之灵石 | Z7: =COUNTIF(EventLinkConfig!O:O,EventConfig!A7) -> 1 | AT7: 100 | AU7: 1003 | AV7: -6000 | AW7: 1001 | AX7: -10000 | BA7: =IF(AU7="","",CONCATENATE(VLOOKUP(AU7,[2]DropConfig!$A:$F,3,FALSE),"×",AV7)) -> 修为×-6000 | BB7: =IF(AW7="","",CONCATENATE(VLOOKUP(AW7,[2]DropConfig!$A:$F,3,FALSE),"×",AX7)) -> 灵石×-10000 | BC7: =IF(AY7="","",CONCATENATE(VLOOKUP(AY7,[2]DropConfig!$A:$F,3,FALSE),"×",AZ7)) ->  | BH7: =IF(BD7="","",VLOOKUP(BD7,条件类型查询!A:B,2,FALSE)) ->  | BI7: =IF(BF7="","",VLOOKUP(BF7,条件类型查询!A:B,2,FALSE)) -> 
A8: 104 | B8: =IF(Z8>0,_xlfn.TEXTJOIN(";",1,ROW(INDIRECT(CONCATENATE("",A8*100+1,":",A8*100+Z8,""))),102,103),"") -> 10401;102;103 | C8: 1 | D8: 7 | E8: 1 | F8: 0 | G8: 1 | H8: 3 | I8: 1003;1005 | J8: -6000;-2000 | K8: 300 | O8: =IF(M8="","",CONCATENATE(VLOOKUP(M8,[1]PlacesConfig!$A:$C,3,FALSE),IF(N8="",""," - "&VLOOKUP(N8,[1]SmallPlacesConfig!$A:$I,9,FALSE)))) ->  | R8: 0.2752293578 | V8: 4004 | W8: 4079 | X8: =CONCATENATE("[资源]",VLOOKUP(AW8,[2]DropConfig!$A:$C,3,FALSE)) -> [资源]灵气 | Y8: 灵墟残脉之精气 | Z8: =COUNTIF(EventLinkConfig!O:O,EventConfig!A8) -> 1 | AT8: 100 | AU8: 1003 | AV8: -6000 | AW8: 1005 | AX8: -2000 | BA8: =IF(AU8="","",CONCATENATE(VLOOKUP(AU8,[2]DropConfig!$A:$F,3,FALSE),"×",AV8)) -> 修为×-6000 | BB8: =IF(AW8="","",CONCATENATE(VLOOKUP(AW8,[2]DropConfig!$A:$F,3,FALSE),"×",AX8)) -> 灵气×-2000 | BC8: =IF(AY8="","",CONCATENATE(VLOOKUP(AY8,[2]DropConfig!$A:$F,3,FALSE),"×",AZ8)) ->  | BH8: =IF(BD8="","",VLOOKUP(BD8,条件类型查询!A:B,2,FALSE)) ->  | BI8: =IF(BF8="","",VLOOKUP(BF8,条件类型查询!A:B,2,FALSE)) -> 
A9: 105 | B9: =IF(Z9>0,_xlfn.TEXTJOIN(";",1,ROW(INDIRECT(CONCATENATE("",A9*100+1,":",A9*100+Z9,""))),102,103),"") -> 10501;102;103 | C9: 1 | D9: 7 | E9: 1 | F9: 0 | G9: 1 | H9: 4 | I9: 1003;1006 | J9: -6000;-2000 | K9: 300 | O9: =IF(M9="","",CONCATENATE(VLOOKUP(M9,[1]PlacesConfig!$A:$C,3,FALSE),IF(N9="",""," - "&VLOOKUP(N9,[1]SmallPlacesConfig!$A:$I,9,FALSE)))) ->  | R9: 0.2752293578 | V9: 4005 | W9: 4080 | X9: =CONCATENATE("[资源]",VLOOKUP(AW9,[2]DropConfig!$A:$C,3,FALSE)) -> [资源]玄晶 | Y9: 九玄凝淬之异矿 | Z9: =COUNTIF(EventLinkConfig!O:O,EventConfig!A9) -> 1 | AT9: 100 | AU9: 1003 | AV9: -6000 | AW9: 1006 | AX9: -2000 | BA9: =IF(AU9="","",CONCATENATE(VLOOKUP(AU9,[2]DropConfig!$A:$F,3,FALSE),"×",AV9)) -> 修为×-6000 | BB9: =IF(AW9="","",CONCATENATE(VLOOKUP(AW9,[2]DropConfig!$A:$F,3,FALSE),"×",AX9)) -> 玄晶×-2000 | BC9: =IF(AY9="","",CONCATENATE(VLOOKUP(AY9,[2]DropConfig!$A:$F,3,FALSE),"×",AZ9)) ->  | BH9: =IF(BD9="","",VLOOKUP(BD9,条件类型查询!A:B,2,FALSE)) ->  | BI9: =IF(BF9="","",VLOOKUP(BF9,条件类型查询!A:B,2,FALSE)) -> 
A10: 106 | B10: =IF(Z10>0,_xlfn.TEXTJOIN(";",1,ROW(INDIRECT(CONCATENATE("",A10*100+1,":",A10*100+Z10,""))),102,103),"") -> 10601;102;103 | C10: 1 | D10: 7 | E10: 1 | F10: 0 | G10: 1 | H10: 12 | I10: 1003;1401 | J10: -6000;1 | K10: 50 | O10: =IF(M10="","",CONCATENATE(VLOOKUP(M10,[1]PlacesConfig!$A:$C,3,FALSE),IF(N10="",""," - "&VLOOKUP(N10,[1]SmallPlacesConfig!$A:$I,9,FALSE)))) ->  | R10: 0.04587155963 | V10: 4006 | W10: 4081 | X10: =CONCATENATE("[资源]",VLOOKUP(AW10,[2]DropConfig!$A:$C,3,FALSE)) -> [资源]凡品增元丹 | Y10: 大妖陨落之元丹 | Z10: =COUNTIF(EventLinkConfig!O:O,EventConfig!A10) -> 1 | AT10: 100 | AU10: 1003 | AV10: -6000 | AW10: 1401 | AX10: 1 | BA10: =IF(AU10="","",CONCATENATE(VLOOKUP(AU10,[2]DropConfig!$A:$F,3,FALSE),"×",AV10)) -> 修为×-6000 | BB10: =IF(AW10="","",CONCATENATE(VLOOKUP(AW10,[2]DropConfig!$A:$F,3,FALSE),"×",AX10)) -> 凡品增元丹×1 | BC10: =IF(AY10="","",CONCATENATE(VLOOKUP(AY10,[2]DropConfig!$A:$F,3,FALSE),"×",AZ10)) ->  | BH10: =IF(BD10="","",VLOOKUP(BD10,条件类型查询!A:B,2,FALSE)) ->  | BI10: =IF(BF10="","",VLOOKUP(BF10,条件类型查询!A:B,2,FALSE)) -> 
A11: 107 | B11: =IF(Z11>0,_xlfn.TEXTJOIN(";",1,ROW(INDIRECT(CONCATENATE("",A11*100+1,":",A11*100+Z11,""))),102,103),"") -> 10701;102;103 | C11: 1 | D11: 7 | E11: 1 | F11: 0 | G11: 1 | H11: 13 | I11: 1003;23300 | J11: -6000;1 | K11: 100 | O11: =IF(M11="","",CONCATENATE(VLOOKUP(M11,[1]PlacesConfig!$A:$C,3,FALSE),IF(N11="",""," - "&VLOOKUP(N11,[1]SmallPlacesConfig!$A:$I,9,FALSE)))) ->  | R11: 0.09174311927 | V11: 4007 | W11: 4082 | X11: =CONCATENATE("[资源]",VLOOKUP(AW11,[2]DropConfig!$A:$C,3,FALSE)) -> [资源]天材地宝 | Z11: =COUNTIF(EventLinkConfig!O:O,EventConfig!A11) -> 1 | AH11: =IF($Z11>=AH$3,$A11*100+AH$3,"") ->  | AT11: 100 | AU11: 1003 | AV11: -6000 | AW11: 23300 | AX11: 1 | BA11: =IF(AU11="","",CONCATENATE(VLOOKUP(AU11,[2]DropConfig!$A:$F,3,FALSE),"×",AV11)) -> 修为×-6000 | BB11: =IF(AW11="","",CONCATENATE(VLOOKUP(AW11,[2]DropConfig!$A:$F,3,FALSE),"×",AX11)) -> 天材地宝×1 | BC11: =IF(AY11="","",CONCATENATE(VLOOKUP(AY11,[2]DropConfig!$A:$F,3,FALSE),"×",AZ11)) ->  | BH11: =IF(BD11="","",VLOOKUP(BD11,条件类型查询!A:B,2,FALSE)) ->  | BI11: =IF(BF11="","",VLOOKUP(BF11,条件类型查询!A:B,2,FALSE)) -> 
A12: 108 | B12: =IF(Z12>0,_xlfn.TEXTJOIN(";",1,ROW(INDIRECT(CONCATENATE("",A12*100+1,":",A12*100+Z12,""))),102,103),"") -> 10801;102;103 | C12: 1 | D12: 7 | E12: 1 | F12: 0 | G12: 1 | H12: 10 | I12: 1003;1501 | J12: -6000;1 | K12: 50 | O12: =IF(M12="","",CONCATENATE(VLOOKUP(M12,[1]PlacesConfig!$A:$C,3,FALSE),IF(N12="",""," - "&VLOOKUP(N12,[1]SmallPlacesConfig!$A:$I,9,FALSE)))) ->  | R12: 0.04587155963 | V12: 4008 | W12: 4083 | X12: =CONCATENATE("[资源]",VLOOKUP(AW12,[2]DropConfig!$A:$C,3,FALSE)) -> [资源]清茶 | Y12: 云端仙草之甘露 | Z12: =COUNTIF(EventLinkConfig!O:O,EventConfig!A12) -> 1 | AT12: 100 | AU12: 1003 | AV12: -6000 | AW12: 1501 | AX12: 1 | BA12: =IF(AU12="","",CONCATENATE(VLOOKUP(AU12,[2]DropConfig!$A:$F,3,FALSE),"×",AV12)) -> 修为×-6000 | BB12: =IF(AW12="","",CONCATENATE(VLOOKUP(AW12,[2]DropConfig!$A:$F,3,FALSE),"×",AX12)) -> 清茶×1 | BC12: =IF(AY12="","",CONCATENATE(VLOOKUP(AY12,[2]DropConfig!$A:$F,3,FALSE),"×",AZ12)) ->  | BH12: =IF(BD12="","",VLOOKUP(BD12,条件类型查询!A:B,2,FALSE)) ->  | BI12: =IF(BF12="","",VLOOKUP(BF12,条件类型查询!A:B,2,FALSE)) -> 
A13: 109 | B13: =IF(Z13>0,_xlfn.TEXTJOIN(";",1,ROW(INDIRECT(CONCATENATE("",A13*100+1,":",A13*100+Z13,""))),102,103),"") -> 10901;102;103 | C13: 1 | D13: 7 | E13: 1 | F13: 0 | G13: 1 | H13: 11 | I13: 1003;1601 | J13: -6000;1 | K13: 50 | O13: =IF(M13="","",CONCATENATE(VLOOKUP(M13,[1]PlacesConfig!$A:$C,3,FALSE),IF(N13="",""," - "&VLOOKUP(N13,[1]SmallPlacesConfig!$A:$I,9,FALSE)))) ->  | R13: 0.04587155963 | V13: 4009 | W13: 4084 | X13: =CONCATENATE("[资源]",VLOOKUP(AW13,[2]DropConfig!$A:$C,3,FALSE)) -> [资源]妃子笑 | Y13: 岭南千年之仙果 | Z13: =COUNTIF(EventLinkConfig!O:O,EventConfig!A13) -> 1 | AT13: 100 | AU13: 1003 | AV13: -6000 | AW13: 1601 | AX13: 1 | BA13: =IF(AU13="","",CONCATENATE(VLOOKUP(AU13,[2]DropConfig!$A:$F,3,FALSE),"×",AV13)) -> 修为×-6000 | BB13: =IF(AW13="","",CONCATENATE(VLOOKUP(AW13,[2]DropConfig!$A:$F,3,FALSE),"×",AX13)) -> 妃子笑×1 | BC13: =IF(AY13="","",CONCATENATE(VLOOKUP(AY13,[2]DropConfig!$A:$F,3,FALSE),"×",AZ13)) ->  | BH13: =IF(BD13="","",VLOOKUP(BD13,条件类型查询!A:B,2,FALSE)) ->  | BI13: =IF(BF13="","",VLOOKUP(BF13,条件类型查询!A:B,2,FALSE)) -> 
A14: 110 | B14: =IF(Z14>0,_xlfn.TEXTJOIN(";",1,ROW(INDIRECT(CONCATENATE("",A14*100+1,":",A14*100+Z14,""))),102,103),"") -> 11001;102;103 | C14: 1 | D14: 7 | E14: 1 | F14: 0 | G14: 2 | H14: 6 | I14: 1003;999001 | J14: -9000;1 | K14: =K5 -> 20 | O14: =IF(M14="","",CONCATENATE(VLOOKUP(M14,[1]PlacesConfig!$A:$C,3,FALSE),IF(N14="",""," - "&VLOOKUP(N14,[1]SmallPlacesConfig!$A:$I,9,FALSE)))) ->  | R14: =IF(S14="","",VLOOKUP(S14,条件类型查询!A:B,2,FALSE)) ->  | V14: 4010 | W14: 4085 | X14: =CONCATENATE("[资源]",VLOOKUP(AW14,[2]DropConfig!$A:$C,3,FALSE)) -> [资源]法宝掉落 | Y14: 伏魔证道之遗宝 | Z14: =COUNTIF(EventLinkConfig!O:O,EventConfig!A14) -> 1 | AT14: 100 | AU14: 1003 | AV14: -9000 | AW14: 999001 | AX14: 1 | BA14: =IF(AU14="","",CONCATENATE(VLOOKUP(AU14,[2]DropConfig!$A:$F,3,FALSE),"×",AV14)) -> 修为×-9000 | BB14: =IF(AW14="","",CONCATENATE(VLOOKUP(AW14,[2]DropConfig!$A:$F,3,FALSE),"×",AX14)) -> 法宝掉落×1 | BC14: =IF(AY14="","",CONCATENATE(VLOOKUP(AY14,[2]DropConfig!$A:$F,3,FALSE),"×",AZ14)) ->  | BH14: =IF(BD14="","",VLOOKUP(BD14,条件类型查询!A:B,2,FALSE)) ->  | BI14: =IF(BF14="","",VLOOKUP(BF14,条件类型查询!A:B,2,FALSE)) -> 
A15: 111 | B15: =IF(Z15>0,_xlfn.TEXTJOIN(";",1,ROW(INDIRECT(CONCATENATE("",A15*100+1,":",A15*100+Z15,""))),102,103),"") -> 11101;102;103 | C15: 1 | D15: 7 | E15: 1 | F15: 0 | G15: 2 | H15: 5 | I15: 1003;999002 | J15: -9000;1 | K15: =K6 -> 20 | O15: =IF(M15="","",CONCATENATE(VLOOKUP(M15,[1]PlacesConfig!$A:$C,3,FALSE),IF(N15="",""," - "&VLOOKUP(N15,[1]SmallPlacesConfig!$A:$I,9,FALSE)))) ->  | R15: =IF(S15="","",VLOOKUP(S15,条件类型查询!A:B,2,FALSE)) ->  | V15: 4011 | W15: 4086 | X15: =CONCATENATE("[资源]",VLOOKUP(AW15,[2]DropConfig!$A:$C,3,FALSE)) -> [资源]功法掉落 | Y15: 斩孽顿悟之残章 | Z15: =COUNTIF(EventLinkConfig!O:O,EventConfig!A15) -> 1 | AT15: 100 | AU15: 1003 | AV15: -9000 | AW15: 999002 | AX15: 1 | BA15: =IF(AU15="","",CONCATENATE(VLOOKUP(AU15,[2]DropConfig!$A:$F,3,FALSE),"×",AV15)) -> 修为×-9000 | BB15: =IF(AW15="","",CONCATENATE(VLOOKUP(AW15,[2]DropConfig!$A:$F,3,FALSE),"×",AX15)) -> 功法掉落×1 | BC15: =IF(AY15="","",CONCATENATE(VLOOKUP(AY15,[2]DropConfig!$A:$F,3,FALSE),"×",AZ15)) ->  | BH15: =IF(BD15="","",VLOOKUP(BD15,条件类型查询!A:B,2,FALSE)) ->  | BI15: =IF(BF15="","",VLOOKUP(BF15,条件类型查询!A:B,2,FALSE)) -> 
A16: 112 | B16: =IF(Z16>0,_xlfn.TEXTJOIN(";",1,ROW(INDIRECT(CONCATENATE("",A16*100+1,":",A16*100+Z16,""))),102,103),"") -> 11201;102;103 | C16: 1 | D16: 7 | E16: 1 | F16: 0 | G16: 2 | H16: 1 | I16: 1003;1001 | J16: -9000;-15000 | K16: 200 | O16: =IF(M16="","",CONCATENATE(VLOOKUP(M16,[1]PlacesConfig!$A:$C,3,FALSE),IF(N16="",""," - "&VLOOKUP(N16,[1]SmallPlacesConfig!$A:$I,9,FALSE)))) ->  | R16: =IF(S16="","",VLOOKUP(S16,条件类型查询!A:B,2,FALSE)) ->  | V16: 4012 | W16: 4087 | X16: =CONCATENATE("[资源]",VLOOKUP(AW16,[2]DropConfig!$A:$C,3,FALSE)) -> [资源]灵石 | Y16: 天地蕴生之灵石 | Z16: =COUNTIF(EventLinkConfig!O:O,EventConfig!A16) -> 1 | AT16: 100 | AU16: 1003 | AV16: -9000 | AW16: 1001 | AX16: -15000 | BA16: =IF(AU16="","",CONCATENATE(VLOOKUP(AU16,[2]DropConfig!$A:$F,3,FALSE),"×",AV16)) -> 修为×-9000 | BB16: =IF(AW16="","",CONCATENATE(VLOOKUP(AW16,[2]DropConfig!$A:$F,3,FALSE),"×",AX16)) -> 灵石×-15000 | BC16: =IF(AY16="","",CONCATENATE(VLOOKUP(AY16,[2]DropConfig!$A:$F,3,FALSE),"×",AZ16)) ->  | BH16: =IF(BD16="","",VLOOKUP(BD16,条件类型查询!A:B,2,FALSE)) ->  | BI16: =IF(BF16="","",VLOOKUP(BF16,条件类型查询!A:B,2,FALSE)) -> 
A17: 113 | B17: =IF(Z17>0,_xlfn.TEXTJOIN(";",1,ROW(INDIRECT(CONCATENATE("",A17*100+1,":",A17*100+Z17,""))),102,103),"") -> 11301;102;103 | C17: 1 | D17: 7 | E17: 1 | F17: 0 | G17: 2 | H17: 3 | I17: 1003;1005 | J17: -9000;-2500 | K17: 300 | O17: =IF(M17="","",CONCATENATE(VLOOKUP(M17,[1]PlacesConfig!$A:$C,3,FALSE),IF(N17="",""," - "&VLOOKUP(N17,[1]SmallPlacesConfig!$A:$I,9,FALSE)))) ->  | R17: =IF(S17="","",VLOOKUP(S17,条件类型查询!A:B,2,FALSE)) ->  | V17: 4013 | W17: 4088 | X17: =CONCATENATE("[资源]",VLOOKUP(AW17,[2]DropConfig!$A:$C,3,FALSE)) -> [资源]灵气 | Y17: 灵墟残脉之精气 | Z17: =COUNTIF(EventLinkConfig!O:O,EventConfig!A17) -> 1 | AT17: 100 | AU17: 1003 | AV17: -9000 | AW17: 1005 | AX17: -2500 | BA17: =IF(AU17="","",CONCATENATE(VLOOKUP(AU17,[2]DropConfig!$A:$F,3,FALSE),"×",AV17)) -> 修为×-9000 | BB17: =IF(AW17="","",CONCATENATE(VLOOKUP(AW17,[2]DropConfig!$A:$F,3,FALSE),"×",AX17)) -> 灵气×-2500 | BC17: =IF(AY17="","",CONCATENATE(VLOOKUP(AY17,[2]DropConfig!$A:$F,3,FALSE),"×",AZ17)) ->  | BH17: =IF(BD17="","",VLOOKUP(BD17,条件类型查询!A:B,2,FALSE)) ->  | BI17: =IF(BF17="","",VLOOKUP(BF17,条件类型查询!A:B,2,FALSE)) -> 
A18: 114 | B18: =IF(Z18>0,_xlfn.TEXTJOIN(";",1,ROW(INDIRECT(CONCATENATE("",A18*100+1,":",A18*100+Z18,""))),102,103),"") -> 11401;102;103 | C18: 1 | D18: 7 | E18: 1 | F18: 0 | G18: 2 | H18: 4 | I18: 1003;1006 | J18: -9000;-2500 | K18: 300 | O18: =IF(M18="","",CONCATENATE(VLOOKUP(M18,[1]PlacesConfig!$A:$C,3,FALSE),IF(N18="",""," - "&VLOOKUP(N18,[1]SmallPlacesConfig!$A:$I,9,FALSE)))) ->  | R18: =IF(S18="","",VLOOKUP(S18,条件类型查询!A:B,2,FALSE)) ->  | V18: 4014 | W18: 4089 | X18: =CONCATENATE("[资源]",VLOOKUP(AW18,[2]DropConfig!$A:$C,3,FALSE)) -> [资源]玄晶 | Y18: 九玄凝淬之异矿 | Z18: =COUNTIF(EventLinkConfig!O:O,EventConfig!A18) -> 1 | AT18: 100 | AU18: 1003 | AV18: -9000 | AW18: 1006 | AX18: -2500 | BA18: =IF(AU18="","",CONCATENATE(VLOOKUP(AU18,[2]DropConfig!$A:$F,3,FALSE),"×",AV18)) -> 修为×-9000 | BB18: =IF(AW18="","",CONCATENATE(VLOOKUP(AW18,[2]DropConfig!$A:$F,3,FALSE),"×",AX18)) -> 玄晶×-2500 | BC18: =IF(AY18="","",CONCATENATE(VLOOKUP(AY18,[2]DropConfig!$A:$F,3,FALSE),"×",AZ18)) ->  | BH18: =IF(BD18="","",VLOOKUP(BD18,条件类型查询!A:B,2,FALSE)) ->  | BI18: =IF(BF18="","",VLOOKUP(BF18,条件类型查询!A:B,2,FALSE)) -> 
A19: 115 | B19: =IF(Z19>0,_xlfn.TEXTJOIN(";",1,ROW(INDIRECT(CONCATENATE("",A19*100+1,":",A19*100+Z19,""))),102,103),"") -> 11501;102;103 | C19: 1 | D19: 7 | E19: 1 | F19: 0 | G19: 2 | H19: 12 | I19: 1003;1402 | J19: -9000;2 | K19: 50 | O19: =IF(M19="","",CONCATENATE(VLOOKUP(M19,[1]PlacesConfig!$A:$C,3,FALSE),IF(N19="",""," - "&VLOOKUP(N19,[1]SmallPlacesConfig!$A:$I,9,FALSE)))) ->  | R19: =IF(S19="","",VLOOKUP(S19,条件类型查询!A:B,2,FALSE)) ->  | V19: 4015 | W19: 4090 | X19: =CONCATENATE("[资源]",VLOOKUP(AW19,[2]DropConfig!$A:$C,3,FALSE)) -> [资源]良品增元丹 | Y19: 大妖陨落之元丹 | Z19: =COUNTIF(EventLinkConfig!O:O,EventConfig!A19) -> 1 | AA19: =IF($Z19>=AA$3,$A19*100+AA$3,"") -> 11501 | AT19: 100 | AU19: 1003 | AV19: -9000 | AW19: 1402 | AX19: 2 | BA19: =IF(AU19="","",CONCATENATE(VLOOKUP(AU19,[2]DropConfig!$A:$F,3,FALSE),"×",AV19)) -> 修为×-9000 | BB19: =IF(AW19="","",CONCATENATE(VLOOKUP(AW19,[2]DropConfig!$A:$F,3,FALSE),"×",AX19)) -> 良品增元丹×2 | BC19: =IF(AY19="","",CONCATENATE(VLOOKUP(AY19,[2]DropConfig!$A:$F,3,FALSE),"×",AZ19)) ->  | BH19: =IF(BD19="","",VLOOKUP(BD19,条件类型查询!A:B,2,FALSE)) ->  | BI19: =IF(BF19="","",VLOOKUP(BF19,条件类型查询!A:B,2,FALSE)) -> 
A20: 116 | B20: =IF(Z20>0,_xlfn.TEXTJOIN(";",1,ROW(INDIRECT(CONCATENATE("",A20*100+1,":",A20*100+Z20,""))),102,103),"") -> 11601;102;103 | C20: 1 | D20: 7 | E20: 1 | F20: 0 | G20: 2 | H20: 13 | I20: 1003;23301 | J20: -9000;1 | K20: 100 | O20: =IF(M20="","",CONCATENATE(VLOOKUP(M20,[1]PlacesConfig!$A:$C,3,FALSE),IF(N20="",""," - "&VLOOKUP(N20,[1]SmallPlacesConfig!$A:$I,9,FALSE)))) ->  | R20: =IF(S20="","",VLOOKUP(S20,条件类型查询!A:B,2,FALSE)) ->  | V20: 4016 | W20: 4091 | X20: =CONCATENATE("[资源]",VLOOKUP(AW20,[2]DropConfig!$A:$C,3,FALSE)) -> [资源]天材地宝 | Z20: =COUNTIF(EventLinkConfig!O:O,EventConfig!A20) -> 1 | AA20: 11601 | AT20: 100 | AU20: 1003 | AV20: -9000 | AW20: 23301 | AX20: 1 | BA20: =IF(AU20="","",CONCATENATE(VLOOKUP(AU20,[2]DropConfig!$A:$F,3,FALSE),"×",AV20)) -> 修为×-9000 | BB20: =IF(AW20="","",CONCATENATE(VLOOKUP(AW20,[2]DropConfig!$A:$F,3,FALSE),"×",AX20)) -> 天材地宝×1 | BC20: =IF(AY20="","",CONCATENATE(VLOOKUP(AY20,[2]DropConfig!$A:$F,3,FALSE),"×",AZ20)) ->  | BH20: =IF(BD20="","",VLOOKUP(BD20,条件类型查询!A:B,2,FALSE)) ->  | BI20: =IF(BF20="","",VLOOKUP(BF20,条件类型查询!A:B,2,FALSE)) -> 
A21: 117 | B21: =IF(Z21>0,_xlfn.TEXTJOIN(";",1,ROW(INDIRECT(CONCATENATE("",A21*100+1,":",A21*100+Z21,""))),102,103),"") -> 11701;102;103 | C21: 1 | D21: 7 | E21: 1 | F21: 0 | G21: 2 | H21: 10 | I21: 1003;1501 | J21: -9000;1 | K21: 50 | O21: =IF(M21="","",CONCATENATE(VLOOKUP(M21,[1]PlacesConfig!$A:$C,3,FALSE),IF(N21="",""," - "&VLOOKUP(N21,[1]SmallPlacesConfig!$A:$I,9,FALSE)))) ->  | R21: =IF(S21="","",VLOOKUP(S21,条件类型查询!A:B,2,FALSE)) ->  | V21: 4017 | W21: 4092 | X21: =CONCATENATE("[资源]",VLOOKUP(AW21,[2]DropConfig!$A:$C,3,FALSE)) -> [资源]清茶 | Y21: 云端仙草之甘露 | Z21: =COUNTIF(EventLinkConfig!O:O,EventConfig!A21) -> 1 | AA21: 11701 | AH21: =IF($Z21>=AH$3,$A21*100+AH$3,"") ->  | AT21: 100 | AU21: 1003 | AV21: -9000 | AW21: 1501 | AX21: 1 | BA21: =IF(AU21="","",CONCATENATE(VLOOKUP(AU21,[2]DropConfig!$A:$F,3,FALSE),"×",AV21)) -> 修为×-9000 | BB21: =IF(AW21="","",CONCATENATE(VLOOKUP(AW21,[2]DropConfig!$A:$F,3,FALSE),"×",AX21)) -> 清茶×1 | BC21: =IF(AY21="","",CONCATENATE(VLOOKUP(AY21,[2]DropConfig!$A:$F,3,FALSE),"×",AZ21)) ->  | BH21: =IF(BD21="","",VLOOKUP(BD21,条件类型查询!A:B,2,FALSE)) ->  | BI21: =IF(BF21="","",VLOOKUP(BF21,条件类型查询!A:B,2,FALSE)) -> 
A22: 118 | B22: =IF(Z22>0,_xlfn.TEXTJOIN(";",1,ROW(INDIRECT(CONCATENATE("",A22*100+1,":",A22*100+Z22,""))),102,103),"") -> 11801;102;103 | C22: 1 | D22: 7 | E22: 1 | F22: 0 | G22: 2 | H22: 11 | I22: 1003;1601 | J22: -9000;1 | K22: 50 | O22: =IF(M22="","",CONCATENATE(VLOOKUP(M22,[1]PlacesConfig!$A:$C,3,FALSE),IF(N22="",""," - "&VLOOKUP(N22,[1]SmallPlacesConfig!$A:$I,9,FALSE)))) ->  | R22: =IF(S22="","",VLOOKUP(S22,条件类型查询!A:B,2,FALSE)) ->  | V22: 4018 | W22: 4093 | X22: =CONCATENATE("[资源]",VLOOKUP(AW22,[2]DropConfig!$A:$C,3,FALSE)) -> [资源]妃子笑 | Y22: 岭南千年之仙果 | Z22: =COUNTIF(EventLinkConfig!O:O,EventConfig!A22) -> 1 | AA22: 11801 | AT22: 100 | AU22: 1003 | AV22: -9000 | AW22: 1601 | AX22: 1 | BA22: =IF(AU22="","",CONCATENATE(VLOOKUP(AU22,[2]DropConfig!$A:$F,3,FALSE),"×",AV22)) -> 修为×-9000 | BB22: =IF(AW22="","",CONCATENATE(VLOOKUP(AW22,[2]DropConfig!$A:$F,3,FALSE),"×",AX22)) -> 妃子笑×1 | BC22: =IF(AY22="","",CONCATENATE(VLOOKUP(AY22,[2]DropConfig!$A:$F,3,FALSE),"×",AZ22)) ->  | BH22: =IF(BD22="","",VLOOKUP(BD22,条件类型查询!A:B,2,FALSE)) ->  | BI22: =IF(BF22="","",VLOOKUP(BF22,条件类型查询!A:B,2,FALSE)) -> 
A23: 119 | B23: =IF(Z23>0,_xlfn.TEXTJOIN(";",1,ROW(INDIRECT(CONCATENATE("",A23*100+1,":",A23*100+Z23,""))),102,103),"") -> 11901;102;103 | C23: 1 | D23: 7 | E23: 1 | F23: 0 | G23: 3 | H23: 6 | I23: 1003;999001 | J23: -12000;1 | K23: 20 | O23: =IF(M23="","",CONCATENATE(VLOOKUP(M23,[1]PlacesConfig!$A:$C,3,FALSE),IF(N23="",""," - "&VLOOKUP(N23,[1]SmallPlacesConfig!$A:$I,9,FALSE)))) ->  | R23: =IF(S23="","",VLOOKUP(S23,条件类型查询!A:B,2,FALSE)) ->  | V23: 4298 | W23: 4094 | X23: =CONCATENATE("[资源]",VLOOKUP(AW23,[2]DropConfig!$A:$C,3,FALSE)) -> [资源]法宝掉落 | Y23: 伏魔证道之遗宝 | Z23: =COUNTIF(EventLinkConfig!O:O,EventConfig!A23) -> 1 | AA23: 11901 | AT23: 100 | AU23: 1003 | AV23: -12000 | AW23: 999001 | AX23: 1 | BA23: =IF(AU23="","",CONCATENATE(VLOOKUP(AU23,[2]DropConfig!$A:$F,3,FALSE),"×",AV23)) -> 修为×-12000 | BB23: =IF(AW23="","",CONCATENATE(VLOOKUP(AW23,[2]DropConfig!$A:$F,3,FALSE),"×",AX23)) -> 法宝掉落×1 | BC23: =IF(AY23="","",CONCATENATE(VLOOKUP(AY23,[2]DropConfig!$A:$F,3,FALSE),"×",AZ23)) ->  | BH23: =IF(BD23="","",VLOOKUP(BD23,条件类型查询!A:B,2,FALSE)) ->  | BI23: =IF(BF23="","",VLOOKUP(BF23,条件类型查询!A:B,2,FALSE)) -> 
A24: 120 | B24: =IF(Z24>0,_xlfn.TEXTJOIN(";",1,ROW(INDIRECT(CONCATENATE("",A24*100+1,":",A24*100+Z24,""))),102,103),"") -> 12001;102;103 | C24: 1 | D24: 7 | E24: 1 | F24: 0 | G24: 3 | H24: 5 | I24: 1003;999002 | J24: -12000;1 | K24: 20 | O24: =IF(M24="","",CONCATENATE(VLOOKUP(M24,[1]PlacesConfig!$A:$C,3,FALSE),IF(N24="",""," - "&VLOOKUP(N24,[1]SmallPlacesConfig!$A:$I,9,FALSE)))) ->  | R24: =IF(S24="","",VLOOKUP(S24,条件类型查询!A:B,2,FALSE)) ->  | V24: 4299 | W24: 4095 | X24: =CONCATENATE("[资源]",VLOOKUP(AW24,[2]DropConfig!$A:$C,3,FALSE)) -> [资源]功法掉落 | Y24: 斩孽顿悟之残章 | Z24: =COUNTIF(EventLinkConfig!O:O,EventConfig!A24) -> 1 | AA24: 12001 | AT24: 100 | AU24: 1003 | AV24: -12000 | AW24: 999002 | AX24: 1 | BA24: =IF(AU24="","",CONCATENATE(VLOOKUP(AU24,[2]DropConfig!$A:$F,3,FALSE),"×",AV24)) -> 修为×-12000 | BB24: =IF(AW24="","",CONCATENATE(VLOOKUP(AW24,[2]DropConfig!$A:$F,3,FALSE),"×",AX24)) -> 功法掉落×1 | BC24: =IF(AY24="","",CONCATENATE(VLOOKUP(AY24,[2]DropConfig!$A:$F,3,FALSE),"×",AZ24)) ->  | BH24: =IF(BD24="","",VLOOKUP(BD24,条件类型查询!A:B,2,FALSE)) ->  | BI24: =IF(BF24="","",VLOOKUP(BF24,条件类型查询!A:B,2,FALSE)) -> 
A25: 121 | B25: =IF(Z25>0,_xlfn.TEXTJOIN(";",1,ROW(INDIRECT(CONCATENATE("",A25*100+1,":",A25*100+Z25,""))),102,103),"") -> 12101;102;103 | C25: 1 | D25: 7 | E25: 1 | F25: 0 | G25: 3 | H25: 1 | I25: 1003;1001 | J25: -12000;-20000 | K25: 200 | O25: =IF(M25="","",CONCATENATE(VLOOKUP(M25,[1]PlacesConfig!$A:$C,3,FALSE),IF(N25="",""," - "&VLOOKUP(N25,[1]SmallPlacesConfig!$A:$I,9,FALSE)))) ->  | R25: =IF(S25="","",VLOOKUP(S25,条件类型查询!A:B,2,FALSE)) ->  | V25: 4300 | W25: 4096 | X25: =CONCATENATE("[资源]",VLOOKUP(AW25,[2]DropConfig!$A:$C,3,FALSE)) -> [资源]灵石 | Y25: 天地蕴生之灵石 | Z25: =COUNTIF(EventLinkConfig!O:O,EventConfig!A25) -> 1 | AA25: 12101 | AT25: 100 | AU25: 1003 | AV25: -12000 | AW25: 1001 | AX25: -20000 | BA25: =IF(AU25="","",CONCATENATE(VLOOKUP(AU25,[2]DropConfig!$A:$F,3,FALSE),"×",AV25)) -> 修为×-12000 | BB25: =IF(AW25="","",CONCATENATE(VLOOKUP(AW25,[2]DropConfig!$A:$F,3,FALSE),"×",AX25)) -> 灵石×-20000 | BC25: =IF(AY25="","",CONCATENATE(VLOOKUP(AY25,[2]DropConfig!$A:$F,3,FALSE),"×",AZ25)) ->  | BH25: =IF(BD25="","",VLOOKUP(BD25,条件类型查询!A:B,2,FALSE)) ->  | BI25: =IF(BF25="","",VLOOKUP(BF25,条件类型查询!A:B,2,FALSE)) -> 
A26: 122 | B26: =IF(Z26>0,_xlfn.TEXTJOIN(";",1,ROW(INDIRECT(CONCATENATE("",A26*100+1,":",A26*100+Z26,""))),102,103),"") -> 12201;102;103 | C26: 1 | D26: 7 | E26: 1 | F26: 0 | G26: 3 | H26: 3 | I26: 1003;1005 | J26: -12000;-3000 | K26: 300 | O26: =IF(M26="","",CONCATENATE(VLOOKUP(M26,[1]PlacesConfig!$A:$C,3,FALSE),IF(N26="",""," - "&VLOOKUP(N26,[1]SmallPlacesConfig!$A:$I,9,FALSE)))) ->  | R26: =IF(S26="","",VLOOKUP(S26,条件类型查询!A:B,2,FALSE)) ->  | V26: 4301 | W26: 4097 | X26: =CONCATENATE("[资源]",VLOOKUP(AW26,[2]DropConfig!$A:$C,3,FALSE)) -> [资源]灵气 | Y26: 灵墟残脉之精气 | Z26: =COUNTIF(EventLinkConfig!O:O,EventConfig!A26) -> 1 | AA26: 12201 | AT26: 100 | AU26: 1003 | AV26: -12000 | AW26: 1005 | AX26: -3000 | BA26: =IF(AU26="","",CONCATENATE(VLOOKUP(AU26,[2]DropConfig!$A:$F,3,FALSE),"×",AV26)) -> 修为×-12000 | BB26: =IF(AW26="","",CONCATENATE(VLOOKUP(AW26,[2]DropConfig!$A:$F,3,FALSE),"×",AX26)) -> 灵气×-3000 | BC26: =IF(AY26="","",CONCATENATE(VLOOKUP(AY26,[2]DropConfig!$A:$F,3,FALSE),"×",AZ26)) ->  | BH26: =IF(BD26="","",VLOOKUP(BD26,条件类型查询!A:B,2,FALSE)) ->  | BI26: =IF(BF26="","",VLOOKUP(BF26,条件类型查询!A:B,2,FALSE)) -> 
A27: 123 | B27: =IF(Z27>0,_xlfn.TEXTJOIN(";",1,ROW(INDIRECT(CONCATENATE("",A27*100+1,":",A27*100+Z27,""))),102,103),"") -> 12301;102;103 | C27: 1 | D27: 7 | E27: 1 | F27: 0 | G27: 3 | H27: 4 | I27: 1003;1006 | J27: -12000;-3000 | K27: 300 | O27: =IF(M27="","",CONCATENATE(VLOOKUP(M27,[1]PlacesConfig!$A:$C,3,FALSE),IF(N27="",""," - "&VLOOKUP(N27,[1]SmallPlacesConfig!$A:$I,9,FALSE)))) ->  | R27: =IF(S27="","",VLOOKUP(S27,条件类型查询!A:B,2,FALSE)) ->  | V27: 4302 | W27: 4098 | X27: =CONCATENATE("[资源]",VLOOKUP(AW27,[2]DropConfig!$A:$C,3,FALSE)) -> [资源]玄晶 | Y27: 九玄凝淬之异矿 | Z27: =COUNTIF(EventLinkConfig!O:O,EventConfig!A27) -> 1 | AA27: 12301 | AT27: 100 | AU27: 1003 | AV27: -12000 | AW27: 1006 | AX27: -3000 | BA27: =IF(AU27="","",CONCATENATE(VLOOKUP(AU27,[2]DropConfig!$A:$F,3,FALSE),"×",AV27)) -> 修为×-12000 | BB27: =IF(AW27="","",CONCATENATE(VLOOKUP(AW27,[2]DropConfig!$A:$F,3,FALSE),"×",AX27)) -> 玄晶×-3000 | BC27: =IF(AY27="","",CONCATENATE(VLOOKUP(AY27,[2]DropConfig!$A:$F,3,FALSE),"×",AZ27)) ->  | BH27: =IF(BD27="","",VLOOKUP(BD27,条件类型查询!A:B,2,FALSE)) ->  | BI27: =IF(BF27="","",VLOOKUP(BF27,条件类型查询!A:B,2,FALSE)) -> 
A28: 124 | B28: =IF(Z28>0,_xlfn.TEXTJOIN(";",1,ROW(INDIRECT(CONCATENATE("",A28*100+1,":",A28*100+Z28,""))),102,103),"") -> 12401;102;103 | C28: 1 | D28: 7 | E28: 1 | F28: 0 | G28: 3 | H28: 12 | I28: 1003;1403 | J28: -12000;1 | K28: 50 | O28: =IF(M28="","",CONCATENATE(VLOOKUP(M28,[1]PlacesConfig!$A:$C,3,FALSE),IF(N28="",""," - "&VLOOKUP(N28,[1]SmallPlacesConfig!$A:$I,9,FALSE)))) ->  | R28: =IF(S28="","",VLOOKUP(S28,条件类型查询!A:B,2,FALSE)) ->  | V28: 4303 | W28: 4099 | X28: =CONCATENATE("[资源]",VLOOKUP(AW28,[2]DropConfig!$A:$C,3,FALSE)) -> [资源]上品增元丹 | Y28: 大妖陨落之元丹 | Z28: =COUNTIF(EventLinkConfig!O:O,EventConfig!A28) -> 1 | AA28: 12401 | AT28: 100 | AU28: 1003 | AV28: -12000 | AW28: 1403 | AX28: 1 | BA28: =IF(AU28="","",CONCATENATE(VLOOKUP(AU28,[2]DropConfig!$A:$F,3,FALSE),"×",AV28)) -> 修为×-12000 | BB28: =IF(AW28="","",CONCATENATE(VLOOKUP(AW28,[2]DropConfig!$A:$F,3,FALSE),"×",AX28)) -> 上品增元丹×1 | BC28: =IF(AY28="","",CONCATENATE(VLOOKUP(AY28,[2]DropConfig!$A:$F,3,FALSE),"×",AZ28)) ->  | BH28: =IF(BD28="","",VLOOKUP(BD28,条件类型查询!A:B,2,FALSE)) ->  | BI28: =IF(BF28="","",VLOOKUP(BF28,条件类型查询!A:B,2,FALSE)) -> 
A29: 125 | B29: =IF(Z29>0,_xlfn.TEXTJOIN(";",1,ROW(INDIRECT(CONCATENATE("",A29*100+1,":",A29*100+Z29,""))),102,103),"") -> 12501;102;103 | C29: 1 | D29: 7 | E29: 1 | F29: 0 | G29: 3 | H29: 13 | I29: 1003;23302 | J29: -12000;1 | K29: 100 | O29: =IF(M29="","",CONCATENATE(VLOOKUP(M29,[1]PlacesConfig!$A:$C,3,FALSE),IF(N29="",""," - "&VLOOKUP(N29,[1]SmallPlacesConfig!$A:$I,9,FALSE)))) ->  | R29: =IF(S29="","",VLOOKUP(S29,条件类型查询!A:B,2,FALSE)) ->  | V29: 4304 | W29: 4100 | X29: =CONCATENATE("[资源]",VLOOKUP(AW29,[2]DropConfig!$A:$C,3,FALSE)) -> [资源]天材地宝 | Z29: =COUNTIF(EventLinkConfig!O:O,EventConfig!A29) -> 1 | AA29: =IF($Z29>=AA$3,$A29*100+AA$3,"") -> 12501 | AT29: 100 | AU29: 1003 | AV29: -12000 | AW29: 23302 | AX29: 1 | BA29: =IF(AU29="","",CONCATENATE(VLOOKUP(AU29,[2]DropConfig!$A:$F,3,FALSE),"×",AV29)) -> 修为×-12000 | BB29: =IF(AW29="","",CONCATENATE(VLOOKUP(AW29,[2]DropConfig!$A:$F,3,FALSE),"×",AX29)) -> 天材地宝×1 | BC29: =IF(AY29="","",CONCATENATE(VLOOKUP(AY29,[2]DropConfig!$A:$F,3,FALSE),"×",AZ29)) ->  | BH29: =IF(BD29="","",VLOOKUP(BD29,条件类型查询!A:B,2,FALSE)) ->  | BI29: =IF(BF29="","",VLOOKUP(BF29,条件类型查询!A:B,2,FALSE)) -> 
A30: 126 | B30: =IF(Z30>0,_xlfn.TEXTJOIN(";",1,ROW(INDIRECT(CONCATENATE("",A30*100+1,":",A30*100+Z30,""))),102,103),"") -> 12601;102;103 | C30: 1 | D30: 7 | E30: 1 | F30: 0 | G30: 3 | H30: 10 | I30: 1003;1501 | J30: -12000;2 | K30: 50 | O30: =IF(M30="","",CONCATENATE(VLOOKUP(M30,[1]PlacesConfig!$A:$C,3,FALSE),IF(N30="",""," - "&VLOOKUP(N30,[1]SmallPlacesConfig!$A:$I,9,FALSE)))) ->  | R30: =IF(S30="","",VLOOKUP(S30,条件类型查询!A:B,2,FALSE)) ->  | V30: 4305 | W30: 4101 | X30: =CONCATENATE("[资源]",VLOOKUP(AW30,[2]DropConfig!$A:$C,3,FALSE)) -> [资源]清茶 | Y30: 云端仙草之甘露 | Z30: =COUNTIF(EventLinkConfig!O:O,EventConfig!A30) -> 1 | AA30: 12601 | AT30: 100 | AU30: 1003 | AV30: -12000 | AW30: 1501 | AX30: 2 | BA30: =IF(AU30="","",CONCATENATE(VLOOKUP(AU30,[2]DropConfig!$A:$F,3,FALSE),"×",AV30)) -> 修为×-12000 | BB30: =IF(AW30="","",CONCATENATE(VLOOKUP(AW30,[2]DropConfig!$A:$F,3,FALSE),"×",AX30)) -> 清茶×2 | BC30: =IF(AY30="","",CONCATENATE(VLOOKUP(AY30,[2]DropConfig!$A:$F,3,FALSE),"×",AZ30)) ->  | BH30: =IF(BD30="","",VLOOKUP(BD30,条件类型查询!A:B,2,FALSE)) ->  | BI30: =IF(BF30="","",VLOOKUP(BF30,条件类型查询!A:B,2,FALSE)) -> 
A31: 127 | B31: =IF(Z31>0,_xlfn.TEXTJOIN(";",1,ROW(INDIRECT(CONCATENATE("",A31*100+1,":",A31*100+Z31,""))),102,103),"") -> 12701;102;103 | C31: 1 | D31: 7 | E31: 1 | F31: 0 | G31: 3 | H31: 11 | I31: 1003;1601 | J31: -12000;2 | K31: 50 | O31: =IF(M31="","",CONCATENATE(VLOOKUP(M31,[1]PlacesConfig!$A:$C,3,FALSE),IF(N31="",""," - "&VLOOKUP(N31,[1]SmallPlacesConfig!$A:$I,9,FALSE)))) ->  | R31: =IF(S31="","",VLOOKUP(S31,条件类型查询!A:B,2,FALSE)) ->  | V31: 4306 | W31: 4102 | X31: =CONCATENATE("[资源]",VLOOKUP(AW31,[2]DropConfig!$A:$C,3,FALSE)) -> [资源]妃子笑 | Y31: 岭南千年之仙果 | Z31: =COUNTIF(EventLinkConfig!O:O,EventConfig!A31) -> 1 | AA31: 12701 | AT31: 100 | AU31: 1003 | AV31: -12000 | AW31: 1601 | AX31: 2 | BA31: =IF(AU31="","",CONCATENATE(VLOOKUP(AU31,[2]DropConfig!$A:$F,3,FALSE),"×",AV31)) -> 修为×-12000 | BB31: =IF(AW31="","",CONCATENATE(VLOOKUP(AW31,[2]DropConfig!$A:$F,3,FALSE),"×",AX31)) -> 妃子笑×2 | BC31: =IF(AY31="","",CONCATENATE(VLOOKUP(AY31,[2]DropConfig!$A:$F,3,FALSE),"×",AZ31)) ->  | BH31: =IF(BD31="","",VLOOKUP(BD31,条件类型查询!A:B,2,FALSE)) ->  | BI31: =IF(BF31="","",VLOOKUP(BF31,条件类型查询!A:B,2,FALSE)) -> 
A32: 128 | B32: =IF(Z32>0,_xlfn.TEXTJOIN(";",1,ROW(INDIRECT(CONCATENATE("",A32*100+1,":",A32*100+Z32,""))),102,103),"") -> 12801;102;103 | C32: 1 | D32: 7 | E32: 1 | F32: 0 | G32: 4 | H32: 6 | I32: 1003;999001 | J32: -20000;1 | K32: 20 | O32: =IF(M32="","",CONCATENATE(VLOOKUP(M32,[1]PlacesConfig!$A:$C,3,FALSE),IF(N32="",""," - "&VLOOKUP(N32,[1]SmallPlacesConfig!$A:$I,9,FALSE)))) ->  | R32: =IF(S32="","",VLOOKUP(S32,条件类型查询!A:B,2,FALSE)) ->  | V32: 4307 | W32: 4094 | X32: =CONCATENATE("[资源]",VLOOKUP(AW32,[2]DropConfig!$A:$C,3,FALSE)) -> [资源]法宝掉落 | Y32: 伏魔证道之遗宝 | Z32: =COUNTIF(EventLinkConfig!O:O,EventConfig!A32) -> 1 | AA32: 12801 | AT32: 100 | AU32: 1003 | AV32: -20000 | AW32: 999001 | AX32: 1 | BA32: =IF(AU32="","",CONCATENATE(VLOOKUP(AU32,[2]DropConfig!$A:$F,3,FALSE),"×",AV32)) -> 修为×-20000 | BB32: =IF(AW32="","",CONCATENATE(VLOOKUP(AW32,[2]DropConfig!$A:$F,3,FALSE),"×",AX32)) -> 法宝掉落×1 | BC32: =IF(AY32="","",CONCATENATE(VLOOKUP(AY32,[2]DropConfig!$A:$F,3,FALSE),"×",AZ32)) ->  | BH32: =IF(BD32="","",VLOOKUP(BD32,条件类型查询!A:B,2,FALSE)) ->  | BI32: =IF(BF32="","",VLOOKUP(BF32,条件类型查询!A:B,2,FALSE)) -> 
A33: 129 | B33: =IF(Z33>0,_xlfn.TEXTJOIN(";",1,ROW(INDIRECT(CONCATENATE("",A33*100+1,":",A33*100+Z33,""))),102,103),"") -> 12901;102;103 | C33: 1 | D33: 7 | E33: 1 | F33: 0 | G33: 4 | H33: 5 | I33: 1003;999002 | J33: -20000;1 | K33: 20 | O33: =IF(M33="","",CONCATENATE(VLOOKUP(M33,[1]PlacesConfig!$A:$C,3,FALSE),IF(N33="",""," - "&VLOOKUP(N33,[1]SmallPlacesConfig!$A:$I,9,FALSE)))) ->  | R33: =IF(S33="","",VLOOKUP(S33,条件类型查询!A:B,2,FALSE)) ->  | V33: 4308 | W33: 4095 | X33: =CONCATENATE("[资源]",VLOOKUP(AW33,[2]DropConfig!$A:$C,3,FALSE)) -> [资源]功法掉落 | Y33: 斩孽顿悟之残章 | Z33: =COUNTIF(EventLinkConfig!O:O,EventConfig!A33) -> 1 | AA33: 12901 | AT33: 100 | AU33: 1003 | AV33: -20000 | AW33: 999002 | AX33: 1 | BA33: =IF(AU33="","",CONCATENATE(VLOOKUP(AU33,[2]DropConfig!$A:$F,3,FALSE),"×",AV33)) -> 修为×-20000 | BB33: =IF(AW33="","",CONCATENATE(VLOOKUP(AW33,[2]DropConfig!$A:$F,3,FALSE),"×",AX33)) -> 功法掉落×1 | BC33: =IF(AY33="","",CONCATENATE(VLOOKUP(AY33,[2]DropConfig!$A:$F,3,FALSE),"×",AZ33)) ->  | BH33: =IF(BD33="","",VLOOKUP(BD33,条件类型查询!A:B,2,FALSE)) ->  | BI33: =IF(BF33="","",VLOOKUP(BF33,条件类型查询!A:B,2,FALSE)) -> 
A34: 130 | B34: =IF(Z34>0,_xlfn.TEXTJOIN(";",1,ROW(INDIRECT(CONCATENATE("",A34*100+1,":",A34*100+Z34,""))),102,103),"") -> 13001;102;103 | C34: 1 | D34: 7 | E34: 1 | F34: 0 | G34: 4 | H34: 1 | I34: 1003;1001 | J34: -20000;-30000 | K34: 200 | O34: =IF(M34="","",CONCATENATE(VLOOKUP(M34,[1]PlacesConfig!$A:$C,3,FALSE),IF(N34="",""," - "&VLOOKUP(N34,[1]SmallPlacesConfig!$A:$I,9,FALSE)))) ->  | R34: =IF(S34="","",VLOOKUP(S34,条件类型查询!A:B,2,FALSE)) ->  | V34: 4309 | W34: 4096 | X34: =CONCATENATE("[资源]",VLOOKUP(AW34,[2]DropConfig!$A:$C,3,FALSE)) -> [资源]灵石 | Y34: 天地蕴生之灵石 | Z34: =COUNTIF(EventLinkConfig!O:O,EventConfig!A34) -> 1 | AA34: 13001 | AT34: 100 | AU34: 1003 | AV34: -20000 | AW34: 1001 | AX34: -30000 | BA34: =IF(AU34="","",CONCATENATE(VLOOKUP(AU34,[2]DropConfig!$A:$F,3,FALSE),"×",AV34)) -> 修为×-20000 | BB34: =IF(AW34="","",CONCATENATE(VLOOKUP(AW34,[2]DropConfig!$A:$F,3,FALSE),"×",AX34)) -> 灵石×-30000 | BC34: =IF(AY34="","",CONCATENATE(VLOOKUP(AY34,[2]DropConfig!$A:$F,3,FALSE),"×",AZ34)) ->  | BH34: =IF(BD34="","",VLOOKUP(BD34,条件类型查询!A:B,2,FALSE)) ->  | BI34: =IF(BF34="","",VLOOKUP(BF34,条件类型查询!A:B,2,FALSE)) -> 
A35: 131 | B35: =IF(Z35>0,_xlfn.TEXTJOIN(";",1,ROW(INDIRECT(CONCATENATE("",A35*100+1,":",A35*100+Z35,""))),102,103),"") -> 13101;102;103 | C35: 1 | D35: 7 | E35: 1 | F35: 0 | G35: 4 | H35: 3 | I35: 1003;1005 | J35: -20000;-4000 | K35: 300 | O35: =IF(M35="","",CONCATENATE(VLOOKUP(M35,[1]PlacesConfig!$A:$C,3,FALSE),IF(N35="",""," - "&VLOOKUP(N35,[1]SmallPlacesConfig!$A:$I,9,FALSE)))) ->  | R35: =IF(S35="","",VLOOKUP(S35,条件类型查询!A:B,2,FALSE)) ->  | V35: 4310 | W35: 4097 | X35: =CONCATENATE("[资源]",VLOOKUP(AW35,[2]DropConfig!$A:$C,3,FALSE)) -> [资源]灵气 | Y35: 灵墟残脉之精气 | Z35: =COUNTIF(EventLinkConfig!O:O,EventConfig!A35) -> 1 | AA35: 13101 | AT35: 100 | AU35: 1003 | AV35: -20000 | AW35: 1005 | AX35: -4000 | BA35: =IF(AU35="","",CONCATENATE(VLOOKUP(AU35,[2]DropConfig!$A:$F,3,FALSE),"×",AV35)) -> 修为×-20000 | BB35: =IF(AW35="","",CONCATENATE(VLOOKUP(AW35,[2]DropConfig!$A:$F,3,FALSE),"×",AX35)) -> 灵气×-4000 | BC35: =IF(AY35="","",CONCATENATE(VLOOKUP(AY35,[2]DropConfig!$A:$F,3,FALSE),"×",AZ35)) ->  | BH35: =IF(BD35="","",VLOOKUP(BD35,条件类型查询!A:B,2,FALSE)) ->  | BI35: =IF(BF35="","",VLOOKUP(BF35,条件类型查询!A:B,2,FALSE)) -> 
A36: 132 | B36: =IF(Z36>0,_xlfn.TEXTJOIN(";",1,ROW(INDIRECT(CONCATENATE("",A36*100+1,":",A36*100+Z36,""))),102,103),"") -> 13201;102;103 | C36: 1 | D36: 7 | E36: 1 | F36: 0 | G36: 4 | H36: 4 | I36: 1003;1006 | J36: -20000;-4000 | K36: 300 | O36: =IF(M36="","",CONCATENATE(VLOOKUP(M36,[1]PlacesConfig!$A:$C,3,FALSE),IF(N36="",""," - "&VLOOKUP(N36,[1]SmallPlacesConfig!$A:$I,9,FALSE)))) ->  | R36: =IF(S36="","",VLOOKUP(S36,条件类型查询!A:B,2,FALSE)) ->  | V36: 4311 | W36: 4098 | X36: =CONCATENATE("[资源]",VLOOKUP(AW36,[2]DropConfig!$A:$C,3,FALSE)) -> [资源]玄晶 | Y36: 九玄凝淬之异矿 | Z36: =COUNTIF(EventLinkConfig!O:O,EventConfig!A36) -> 1 | AA36: 13201 | AH36: =IF($Z36>=AH$3,$A36*100+AH$3,"") ->  | AP36: =IF($Z36>=AP$3,$A36*100+AP$3,"") ->  | AT36: 100 | AU36: 1003 | AV36: -20000 | AW36: 1006 | AX36: -4000 | BA36: =IF(AU36="","",CONCATENATE(VLOOKUP(AU36,[2]DropConfig!$A:$F,3,FALSE),"×",AV36)) -> 修为×-20000 | BB36: =IF(AW36="","",CONCATENATE(VLOOKUP(AW36,[2]DropConfig!$A:$F,3,FALSE),"×",AX36)) -> 玄晶×-4000 | BC36: =IF(AY36="","",CONCATENATE(VLOOKUP(AY36,[2]DropConfig!$A:$F,3,FALSE),"×",AZ36)) ->  | BH36: =IF(BD36="","",VLOOKUP(BD36,条件类型查询!A:B,2,FALSE)) ->  | BI36: =IF(BF36="","",VLOOKUP(BF36,条件类型查询!A:B,2,FALSE)) -> 
A37: 133 | B37: =IF(Z37>0,_xlfn.TEXTJOIN(";",1,ROW(INDIRECT(CONCATENATE("",A37*100+1,":",A37*100+Z37,""))),102,103),"") -> 13301;102;103 | C37: 1 | D37: 7 | E37: 1 | F37: 0 | G37: 4 | H37: 12 | I37: 1003;1403 | J37: -20000;1 | K37: 50 | O37: =IF(M37="","",CONCATENATE(VLOOKUP(M37,[1]PlacesConfig!$A:$C,3,FALSE),IF(N37="",""," - "&VLOOKUP(N37,[1]SmallPlacesConfig!$A:$I,9,FALSE)))) ->  | R37: =IF(S37="","",VLOOKUP(S37,条件类型查询!A:B,2,FALSE)) ->  | V37: 4312 | W37: 4099 | X37: =CONCATENATE("[资源]",VLOOKUP(AW37,[2]DropConfig!$A:$C,3,FALSE)) -> [资源]上品增元丹 | Y37: 大妖陨落之元丹 | Z37: =COUNTIF(EventLinkConfig!O:O,EventConfig!A37) -> 1 | AA37: 13301 | AP37: =IF($Z37>=AP$3,$A37*100+AP$3,"") ->  | AT37: 100 | AU37: 1003 | AV37: -20000 | AW37: 1403 | AX37: 1 | BA37: =IF(AU37="","",CONCATENATE(VLOOKUP(AU37,[2]DropConfig!$A:$F,3,FALSE),"×",AV37)) -> 修为×-20000 | BB37: =IF(AW37="","",CONCATENATE(VLOOKUP(AW37,[2]DropConfig!$A:$F,3,FALSE),"×",AX37)) -> 上品增元丹×1 | BC37: =IF(AY37="","",CONCATENATE(VLOOKUP(AY37,[2]DropConfig!$A:$F,3,FALSE),"×",AZ37)) ->  | BH37: =IF(BD37="","",VLOOKUP(BD37,条件类型查询!A:B,2,FALSE)) ->  | BI37: =IF(BF37="","",VLOOKUP(BF37,条件类型查询!A:B,2,FALSE)) -> 
A38: 134 | B38: =IF(Z38>0,_xlfn.TEXTJOIN(";",1,ROW(INDIRECT(CONCATENATE("",A38*100+1,":",A38*100+Z38,""))),102,103),"") -> 13401;102;103 | C38: 1 | D38: 7 | E38: 1 | F38: 0 | G38: 4 | H38: 13 | I38: 1003;23303 | J38: -20000;1 | K38: 100 | O38: =IF(M38="","",CONCATENATE(VLOOKUP(M38,[1]PlacesConfig!$A:$C,3,FALSE),IF(N38="",""," - "&VLOOKUP(N38,[1]SmallPlacesConfig!$A:$I,9,FALSE)))) ->  | R38: =IF(S38="","",VLOOKUP(S38,条件类型查询!A:B,2,FALSE)) ->  | V38: 4313 | W38: 4100 | X38: =CONCATENATE("[资源]",VLOOKUP(AW38,[2]DropConfig!$A:$C,3,FALSE)) -> [资源]天材地宝 | Z38: =COUNTIF(EventLinkConfig!O:O,EventConfig!A38) -> 1 | AA38: 13401 | AT38: 100 | AU38: 1003 | AV38: -20000 | AW38: 23303 | AX38: 1 | BA38: =IF(AU38="","",CONCATENATE(VLOOKUP(AU38,[2]DropConfig!$A:$F,3,FALSE),"×",AV38)) -> 修为×-20000 | BB38: =IF(AW38="","",CONCATENATE(VLOOKUP(AW38,[2]DropConfig!$A:$F,3,FALSE),"×",AX38)) -> 天材地宝×1 | BC38: =IF(AY38="","",CONCATENATE(VLOOKUP(AY38,[2]DropConfig!$A:$F,3,FALSE),"×",AZ38)) ->  | BH38: =IF(BD38="","",VLOOKUP(BD38,条件类型查询!A:B,2,FALSE)) ->  | BI38: =IF(BF38="","",VLOOKUP(BF38,条件类型查询!A:B,2,FALSE)) -> 
A39: 135 | B39: =IF(Z39>0,_xlfn.TEXTJOIN(";",1,ROW(INDIRECT(CONCATENATE("",A39*100+1,":",A39*100+Z39,""))),102,103),"") -> 13501;102;103 | C39: 1 | D39: 7 | E39: 1 | F39: 0 | G39: 4 | H39: 10 | I39: 1003;1501 | J39: -20000;2 | K39: 50 | O39: =IF(M39="","",CONCATENATE(VLOOKUP(M39,[1]PlacesConfig!$A:$C,3,FALSE),IF(N39="",""," - "&VLOOKUP(N39,[1]SmallPlacesConfig!$A:$I,9,FALSE)))) ->  | R39: =IF(S39="","",VLOOKUP(S39,条件类型查询!A:B,2,FALSE)) ->  | V39: 4314 | W39: 4101 | X39: =CONCATENATE("[资源]",VLOOKUP(AW39,[2]DropConfig!$A:$C,3,FALSE)) -> [资源]清茶 | Y39: 云端仙草之甘露 | Z39: =COUNTIF(EventLinkConfig!O:O,EventConfig!A39) -> 1 | AA39: =IF($Z39>=AA$3,$A39*100+AA$3,"") -> 13501 | AT39: 100 | AU39: 1003 | AV39: -20000 | AW39: 1501 | AX39: 2 | BA39: =IF(AU39="","",CONCATENATE(VLOOKUP(AU39,[2]DropConfig!$A:$F,3,FALSE),"×",AV39)) -> 修为×-20000 | BB39: =IF(AW39="","",CONCATENATE(VLOOKUP(AW39,[2]DropConfig!$A:$F,3,FALSE),"×",AX39)) -> 清茶×2 | BC39: =IF(AY39="","",CONCATENATE(VLOOKUP(AY39,[2]DropConfig!$A:$F,3,FALSE),"×",AZ39)) ->  | BH39: =IF(BD39="","",VLOOKUP(BD39,条件类型查询!A:B,2,FALSE)) ->  | BI39: =IF(BF39="","",VLOOKUP(BF39,条件类型查询!A:B,2,FALSE)) -> 
A40: 136 | B40: =IF(Z40>0,_xlfn.TEXTJOIN(";",1,ROW(INDIRECT(CONCATENATE("",A40*100+1,":",A40*100+Z40,""))),102,103),"") -> 13601;102;103 | C40: 1 | D40: 7 | E40: 1 | F40: 0 | G40: 4 | H40: 11 | I40: 1003;1601 | J40: -20000;2 | K40: 50 | O40: =IF(M40="","",CONCATENATE(VLOOKUP(M40,[1]PlacesConfig!$A:$C,3,FALSE),IF(N40="",""," - "&VLOOKUP(N40,[1]SmallPlacesConfig!$A:$I,9,FALSE)))) ->  | R40: =IF(S40="","",VLOOKUP(S40,条件类型查询!A:B,2,FALSE)) ->  | V40: 4315 | W40: 4102 | X40: =CONCATENATE("[资源]",VLOOKUP(AW40,[2]DropConfig!$A:$C,3,FALSE)) -> [资源]妃子笑 | Y40: 岭南千年之仙果 | Z40: =COUNTIF(EventLinkConfig!O:O,EventConfig!A40) -> 1 | AA40: 13601 | AT40: 100 | AU40: 1003 | AV40: -20000 | AW40: 1601 | AX40: 2 | BA40: =IF(AU40="","",CONCATENATE(VLOOKUP(AU40,[2]DropConfig!$A:$F,3,FALSE),"×",AV40)) -> 修为×-20000 | BB40: =IF(AW40="","",CONCATENATE(VLOOKUP(AW40,[2]DropConfig!$A:$F,3,FALSE),"×",AX40)) -> 妃子笑×2 | BC40: =IF(AY40="","",CONCATENATE(VLOOKUP(AY40,[2]DropConfig!$A:$F,3,FALSE),"×",AZ40)) ->  | BH40: =IF(BD40="","",VLOOKUP(BD40,条件类型查询!A:B,2,FALSE)) ->  | BI40: =IF(BF40="","",VLOOKUP(BF40,条件类型查询!A:B,2,FALSE)) -> 
A41: 137 | B41: =IF(Z41>0,_xlfn.TEXTJOIN(";",1,ROW(INDIRECT(CONCATENATE("",A41*100+1,":",A41*100+Z41,""))),102,103),"") -> 13701;102;103 | C41: 1 | D41: 7 | E41: 1 | F41: 0 | G41: 5 | H41: 6 | I41: 1003;999001 | J41: -30000;1 | K41: 20 | O41: =IF(M41="","",CONCATENATE(VLOOKUP(M41,[1]PlacesConfig!$A:$C,3,FALSE),IF(N41="",""," - "&VLOOKUP(N41,[1]SmallPlacesConfig!$A:$I,9,FALSE)))) ->  | R41: =IF(S41="","",VLOOKUP(S41,条件类型查询!A:B,2,FALSE)) ->  | V41: 4316 | W41: 4094 | X41: =CONCATENATE("[资源]",VLOOKUP(AW41,[2]DropConfig!$A:$C,3,FALSE)) -> [资源]法宝掉落 | Y41: 伏魔证道之遗宝 | Z41: =COUNTIF(EventLinkConfig!O:O,EventConfig!A41) -> 1 | AA41: 13701 | AT41: 100 | AU41: 1003 | AV41: -30000 | AW41: 999001 | AX41: 1 | BA41: =IF(AU41="","",CONCATENATE(VLOOKUP(AU41,[2]DropConfig!$A:$F,3,FALSE),"×",AV41)) -> 修为×-30000 | BB41: =IF(AW41="","",CONCATENATE(VLOOKUP(AW41,[2]DropConfig!$A:$F,3,FALSE),"×",AX41)) -> 法宝掉落×1 | BC41: =IF(AY41="","",CONCATENATE(VLOOKUP(AY41,[2]DropConfig!$A:$F,3,FALSE),"×",AZ41)) ->  | BH41: =IF(BD41="","",VLOOKUP(BD41,条件类型查询!A:B,2,FALSE)) ->  | BI41: =IF(BF41="","",VLOOKUP(BF41,条件类型查询!A:B,2,FALSE)) -> 
A42: 138 | B42: =IF(Z42>0,_xlfn.TEXTJOIN(";",1,ROW(INDIRECT(CONCATENATE("",A42*100+1,":",A42*100+Z42,""))),102,103),"") -> 13801;102;103 | C42: 1 | D42: 7 | E42: 1 | F42: 0 | G42: 5 | H42: 5 | I42: 1003;999002 | J42: -30000;1 | K42: 20 | O42: =IF(M42="","",CONCATENATE(VLOOKUP(M42,[1]PlacesConfig!$A:$C,3,FALSE),IF(N42="",""," - "&VLOOKUP(N42,[1]SmallPlacesConfig!$A:$I,9,FALSE)))) ->  | R42: =IF(S42="","",VLOOKUP(S42,条件类型查询!A:B,2,FALSE)) ->  | V42: 4317 | W42: 4095 | X42: =CONCATENATE("[资源]",VLOOKUP(AW42,[2]DropConfig!$A:$C,3,FALSE)) -> [资源]功法掉落 | Y42: 斩孽顿悟之残章 | Z42: =COUNTIF(EventLinkConfig!O:O,EventConfig!A42) -> 1 | AA42: 13801 | AT42: 100 | AU42: 1003 | AV42: -30000 | AW42: 999002 | AX42: 1 | BA42: =IF(AU42="","",CONCATENATE(VLOOKUP(AU42,[2]DropConfig!$A:$F,3,FALSE),"×",AV42)) -> 修为×-30000 | BB42: =IF(AW42="","",CONCATENATE(VLOOKUP(AW42,[2]DropConfig!$A:$F,3,FALSE),"×",AX42)) -> 功法掉落×1 | BC42: =IF(AY42="","",CONCATENATE(VLOOKUP(AY42,[2]DropConfig!$A:$F,3,FALSE),"×",AZ42)) ->  | BH42: =IF(BD42="","",VLOOKUP(BD42,条件类型查询!A:B,2,FALSE)) ->  | BI42: =IF(BF42="","",VLOOKUP(BF42,条件类型查询!A:B,2,FALSE)) -> 
A43: 139 | B43: =IF(Z43>0,_xlfn.TEXTJOIN(";",1,ROW(INDIRECT(CONCATENATE("",A43*100+1,":",A43*100+Z43,""))),102,103),"") -> 13901;102;103 | C43: 1 | D43: 7 | E43: 1 | F43: 0 | G43: 5 | H43: 1 | I43: 1003;1001 | J43: -30000;-50000 | K43: 200 | O43: =IF(M43="","",CONCATENATE(VLOOKUP(M43,[1]PlacesConfig!$A:$C,3,FALSE),IF(N43="",""," - "&VLOOKUP(N43,[1]SmallPlacesConfig!$A:$I,9,FALSE)))) ->  | R43: =IF(S43="","",VLOOKUP(S43,条件类型查询!A:B,2,FALSE)) ->  | V43: 4318 | W43: 4096 | X43: =CONCATENATE("[资源]",VLOOKUP(AW43,[2]DropConfig!$A:$C,3,FALSE)) -> [资源]灵石 | Y43: 天地蕴生之灵石 | Z43: =COUNTIF(EventLinkConfig!O:O,EventConfig!A43) -> 1 | AA43: 13901 | AT43: 100 | AU43: 1003 | AV43: -30000 | AW43: 1001 | AX43: -50000 | BA43: =IF(AU43="","",CONCATENATE(VLOOKUP(AU43,[2]DropConfig!$A:$F,3,FALSE),"×",AV43)) -> 修为×-30000 | BB43: =IF(AW43="","",CONCATENATE(VLOOKUP(AW43,[2]DropConfig!$A:$F,3,FALSE),"×",AX43)) -> 灵石×-50000 | BC43: =IF(AY43="","",CONCATENATE(VLOOKUP(AY43,[2]DropConfig!$A:$F,3,FALSE),"×",AZ43)) ->  | BH43: =IF(BD43="","",VLOOKUP(BD43,条件类型查询!A:B,2,FALSE)) ->  | BI43: =IF(BF43="","",VLOOKUP(BF43,条件类型查询!A:B,2,FALSE)) -> 
A44: 140 | B44: =IF(Z44>0,_xlfn.TEXTJOIN(";",1,ROW(INDIRECT(CONCATENATE("",A44*100+1,":",A44*100+Z44,""))),102,103),"") -> 14001;102;103 | C44: 1 | D44: 7 | E44: 1 | F44: 0 | G44: 5 | H44: 3 | I44: 1003;1005 | J44: -30000;-5000 | K44: 300 | O44: =IF(M44="","",CONCATENATE(VLOOKUP(M44,[1]PlacesConfig!$A:$C,3,FALSE),IF(N44="",""," - "&VLOOKUP(N44,[1]SmallPlacesConfig!$A:$I,9,FALSE)))) ->  | R44: =IF(S44="","",VLOOKUP(S44,条件类型查询!A:B,2,FALSE)) ->  | V44: 4319 | W44: 4097 | X44: =CONCATENATE("[资源]",VLOOKUP(AW44,[2]DropConfig!$A:$C,3,FALSE)) -> [资源]灵气 | Y44: 灵墟残脉之精气 | Z44: =COUNTIF(EventLinkConfig!O:O,EventConfig!A44) -> 1 | AA44: 14001 | AT44: 100 | AU44: 1003 | AV44: -30000 | AW44: 1005 | AX44: -5000 | BA44: =IF(AU44="","",CONCATENATE(VLOOKUP(AU44,[2]DropConfig!$A:$F,3,FALSE),"×",AV44)) -> 修为×-30000 | BB44: =IF(AW44="","",CONCATENATE(VLOOKUP(AW44,[2]DropConfig!$A:$F,3,FALSE),"×",AX44)) -> 灵气×-5000 | BC44: =IF(AY44="","",CONCATENATE(VLOOKUP(AY44,[2]DropConfig!$A:$F,3,FALSE),"×",AZ44)) ->  | BH44: =IF(BD44="","",VLOOKUP(BD44,条件类型查询!A:B,2,FALSE)) ->  | BI44: =IF(BF44="","",VLOOKUP(BF44,条件类型查询!A:B,2,FALSE)) -> 
A45: 141 | B45: =IF(Z45>0,_xlfn.TEXTJOIN(";",1,ROW(INDIRECT(CONCATENATE("",A45*100+1,":",A45*100+Z45,""))),102,103),"") -> 14101;102;103 | C45: 1 | D45: 7 | E45: 1 | F45: 0 | G45: 5 | H45: 4 | I45: 1003;1006 | J45: -30000;-5000 | K45: 300 | O45: =IF(M45="","",CONCATENATE(VLOOKUP(M45,[1]PlacesConfig!$A:$C,3,FALSE),IF(N45="",""," - "&VLOOKUP(N45,[1]SmallPlacesConfig!$A:$I,9,FALSE)))) ->  | R45: =IF(S45="","",VLOOKUP(S45,条件类型查询!A:B,2,FALSE)) ->  | V45: 4320 | W45: 4098 | X45: =CONCATENATE("[资源]",VLOOKUP(AW45,[2]DropConfig!$A:$C,3,FALSE)) -> [资源]玄晶 | Y45: 九玄凝淬之异矿 | Z45: =COUNTIF(EventLinkConfig!O:O,EventConfig!A45) -> 1 | AA45: 14101 | AT45: 100 | AU45: 1003 | AV45: -30000 | AW45: 1006 | AX45: -5000 | BA45: =IF(AU45="","",CONCATENATE(VLOOKUP(AU45,[2]DropConfig!$A:$F,3,FALSE),"×",AV45)) -> 修为×-30000 | BB45: =IF(AW45="","",CONCATENATE(VLOOKUP(AW45,[2]DropConfig!$A:$F,3,FALSE),"×",AX45)) -> 玄晶×-5000 | BC45: =IF(AY45="","",CONCATENATE(VLOOKUP(AY45,[2]DropConfig!$A:$F,3,FALSE),"×",AZ45)) ->  | BH45: =IF(BD45="","",VLOOKUP(BD45,条件类型查询!A:B,2,FALSE)) ->  | BI45: =IF(BF45="","",VLOOKUP(BF45,条件类型查询!A:B,2,FALSE)) -> 
A46: 142 | B46: =IF(Z46>0,_xlfn.TEXTJOIN(";",1,ROW(INDIRECT(CONCATENATE("",A46*100+1,":",A46*100+Z46,""))),102,103),"") -> 14201;102;103 | C46: 1 | D46: 7 | E46: 1 | F46: 0 | G46: 5 | H46: 12 | I46: 1003;1404 | J46: -30000;1 | K46: 50 | O46: =IF(M46="","",CONCATENATE(VLOOKUP(M46,[1]PlacesConfig!$A:$C,3,FALSE),IF(N46="",""," - "&VLOOKUP(N46,[1]SmallPlacesConfig!$A:$I,9,FALSE)))) ->  | R46: =IF(S46="","",VLOOKUP(S46,条件类型查询!A:B,2,FALSE)) ->  | V46: 4321 | W46: 4099 | X46: =CONCATENATE("[资源]",VLOOKUP(AW46,[2]DropConfig!$A:$C,3,FALSE)) -> [资源]极品增元丹 | Y46: 大妖陨落之元丹 | Z46: =COUNTIF(EventLinkConfig!O:O,EventConfig!A46) -> 1 | AA46: 14201 | AT46: 100 | AU46: 1003 | AV46: -30000 | AW46: 1404 | AX46: 1 | BA46: =IF(AU46="","",CONCATENATE(VLOOKUP(AU46,[2]DropConfig!$A:$F,3,FALSE),"×",AV46)) -> 修为×-30000 | BB46: =IF(AW46="","",CONCATENATE(VLOOKUP(AW46,[2]DropConfig!$A:$F,3,FALSE),"×",AX46)) -> 极品增元丹×1 | BC46: =IF(AY46="","",CONCATENATE(VLOOKUP(AY46,[2]DropConfig!$A:$F,3,FALSE),"×",AZ46)) ->  | BH46: =IF(BD46="","",VLOOKUP(BD46,条件类型查询!A:B,2,FALSE)) ->  | BI46: =IF(BF46="","",VLOOKUP(BF46,条件类型查询!A:B,2,FALSE)) -> 
A47: 143 | B47: =IF(Z47>0,_xlfn.TEXTJOIN(";",1,ROW(INDIRECT(CONCATENATE("",A47*100+1,":",A47*100+Z47,""))),102,103),"") -> 14301;102;103 | C47: 1 | D47: 7 | E47: 1 | F47: 0 | G47: 5 | H47: 13 | I47: 1003;23304 | J47: -30000;1 | K47: 100 | O47: =IF(M47="","",CONCATENATE(VLOOKUP(M47,[1]PlacesConfig!$A:$C,3,FALSE),IF(N47="",""," - "&VLOOKUP(N47,[1]SmallPlacesConfig!$A:$I,9,FALSE)))) ->  | R47: =IF(S47="","",VLOOKUP(S47,条件类型查询!A:B,2,FALSE)) ->  | V47: 4322 | W47: 4100 | X47: =CONCATENATE("[资源]",VLOOKUP(AW47,[2]DropConfig!$A:$C,3,FALSE)) -> [资源]天材地宝 | Z47: =COUNTIF(EventLinkConfig!O:O,EventConfig!A47) -> 1 | AA47: 14301 | AT47: 100 | AU47: 1003 | AV47: -30000 | AW47: 23304 | AX47: 1 | BA47: =IF(AU47="","",CONCATENATE(VLOOKUP(AU47,[2]DropConfig!$A:$F,3,FALSE),"×",AV47)) -> 修为×-30000 | BB47: =IF(AW47="","",CONCATENATE(VLOOKUP(AW47,[2]DropConfig!$A:$F,3,FALSE),"×",AX47)) -> 天材地宝×1 | BC47: =IF(AY47="","",CONCATENATE(VLOOKUP(AY47,[2]DropConfig!$A:$F,3,FALSE),"×",AZ47)) ->  | BH47: =IF(BD47="","",VLOOKUP(BD47,条件类型查询!A:B,2,FALSE)) ->  | BI47: =IF(BF47="","",VLOOKUP(BF47,条件类型查询!A:B,2,FALSE)) -> 
A48: 144 | B48: =IF(Z48>0,_xlfn.TEXTJOIN(";",1,ROW(INDIRECT(CONCATENATE("",A48*100+1,":",A48*100+Z48,""))),102,103),"") -> 14401;102;103 | C48: 1 | D48: 7 | E48: 1 | F48: 0 | G48: 5 | H48: 10 | I48: 1003;1501 | J48: -30000;3 | K48: 50 | O48: =IF(M48="","",CONCATENATE(VLOOKUP(M48,[1]PlacesConfig!$A:$C,3,FALSE),IF(N48="",""," - "&VLOOKUP(N48,[1]SmallPlacesConfig!$A:$I,9,FALSE)))) ->  | R48: =IF(S48="","",VLOOKUP(S48,条件类型查询!A:B,2,FALSE)) ->  | V48: 4323 | W48: 4101 | X48: =CONCATENATE("[资源]",VLOOKUP(AW48,[2]DropConfig!$A:$C,3,FALSE)) -> [资源]清茶 | Y48: 云端仙草之甘露 | Z48: =COUNTIF(EventLinkConfig!O:O,EventConfig!A48) -> 1 | AA48: 14401 | AT48: 100 | AU48: 1003 | AV48: -30000 | AW48: 1501 | AX48: 3 | BA48: =IF(AU48="","",CONCATENATE(VLOOKUP(AU48,[2]DropConfig!$A:$F,3,FALSE),"×",AV48)) -> 修为×-30000 | BB48: =IF(AW48="","",CONCATENATE(VLOOKUP(AW48,[2]DropConfig!$A:$F,3,FALSE),"×",AX48)) -> 清茶×3 | BC48: =IF(AY48="","",CONCATENATE(VLOOKUP(AY48,[2]DropConfig!$A:$F,3,FALSE),"×",AZ48)) ->  | BH48: =IF(BD48="","",VLOOKUP(BD48,条件类型查询!A:B,2,FALSE)) ->  | BI48: =IF(BF48="","",VLOOKUP(BF48,条件类型查询!A:B,2,FALSE)) -> 
A49: 145 | B49: =IF(Z49>0,_xlfn.TEXTJOIN(";",1,ROW(INDIRECT(CONCATENATE("",A49*100+1,":",A49*100+Z49,""))),102,103),"") -> 14501;102;103 | C49: 1 | D49: 7 | E49: 1 | F49: 0 | G49: 5 | H49: 11 | I49: 1003;1601 | J49: -30000;3 | K49: 50 | O49: =IF(M49="","",CONCATENATE(VLOOKUP(M49,[1]PlacesConfig!$A:$C,3,FALSE),IF(N49="",""," - "&VLOOKUP(N49,[1]SmallPlacesConfig!$A:$I,9,FALSE)))) ->  | R49: =IF(S49="","",VLOOKUP(S49,条件类型查询!A:B,2,FALSE)) ->  | V49: 4324 | W49: 4102 | X49: =CONCATENATE("[资源]",VLOOKUP(AW49,[2]DropConfig!$A:$C,3,FALSE)) -> [资源]妃子笑 | Y49: 岭南千年之仙果 | Z49: =COUNTIF(EventLinkConfig!O:O,EventConfig!A49) -> 1 | AA49: 14501 | AT49: 100 | AU49: 1003 | AV49: -30000 | AW49: 1601 | AX49: 3 | BA49: =IF(AU49="","",CONCATENATE(VLOOKUP(AU49,[2]DropConfig!$A:$F,3,FALSE),"×",AV49)) -> 修为×-30000 | BB49: =IF(AW49="","",CONCATENATE(VLOOKUP(AW49,[2]DropConfig!$A:$F,3,FALSE),"×",AX49)) -> 妃子笑×3 | BC49: =IF(AY49="","",CONCATENATE(VLOOKUP(AY49,[2]DropConfig!$A:$F,3,FALSE),"×",AZ49)) ->  | BH49: =IF(BD49="","",VLOOKUP(BD49,条件类型查询!A:B,2,FALSE)) ->  | BI49: =IF(BF49="","",VLOOKUP(BF49,条件类型查询!A:B,2,FALSE)) -> 
O50: =IF(M50="","",CONCATENATE(VLOOKUP(M50,[1]PlacesConfig!$A:$C,3,FALSE),IF(N50="",""," - "&VLOOKUP(N50,[1]SmallPlacesConfig!$A:$I,9,FALSE)))) ->  | BA50: =IF(AU50="","",CONCATENATE(VLOOKUP(AU50,[2]DropConfig!$A:$F,3,FALSE),"×",AV50)) ->  | BB50: =IF(AW50="","",CONCATENATE(VLOOKUP(AW50,[2]DropConfig!$A:$F,3,FALSE),"×",AX50)) ->  | BC50: =IF(AY50="","",CONCATENATE(VLOOKUP(AY50,[2]DropConfig!$A:$F,3,FALSE),"×",AZ50)) ->  | BH50: =IF(BD50="","",VLOOKUP(BD50,条件类型查询!A:B,2,FALSE)) ->  | BI50: =IF(BF50="","",VLOOKUP(BF50,条件类型查询!A:B,2,FALSE)) -> 
A51: 9999 | B51: =IF(Z51>0,_xlfn.TEXTJOIN(";",1,ROW(INDIRECT(CONCATENATE("",A51*100+1,":",A51*100+Z51,""))),102,103),"") -> 999901;102;103 | C51: 99 | D51: 3 | E51: 1 | F51: 0 | G51: 1 | O51: =IF(M51="","",CONCATENATE(VLOOKUP(M51,[1]PlacesConfig!$A:$C,3,FALSE),IF(N51="",""," - "&VLOOKUP(N51,[1]SmallPlacesConfig!$A:$I,9,FALSE)))) ->  | V51: 4325 | X51: 突破心魔失败鼓励 | Z51: =COUNTIF(EventLinkConfig!O:O,EventConfig!A51) -> 1 | AA51: =IF($Z51>=AA$3,$A51*100+AA$3,"") -> 999901 | AT51: 100 | BA51: =IF(AU51="","",CONCATENATE(VLOOKUP(AU51,[2]DropConfig!$A:$F,3,FALSE),"×",AV51)) ->  | BB51: =IF(AW51="","",CONCATENATE(VLOOKUP(AW51,[2]DropConfig!$A:$F,3,FALSE),"×",AX51)) ->  | BC51: =IF(AY51="","",CONCATENATE(VLOOKUP(AY51,[2]DropConfig!$A:$F,3,FALSE),"×",AZ51)) ->  | BH51: =IF(BD51="","",VLOOKUP(BD51,条件类型查询!A:B,2,FALSE)) ->  | BI51: =IF(BF51="","",VLOOKUP(BF51,条件类型查询!A:B,2,FALSE)) -> 
B52: =IF(A52="","",_xlfn.TEXTJOIN(";",1,AA52:AT52,102)) ->  | C52: 2 | D52: 3 | E52: 1 | F52: 0 | G52: 1 | O52: =IF(M52="","",CONCATENATE(VLOOKUP(M52,[1]PlacesConfig!$A:$C,3,FALSE),IF(N52="",""," - "&VLOOKUP(N52,[1]SmallPlacesConfig!$A:$I,9,FALSE)))) ->  | X52: 挂机2 | Y52: 灵气 | Z52: =COUNTIF(EventLinkConfig!O:O,EventConfig!A52) -> 0 | AT52: 100 | BA52: =IF(AU52="","",CONCATENATE(VLOOKUP(AU52,[2]DropConfig!$A:$F,3,FALSE),"×",AV52)) ->  | BB52: =IF(AW52="","",CONCATENATE(VLOOKUP(AW52,[2]DropConfig!$A:$F,3,FALSE),"×",AX52)) ->  | BC52: =IF(AY52="","",CONCATENATE(VLOOKUP(AY52,[2]DropConfig!$A:$F,3,FALSE),"×",AZ52)) ->  | BH52: =IF(BD52="","",VLOOKUP(BD52,条件类型查询!A:B,2,FALSE)) ->  | BI52: =IF(BF52="","",VLOOKUP(BF52,条件类型查询!A:B,2,FALSE)) -> 
C53: 2 | D53: 3 | E53: 1 | F53: 0 | G53: 1 | O53: =IF(M53="","",CONCATENATE(VLOOKUP(M53,[1]PlacesConfig!$A:$C,3,FALSE),IF(N53="",""," - "&VLOOKUP(N53,[1]SmallPlacesConfig!$A:$I,9,FALSE)))) ->  | X53: 挂机3 | Y53: 玄晶 | Z53: =COUNTIF(EventLinkConfig!O:O,EventConfig!A53) -> 0 | AT53: 100 | BA53: =IF(AU53="","",CONCATENATE(VLOOKUP(AU53,[2]DropConfig!$A:$F,3,FALSE),"×",AV53)) ->  | BB53: =IF(AW53="","",CONCATENATE(VLOOKUP(AW53,[2]DropConfig!$A:$F,3,FALSE),"×",AX53)) ->  | BC53: =IF(AY53="","",CONCATENATE(VLOOKUP(AY53,[2]DropConfig!$A:$F,3,FALSE),"×",AZ53)) ->  | BH53: =IF(BD53="","",VLOOKUP(BD53,条件类型查询!A:B,2,FALSE)) ->  | BI53: =IF(BF53="","",VLOOKUP(BF53,条件类型查询!A:B,2,FALSE)) -> 
C54: 2 | D54: 3 | E54: 1 | F54: 0 | G54: 1 | O54: =IF(M54="","",CONCATENATE(VLOOKUP(M54,[1]PlacesConfig!$A:$C,3,FALSE),IF(N54="",""," - "&VLOOKUP(N54,[1]SmallPlacesConfig!$A:$I,9,FALSE)))) ->  | X54: 挂机4 | Y54: 灵石 | Z54: =COUNTIF(EventLinkConfig!O:O,EventConfig!A54) -> 0 | AT54: 100 | BA54: =IF(AU54="","",CONCATENATE(VLOOKUP(AU54,[2]DropConfig!$A:$F,3,FALSE),"×",AV54)) ->  | BB54: =IF(AW54="","",CONCATENATE(VLOOKUP(AW54,[2]DropConfig!$A:$F,3,FALSE),"×",AX54)) ->  | BC54: =IF(AY54="","",CONCATENATE(VLOOKUP(AY54,[2]DropConfig!$A:$F,3,FALSE),"×",AZ54)) ->  | BH54: =IF(BD54="","",VLOOKUP(BD54,条件类型查询!A:B,2,FALSE)) ->  | BI54: =IF(BF54="","",VLOOKUP(BF54,条件类型查询!A:B,2,FALSE)) -> 
C55: 2 | D55: 3 | E55: 1 | F55: 0 | G55: 1 | O55: =IF(M55="","",CONCATENATE(VLOOKUP(M55,[1]PlacesConfig!$A:$C,3,FALSE),IF(N55="",""," - "&VLOOKUP(N55,[1]SmallPlacesConfig!$A:$I,9,FALSE)))) ->  | X55: 挂机5 | Y55: 神识丹 | Z55: =COUNTIF(EventLinkConfig!O:O,EventConfig!A55) -> 0 | AT55: 100 | BA55: =IF(AU55="","",CONCATENATE(VLOOKUP(AU55,[2]DropConfig!$A:$F,3,FALSE),"×",AV55)) ->  | BB55: =IF(AW55="","",CONCATENATE(VLOOKUP(AW55,[2]DropConfig!$A:$F,3,FALSE),"×",AX55)) ->  | BC55: =IF(AY55="","",CONCATENATE(VLOOKUP(AY55,[2]DropConfig!$A:$F,3,FALSE),"×",AZ55)) ->  | BH55: =IF(BD55="","",VLOOKUP(BD55,条件类型查询!A:B,2,FALSE)) ->  | BI55: =IF(BF55="","",VLOOKUP(BF55,条件类型查询!A:B,2,FALSE)) -> 
C56: 2 | D56: 3 | E56: 1 | F56: 0 | G56: 1 | O56: =IF(M56="","",CONCATENATE(VLOOKUP(M56,[1]PlacesConfig!$A:$C,3,FALSE),IF(N56="",""," - "&VLOOKUP(N56,[1]SmallPlacesConfig!$A:$I,9,FALSE)))) ->  | X56: 挂机6 | Y56: 妖丹 | Z56: =COUNTIF(EventLinkConfig!O:O,EventConfig!A56) -> 0 | AT56: 100 | BA56: =IF(AU56="","",CONCATENATE(VLOOKUP(AU56,[2]DropConfig!$A:$F,3,FALSE),"×",AV56)) ->  | BB56: =IF(AW56="","",CONCATENATE(VLOOKUP(AW56,[2]DropConfig!$A:$F,3,FALSE),"×",AX56)) ->  | BC56: =IF(AY56="","",CONCATENATE(VLOOKUP(AY56,[2]DropConfig!$A:$F,3,FALSE),"×",AZ56)) ->  | BH56: =IF(BD56="","",VLOOKUP(BD56,条件类型查询!A:B,2,FALSE)) ->  | BI56: =IF(BF56="","",VLOOKUP(BF56,条件类型查询!A:B,2,FALSE)) -> 
O57: =IF(M57="","",CONCATENATE(VLOOKUP(M57,[1]PlacesConfig!$A:$C,3,FALSE),IF(N57="",""," - "&VLOOKUP(N57,[1]SmallPlacesConfig!$A:$I,9,FALSE)))) ->  | BA57: =IF(AU57="","",CONCATENATE(VLOOKUP(AU57,[2]DropConfig!$A:$F,3,FALSE),"×",AV57)) ->  | BB57: =IF(AW57="","",CONCATENATE(VLOOKUP(AW57,[2]DropConfig!$A:$F,3,FALSE),"×",AX57)) ->  | BC57: =IF(AY57="","",CONCATENATE(VLOOKUP(AY57,[2]DropConfig!$A:$F,3,FALSE),"×",AZ57)) ->  | BH57: =IF(BD57="","",VLOOKUP(BD57,条件类型查询!A:B,2,FALSE)) ->  | BI57: =IF(BF57="","",VLOOKUP(BF57,条件类型查询!A:B,2,FALSE)) -> 
A58: 10000 | B58: =IF(Z58>0,_xlfn.TEXTJOIN(";",1,ROW(INDIRECT(CONCATENATE("",A58*100+1,":",A58*100+Z58,""))),102,103),"") -> 1000001;1000002;1000003;1000004;1000005;1000006;1000007;1000008;1000009;1000010;1000011;1000012;1000013;1000014;1000015;1000016;1000017;1000018;1000019;1000020;1000021;1000022;102;103 | C58: 99 | D58: 1 | E58: 1 | F58: 0 | G58: 2 | M58: 1 | O58: =IF(M58="","",CONCATENATE(VLOOKUP(M58,[1]PlacesConfig!$A:$C,3,FALSE),IF(N58="",""," - "&VLOOKUP(N58,[1]SmallPlacesConfig!$A:$I,9,FALSE)))) -> 北海 | P58: 1 | Q58: 1 | V58: 4259 | X58: 渡劫之殇 | Z58: =COUNTIF(EventLinkConfig!O:O,EventConfig!A58) -> 22 | AA58: =IF($Z58>=AA$3,$A58*100+AA$3,"") -> 1000001 | AB58: 1000002 | AC58: 1000003 | AD58: 1000004 | AE58: 1000005 | AF58: 1000006 | AG58: 1000007 | AH58: 1000008 | AI58: 1000009 | AJ58: 1000010 | AK58: 1000011 | AL58: 1000012 | AM58: 1000013 | AN58: 1000014 | AO58: 1000015 | AP58: 1000016 | BA58: =IF(AU58="","",CONCATENATE(VLOOKUP(AU58,[2]DropConfig!$A:$F,3,FALSE),"×",AV58)) ->  | BB58: =IF(AW58="","",CONCATENATE(VLOOKUP(AW58,[2]DropConfig!$A:$F,3,FALSE),"×",AX58)) ->  | BC58: =IF(AY58="","",CONCATENATE(VLOOKUP(AY58,[2]DropConfig!$A:$F,3,FALSE),"×",AZ58)) ->  | BH58: =IF(BD58="","",VLOOKUP(BD58,条件类型查询!A:B,2,FALSE)) ->  | BI58: =IF(BF58="","",VLOOKUP(BF58,条件类型查询!A:B,2,FALSE)) -> 
A59: 10001 | B59: =IF(Z59>0,_xlfn.TEXTJOIN(";",1,ROW(INDIRECT(CONCATENATE("",A59*100+1,":",A59*100+Z59,""))),102,103),"") -> 1000101;1000102;1000103;1000104;102;103 | C59: 4 | D59: 1 | E59: 1 | F59: 1 | G59: 2 | I59: 12020;1701;1003 | J59: 1;1;500 | M59: 1 | O59: =IF(M59="","",CONCATENATE(VLOOKUP(M59,[1]PlacesConfig!$A:$C,3,FALSE),IF(N59="",""," - "&VLOOKUP(N59,[1]SmallPlacesConfig!$A:$I,9,FALSE)))) -> 北海 | P59: 2 | Q59: 1 | V59: 4028 | W59: 4103 | X59: 鲲鹏何在.神识未灭 | Y59: 风铃一响，随它去寻北海鲲鹏。 | Z59: =COUNTIF(EventLinkConfig!O:O,EventConfig!A59) -> 4 | AA59: 1000101 | AB59: 1000102 | AC59: 1000103 | AD59: 1000104 | AU59: 12020 | AV59: 1 | AW59: 1701 | AX59: 1 | AY59: 1003 | AZ59: =VLOOKUP(P59,[3]ResourceLevelConfig!$A:$E,5,FALSE)*5 -> 500 | BA59: =IF(AU59="","",CONCATENATE(VLOOKUP(AU59,[2]DropConfig!$A:$F,3,FALSE),"×",AV59)) -> 火刀×1 | BB59: =IF(AW59="","",CONCATENATE(VLOOKUP(AW59,[2]DropConfig!$A:$F,3,FALSE),"×",AX59)) -> 清识还元丹×1 | BC59: =IF(AY59="","",CONCATENATE(VLOOKUP(AY59,[2]DropConfig!$A:$F,3,FALSE),"×",AZ59)) -> 修为×500 | BH59: =IF(BD59="","",VLOOKUP(BD59,条件类型查询!A:B,2,FALSE)) ->  | BI59: =IF(BF59="","",VLOOKUP(BF59,条件类型查询!A:B,2,FALSE)) -> 
A60: 10002 | B60: =IF(Z60>0,_xlfn.TEXTJOIN(";",1,ROW(INDIRECT(CONCATENATE("",A60*100+1,":",A60*100+Z60,""))),102,103),"") -> 1000201;1000202;1000203;102;103 | C60: 4 | D60: 1 | E60: 1 | F60: 1 | G60: 2 | I60: 12507;1701;1003 | J60: 1;1;500 | M60: 1 | N60: 2 | O60: =IF(M60="","",CONCATENATE(VLOOKUP(M60,[1]PlacesConfig!$A:$C,3,FALSE),IF(N60="",""," - "&VLOOKUP(N60,[1]SmallPlacesConfig!$A:$I,9,FALSE)))) -> 北海 - 秘境 | P60: 3 | Q60: 1 | V60: 4029 | W60: 4104 | X60: 北海密径.御剑而行 | Y60: 神识所及，古径蜿蜒云雾间，隐有兽影沉浮，气息森然。 | Z60: =COUNTIF(EventLinkConfig!O:O,EventConfig!A60) -> 3 | AA60: 1000201 | AB60: 1000202 | AC60: 1000203 | AU60: 12507 | AV60: 1 | AW60: 1701 | AX60: 1 | AY60: 1003 | AZ60: =VLOOKUP(P60,[3]ResourceLevelConfig!$A:$E,5,FALSE)*5 -> 500 | BA60: =IF(AU60="","",CONCATENATE(VLOOKUP(AU60,[2]DropConfig!$A:$F,3,FALSE),"×",AV60)) -> 极速齿轮×1 | BB60: =IF(AW60="","",CONCATENATE(VLOOKUP(AW60,[2]DropConfig!$A:$F,3,FALSE),"×",AX60)) -> 清识还元丹×1 | BC60: =IF(AY60="","",CONCATENATE(VLOOKUP(AY60,[2]DropConfig!$A:$F,3,FALSE),"×",AZ60)) -> 修为×500 | BH60: =IF(BD60="","",VLOOKUP(BD60,条件类型查询!A:B,2,FALSE)) ->  | BI60: =IF(BF60="","",VLOOKUP(BF60,条件类型查询!A:B,2,FALSE)) -> 
A61: 10003 | B61: =IF(Z61>0,_xlfn.TEXTJOIN(";",1,ROW(INDIRECT(CONCATENATE("",A61*100+1,":",A61*100+Z61,""))),102,103),"") -> 1000301;1000302;1000303;1000304;1000305;1000306;1000307;1000308;1000309;102;103 | C61: 4 | D61: 1 | E61: 1 | F61: 1 | G61: 2 | I61: 12015;1701;1003 | J61: 1;1;500 | M61: 1 | N61: 2 | O61: =IF(M61="","",CONCATENATE(VLOOKUP(M61,[1]PlacesConfig!$A:$C,3,FALSE),IF(N61="",""," - "&VLOOKUP(N61,[1]SmallPlacesConfig!$A:$I,9,FALSE)))) -> 北海 - 秘境 | P61: 4 | Q61: 1 | V61: 4030 | W61: 4105 | X61: 北海密径.雀笑大鹏 | Y61: 风过结界开，古径云雾散，前路现。 | Z61: =COUNTIF(EventLinkConfig!O:O,EventConfig!A61) -> 9 | AA61: 1000301 | AB61: 1000302 | AC61: 1000303 | AD61: 1000304 | AE61: 1000305 | AF61: 1000306 | AG61: 1000307 | AH61: 1000308 | AI61: 1000309 | AU61: 12015 | AV61: 1 | AW61: 1701 | AX61: 1 | AY61: 1003 | AZ61: =VLOOKUP(P61,[3]ResourceLevelConfig!$A:$E,5,FALSE)*5 -> 500 | BA61: =IF(AU61="","",CONCATENATE(VLOOKUP(AU61,[2]DropConfig!$A:$F,3,FALSE),"×",AV61)) -> 飞叶×1 | BB61: =IF(AW61="","",CONCATENATE(VLOOKUP(AW61,[2]DropConfig!$A:$F,3,FALSE),"×",AX61)) -> 清识还元丹×1 | BC61: =IF(AY61="","",CONCATENATE(VLOOKUP(AY61,[2]DropConfig!$A:$F,3,FALSE),"×",AZ61)) -> 修为×500 | BH61: =IF(BD61="","",VLOOKUP(BD61,条件类型查询!A:B,2,FALSE)) ->  | BI61: =IF(BF61="","",VLOOKUP(BF61,条件类型查询!A:B,2,FALSE)) -> 
A62: 10004 | B62: =IF(Z62>0,_xlfn.TEXTJOIN(";",1,ROW(INDIRECT(CONCATENATE("",A62*100+1,":",A62*100+Z62,""))),102,103),"") -> 1000401;1000402;1000403;1000404;102;103 | C62: 4 | D62: 1 | E62: 1 | F62: 1 | G62: 2 | I62: 10001;1701;1301 | J62: 1;1;1 | M62: 1 | N62: 2 | O62: =IF(M62="","",CONCATENATE(VLOOKUP(M62,[1]PlacesConfig!$A:$C,3,FALSE),IF(N62="",""," - "&VLOOKUP(N62,[1]SmallPlacesConfig!$A:$I,9,FALSE)))) -> 北海 - 秘境 | P62: 6 | Q62: 1 | V62: 4031 | W62: 4106 | X62: 古径阵法.击败结界兽 | Y62: 心意决，战凤鸟，破阻扰，仙途重开。 | Z62: =COUNTIF(EventLinkConfig!O:O,EventConfig!A62) -> 4 | AA62: 1000401 | AB62: 1000402 | AC62: 1000403 | AD62: 1000404 | AU62: 10001 | AV62: 1 | AW62: 1701 | AX62: 1 | AY62: 1301 | AZ62: 1 | BA62: =IF(AU62="","",CONCATENATE(VLOOKUP(AU62,[2]DropConfig!$A:$F,3,FALSE),"×",AV62)) -> 神龙鼎×1 | BB62: =IF(AW62="","",CONCATENATE(VLOOKUP(AW62,[2]DropConfig!$A:$F,3,FALSE),"×",AX62)) -> 清识还元丹×1 | BC62: =IF(AY62="","",CONCATENATE(VLOOKUP(AY62,[2]DropConfig!$A:$F,3,FALSE),"×",AZ62)) -> 淬骨丹×1 | BH62: =IF(BD62="","",VLOOKUP(BD62,条件类型查询!A:B,2,FALSE)) ->  | BI62: =IF(BF62="","",VLOOKUP(BF62,条件类型查询!A:B,2,FALSE)) -> 
A63: 10005 | B63: =IF(Z63>0,_xlfn.TEXTJOIN(";",1,ROW(INDIRECT(CONCATENATE("",A63*100+1,":",A63*100+Z63,""))),102,103),"") -> 1000501;1000502;1000503;1000504;1000505;1000506;1000507;1000508;1000509;1000510;1000511;1000512;1000513;1000514;102;103 | C63: 4 | D63: 1 | E63: 1 | F63: 1 | G63: 2 | I63: 12501;1701;1003 | J63: 1;1;550 | M63: 1 | N63: 3 | O63: =IF(M63="","",CONCATENATE(VLOOKUP(M63,[1]PlacesConfig!$A:$C,3,FALSE),IF(N63="",""," - "&VLOOKUP(N63,[1]SmallPlacesConfig!$A:$I,9,FALSE)))) -> 北海 - 浮岛 | P63: 11 | Q63: 1 | R63: 11 | V63: 4032 | W63: 4107 | X63: 浮空之岛.初见疯道人 | Y63: 风停见疯道，赠书修道，静待来日。 | Z63: =COUNTIF(EventLinkConfig!O:O,EventConfig!A63) -> 14 | AA63: 1000501 | AB63: 1000502 | AC63: 1000503 | AD63: 1000504 | AE63: 1000505 | AF63: 1000506 | AG63: 1000507 | AH63: 1000508 | AI63: 1000509 | AJ63: 1000510 | AK63: 1000511 | AL63: 1000512 | AM63: 1000513 | AN63: 1000514 | AU63: 12501 | AV63: 1 | AW63: 1701 | AX63: 1 | AY63: 1003 | AZ63: =VLOOKUP(P63,[3]ResourceLevelConfig!$A:$E,5,FALSE)*5 -> 550 | BA63: =IF(AU63="","",CONCATENATE(VLOOKUP(AU63,[2]DropConfig!$A:$F,3,FALSE),"×",AV63)) -> 天衍星辰诀×1 | BB63: =IF(AW63="","",CONCATENATE(VLOOKUP(AW63,[2]DropConfig!$A:$F,3,FALSE),"×",AX63)) -> 清识还元丹×1 | BC63: =IF(AY63="","",CONCATENATE(VLOOKUP(AY63,[2]DropConfig!$A:$F,3,FALSE),"×",AZ63)) -> 修为×550 | BH63: =IF(BD63="","",VLOOKUP(BD63,条件类型查询!A:B,2,FALSE)) ->  | BI63: =IF(BF63="","",VLOOKUP(BF63,条件类型查询!A:B,2,FALSE)) -> 
A64: 10006 | B64: =IF(Z64>0,_xlfn.TEXTJOIN(";",1,ROW(INDIRECT(CONCATENATE("",A64*100+1,":",A64*100+Z64,""))),102,103),"") -> 1000601;1000602;1000603;1000604;1000605;102;103 | C64: 4 | D64: 1 | E64: 1 | F64: 1 | G64: 2 | I64: 12010;1701;1003 | J64: 1;1;550 | M64: 1 | N64: 3 | O64: =IF(M64="","",CONCATENATE(VLOOKUP(M64,[1]PlacesConfig!$A:$C,3,FALSE),IF(N64="",""," - "&VLOOKUP(N64,[1]SmallPlacesConfig!$A:$I,9,FALSE)))) -> 北海 - 浮岛 | P64: 13 | Q64: 1 | V64: 4033 | W64: 4108 | X64: 浮空之岛.达到练气 | Y64: 获赠半珠，承风之志，前往搜寻另一半灵珠。 | Z64: =COUNTIF(EventLinkConfig!O:O,EventConfig!A64) -> 5 | AA64: 1000601 | AB64: 1000602 | AC64: 1000603 | AD64: 1000604 | AE64: 1000605 | AU64: 12010 | AV64: 1 | AW64: 1701 | AX64: 1 | AY64: 1003 | AZ64: =VLOOKUP(P64,[3]ResourceLevelConfig!$A:$E,5,FALSE)*5 -> 550 | BA64: =IF(AU64="","",CONCATENATE(VLOOKUP(AU64,[2]DropConfig!$A:$F,3,FALSE),"×",AV64)) -> 冰刀×1 | BB64: =IF(AW64="","",CONCATENATE(VLOOKUP(AW64,[2]DropConfig!$A:$F,3,FALSE),"×",AX64)) -> 清识还元丹×1 | BC64: =IF(AY64="","",CONCATENATE(VLOOKUP(AY64,[2]DropConfig!$A:$F,3,FALSE),"×",AZ64)) -> 修为×550 | BH64: =IF(BD64="","",VLOOKUP(BD64,条件类型查询!A:B,2,FALSE)) ->  | BI64: =IF(BF64="","",VLOOKUP(BF64,条件类型查询!A:B,2,FALSE)) -> 
A65: 10007 | B65: =IF(Z65>0,_xlfn.TEXTJOIN(";",1,ROW(INDIRECT(CONCATENATE("",A65*100+1,":",A65*100+Z65,""))),102,103),"") -> 1000701;1000702;1000703;1000704;1000705;102;103 | C65: 4 | D65: 1 | E65: 1 | F65: 1 | G65: 2 | I65: 12506;1701;1003 | J65: 1;1;600 | M65: 1 | N65: 3 | O65: =IF(M65="","",CONCATENATE(VLOOKUP(M65,[1]PlacesConfig!$A:$C,3,FALSE),IF(N65="",""," - "&VLOOKUP(N65,[1]SmallPlacesConfig!$A:$I,9,FALSE)))) -> 北海 - 浮岛 | P65: 16 | Q65: 1 | V65: 4034 | W65: 4109 | X65: 风中洞府.击败痴道人 | Y65: 双珠相引，宿命相逢，此战难免。 | Z65: =COUNTIF(EventLinkConfig!O:O,EventConfig!A65) -> 5 | AA65: 1000701 | AB65: 1000702 | AC65: 1000703 | AD65: 1000704 | AE65: 1000705 | AU65: 12506 | AV65: 1 | AW65: 1701 | AX65: 1 | AY65: 1003 | AZ65: =VLOOKUP(P65,[3]ResourceLevelConfig!$A:$E,5,FALSE)*5 -> 600 | BA65: =IF(AU65="","",CONCATENATE(VLOOKUP(AU65,[2]DropConfig!$A:$F,3,FALSE),"×",AV65)) -> 乾坤巨灵诀×1 | BB65: =IF(AW65="","",CONCATENATE(VLOOKUP(AW65,[2]DropConfig!$A:$F,3,FALSE),"×",AX65)) -> 清识还元丹×1 | BC65: =IF(AY65="","",CONCATENATE(VLOOKUP(AY65,[2]DropConfig!$A:$F,3,FALSE),"×",AZ65)) -> 修为×600 | BH65: =IF(BD65="","",VLOOKUP(BD65,条件类型查询!A:B,2,FALSE)) ->  | BI65: =IF(BF65="","",VLOOKUP(BF65,条件类型查询!A:B,2,FALSE)) -> 
A66: 10008 | B66: =IF(Z66>0,_xlfn.TEXTJOIN(";",1,ROW(INDIRECT(CONCATENATE("",A66*100+1,":",A66*100+Z66,""))),102,103),"") -> 1000801;1000802;1000803;1000804;1000805;1000806;1000807;1000808;1000809;1000810;1000811;1000812;1000813;1000814;102;103 | C66: 4 | D66: 1 | E66: 1 | F66: 1 | G66: 2 | I66: 10003;1701;1302 | J66: 1;1;1 | M66: 1 | N66: 3 | O66: =IF(M66="","",CONCATENATE(VLOOKUP(M66,[1]PlacesConfig!$A:$C,3,FALSE),IF(N66="",""," - "&VLOOKUP(N66,[1]SmallPlacesConfig!$A:$I,9,FALSE)))) -> 北海 - 浮岛 | P66: 19 | Q66: 1 | V66: 4035 | W66: 4110 | X66: 风中洞府.疯痴相聚 | Y66: 心结解开，灵气自来，师兄携师弟乘风归去。 | Z66: =COUNTIF(EventLinkConfig!O:O,EventConfig!A66) -> 14 | AA66: 1000801 | AB66: 1000802 | AC66: 1000803 | AD66: 1000804 | AE66: 1000805 | AF66: 1000806 | AG66: 1000807 | AH66: 1000808 | AI66: 1000809 | AJ66: 1000810 | AK66: 1000811 | AL66: 1000812 | AM66: 1000813 | AN66: 1000814 | AU66: 10003 | AV66: 1 | AW66: 1701 | AX66: 1 | AY66: 1302 | AZ66: 1 | BA66: =IF(AU66="","",CONCATENATE(VLOOKUP(AU66,[2]DropConfig!$A:$F,3,FALSE),"×",AV66)) -> 翡翠葫芦×1 | BB66: =IF(AW66="","",CONCATENATE(VLOOKUP(AW66,[2]DropConfig!$A:$F,3,FALSE),"×",AX66)) -> 清识还元丹×1 | BC66: =IF(AY66="","",CONCATENATE(VLOOKUP(AY66,[2]DropConfig!$A:$F,3,FALSE),"×",AZ66)) -> 凝灵丹×1 | BH66: =IF(BD66="","",VLOOKUP(BD66,条件类型查询!A:B,2,FALSE)) ->  | BI66: =IF(BF66="","",VLOOKUP(BF66,条件类型查询!A:B,2,FALSE)) -> 
A67: 10009 | B67: =IF(Z67>0,_xlfn.TEXTJOIN(";",1,ROW(INDIRECT(CONCATENATE("",A67*100+1,":",A67*100+Z67,""))),102,103),"") -> 1000901;1000902;1000903;102;103 | C67: 4 | D67: 1 | E67: 1 | F67: 1 | G67: 2 | I67: 12025;1701;1003 | J67: 1;1;600 | M67: 1 | N67: 3 | O67: =IF(M67="","",CONCATENATE(VLOOKUP(M67,[1]PlacesConfig!$A:$C,3,FALSE),IF(N67="",""," - "&VLOOKUP(N67,[1]SmallPlacesConfig!$A:$I,9,FALSE)))) -> 北海 - 浮岛 | P67: 21 | Q67: 1 | R67: 21 | V67: 4036 | W67: 4111 | X67: 风灵之力.练气后期 | Y67: 灵珠引路破狂风，七道心境寻鲲踪。 | Z67: =COUNTIF(EventLinkConfig!O:O,EventConfig!A67) -> 3 | AA67: 1000901 | AB67: 1000902 | AC67: 1000903 | AU67: 12025 | AV67: 1 | AW67: 1701 | AX67: 1 | AY67: 1003 | AZ67: =VLOOKUP(P67,[3]ResourceLevelConfig!$A:$E,5,FALSE)*5 -> 600 | BA67: =IF(AU67="","",CONCATENATE(VLOOKUP(AU67,[2]DropConfig!$A:$F,3,FALSE),"×",AV67)) -> 小石头×1 | BB67: =IF(AW67="","",CONCATENATE(VLOOKUP(AW67,[2]DropConfig!$A:$F,3,FALSE),"×",AX67)) -> 清识还元丹×1 | BC67: =IF(AY67="","",CONCATENATE(VLOOKUP(AY67,[2]DropConfig!$A:$F,3,FALSE),"×",AZ67)) -> 修为×600 | BH67: =IF(BD67="","",VLOOKUP(BD67,条件类型查询!A:B,2,FALSE)) ->  | BI67: =IF(BF67="","",VLOOKUP(BF67,条件类型查询!A:B,2,FALSE)) -> 
A68: 10010 | B68: =IF(Z68>0,_xlfn.TEXTJOIN(";",1,ROW(INDIRECT(CONCATENATE("",A68*100+1,":",A68*100+Z68,""))),102,103),"") -> 1001001;1001002;1001003;1001004;1001005;1001006;1001007;102;103 | C68: 4 | D68: 1 | E68: 1 | F68: 1 | G68: 2 | I68: 1301;1701;1303 | J68: 1;1;1 | M68: 1 | N68: 4 | O68: =IF(M68="","",CONCATENATE(VLOOKUP(M68,[1]PlacesConfig!$A:$C,3,FALSE),IF(N68="",""," - "&VLOOKUP(N68,[1]SmallPlacesConfig!$A:$I,9,FALSE)))) -> 北海 - 深处 | P68: 25 | Q68: 1 | V68: 4037 | W68: 4112 | X68: 北海深处.妖兽横行 | Y68: 灵珠破浪斩妖途，北海深处现真章。 | Z68: =COUNTIF(EventLinkConfig!O:O,EventConfig!A68) -> 7 | AA68: =IF($Z68>=AA$3,$A68*100+AA$3,"") -> 1001001 | AB68: 1001002 | AC68: 1001003 | AD68: 1001004 | AE68: 1001005 | AF68: 1001006 | AG68: 1001007 | AU68: 1301 | AV68: 1 | AW68: 1701 | AX68: 1 | AY68: 1303 | AZ68: 1 | BA68: =IF(AU68="","",CONCATENATE(VLOOKUP(AU68,[2]DropConfig!$A:$F,3,FALSE),"×",AV68)) -> 淬骨丹×1 | BB68: =IF(AW68="","",CONCATENATE(VLOOKUP(AW68,[2]DropConfig!$A:$F,3,FALSE),"×",AX68)) -> 清识还元丹×1 | BC68: =IF(AY68="","",CONCATENATE(VLOOKUP(AY68,[2]DropConfig!$A:$F,3,FALSE),"×",AZ68)) -> 筑基丹×1 | BH68: =IF(BD68="","",VLOOKUP(BD68,条件类型查询!A:B,2,FALSE)) ->  | BI68: =IF(BF68="","",VLOOKUP(BF68,条件类型查询!A:B,2,FALSE)) -> 
A69: 10011 | B69: =IF(Z69>0,_xlfn.TEXTJOIN(";",1,ROW(INDIRECT(CONCATENATE("",A69*100+1,":",A69*100+Z69,""))),102,103),"") -> 1001101;1001102;1001103;1001104;1001105;1001106;1001107;1001108;1001109;1001110;1001111;102;103 | C69: 4 | D69: 1 | E69: 1 | F69: 1 | G69: 2 | I69: 12502;1701;1003 | J69: 1;1;700 | M69: 1 | N69: 4 | O69: =IF(M69="","",CONCATENATE(VLOOKUP(M69,[1]PlacesConfig!$A:$C,3,FALSE),IF(N69="",""," - "&VLOOKUP(N69,[1]SmallPlacesConfig!$A:$I,9,FALSE)))) -> 北海 - 深处 | P69: 31 | Q69: 1 | R69: 31 | V69: 4038 | W69: 4113 | X69: 北海深处.遇见鲲鹏 | Y69: 北海缘已结，携风灵珠，向尧都寻心境。 | Z69: =COUNTIF(EventLinkConfig!O:O,EventConfig!A69) -> 11 | AA69: 1001101 | AB69: 1001102 | AC69: 1001103 | AD69: 1001104 | AE69: 1001105 | AF69: 1001106 | AG69: 1001107 | AH69: 1001108 | AI69: 1001109 | AJ69: 1001110 | AK69: 1001111 | AU69: 12502 | AV69: 1 | AW69: 1701 | AX69: 1 | AY69: 1003 | AZ69: =VLOOKUP(P69,[3]ResourceLevelConfig!$A:$E,5,FALSE)*5 -> 700 | BA69: =IF(AU69="","",CONCATENATE(VLOOKUP(AU69,[2]DropConfig!$A:$F,3,FALSE),"×",AV69)) -> 法宝秘籍×1 | BB69: =IF(AW69="","",CONCATENATE(VLOOKUP(AW69,[2]DropConfig!$A:$F,3,FALSE),"×",AX69)) -> 清识还元丹×1 | BC69: =IF(AY69="","",CONCATENATE(VLOOKUP(AY69,[2]DropConfig!$A:$F,3,FALSE),"×",AZ69)) -> 修为×700 | BH69: =IF(BD69="","",VLOOKUP(BD69,条件类型查询!A:B,2,FALSE)) ->  | BI69: =IF(BF69="","",VLOOKUP(BF69,条件类型查询!A:B,2,FALSE)) -> 
A70: 10012 | B70: =IF(Z70>0,_xlfn.TEXTJOIN(";",1,ROW(INDIRECT(CONCATENATE("",A70*100+1,":",A70*100+Z70,""))),102,103),"") -> 1001201;1001202;1001203;1001204;1001205;102;103 | C70: 4 | D70: 1 | E70: 1 | F70: 1 | G70: 2 | I70: =_xlfn.TEXTJOIN(";",1,AU70,AW70,AY70) -> 12004;1701;1003 | J70: =_xlfn.TEXTJOIN(";",1,AV70,AX70,AZ70) -> 1;1;700 | M70: 2 | N70: 5 | O70: =IF(M70="","",CONCATENATE(VLOOKUP(M70,[1]PlacesConfig!$A:$C,3,FALSE),IF(N70="",""," - "&VLOOKUP(N70,[1]SmallPlacesConfig!$A:$I,9,FALSE)))) -> 尧之都 - 主城 | P70: 34 | Q70: 1 | S70: =_xlfn.TEXTJOIN(";",-1,BD70,BF70) ->  | T70: =_xlfn.TEXTJOIN(";",-1,BE70,BG70) ->  | V70: 4039 | W70: 4114 | X70: 尧都寻踪 | Y70: 踏出北海，御剑抵尧都，寻一方人间仙境，问道尧都。 | Z70: =COUNTIF(EventLinkConfig!O:O,EventConfig!A70) -> 5 | AA70: 1001201 | AB70: 1001202 | AC70: 1001203 | AD70: 1001204 | AE70: 1001205 | AU70: 12004 | AV70: 1 | AW70: 1701 | AX70: 1 | AY70: 1003 | AZ70: =VLOOKUP(P70,[3]ResourceLevelConfig!$A:$E,5,FALSE)*5 -> 700 | BA70: =IF(AU70="","",CONCATENATE(VLOOKUP(AU70,[2]DropConfig!$A:$F,3,FALSE),"×",AV70)) -> 飞刃×1 | BB70: =IF(AW70="","",CONCATENATE(VLOOKUP(AW70,[2]DropConfig!$A:$F,3,FALSE),"×",AX70)) -> 清识还元丹×1 | BC70: =IF(AY70="","",CONCATENATE(VLOOKUP(AY70,[2]DropConfig!$A:$F,3,FALSE),"×",AZ70)) -> 修为×700 | BH70: =IF(BD70="","",VLOOKUP(BD70,条件类型查询!A:B,2,FALSE)) ->  | BI70: =IF(BF70="","",VLOOKUP(BF70,条件类型查询!A:B,2,FALSE)) -> 
A71: 10013 | B71: =IF(Z71>0,_xlfn.TEXTJOIN(";",1,ROW(INDIRECT(CONCATENATE("",A71*100+1,":",A71*100+Z71,""))),102,103),"") -> 1001301;1001302;1001303;1001304;1001305;1001306;1001307;1001308;1001309;1001310;1001311;1001312;102;103 | C71: 4 | D71: 1 | E71: 1 | F71: 1 | G71: 2 | I71: 12508;1701;1003 | J71: 1;1;700 | M71: 2 | N71: 5 | O71: =IF(M71="","",CONCATENATE(VLOOKUP(M71,[1]PlacesConfig!$A:$C,3,FALSE),IF(N71="",""," - "&VLOOKUP(N71,[1]SmallPlacesConfig!$A:$I,9,FALSE)))) -> 尧之都 - 主城 | P71: 37 | Q71: 1 | V71: 4040 | W71: 4115 | X71: 尧之都.尧让天下 | Y71: 受帝尧之托，入深山寻访避世贤士许由。 | Z71: =COUNTIF(EventLinkConfig!O:O,EventConfig!A71) -> 12 | AA71: 1001301 | AB71: 1001302 | AC71: 1001303 | AD71: 1001304 | AE71: 1001305 | AF71: 1001306 | AG71: 1001307 | AH71: 1001308 | AI71: 1001309 | AJ71: 1001310 | AK71: 1001311 | AL71: 1001312 | AU71: 12508 | AV71: 1 | AW71: 1701 | AX71: 1 | AY71: 1003 | AZ71: =VLOOKUP(P71,[3]ResourceLevelConfig!$A:$E,5,FALSE)*5 -> 700 | BA71: =IF(AU71="","",CONCATENATE(VLOOKUP(AU71,[2]DropConfig!$A:$F,3,FALSE),"×",AV71)) -> 太虚剑意×1 | BB71: =IF(AW71="","",CONCATENATE(VLOOKUP(AW71,[2]DropConfig!$A:$F,3,FALSE),"×",AX71)) -> 清识还元丹×1 | BC71: =IF(AY71="","",CONCATENATE(VLOOKUP(AY71,[2]DropConfig!$A:$F,3,FALSE),"×",AZ71)) -> 修为×700 | BH71: =IF(BD71="","",VLOOKUP(BD71,条件类型查询!A:B,2,FALSE)) ->  | BI71: =IF(BF71="","",VLOOKUP(BF71,条件类型查询!A:B,2,FALSE)) -> 
A72: 10014 | B72: =IF(Z72>0,_xlfn.TEXTJOIN(";",1,ROW(INDIRECT(CONCATENATE("",A72*100+1,":",A72*100+Z72,""))),102,103),"") -> 1001401;1001402;1001403;1001404;1001405;1001406;1001407;1001408;1001409;1001410;1001411;1001412;1001413;1001414;1001415;1001416;1001417;102;103 | C72: 4 | D72: 1 | E72: 1 | F72: 1 | G72: 2 | I72: 10006;1701;1003 | J72: 1;1;750 | M72: 2 | N72: 6 | O72: =IF(M72="","",CONCATENATE(VLOOKUP(M72,[1]PlacesConfig!$A:$C,3,FALSE),IF(N72="",""," - "&VLOOKUP(N72,[1]SmallPlacesConfig!$A:$I,9,FALSE)))) -> 尧之都 - 山林 | P72: 41 | Q72: 1 | R72: 41 | V72: 4041 | W72: 4116 | X72: 山林清音.访贤许由 | Y72: 许由一言成谶，只得愣在古松下，水声潺潺。 | Z72: =COUNTIF(EventLinkConfig!O:O,EventConfig!A72) -> 17 | AA72: 1001401 | AB72: 1001402 | AC72: 1001403 | AD72: 1001404 | AE72: 1001405 | AF72: 1001406 | AG72: 1001407 | AH72: 1001408 | AI72: 1001409 | AJ72: 1001410 | AK72: 1001411 | AL72: 1001412 | AM72: 1001413 | AN72: 1001414 | AO72: 1001415 | AP72: 1001416 | AU72: 10006 | AV72: 1 | AW72: 1701 | AX72: 1 | AY72: 1003 | AZ72: =VLOOKUP(P72,[3]ResourceLevelConfig!$A:$E,5,FALSE)*5 -> 750 | BA72: =IF(AU72="","",CONCATENATE(VLOOKUP(AU72,[2]DropConfig!$A:$F,3,FALSE),"×",AV72)) -> 九幽镇魂瓶×1 | BB72: =IF(AW72="","",CONCATENATE(VLOOKUP(AW72,[2]DropConfig!$A:$F,3,FALSE),"×",AX72)) -> 清识还元丹×1 | BC72: =IF(AY72="","",CONCATENATE(VLOOKUP(AY72,[2]DropConfig!$A:$F,3,FALSE),"×",AZ72)) -> 修为×750 | BH72: =IF(BD72="","",VLOOKUP(BD72,条件类型查询!A:B,2,FALSE)) ->  | BI72: =IF(BF72="","",VLOOKUP(BF72,条件类型查询!A:B,2,FALSE)) -> 
A73: 10015 | B73: =IF(Z73>0,_xlfn.TEXTJOIN(";",1,ROW(INDIRECT(CONCATENATE("",A73*100+1,":",A73*100+Z73,""))),102,103),"") -> 1001501;1001502;1001503;1001504;1001505;1001506;1001507;1001508;102;103 | C73: 4 | D73: 1 | E73: 1 | F73: 1 | G73: 2 | I73: 12014;1701;1003 | J73: 1;1;800 | M73: 2 | N73: 6 | O73: =IF(M73="","",CONCATENATE(VLOOKUP(M73,[1]PlacesConfig!$A:$C,3,FALSE),IF(N73="",""," - "&VLOOKUP(N73,[1]SmallPlacesConfig!$A:$I,9,FALSE)))) -> 尧之都 - 山林 | P73: 46 | Q73: 1 | V73: 4042 | W73: 4117 | X73: 山中劳作.割草喝茶 | Y73: 为许由前辈开荒辟地，除草采药，有茶有修行。 | Z73: =COUNTIF(EventLinkConfig!O:O,EventConfig!A73) -> 8 | AA73: 1001501 | AB73: 1001502 | AC73: 1001503 | AD73: 1001504 | AE73: 1001505 | AF73: 1001506 | AG73: 1001507 | AH73: 1001508 | AU73: 12014 | AV73: 1 | AW73: 1701 | AX73: 1 | AY73: 1003 | AZ73: =VLOOKUP(P73,[3]ResourceLevelConfig!$A:$E,5,FALSE)*5 -> 800 | BA73: =IF(AU73="","",CONCATENATE(VLOOKUP(AU73,[2]DropConfig!$A:$F,3,FALSE),"×",AV73)) -> 竹刺×1 | BB73: =IF(AW73="","",CONCATENATE(VLOOKUP(AW73,[2]DropConfig!$A:$F,3,FALSE),"×",AX73)) -> 清识还元丹×1 | BC73: =IF(AY73="","",CONCATENATE(VLOOKUP(AY73,[2]DropConfig!$A:$F,3,FALSE),"×",AZ73)) -> 修为×800 | BH73: =IF(BD73="","",VLOOKUP(BD73,条件类型查询!A:B,2,FALSE)) ->  | BI73: =IF(BF73="","",VLOOKUP(BF73,条件类型查询!A:B,2,FALSE)) -> 
A74: 10016 | B74: =IF(Z74>0,_xlfn.TEXTJOIN(";",1,ROW(INDIRECT(CONCATENATE("",A74*100+1,":",A74*100+Z74,""))),102,103),"") -> 1001601;1001602;1001603;1001604;1001605;1001606;1001607;1001608;1001609;1001610;102;103 | C74: 4 | D74: 1 | E74: 1 | F74: 1 | G74: 2 | I74: 12503;1701;1003 | J74: 1;1;850 | M74: 2 | N74: 6 | O74: =IF(M74="","",CONCATENATE(VLOOKUP(M74,[1]PlacesConfig!$A:$C,3,FALSE),IF(N74="",""," - "&VLOOKUP(N74,[1]SmallPlacesConfig!$A:$I,9,FALSE)))) -> 尧之都 - 山林 | P74: 51 | Q74: 1 | R74: 51 | V74: 4043 | W74: 4118 | X74: 风起夜战.再来一杯 | Y74: 击退妖兽，又得灵茶一饮 | Z74: =COUNTIF(EventLinkConfig!O:O,EventConfig!A74) -> 10 | AA74: 1001601 | AB74: 1001602 | AC74: 1001603 | AD74: 1001604 | AE74: 1001605 | AF74: 1001606 | AG74: 1001607 | AH74: 1001608 | AI74: 1001609 | AJ74: 1001610 | AU74: 12503 | AV74: 1 | AW74: 1701 | AX74: 1 | AY74: 1003 | AZ74: =VLOOKUP(P74,[3]ResourceLevelConfig!$A:$E,5,FALSE)*5 -> 850 | BA74: =IF(AU74="","",CONCATENATE(VLOOKUP(AU74,[2]DropConfig!$A:$F,3,FALSE),"×",AV74)) -> 崩脉决×1 | BB74: =IF(AW74="","",CONCATENATE(VLOOKUP(AW74,[2]DropConfig!$A:$F,3,FALSE),"×",AX74)) -> 清识还元丹×1 | BC74: =IF(AY74="","",CONCATENATE(VLOOKUP(AY74,[2]DropConfig!$A:$F,3,FALSE),"×",AZ74)) -> 修为×850 | BH74: =IF(BD74="","",VLOOKUP(BD74,条件类型查询!A:B,2,FALSE)) ->  | BI74: =IF(BF74="","",VLOOKUP(BF74,条件类型查询!A:B,2,FALSE)) -> 
A75: 10017 | B75: =IF(Z75>0,_xlfn.TEXTJOIN(";",1,ROW(INDIRECT(CONCATENATE("",A75*100+1,":",A75*100+Z75,""))),102,103),"") -> 1001701;1001702;1001703;1001704;1001705;1001706;1001707;1001708;1001709;1001710;1001711;1001712;1001713;102;103 | C75: 4 | D75: 1 | E75: 1 | F75: 1 | G75: 2 | I75: 1302;1701;1003 | J75: 1;1;850 | M75: 2 | N75: 6 | O75: =IF(M75="","",CONCATENATE(VLOOKUP(M75,[1]PlacesConfig!$A:$C,3,FALSE),IF(N75="",""," - "&VLOOKUP(N75,[1]SmallPlacesConfig!$A:$I,9,FALSE)))) -> 尧之都 - 山林 | P75: 56 | Q75: 1 | V75: 4044 | W75: 4119 | X75: 吃茶三问.战胜妖王 | Y75: 三杯清茶饮尽，了悟心净即是道。 | Z75: =COUNTIF(EventLinkConfig!O:O,EventConfig!A75) -> 13 | AA75: 1001701 | AB75: 1001702 | AC75: 1001703 | AD75: 1001704 | AE75: 1001705 | AF75: 1001706 | AG75: 1001707 | AH75: 1001708 | AI75: 1001709 | AJ75: 1001710 | AK75: 1001711 | AL75: 1001712 | AM75: 1001713 | AU75: 1302 | AV75: 1 | AW75: 1701 | AX75: 1 | AY75: 1003 | AZ75: =VLOOKUP(P75,[3]ResourceLevelConfig!$A:$E,5,FALSE)*5 -> 850 | BA75: =IF(AU75="","",CONCATENATE(VLOOKUP(AU75,[2]DropConfig!$A:$F,3,FALSE),"×",AV75)) -> 凝灵丹×1 | BB75: =IF(AW75="","",CONCATENATE(VLOOKUP(AW75,[2]DropConfig!$A:$F,3,FALSE),"×",AX75)) -> 清识还元丹×1 | BC75: =IF(AY75="","",CONCATENATE(VLOOKUP(AY75,[2]DropConfig!$A:$F,3,FALSE),"×",AZ75)) -> 修为×850 | BH75: =IF(BD75="","",VLOOKUP(BD75,条件类型查询!A:B,2,FALSE)) ->  | BI75: =IF(BF75="","",VLOOKUP(BF75,条件类型查询!A:B,2,FALSE)) -> 
A76: 10018 | B76: =IF(Z76>0,_xlfn.TEXTJOIN(";",1,ROW(INDIRECT(CONCATENATE("",A76*100+1,":",A76*100+Z76,""))),102,103),"") -> 1001801;1001802;1001803;1001804;1001805;1001806;1001807;1001808;1001809;1001810;102;103 | C76: 4 | D76: 1 | E76: 1 | F76: 1 | G76: 2 | I76: 12009;1701;1003 | J76: 1;1;900 | M76: 2 | N76: 5 | O76: =IF(M76="","",CONCATENATE(VLOOKUP(M76,[1]PlacesConfig!$A:$C,3,FALSE),IF(N76="",""," - "&VLOOKUP(N76,[1]SmallPlacesConfig!$A:$I,9,FALSE)))) -> 尧之都 - 主城 | P76: 61 | Q76: 1 | R76: 61 | V76: 4045 | W76: 4120 | X76: 尧让天下.复命尧帝 | Y76: 带回许由的话，帝尧听了，低头沉默不语。 | Z76: =COUNTIF(EventLinkConfig!O:O,EventConfig!A76) -> 10 | AA76: 1001801 | AB76: 1001802 | AC76: 1001803 | AD76: 1001804 | AE76: 1001805 | AF76: 1001806 | AG76: 1001807 | AH76: 1001808 | AI76: 1001809 | AJ76: 1001810 | AU76: 12009 | AV76: 1 | AW76: 1701 | AX76: 1 | AY76: 1003 | AZ76: =VLOOKUP(P76,[3]ResourceLevelConfig!$A:$E,5,FALSE)*5 -> 900 | BA76: =IF(AU76="","",CONCATENATE(VLOOKUP(AU76,[2]DropConfig!$A:$F,3,FALSE),"×",AV76)) -> 水球×1 | BB76: =IF(AW76="","",CONCATENATE(VLOOKUP(AW76,[2]DropConfig!$A:$F,3,FALSE),"×",AX76)) -> 清识还元丹×1 | BC76: =IF(AY76="","",CONCATENATE(VLOOKUP(AY76,[2]DropConfig!$A:$F,3,FALSE),"×",AZ76)) -> 修为×900 | BH76: =IF(BD76="","",VLOOKUP(BD76,条件类型查询!A:B,2,FALSE)) ->  | BI76: =IF(BF76="","",VLOOKUP(BF76,条件类型查询!A:B,2,FALSE)) -> 
A77: 10019 | B77: =IF(Z77>0,_xlfn.TEXTJOIN(";",1,ROW(INDIRECT(CONCATENATE("",A77*100+1,":",A77*100+Z77,""))),102,103),"") -> 1001901;1001902;1001903;1001904;1001905;1001906;1001907;1001908;1001909;1001910;1001911;1001912;1001913;1001914;1001915;1001916;1001917;1001918;1001919;1001920;102;103 | C77: 4 | D77: 1 | E77: 1 | F77: 1 | G77: 2 | I77: 12504;1701;1003 | J77: 1;1;950 | M77: 2 | N77: 7 | O77: =IF(M77="","",CONCATENATE(VLOOKUP(M77,[1]PlacesConfig!$A:$C,3,FALSE),IF(N77="",""," - "&VLOOKUP(N77,[1]SmallPlacesConfig!$A:$I,9,FALSE)))) -> 尧之都 - 郊外 | P77: 65 | Q77: 1 | V77: 4046 | W77: 4121 | X77: 无用之树.树下闲话 | Y77: 歪树笑着活了三千年，无用才是大用。 | Z77: =COUNTIF(EventLinkConfig!O:O,EventConfig!A77) -> 20 | AA77: 1001901 | AB77: 1001902 | AC77: 1001903 | AD77: 1001904 | AE77: 1001905 | AF77: 1001906 | AG77: 1001907 | AH77: 1001908 | AI77: 1001909 | AJ77: 1001910 | AK77: 1001911 | AL77: 1001912 | AM77: 1001913 | AN77: 1001914 | AO77: 1001915 | AP77: 1001916 | AQ77: =IF($Z77>=AQ$3,$A77*100+AQ$3,"") -> 1001917 | AR77: =IF($Z77>=AR$3,$A77*100+AR$3,"") -> 1001918 | AS77: =IF($Z77>=AS$3,$A77*100+AS$3,"") -> 1001919 | AT77: =IF($Z77>=AT$3,$A77*100+AT$3,"") -> 1001920 | AU77: 12504 | AV77: 1 | AW77: 1701 | AX77: 1 | AY77: 1003 | AZ77: =VLOOKUP(P77,[3]ResourceLevelConfig!$A:$E,5,FALSE)*5 -> 950 | BA77: =IF(AU77="","",CONCATENATE(VLOOKUP(AU77,[2]DropConfig!$A:$F,3,FALSE),"×",AV77)) -> 两仪决×1 | BB77: =IF(AW77="","",CONCATENATE(VLOOKUP(AW77,[2]DropConfig!$A:$F,3,FALSE),"×",AX77)) -> 清识还元丹×1 | BC77: =IF(AY77="","",CONCATENATE(VLOOKUP(AY77,[2]DropConfig!$A:$F,3,FALSE),"×",AZ77)) -> 修为×950 | BH77: =IF(BD77="","",VLOOKUP(BD77,条件类型查询!A:B,2,FALSE)) ->  | BI77: =IF(BF77="","",VLOOKUP(BF77,条件类型查询!A:B,2,FALSE)) -> 
A78: 10020 | B78: =IF(Z78>0,_xlfn.TEXTJOIN(";",1,ROW(INDIRECT(CONCATENATE("",A78*100+1,":",A78*100+Z78,""))),102,103),"") -> 1002001;1002002;102;103 | C78: 4 | D78: 1 | E78: 1 | F78: 1 | G78: 2 | I78: 10008;1701;1003 | J78: 1;1;1000 | M78: 2 | N78: 7 | O78: =IF(M78="","",CONCATENATE(VLOOKUP(M78,[1]PlacesConfig!$A:$C,3,FALSE),IF(N78="",""," - "&VLOOKUP(N78,[1]SmallPlacesConfig!$A:$I,9,FALSE)))) -> 尧之都 - 郊外 | P78: 69 | Q78: 1 | V78: 4047 | W78: 4122 | X78: 樗木之灵.切磋 | Y78: 千年树灵想活动，小友陪它过两招。 | Z78: =COUNTIF(EventLinkConfig!O:O,EventConfig!A78) -> 2 | AA78: =IF($Z78>=AA$3,$A78*100+AA$3,"") -> 1002001 | AB78: 1002002 | AU78: 10008 | AV78: 1 | AW78: 1701 | AX78: 1 | AY78: 1003 | AZ78: =VLOOKUP(P78,[3]ResourceLevelConfig!$A:$E,5,FALSE)*5 -> 1000 | BA78: =IF(AU78="","",CONCATENATE(VLOOKUP(AU78,[2]DropConfig!$A:$F,3,FALSE),"×",AV78)) -> 融灵塔×1 | BB78: =IF(AW78="","",CONCATENATE(VLOOKUP(AW78,[2]DropConfig!$A:$F,3,FALSE),"×",AX78)) -> 清识还元丹×1 | BC78: =IF(AY78="","",CONCATENATE(VLOOKUP(AY78,[2]DropConfig!$A:$F,3,FALSE),"×",AZ78)) -> 修为×1000 | BH78: =IF(BD78="","",VLOOKUP(BD78,条件类型查询!A:B,2,FALSE)) ->  | BI78: =IF(BF78="","",VLOOKUP(BF78,条件类型查询!A:B,2,FALSE)) -> 
A79: 10021 | B79: =IF(Z79>0,_xlfn.TEXTJOIN(";",1,ROW(INDIRECT(CONCATENATE("",A79*100+1,":",A79*100+Z79,""))),102,103),"") -> 1002101;1002102;1002103;1002104;102;103 | C79: 4 | D79: 1 | E79: 1 | F79: 1 | G79: 2 | I79: 12019;1701;1003 | J79: 1;1;1000 | M79: 2 | N79: 5 | O79: =IF(M79="","",CONCATENATE(VLOOKUP(M79,[1]PlacesConfig!$A:$C,3,FALSE),IF(N79="",""," - "&VLOOKUP(N79,[1]SmallPlacesConfig!$A:$I,9,FALSE)))) -> 尧之都 - 主城 | P79: 71 | Q79: 1 | R79: 71 | V79: 4048 | W79: 4123 | X79: 游尧都.结丹中期 | Y79: 在灵气里泡够了，找尧帝指条明路。 | Z79: =COUNTIF(EventLinkConfig!O:O,EventConfig!A79) -> 4 | AA79: 1002101 | AB79: 1002102 | AC79: 1002103 | AD79: 1002104 | AU79: 12019 | AV79: 1 | AW79: 1701 | AX79: 1 | AY79: 1003 | AZ79: =VLOOKUP(P79,[3]ResourceLevelConfig!$A:$E,5,FALSE)*5 -> 1000 | BA79: =IF(AU79="","",CONCATENATE(VLOOKUP(AU79,[2]DropConfig!$A:$F,3,FALSE),"×",AV79)) -> 火球×1 | BB79: =IF(AW79="","",CONCATENATE(VLOOKUP(AW79,[2]DropConfig!$A:$F,3,FALSE),"×",AX79)) -> 清识还元丹×1 | BC79: =IF(AY79="","",CONCATENATE(VLOOKUP(AY79,[2]DropConfig!$A:$F,3,FALSE),"×",AZ79)) -> 修为×1000 | BH79: =IF(BD79="","",VLOOKUP(BD79,条件类型查询!A:B,2,FALSE)) ->  | BI79: =IF(BF79="","",VLOOKUP(BF79,条件类型查询!A:B,2,FALSE)) -> 
A80: 10022 | B80: =IF(Z80>0,_xlfn.TEXTJOIN(";",1,ROW(INDIRECT(CONCATENATE("",A80*100+1,":",A80*100+Z80,""))),102,103),"") -> 1002201;1002202;1002203;1002204;1002205;1002206;1002207;1002208;1002209;1002210;1002211;1002212;1002213;102;103 | C80: 4 | D80: 1 | E80: 1 | F80: 1 | G80: 2 | I80: 12505;1701;1003 | J80: 1;1;1100 | M80: 2 | N80: 5 | O80: =IF(M80="","",CONCATENATE(VLOOKUP(M80,[1]PlacesConfig!$A:$C,3,FALSE),IF(N80="",""," - "&VLOOKUP(N80,[1]SmallPlacesConfig!$A:$I,9,FALSE)))) -> 尧之都 - 主城 | P80: 81 | Q80: 1 | R80: 81 | V80: 4049 | W80: 4124 | X80: 再见尧帝.仙山传说 | Y80: 尧帝说起那座仙山，心便飘向了云海间。 | Z80: =COUNTIF(EventLinkConfig!O:O,EventConfig!A80) -> 13 | AA80: 1002201 | AB80: 1002202 | AC80: 1002203 | AD80: 1002204 | AE80: 1002205 | AF80: 1002206 | AG80: 1002207 | AH80: 1002208 | AI80: 1002209 | AJ80: 1002210 | AK80: 1002211 | AL80: 1002212 | AM80: 1002213 | AU80: 12505 | AV80: 1 | AW80: 1701 | AX80: 1 | AY80: 1003 | AZ80: =VLOOKUP(P80,[3]ResourceLevelConfig!$A:$E,5,FALSE)*5 -> 1100 | BA80: =IF(AU80="","",CONCATENATE(VLOOKUP(AU80,[2]DropConfig!$A:$F,3,FALSE),"×",AV80)) -> 火焰决×1 | BB80: =IF(AW80="","",CONCATENATE(VLOOKUP(AW80,[2]DropConfig!$A:$F,3,FALSE),"×",AX80)) -> 清识还元丹×1 | BC80: =IF(AY80="","",CONCATENATE(VLOOKUP(AY80,[2]DropConfig!$A:$F,3,FALSE),"×",AZ80)) -> 修为×1100 | BH80: =IF(BD80="","",VLOOKUP(BD80,条件类型查询!A:B,2,FALSE)) ->  | BI80: =IF(BF80="","",VLOOKUP(BF80,条件类型查询!A:B,2,FALSE)) -> 
A81: 10023 | B81: =IF(Z81>0,_xlfn.TEXTJOIN(";",1,ROW(INDIRECT(CONCATENATE("",A81*100+1,":",A81*100+Z81,""))),102,103),"") -> 1002301;1002302;1002303;102;103 | C81: 4 | D81: 1 | E81: 1 | F81: 1 | G81: 2 | I81: 1303;1701;1003 | J81: 1;1;1150 | M81: 3 | N81: 8 | O81: =IF(M81="","",CONCATENATE(VLOOKUP(M81,[1]PlacesConfig!$A:$C,3,FALSE),IF(N81="",""," - "&VLOOKUP(N81,[1]SmallPlacesConfig!$A:$I,9,FALSE)))) -> 藐姑射山 - 山脚 | P81: 86 | Q81: 1 | V81: 4050 | W81: 4125 | X81: 云海漫行.入山幻阵 | Y81: 拨开云海见仙山，循着铃声访隐者。 | Z81: =COUNTIF(EventLinkConfig!O:O,EventConfig!A81) -> 3 | AA81: 1002301 | AB81: 1002302 | AC81: 1002303 | AU81: 1303 | AV81: 1 | AW81: 1701 | AX81: 1 | AY81: 1003 | AZ81: =VLOOKUP(P81,[3]ResourceLevelConfig!$A:$E,5,FALSE)*5 -> 1150 | BA81: =IF(AU81="","",CONCATENATE(VLOOKUP(AU81,[2]DropConfig!$A:$F,3,FALSE),"×",AV81)) -> 筑基丹×1 | BB81: =IF(AW81="","",CONCATENATE(VLOOKUP(AW81,[2]DropConfig!$A:$F,3,FALSE),"×",AX81)) -> 清识还元丹×1 | BC81: =IF(AY81="","",CONCATENATE(VLOOKUP(AY81,[2]DropConfig!$A:$F,3,FALSE),"×",AZ81)) -> 修为×1150 | BH81: =IF(BD81="","",VLOOKUP(BD81,条件类型查询!A:B,2,FALSE)) ->  | BI81: =IF(BF81="","",VLOOKUP(BF81,条件类型查询!A:B,2,FALSE)) -> 
A82: 10024 | B82: =IF(Z82>0,_xlfn.TEXTJOIN(";",1,ROW(INDIRECT(CONCATENATE("",A82*100+1,":",A82*100+Z82,""))),102,103),"") -> 1002401;1002402;1002403;1002404;1002405;1002406;1002407;1002408;1002409;1002410;1002411;1002412;1002413;1002414;102;103 | C82: 4 | D82: 1 | E82: 1 | F82: 1 | G82: 2 | I82: 12024;1701;1003 | J82: 1;1;1150 | M82: 3 | N82: 8 | O82: =IF(M82="","",CONCATENATE(VLOOKUP(M82,[1]PlacesConfig!$A:$C,3,FALSE),IF(N82="",""," - "&VLOOKUP(N82,[1]SmallPlacesConfig!$A:$I,9,FALSE)))) -> 藐姑射山 - 山脚 | P82: 84 | Q82: 1 | R82: 91 | V82: 4051 | W82: 4126 | X82: 初见惠子.葫芦种子 | Y82: 为种一颗仙葫芦，上天入地去寻觅。 | Z82: =COUNTIF(EventLinkConfig!O:O,EventConfig!A82) -> 14 | AA82: 1002401 | AB82: 1002402 | AC82: 1002403 | AD82: 1002404 | AE82: 1002405 | AF82: 1002406 | AG82: 1002407 | AH82: 1002408 | AI82: 1002409 | AJ82: 1002410 | AK82: 1002411 | AL82: 1002412 | AM82: 1002413 | AN82: 1002414 | AU82: 12024 | AV82: 1 | AW82: 1701 | AX82: 1 | AY82: 1003 | AZ82: =VLOOKUP(P82,[3]ResourceLevelConfig!$A:$E,5,FALSE)*5 -> 1150 | BA82: =IF(AU82="","",CONCATENATE(VLOOKUP(AU82,[2]DropConfig!$A:$F,3,FALSE),"×",AV82)) -> 落石×1 | BB82: =IF(AW82="","",CONCATENATE(VLOOKUP(AW82,[2]DropConfig!$A:$F,3,FALSE),"×",AX82)) -> 清识还元丹×1 | BC82: =IF(AY82="","",CONCATENATE(VLOOKUP(AY82,[2]DropConfig!$A:$F,3,FALSE),"×",AZ82)) -> 修为×1150 | BH82: =IF(BD82="","",VLOOKUP(BD82,条件类型查询!A:B,2,FALSE)) ->  | BI82: =IF(BF82="","",VLOOKUP(BF82,条件类型查询!A:B,2,FALSE)) -> 
A83: 10025 | B83: =IF(Z83>0,_xlfn.TEXTJOIN(";",1,ROW(INDIRECT(CONCATENATE("",A83*100+1,":",A83*100+Z83,""))),102,103),"") -> 1002501;1002502;1002503;1002504;1002505;1002506;1002507;1002508;102;103 | C83: 4 | D83: 1 | E83: 1 | F83: 1 | G83: 2 | I83: 12510;1701;1003 | J83: 1;1;1350 | M83: 3 | N83: 8 | O83: =IF(M83="","",CONCATENATE(VLOOKUP(M83,[1]PlacesConfig!$A:$C,3,FALSE),IF(N83="",""," - "&VLOOKUP(N83,[1]SmallPlacesConfig!$A:$I,9,FALSE)))) -> 藐姑射山 - 山脚 | P83: 101 | Q83: 1 | R83: 101 | V83: 4052 | W83: 4127 | X83: 葫芦肥料.天肥地肥 | Y83: 仙种灵根何处寻，再向樗木借春秋。 | Z83: =COUNTIF(EventLinkConfig!O:O,EventConfig!A83) -> 8 | AA83: 1002501 | AB83: 1002502 | AC83: 1002503 | AD83: 1002504 | AE83: 1002505 | AF83: 1002506 | AG83: 1002507 | AH83: 1002508 | AU83: 12510 | AV83: 1 | AW83: 1701 | AX83: 1 | AY83: 1003 | AZ83: =VLOOKUP(P83,[3]ResourceLevelConfig!$A:$E,5,FALSE)*5 -> 1350 | BA83: =IF(AU83="","",CONCATENATE(VLOOKUP(AU83,[2]DropConfig!$A:$F,3,FALSE),"×",AV83)) -> 碧霄回春术×1 | BB83: =IF(AW83="","",CONCATENATE(VLOOKUP(AW83,[2]DropConfig!$A:$F,3,FALSE),"×",AX83)) -> 清识还元丹×1 | BC83: =IF(AY83="","",CONCATENATE(VLOOKUP(AY83,[2]DropConfig!$A:$F,3,FALSE),"×",AZ83)) -> 修为×1350 | BH83: =IF(BD83="","",VLOOKUP(BD83,条件类型查询!A:B,2,FALSE)) ->  | BI83: =IF(BF83="","",VLOOKUP(BF83,条件类型查询!A:B,2,FALSE)) -> 
A84: 10026 | B84: =IF(Z84>0,_xlfn.TEXTJOIN(";",1,ROW(INDIRECT(CONCATENATE("",A84*100+1,":",A84*100+Z84,""))),102,103),"") -> 1002601;1002602;1002603;1002604;1002605;1002606;1002607;1002608;1002609;102;103 | C84: 4 | D84: 1 | E84: 1 | F84: 1 | G84: 2 | I84: 1304;1701;1003 | J84: 1;1;1500 | M84: 3 | N84: 9 | O84: =IF(M84="","",CONCATENATE(VLOOKUP(M84,[1]PlacesConfig!$A:$C,3,FALSE),IF(N84="",""," - "&VLOOKUP(N84,[1]SmallPlacesConfig!$A:$I,9,FALSE)))) -> 藐姑射山 - 山径 | P84: 111 | Q84: 1 | R84: 111 | V84: 4053 | W84: 4128 | X84: 藐姑射山.登山 | Y84: 灵肥俱备始开阵，方见云深有路通。 | Z84: =COUNTIF(EventLinkConfig!O:O,EventConfig!A84) -> 9 | AA84: 1002601 | AB84: 1002602 | AC84: 1002603 | AD84: 1002604 | AE84: 1002605 | AF84: 1002606 | AG84: 1002607 | AH84: 1002608 | AI84: 1002609 | AU84: 1304 | AV84: 1 | AW84: 1701 | AX84: 1 | AY84: 1003 | AZ84: =VLOOKUP(P84,[3]ResourceLevelConfig!$A:$E,5,FALSE)*5 -> 1500 | BA84: =IF(AU84="","",CONCATENATE(VLOOKUP(AU84,[2]DropConfig!$A:$F,3,FALSE),"×",AV84)) -> 固元丹×1 | BB84: =IF(AW84="","",CONCATENATE(VLOOKUP(AW84,[2]DropConfig!$A:$F,3,FALSE),"×",AX84)) -> 清识还元丹×1 | BC84: =IF(AY84="","",CONCATENATE(VLOOKUP(AY84,[2]DropConfig!$A:$F,3,FALSE),"×",AZ84)) -> 修为×1500 | BH84: =IF(BD84="","",VLOOKUP(BD84,条件类型查询!A:B,2,FALSE)) ->  | BI84: =IF(BF84="","",VLOOKUP(BF84,条件类型查询!A:B,2,FALSE)) -> 
A85: 10027 | B85: =IF(Z85>0,_xlfn.TEXTJOIN(";",1,ROW(INDIRECT(CONCATENATE("",A85*100+1,":",A85*100+Z85,""))),102,103),"") -> 1002701;1002702;1002703;1002704;1002705;1002706;1002707;1002708;1002709;1002710;1002711;1002712;1002713;1002714;1002715;1002716;1002717;1002718;1002719;1002720;1002721;1002722;1002723;1002724;1002725;1002726;1002727;1002728;1002729;1002730;1002731;1002732;1002733;1002734;1002735;1002736;102;103 | C85: 4 | D85: 1 | E85: 1 | F85: 1 | G85: 2 | I85: 10010;1701;1003 | J85: 1;1;1650 | M85: 3 | N85: 9 | O85: =IF(M85="","",CONCATENATE(VLOOKUP(M85,[1]PlacesConfig!$A:$C,3,FALSE),IF(N85="",""," - "&VLOOKUP(N85,[1]SmallPlacesConfig!$A:$I,9,FALSE)))) -> 藐姑射山 - 山径 | P85: 121 | Q85: 1 | R85: 121 | V85: 4054 | W85: 4129 | X85: 藐姑射山.雾中幻径 | Y85: 雾中忽闻燕雀语，笑我何必效鲲鹏。 | Z85: =COUNTIF(EventLinkConfig!O:O,EventConfig!A85) -> 36 | AA85: 1002701 | AB85: 1002702 | AC85: 1002703 | AD85: 1002704 | AE85: 1002705 | AF85: 1002706 | AG85: 1002707 | AH85: 1002708 | AI85: 1002709 | AJ85: 1002710 | AK85: 1002711 | AL85: 1002712 | AM85: 1002713 | AN85: 1002714 | AO85: 1002715 | AP85: 1002716 | AU85: 10010 | AV85: 1 | AW85: 1701 | AX85: 1 | AY85: 1003 | AZ85: =VLOOKUP(P85,[3]ResourceLevelConfig!$A:$E,5,FALSE)*5 -> 1650 | BA85: =IF(AU85="","",CONCATENATE(VLOOKUP(AU85,[2]DropConfig!$A:$F,3,FALSE),"×",AV85)) -> 玄龟盾×1 | BB85: =IF(AW85="","",CONCATENATE(VLOOKUP(AW85,[2]DropConfig!$A:$F,3,FALSE),"×",AX85)) -> 清识还元丹×1 | BC85: =IF(AY85="","",CONCATENATE(VLOOKUP(AY85,[2]DropConfig!$A:$F,3,FALSE),"×",AZ85)) -> 修为×1650 | BH85: =IF(BD85="","",VLOOKUP(BD85,条件类型查询!A:B,2,FALSE)) ->  | BI85: =IF(BF85="","",VLOOKUP(BF85,条件类型查询!A:B,2,FALSE)) -> 
A86: 10028 | B86: =IF(Z86>0,_xlfn.TEXTJOIN(";",1,ROW(INDIRECT(CONCATENATE("",A86*100+1,":",A86*100+Z86,""))),102,103),"") -> 1002801;102;103 | C86: 4 | D86: 1 | E86: 1 | F86: 1 | G86: 2 | I86: 12025;1701;1003 | J86: 1;1;1750 | M86: 3 | N86: 9 | O86: =IF(M86="","",CONCATENATE(VLOOKUP(M86,[1]PlacesConfig!$A:$C,3,FALSE),IF(N86="",""," - "&VLOOKUP(N86,[1]SmallPlacesConfig!$A:$I,9,FALSE)))) -> 藐姑射山 - 山径 | P86: 126 | Q86: 1 | V86: 4055 | W86: 4130 | X86: 露水清心 | Y86: 饮用甘露 | Z86: =COUNTIF(EventLinkConfig!O:O,EventConfig!A86) -> 1 | AA86: 1002801 | AU86: 12025 | AV86: 1 | AW86: 1701 | AX86: 1 | AY86: 1003 | AZ86: =VLOOKUP(P86,[3]ResourceLevelConfig!$A:$E,5,FALSE)*5 -> 1750 | BA86: =IF(AU86="","",CONCATENATE(VLOOKUP(AU86,[2]DropConfig!$A:$F,3,FALSE),"×",AV86)) -> 小石头×1 | BB86: =IF(AW86="","",CONCATENATE(VLOOKUP(AW86,[2]DropConfig!$A:$F,3,FALSE),"×",AX86)) -> 清识还元丹×1 | BC86: =IF(AY86="","",CONCATENATE(VLOOKUP(AY86,[2]DropConfig!$A:$F,3,FALSE),"×",AZ86)) -> 修为×1750 | BH86: =IF(BD86="","",VLOOKUP(BD86,条件类型查询!A:B,2,FALSE)) ->  | BI86: =IF(BF86="","",VLOOKUP(BF86,条件类型查询!A:B,2,FALSE)) -> 
A87: 10029 | B87: =IF(Z87>0,_xlfn.TEXTJOIN(";",1,ROW(INDIRECT(CONCATENATE("",A87*100+1,":",A87*100+Z87,""))),102,103),"") -> 1002901;1002902;1002903;1002904;1002905;1002906;1002907;1002908;1002909;1002910;1002911;1002912;1002913;1002914;1002915;1002916;1002917;1002918;1002919;1002920;102;103 | C87: 4 | D87: 1 | E87: 1 | F87: 1 | G87: 2 | I87: 12509;1701;1003 | J87: 1;1;1850 | M87: 3 | N87: 10 | O87: =IF(M87="","",CONCATENATE(VLOOKUP(M87,[1]PlacesConfig!$A:$C,3,FALSE),IF(N87="",""," - "&VLOOKUP(N87,[1]SmallPlacesConfig!$A:$I,9,FALSE)))) -> 藐姑射山 - 山顶 | P87: 131 | Q87: 1 | R87: 131 | V87: 4056 | W87: 4131 | X87: 山顶神仙 | Y87: 心镜问道 | Z87: =COUNTIF(EventLinkConfig!O:O,EventConfig!A87) -> 20 | AA87: 1002901 | AB87: 1002902 | AC87: 1002903 | AD87: 1002904 | AE87: 1002905 | AF87: 1002906 | AG87: 1002907 | AH87: 1002908 | AI87: 1002909 | AJ87: 1002910 | AK87: 1002911 | AL87: 1002912 | AM87: 1002913 | AN87: 1002914 | AO87: 1002915 | AP87: 1002916 | AU87: 12509 | AV87: 1 | AW87: 1701 | AX87: 1 | AY87: 1003 | AZ87: =VLOOKUP(P87,[3]ResourceLevelConfig!$A:$E,5,FALSE)*5 -> 1850 | BA87: =IF(AU87="","",CONCATENATE(VLOOKUP(AU87,[2]DropConfig!$A:$F,3,FALSE),"×",AV87)) -> 青莲净体诀×1 | BB87: =IF(AW87="","",CONCATENATE(VLOOKUP(AW87,[2]DropConfig!$A:$F,3,FALSE),"×",AX87)) -> 清识还元丹×1 | BC87: =IF(AY87="","",CONCATENATE(VLOOKUP(AY87,[2]DropConfig!$A:$F,3,FALSE),"×",AZ87)) -> 修为×1850 | BH87: =IF(BD87="","",VLOOKUP(BD87,条件类型查询!A:B,2,FALSE)) ->  | BI87: =IF(BF87="","",VLOOKUP(BF87,条件类型查询!A:B,2,FALSE)) -> 
A88: 10030 | B88: =IF(Z88>0,_xlfn.TEXTJOIN(";",1,ROW(INDIRECT(CONCATENATE("",A88*100+1,":",A88*100+Z88,""))),102,103),"") -> 1003001;1003002;1003003;1003004;1003005;1003006;1003007;1003008;102;103 | C88: 4 | D88: 1 | E88: 1 | F88: 1 | G88: 2 | I88: 1305;1701;1003 | J88: 1;1;2050 | M88: 3 | N88: 10 | O88: =IF(M88="","",CONCATENATE(VLOOKUP(M88,[1]PlacesConfig!$A:$C,3,FALSE),IF(N88="",""," - "&VLOOKUP(N88,[1]SmallPlacesConfig!$A:$I,9,FALSE)))) -> 藐姑射山 - 山顶 | P88: 141 | Q88: 1 | R88: 141 | V88: 4057 | W88: 4132 | X88: 心魔之战.破除枷锁 | Y88: 破妄得逍遥，心御天地宽。 | Z88: =COUNTIF(EventLinkConfig!O:O,EventConfig!A88) -> 8 | AA88: 1003001 | AB88: 1003002 | AC88: 1003003 | AD88: 1003004 | AE88: 1003005 | AF88: 1003006 | AG88: 1003007 | AH88: 1003008 | AU88: 1305 | AV88: 1 | AW88: 1701 | AX88: 1 | AY88: 1003 | AZ88: =VLOOKUP(P88,[3]ResourceLevelConfig!$A:$E,5,FALSE)*5 -> 2050 | BA88: =IF(AU88="","",CONCATENATE(VLOOKUP(AU88,[2]DropConfig!$A:$F,3,FALSE),"×",AV88)) -> 青灵果×1 | BB88: =IF(AW88="","",CONCATENATE(VLOOKUP(AW88,[2]DropConfig!$A:$F,3,FALSE),"×",AX88)) -> 清识还元丹×1 | BC88: =IF(AY88="","",CONCATENATE(VLOOKUP(AY88,[2]DropConfig!$A:$F,3,FALSE),"×",AZ88)) -> 修为×2050 | BH88: =IF(BD88="","",VLOOKUP(BD88,条件类型查询!A:B,2,FALSE)) ->  | BI88: =IF(BF88="","",VLOOKUP(BF88,条件类型查询!A:B,2,FALSE)) -> 
A89: 10031 | B89: =IF(Z89>0,_xlfn.TEXTJOIN(";",1,ROW(INDIRECT(CONCATENATE("",A89*100+1,":",A89*100+Z89,""))),102,103),"") -> 1003101;1003102;1003103;1003104;1003105;1003106;1003107;1003108;1003109;1003110;1003111;1003112;1003113;1003114;1003115;1003116;102;103 | C89: 4 | D89: 1 | E89: 1 | F89: 1 | G89: 2 | I89: 22001;1701;1003 | J89: 1;1;2250 | M89: 3 | N89: 10 | O89: =IF(M89="","",CONCATENATE(VLOOKUP(M89,[1]PlacesConfig!$A:$C,3,FALSE),IF(N89="",""," - "&VLOOKUP(N89,[1]SmallPlacesConfig!$A:$I,9,FALSE)))) -> 藐姑射山 - 山顶 | P89: 151 | Q89: 1 | R89: 151 | V89: 4191 | W89: 4192 | X89: 鲲鹏飞天 | Y89: 御风证道 | Z89: =COUNTIF(EventLinkConfig!O:O,EventConfig!A89) -> 16 | AA89: 1003101 | AB89: 1003102 | AC89: 1003103 | AD89: 1003104 | AE89: 1003105 | AF89: 1003106 | AG89: 1003107 | AH89: 1003108 | AI89: 1003109 | AJ89: 1003110 | AK89: 1003111 | AL89: 1003112 | AM89: 1003113 | AN89: 1003114 | AO89: 1003115 | AP89: 1003116 | AU89: 22001 | AV89: 1 | AW89: 1701 | AX89: 1 | AY89: 1003 | AZ89: =VLOOKUP(P89,[3]ResourceLevelConfig!$A:$E,5,FALSE)*5 -> 2250 | BA89: =IF(AU89="","",CONCATENATE(VLOOKUP(AU89,[2]DropConfig!$A:$F,3,FALSE),"×",AV89)) -> 主感悟点1×1 | BB89: =IF(AW89="","",CONCATENATE(VLOOKUP(AW89,[2]DropConfig!$A:$F,3,FALSE),"×",AX89)) -> 清识还元丹×1 | BC89: =IF(AY89="","",CONCATENATE(VLOOKUP(AY89,[2]DropConfig!$A:$F,3,FALSE),"×",AZ89)) -> 修为×2250 | BH89: =IF(BD89="","",VLOOKUP(BD89,条件类型查询!A:B,2,FALSE)) ->  | BI89: =IF(BF89="","",VLOOKUP(BF89,条件类型查询!A:B,2,FALSE)) -> 
B90: =IF(Z90>0,_xlfn.TEXTJOIN(";",1,ROW(INDIRECT(CONCATENATE("",A90*100+1,":",A90*100+Z90,""))),102,103),"") ->  | O90: =IF(M90="","",CONCATENATE(VLOOKUP(M90,[1]PlacesConfig!$A:$C,3,FALSE),IF(N90="",""," - "&VLOOKUP(N90,[1]SmallPlacesConfig!$A:$I,9,FALSE)))) ->  | BA90: =IF(AU90="","",CONCATENATE(VLOOKUP(AU90,[2]DropConfig!$A:$F,3,FALSE),"×",AV90)) ->  | BB90: =IF(AW90="","",CONCATENATE(VLOOKUP(AW90,[2]DropConfig!$A:$F,3,FALSE),"×",AX90)) ->  | BC90: =IF(AY90="","",CONCATENATE(VLOOKUP(AY90,[2]DropConfig!$A:$F,3,FALSE),"×",AZ90)) ->  | BH90: =IF(BD90="","",VLOOKUP(BD90,条件类型查询!A:B,2,FALSE)) ->  | BI90: =IF(BF90="","",VLOOKUP(BF90,条件类型查询!A:B,2,FALSE)) -> 
B91: =IF(Z91>0,_xlfn.TEXTJOIN(";",1,ROW(INDIRECT(CONCATENATE("",A91*100+1,":",A91*100+Z91,""))),102,103),"") ->  | C91: 5 | E91: 1 | F91: 0 | G91: 1 | O91: =IF(M91="","",CONCATENATE(VLOOKUP(M91,[1]PlacesConfig!$A:$C,3,FALSE),IF(N91="",""," - "&VLOOKUP(N91,[1]SmallPlacesConfig!$A:$I,9,FALSE)))) ->  | V91: 4058 | W91: 4133 | X91: 受伤的狼 | Y91: 你发现一只奄奄一息的狼，决定上前一探究竟。 | AA91: 1001 | AB91: 1002 | AC91: 1003 | AD91: 1004 | AE91: 1005 | BA91: =IF(AU91="","",CONCATENATE(VLOOKUP(AU91,[2]DropConfig!$A:$F,3,FALSE),"×",AV91)) ->  | BB91: =IF(AW91="","",CONCATENATE(VLOOKUP(AW91,[2]DropConfig!$A:$F,3,FALSE),"×",AX91)) ->  | BC91: =IF(AY91="","",CONCATENATE(VLOOKUP(AY91,[2]DropConfig!$A:$F,3,FALSE),"×",AZ91)) ->  | BH91: =IF(BD91="","",VLOOKUP(BD91,条件类型查询!A:B,2,FALSE)) ->  | BI91: =IF(BF91="","",VLOOKUP(BF91,条件类型查询!A:B,2,FALSE)) -> 
B92: =IF(Z92>0,_xlfn.TEXTJOIN(";",1,ROW(INDIRECT(CONCATENATE("",A92*100+1,":",A92*100+Z92,""))),102,103),"") ->  | C92: 5 | E92: 1 | F92: 0 | G92: 1 | O92: =IF(M92="","",CONCATENATE(VLOOKUP(M92,[1]PlacesConfig!$A:$C,3,FALSE),IF(N92="",""," - "&VLOOKUP(N92,[1]SmallPlacesConfig!$A:$I,9,FALSE)))) ->  | V92: 4059 | W92: 4134 | X92: 鹬蚌相争 | Y92: 附近的小树林闹的不可开交，你决定去看看怎么回事。 | AA92: 1010 | AB92: 1011 | AC92: 1012 | AD92: 1013 | AE92: 1014 | AF92: 1015 | AG92: 1016 | BA92: =IF(AU92="","",CONCATENATE(VLOOKUP(AU92,[2]DropConfig!$A:$F,3,FALSE),"×",AV92)) ->  | BB92: =IF(AW92="","",CONCATENATE(VLOOKUP(AW92,[2]DropConfig!$A:$F,3,FALSE),"×",AX92)) ->  | BC92: =IF(AY92="","",CONCATENATE(VLOOKUP(AY92,[2]DropConfig!$A:$F,3,FALSE),"×",AZ92)) ->  | BH92: =IF(BD92="","",VLOOKUP(BD92,条件类型查询!A:B,2,FALSE)) ->  | BI92: =IF(BF92="","",VLOOKUP(BF92,条件类型查询!A:B,2,FALSE)) -> 
B93: =IF(Z93>0,_xlfn.TEXTJOIN(";",1,ROW(INDIRECT(CONCATENATE("",A93*100+1,":",A93*100+Z93,""))),102,103),"") ->  | C93: 5 | E93: 1 | F93: 0 | G93: 1 | O93: =IF(M93="","",CONCATENATE(VLOOKUP(M93,[1]PlacesConfig!$A:$C,3,FALSE),IF(N93="",""," - "&VLOOKUP(N93,[1]SmallPlacesConfig!$A:$I,9,FALSE)))) ->  | V93: 4060 | W93: 4135 | X93: 受伤的鸟 | Y93: 你发现一只奄奄一息的鸟，决定上前一探究竟。 | AA93: 1001 | AB93: 1002 | AC93: 1003 | AD93: 1004 | AE93: 1005 | BA93: =IF(AU93="","",CONCATENATE(VLOOKUP(AU93,[2]DropConfig!$A:$F,3,FALSE),"×",AV93)) ->  | BB93: =IF(AW93="","",CONCATENATE(VLOOKUP(AW93,[2]DropConfig!$A:$F,3,FALSE),"×",AX93)) ->  | BC93: =IF(AY93="","",CONCATENATE(VLOOKUP(AY93,[2]DropConfig!$A:$F,3,FALSE),"×",AZ93)) ->  | BH93: =IF(BD93="","",VLOOKUP(BD93,条件类型查询!A:B,2,FALSE)) ->  | BI93: =IF(BF93="","",VLOOKUP(BF93,条件类型查询!A:B,2,FALSE)) -> 
B94: =IF(Z94>0,_xlfn.TEXTJOIN(";",1,ROW(INDIRECT(CONCATENATE("",A94*100+1,":",A94*100+Z94,""))),102,103),"") ->  | O94: =IF(M94="","",CONCATENATE(VLOOKUP(M94,[1]PlacesConfig!$A:$C,3,FALSE),IF(N94="",""," - "&VLOOKUP(N94,[1]SmallPlacesConfig!$A:$I,9,FALSE)))) ->  | BA94: =IF(AU94="","",CONCATENATE(VLOOKUP(AU94,[2]DropConfig!$A:$F,3,FALSE),"×",AV94)) ->  | BB94: =IF(AW94="","",CONCATENATE(VLOOKUP(AW94,[2]DropConfig!$A:$F,3,FALSE),"×",AX94)) ->  | BC94: =IF(AY94="","",CONCATENATE(VLOOKUP(AY94,[2]DropConfig!$A:$F,3,FALSE),"×",AZ94)) ->  | BH94: =IF(BD94="","",VLOOKUP(BD94,条件类型查询!A:B,2,FALSE)) ->  | BI94: =IF(BF94="","",VLOOKUP(BF94,条件类型查询!A:B,2,FALSE)) -> 
B95: =IF(Z95>0,_xlfn.TEXTJOIN(";",1,ROW(INDIRECT(CONCATENATE("",A95*100+1,":",A95*100+Z95,""))),102,103),"") ->  | C95: 6 | D95: 3 | E95: 1 | F95: 0 | G95: 1 | O95: =IF(M95="","",CONCATENATE(VLOOKUP(M95,[1]PlacesConfig!$A:$C,3,FALSE),IF(N95="",""," - "&VLOOKUP(N95,[1]SmallPlacesConfig!$A:$I,9,FALSE)))) ->  | V95: 4061 | W95: 4136 | X95: 受伤的狼 | Y95: 你发现一只奄奄一息的狼，决定上前一探究竟。 | AA95: 1001 | AB95: 1002 | AC95: 1003 | AD95: 1004 | AE95: 1005 | BA95: =IF(AU95="","",CONCATENATE(VLOOKUP(AU95,[2]DropConfig!$A:$F,3,FALSE),"×",AV95)) ->  | BB95: =IF(AW95="","",CONCATENATE(VLOOKUP(AW95,[2]DropConfig!$A:$F,3,FALSE),"×",AX95)) ->  | BC95: =IF(AY95="","",CONCATENATE(VLOOKUP(AY95,[2]DropConfig!$A:$F,3,FALSE),"×",AZ95)) ->  | BH95: =IF(BD95="","",VLOOKUP(BD95,条件类型查询!A:B,2,FALSE)) ->  | BI95: =IF(BF95="","",VLOOKUP(BF95,条件类型查询!A:B,2,FALSE)) -> 
B96: =IF(Z96>0,_xlfn.TEXTJOIN(";",1,ROW(INDIRECT(CONCATENATE("",A96*100+1,":",A96*100+Z96,""))),102,103),"") ->  | C96: 6 | D96: 3 | E96: 1 | F96: 0 | G96: 1 | O96: =IF(M96="","",CONCATENATE(VLOOKUP(M96,[1]PlacesConfig!$A:$C,3,FALSE),IF(N96="",""," - "&VLOOKUP(N96,[1]SmallPlacesConfig!$A:$I,9,FALSE)))) ->  | V96: 4062 | W96: 4137 | X96: 鹬蚌相争 | Y96: 附近的小树林闹的不可开交，你决定去看看怎么回事。 | AA96: 1010 | AB96: 1011 | AC96: 1012 | AD96: 1013 | AE96: 1014 | AF96: 1015 | AG96: 1016 | BA96: =IF(AU96="","",CONCATENATE(VLOOKUP(AU96,[2]DropConfig!$A:$F,3,FALSE),"×",AV96)) ->  | BB96: =IF(AW96="","",CONCATENATE(VLOOKUP(AW96,[2]DropConfig!$A:$F,3,FALSE),"×",AX96)) ->  | BC96: =IF(AY96="","",CONCATENATE(VLOOKUP(AY96,[2]DropConfig!$A:$F,3,FALSE),"×",AZ96)) ->  | BH96: =IF(BD96="","",VLOOKUP(BD96,条件类型查询!A:B,2,FALSE)) ->  | BI96: =IF(BF96="","",VLOOKUP(BF96,条件类型查询!A:B,2,FALSE)) -> 
B97: =IF(Z97>0,_xlfn.TEXTJOIN(";",1,ROW(INDIRECT(CONCATENATE("",A97*100+1,":",A97*100+Z97,""))),102,103),"") ->  | C97: 6 | D97: 3 | E97: 1 | F97: 0 | G97: 1 | M97: 1 | O97: =IF(M97="","",CONCATENATE(VLOOKUP(M97,[1]PlacesConfig!$A:$C,3,FALSE),IF(N97="",""," - "&VLOOKUP(N97,[1]SmallPlacesConfig!$A:$I,9,FALSE)))) -> 北海 | Q97: 2 | V97: 4063 | W97: 4138 | X97: 惠子.没用的大葫芦 | Y97: 惠子种的葫芦没用，他非常生气 | BA97: =IF(AU97="","",CONCATENATE(VLOOKUP(AU97,[2]DropConfig!$A:$F,3,FALSE),"×",AV97)) ->  | BB97: =IF(AW97="","",CONCATENATE(VLOOKUP(AW97,[2]DropConfig!$A:$F,3,FALSE),"×",AX97)) ->  | BC97: =IF(AY97="","",CONCATENATE(VLOOKUP(AY97,[2]DropConfig!$A:$F,3,FALSE),"×",AZ97)) ->  | BH97: =IF(BD97="","",VLOOKUP(BD97,条件类型查询!A:B,2,FALSE)) ->  | BI97: =IF(BF97="","",VLOOKUP(BF97,条件类型查询!A:B,2,FALSE)) -> 
B98: =IF(Z98>0,_xlfn.TEXTJOIN(";",1,ROW(INDIRECT(CONCATENATE("",A98*100+1,":",A98*100+Z98,""))),102,103),"") ->  | C98: 6 | D98: 3 | E98: 1 | F98: 0 | G98: 1 | M98: 2 | O98: =IF(M98="","",CONCATENATE(VLOOKUP(M98,[1]PlacesConfig!$A:$C,3,FALSE),IF(N98="",""," - "&VLOOKUP(N98,[1]SmallPlacesConfig!$A:$I,9,FALSE)))) -> 尧之都 | Q98: 2 | V98: 4064 | W98: 4139 | X98: 发现魔修 | Y98: 发现一群魔修，正在夺人钱财 | AA98: 9014 | BA98: =IF(AU98="","",CONCATENATE(VLOOKUP(AU98,[2]DropConfig!$A:$F,3,FALSE),"×",AV98)) ->  | BB98: =IF(AW98="","",CONCATENATE(VLOOKUP(AW98,[2]DropConfig!$A:$F,3,FALSE),"×",AX98)) ->  | BC98: =IF(AY98="","",CONCATENATE(VLOOKUP(AY98,[2]DropConfig!$A:$F,3,FALSE),"×",AZ98)) ->  | BH98: =IF(BD98="","",VLOOKUP(BD98,条件类型查询!A:B,2,FALSE)) ->  | BI98: =IF(BF98="","",VLOOKUP(BF98,条件类型查询!A:B,2,FALSE)) -> 
B99: =IF(Z99>0,_xlfn.TEXTJOIN(";",1,ROW(INDIRECT(CONCATENATE("",A99*100+1,":",A99*100+Z99,""))),102,103),"") ->  | C99: 6 | D99: 3 | E99: 1 | F99: 0 | G99: 1 | K99: 30 | L99: 2 | M99: 3 | O99: =IF(M99="","",CONCATENATE(VLOOKUP(M99,[1]PlacesConfig!$A:$C,3,FALSE),IF(N99="",""," - "&VLOOKUP(N99,[1]SmallPlacesConfig!$A:$I,9,FALSE)))) -> 藐姑射山 | Q99: 2 | V99: 4065 | W99: 4140 | X99: 魔修 | Y99: 打败魔休 | AA99: 9031 | BA99: =IF(AU99="","",CONCATENATE(VLOOKUP(AU99,[2]DropConfig!$A:$F,3,FALSE),"×",AV99)) ->  | BB99: =IF(AW99="","",CONCATENATE(VLOOKUP(AW99,[2]DropConfig!$A:$F,3,FALSE),"×",AX99)) ->  | BC99: =IF(AY99="","",CONCATENATE(VLOOKUP(AY99,[2]DropConfig!$A:$F,3,FALSE),"×",AZ99)) ->  | BH99: =IF(BD99="","",VLOOKUP(BD99,条件类型查询!A:B,2,FALSE)) ->  | BI99: =IF(BF99="","",VLOOKUP(BF99,条件类型查询!A:B,2,FALSE)) -> 
B100: =IF(Z100>0,_xlfn.TEXTJOIN(";",1,ROW(INDIRECT(CONCATENATE("",A100*100+1,":",A100*100+Z100,""))),102,103),"") ->  | C100: 6 | D100: 5 | E100: 1 | F100: 0 | G100: 1 | O100: =IF(M100="","",CONCATENATE(VLOOKUP(M100,[1]PlacesConfig!$A:$C,3,FALSE),IF(N100="",""," - "&VLOOKUP(N100,[1]SmallPlacesConfig!$A:$I,9,FALSE)))) ->  | V100: 4066 | W100: 4141 | X100: 幽谷剑鸣 | Y100: 你在闭关修炼时，感受到一股凌厉的剑意波动。深入探查，发现一名白衣剑修“清霜”盘坐于谷中，周围剑气环绕，正与一柄散发不祥气息的灵剑对峙。她似在参悟剑诀，却灵气不足，剑灵桀骜。 | AA100: 9003 | AB100: 9004 | AC100: 9005 | AD100: 9006 | AE100: 9007 | AF100: 9008 | BA100: =IF(AU100="","",CONCATENATE(VLOOKUP(AU100,[2]DropConfig!$A:$F,3,FALSE),"×",AV100)) ->  | BB100: =IF(AW100="","",CONCATENATE(VLOOKUP(AW100,[2]DropConfig!$A:$F,3,FALSE),"×",AX100)) ->  | BC100: =IF(AY100="","",CONCATENATE(VLOOKUP(AY100,[2]DropConfig!$A:$F,3,FALSE),"×",AZ100)) ->  | BH100: =IF(BD100="","",VLOOKUP(BD100,条件类型查询!A:B,2,FALSE)) ->  | BI100: =IF(BF100="","",VLOOKUP(BF100,条件类型查询!A:B,2,FALSE)) -> 
O101: =IF(M101="","",CONCATENATE(VLOOKUP(M101,[1]PlacesConfig!$A:$C,3,FALSE),IF(N101="",""," - "&VLOOKUP(N101,[1]SmallPlacesConfig!$A:$I,9,FALSE)))) ->  | BA101: =IF(AU101="","",CONCATENATE(VLOOKUP(AU101,[2]DropConfig!$A:$F,3,FALSE),"×",AV101)) ->  | BB101: =IF(AW101="","",CONCATENATE(VLOOKUP(AW101,[2]DropConfig!$A:$F,3,FALSE),"×",AX101)) ->  | BC101: =IF(AY101="","",CONCATENATE(VLOOKUP(AY101,[2]DropConfig!$A:$F,3,FALSE),"×",AZ101)) ->  | BH101: =IF(BD101="","",VLOOKUP(BD101,条件类型查询!A:B,2,FALSE)) ->  | BI101: =IF(BF101="","",VLOOKUP(BF101,条件类型查询!A:B,2,FALSE)) -> 
B102: =IF(A102="","",_xlfn.TEXTJOIN(";",1,AA102:AT102,102)) ->  | C102: 99 | D102: 2 | E102: 1 | F102: 0 | G102: 1 | M102: 1 | O102: =IF(M102="","",CONCATENATE(VLOOKUP(M102,[1]PlacesConfig!$A:$C,3,FALSE),IF(N102="",""," - "&VLOOKUP(N102,[1]SmallPlacesConfig!$A:$I,9,FALSE)))) -> 北海 | Q102: 4 | S102: 1 | T102: 1004 | U102: 1 | V102: 4067 | W102: 4142 | X102: 鹬蚌相争2 | Y102: 附近的小树林闹的不可开交，你决定去看看怎么回事。 | AA102: 1020 | AB102: 1021 | AC102: 1022 | AD102: 1023 | AE102: 1024 | AF102: 1025 | AG102: 1026 | BA102: =IF(AU102="","",CONCATENATE(VLOOKUP(AU102,[2]DropConfig!$A:$F,3,FALSE),"×",AV102)) ->  | BB102: =IF(AW102="","",CONCATENATE(VLOOKUP(AW102,[2]DropConfig!$A:$F,3,FALSE),"×",AX102)) ->  | BC102: =IF(AY102="","",CONCATENATE(VLOOKUP(AY102,[2]DropConfig!$A:$F,3,FALSE),"×",AZ102)) ->  | BD102: 1 | BE102: 1004 | BH102: =IF(BD102="","",VLOOKUP(BD102,条件类型查询!A:B,2,FALSE)) -> 拥有特定道具 | BI102: =IF(BF102="","",VLOOKUP(BF102,条件类型查询!A:B,2,FALSE)) -> 
B103: =IF(A103="","",_xlfn.TEXTJOIN(";",1,AA103:AT103,102)) ->  | C103: 99 | D103: 4 | E103: 1 | F103: 0 | G103: 1 | O103: =IF(M103="","",CONCATENATE(VLOOKUP(M103,[1]PlacesConfig!$A:$C,3,FALSE),IF(N103="",""," - "&VLOOKUP(N103,[1]SmallPlacesConfig!$A:$I,9,FALSE)))) ->  | V103: 4068 | W103: 4143 | X103: 受伤的鸟 | Y103: 你发现一只奄奄一息的鸟，决定上前一探究竟。 | AA103: 1001 | AB103: 1002 | AC103: 1003 | AD103: 1004 | AE103: 1005 | AT103: 100 | BA103: =IF(AU103="","",CONCATENATE(VLOOKUP(AU103,[2]DropConfig!$A:$F,3,FALSE),"×",AV103)) ->  | BB103: =IF(AW103="","",CONCATENATE(VLOOKUP(AW103,[2]DropConfig!$A:$F,3,FALSE),"×",AX103)) ->  | BC103: =IF(AY103="","",CONCATENATE(VLOOKUP(AY103,[2]DropConfig!$A:$F,3,FALSE),"×",AZ103)) ->  | BH103: =IF(BD103="","",VLOOKUP(BD103,条件类型查询!A:B,2,FALSE)) ->  | BI103: =IF(BF103="","",VLOOKUP(BF103,条件类型查询!A:B,2,FALSE)) -> 
A104: 30001 | B104: =IF(A104="","",_xlfn.TEXTJOIN(";",1,AA104:AT104,102,103)) -> 100;102;103 | C104: 98 | D104: 6 | E104: 1 | F104: 0 | G104: 1 | K104: 50 | L104: 5 | O104: =IF(M104="","",CONCATENATE(VLOOKUP(M104,[1]PlacesConfig!$A:$C,3,FALSE),IF(N104="",""," - "&VLOOKUP(N104,[1]SmallPlacesConfig!$A:$I,9,FALSE)))) ->  | Z104: =COUNTIF(EventLinkConfig!O:O,EventConfig!A104) -> 0 | AA104: =IF($Z104>=AA$3,$A104*100+AA$3,"") ->  | AT104: 100 | BA104: =IF(AU104="","",CONCATENATE(VLOOKUP(AU104,[2]DropConfig!$A:$F,3,FALSE),"×",AV104)) ->  | BB104: =IF(AW104="","",CONCATENATE(VLOOKUP(AW104,[2]DropConfig!$A:$F,3,FALSE),"×",AX104)) ->  | BC104: =IF(AY104="","",CONCATENATE(VLOOKUP(AY104,[2]DropConfig!$A:$F,3,FALSE),"×",AZ104)) ->  | BH104: =IF(BD104="","",VLOOKUP(BD104,条件类型查询!A:B,2,FALSE)) ->  | BI104: =IF(BF104="","",VLOOKUP(BF104,条件类型查询!A:B,2,FALSE)) -> 
A105: =A104+1 -> 30002 | B105: =IF(A105="","",_xlfn.TEXTJOIN(";",1,AA105:AT105,102,103)) -> 100;102;103 | C105: 98 | D105: 6 | E105: 1 | F105: 0 | G105: 1 | K105: 50 | L105: 1 | O105: =IF(M105="","",CONCATENATE(VLOOKUP(M105,[1]PlacesConfig!$A:$C,3,FALSE),IF(N105="",""," - "&VLOOKUP(N105,[1]SmallPlacesConfig!$A:$I,9,FALSE)))) ->  | Z105: =COUNTIF(EventLinkConfig!O:O,EventConfig!A105) -> 0 | AT105: 100 | BA105: =IF(AU105="","",CONCATENATE(VLOOKUP(AU105,[2]DropConfig!$A:$F,3,FALSE),"×",AV105)) ->  | BB105: =IF(AW105="","",CONCATENATE(VLOOKUP(AW105,[2]DropConfig!$A:$F,3,FALSE),"×",AX105)) ->  | BC105: =IF(AY105="","",CONCATENATE(VLOOKUP(AY105,[2]DropConfig!$A:$F,3,FALSE),"×",AZ105)) ->  | BH105: =IF(BD105="","",VLOOKUP(BD105,条件类型查询!A:B,2,FALSE)) ->  | BI105: =IF(BF105="","",VLOOKUP(BF105,条件类型查询!A:B,2,FALSE)) -> 
A106: 30003 | B106: 3000301;100;102;103 | C106: 98 | D106: 6 | E106: 1 | F106: 0 | G106: 1 | K106: 50 | L106: 3 | M106: 1 | O106: =IF(M106="","",CONCATENATE(VLOOKUP(M106,[1]PlacesConfig!$A:$C,3,FALSE),IF(N106="",""," - "&VLOOKUP(N106,[1]SmallPlacesConfig!$A:$I,9,FALSE)))) -> 北海 | V106: 4379 | W106: 4380 | X106: 北海深处-妖兽横行 | Y106: 击败妖兽 | Z106: =COUNTIF(EventLinkConfig!O:O,EventConfig!A106) -> 1 | AA106: 3000301 | AT106: 100 | BA106: =IF(AU106="","",CONCATENATE(VLOOKUP(AU106,[2]DropConfig!$A:$F,3,FALSE),"×",AV106)) ->  | BB106: =IF(AW106="","",CONCATENATE(VLOOKUP(AW106,[2]DropConfig!$A:$F,3,FALSE),"×",AX106)) ->  | BC106: =IF(AY106="","",CONCATENATE(VLOOKUP(AY106,[2]DropConfig!$A:$F,3,FALSE),"×",AZ106)) ->  | BH106: =IF(BD106="","",VLOOKUP(BD106,条件类型查询!A:B,2,FALSE)) ->  | BI106: =IF(BF106="","",VLOOKUP(BF106,条件类型查询!A:B,2,FALSE)) -> 
A107: 30004 | B107: 3000401;100;102;103 | C107: 98 | D107: 6 | E107: 1 | F107: 0 | G107: 1 | K107: 50 | L107: 3 | M107: 2 | O107: =IF(M107="","",CONCATENATE(VLOOKUP(M107,[1]PlacesConfig!$A:$C,3,FALSE),IF(N107="",""," - "&VLOOKUP(N107,[1]SmallPlacesConfig!$A:$I,9,FALSE)))) -> 尧之都 | V107: 4381 | W107: 4382 | X107: 山中劳作-后山小妖 | Y107: 击败妖兽 | Z107: =COUNTIF(EventLinkConfig!O:O,EventConfig!A107) -> 1 | AA107: 3000401 | AT107: 100 | BA107: =IF(AU107="","",CONCATENATE(VLOOKUP(AU107,[2]DropConfig!$A:$F,3,FALSE),"×",AV107)) ->  | BB107: =IF(AW107="","",CONCATENATE(VLOOKUP(AW107,[2]DropConfig!$A:$F,3,FALSE),"×",AX107)) ->  | BC107: =IF(AY107="","",CONCATENATE(VLOOKUP(AY107,[2]DropConfig!$A:$F,3,FALSE),"×",AZ107)) ->  | BH107: =IF(BD107="","",VLOOKUP(BD107,条件类型查询!A:B,2,FALSE)) ->  | BI107: =IF(BF107="","",VLOOKUP(BF107,条件类型查询!A:B,2,FALSE)) -> 
A108: 30005 | B108: 3000501;100;102;103 | C108: 98 | D108: 6 | E108: 1 | F108: 0 | G108: 1 | K108: 50 | L108: 1 | M108: 2 | O108: =IF(M108="","",CONCATENATE(VLOOKUP(M108,[1]PlacesConfig!$A:$C,3,FALSE),IF(N108="",""," - "&VLOOKUP(N108,[1]SmallPlacesConfig!$A:$I,9,FALSE)))) -> 尧之都 | V108: 4383 | W108: 4384 | X108: 风起夜战-夜袭的妖兽 | Y108: 击败妖兽 | Z108: =COUNTIF(EventLinkConfig!O:O,EventConfig!A108) -> 1 | AA108: 3000501 | AT108: 100 | BA108: =IF(AU108="","",CONCATENATE(VLOOKUP(AU108,[2]DropConfig!$A:$F,3,FALSE),"×",AV108)) ->  | BB108: =IF(AW108="","",CONCATENATE(VLOOKUP(AW108,[2]DropConfig!$A:$F,3,FALSE),"×",AX108)) ->  | BC108: =IF(AY108="","",CONCATENATE(VLOOKUP(AY108,[2]DropConfig!$A:$F,3,FALSE),"×",AZ108)) ->  | BH108: =IF(BD108="","",VLOOKUP(BD108,条件类型查询!A:B,2,FALSE)) ->  | BI108: =IF(BF108="","",VLOOKUP(BF108,条件类型查询!A:B,2,FALSE)) -> 
A109: 30006 | B109: 3000601;100;102;103 | C109: 98 | D109: 6 | E109: 1 | F109: 0 | G109: 1 | K109: 50 | L109: 1 | M109: 2 | O109: =IF(M109="","",CONCATENATE(VLOOKUP(M109,[1]PlacesConfig!$A:$C,3,FALSE),IF(N109="",""," - "&VLOOKUP(N109,[1]SmallPlacesConfig!$A:$I,9,FALSE)))) -> 尧之都 | V109: 4385 | W109: 4386 | X109: 吃茶三问-顶峰的妖王 | Y109: 击败妖兽 | Z109: =COUNTIF(EventLinkConfig!O:O,EventConfig!A109) -> 1 | AA109: 3000601 | AT109: 100 | BA109: =IF(AU109="","",CONCATENATE(VLOOKUP(AU109,[2]DropConfig!$A:$F,3,FALSE),"×",AV109)) ->  | BB109: =IF(AW109="","",CONCATENATE(VLOOKUP(AW109,[2]DropConfig!$A:$F,3,FALSE),"×",AX109)) ->  | BC109: =IF(AY109="","",CONCATENATE(VLOOKUP(AY109,[2]DropConfig!$A:$F,3,FALSE),"×",AZ109)) ->  | BH109: =IF(BD109="","",VLOOKUP(BD109,条件类型查询!A:B,2,FALSE)) ->  | BI109: =IF(BF109="","",VLOOKUP(BF109,条件类型查询!A:B,2,FALSE)) -> 
A110: 30007 | B110: 3000701;100;102;103 | C110: 98 | D110: 6 | E110: 1 | F110: 0 | G110: 1 | K110: 50 | L110: 1 | M110: 3 | O110: =IF(M110="","",CONCATENATE(VLOOKUP(M110,[1]PlacesConfig!$A:$C,3,FALSE),IF(N110="",""," - "&VLOOKUP(N110,[1]SmallPlacesConfig!$A:$I,9,FALSE)))) -> 藐姑射山 | V110: 4387 | W110: 4388 | X110: 云海慢行-仙山的阵眼妖兽 | Y110: 击败妖兽 | Z110: =COUNTIF(EventLinkConfig!O:O,EventConfig!A110) -> 1 | AA110: 3000701 | AT110: 100 | BA110: =IF(AU110="","",CONCATENATE(VLOOKUP(AU110,[2]DropConfig!$A:$F,3,FALSE),"×",AV110)) ->  | BB110: =IF(AW110="","",CONCATENATE(VLOOKUP(AW110,[2]DropConfig!$A:$F,3,FALSE),"×",AX110)) ->  | BC110: =IF(AY110="","",CONCATENATE(VLOOKUP(AY110,[2]DropConfig!$A:$F,3,FALSE),"×",AZ110)) ->  | BH110: =IF(BD110="","",VLOOKUP(BD110,条件类型查询!A:B,2,FALSE)) ->  | BI110: =IF(BF110="","",VLOOKUP(BF110,条件类型查询!A:B,2,FALSE)) -> 
A111: 30008 | B111: 3000801;100;102;103 | C111: 98 | D111: 6 | E111: 1 | F111: 0 | G111: 1 | K111: 50 | L111: 1 | M111: 3 | O111: =IF(M111="","",CONCATENATE(VLOOKUP(M111,[1]PlacesConfig!$A:$C,3,FALSE),IF(N111="",""," - "&VLOOKUP(N111,[1]SmallPlacesConfig!$A:$I,9,FALSE)))) -> 藐姑射山 | V111: 4389 | W111: 4390 | X111: 葫芦肥料-天肥 | Y111: 击败妖兽获得天肥 | Z111: =COUNTIF(EventLinkConfig!O:O,EventConfig!A111) -> 1 | AA111: 3000801 | AT111: 100 | BA111: =IF(AU111="","",CONCATENATE(VLOOKUP(AU111,[2]DropConfig!$A:$F,3,FALSE),"×",AV111)) ->  | BB111: =IF(AW111="","",CONCATENATE(VLOOKUP(AW111,[2]DropConfig!$A:$F,3,FALSE),"×",AX111)) ->  | BC111: =IF(AY111="","",CONCATENATE(VLOOKUP(AY111,[2]DropConfig!$A:$F,3,FALSE),"×",AZ111)) ->  | BH111: =IF(BD111="","",VLOOKUP(BD111,条件类型查询!A:B,2,FALSE)) ->  | BI111: =IF(BF111="","",VLOOKUP(BF111,条件类型查询!A:B,2,FALSE)) -> 
A112: 30009 | B112: 3000901;3000902;100;102;103 | C112: 98 | D112: 6 | E112: 1 | F112: 0 | G112: 1 | K112: 50 | L112: 1 | M112: 3 | O112: =IF(M112="","",CONCATENATE(VLOOKUP(M112,[1]PlacesConfig!$A:$C,3,FALSE),IF(N112="",""," - "&VLOOKUP(N112,[1]SmallPlacesConfig!$A:$I,9,FALSE)))) -> 藐姑射山 | Z112: =COUNTIF(EventLinkConfig!O:O,EventConfig!A112) -> 2 | AA112: 3000901 | AB112: 3000902 | AT112: 100 | BA112: =IF(AU112="","",CONCATENATE(VLOOKUP(AU112,[2]DropConfig!$A:$F,3,FALSE),"×",AV112)) ->  | BB112: =IF(AW112="","",CONCATENATE(VLOOKUP(AW112,[2]DropConfig!$A:$F,3,FALSE),"×",AX112)) ->  | BC112: =IF(AY112="","",CONCATENATE(VLOOKUP(AY112,[2]DropConfig!$A:$F,3,FALSE),"×",AZ112)) ->  | BH112: =IF(BD112="","",VLOOKUP(BD112,条件类型查询!A:B,2,FALSE)) ->  | BI112: =IF(BF112="","",VLOOKUP(BF112,条件类型查询!A:B,2,FALSE)) -> 
A113: 30010 | B113: 3001001;100;102;103 | C113: 98 | D113: 6 | E113: 1 | F113: 0 | G113: 1 | K113: 50 | L113: 1 | M113: 3 | O113: =IF(M113="","",CONCATENATE(VLOOKUP(M113,[1]PlacesConfig!$A:$C,3,FALSE),IF(N113="",""," - "&VLOOKUP(N113,[1]SmallPlacesConfig!$A:$I,9,FALSE)))) -> 藐姑射山 | S113: 10 | T113: 1021 | Z113: =COUNTIF(EventLinkConfig!O:O,EventConfig!A113) -> 1 | AA113: 3001001 | AT113: 100 | BA113: =IF(AU113="","",CONCATENATE(VLOOKUP(AU113,[2]DropConfig!$A:$F,3,FALSE),"×",AV113)) ->  | BB113: =IF(AW113="","",CONCATENATE(VLOOKUP(AW113,[2]DropConfig!$A:$F,3,FALSE),"×",AX113)) ->  | BC113: =IF(AY113="","",CONCATENATE(VLOOKUP(AY113,[2]DropConfig!$A:$F,3,FALSE),"×",AZ113)) ->  | BD113: 10 | BE113: 1021 | BH113: =IF(BD113="","",VLOOKUP(BD113,条件类型查询!A:B,2,FALSE)) -> 前置事件 | BI113: =IF(BF113="","",VLOOKUP(BF113,条件类型查询!A:B,2,FALSE)) -> 
A114: 30011 | B114: 3001101;3001102;100;102;103 | C114: 98 | D114: 6 | E114: 1 | F114: 0 | G114: 1 | I114: 20003 | J114: 1 | K114: 50 | L114: 3 | M114: 2 | O114: =IF(M114="","",CONCATENATE(VLOOKUP(M114,[1]PlacesConfig!$A:$C,3,FALSE),IF(N114="",""," - "&VLOOKUP(N114,[1]SmallPlacesConfig!$A:$I,9,FALSE)))) -> 尧之都 | V114: 4391 | W114: 4392 | X114: 山中劳作-灵草种子 | Y114: 获取灵草 | Z114: =COUNTIF(EventLinkConfig!O:O,EventConfig!A114) -> 2 | AA114: 3001101 | AB114: 3001102 | AT114: 100 | AU114: 20003 | AV114: 1 | BA114: =IF(AU114="","",CONCATENATE(VLOOKUP(AU114,[2]DropConfig!$A:$F,3,FALSE),"×",AV114)) -> 灵草种子×1 | BB114: =IF(AW114="","",CONCATENATE(VLOOKUP(AW114,[2]DropConfig!$A:$F,3,FALSE),"×",AX114)) ->  | BC114: =IF(AY114="","",CONCATENATE(VLOOKUP(AY114,[2]DropConfig!$A:$F,3,FALSE),"×",AZ114)) ->  | BH114: =IF(BD114="","",VLOOKUP(BD114,条件类型查询!A:B,2,FALSE)) ->  | BI114: =IF(BF114="","",VLOOKUP(BF114,条件类型查询!A:B,2,FALSE)) -> 
A115: 30012 | B115: 3001201;102;103 | C115: 98 | D115: 6 | E115: 1 | F115: 0 | G115: 1 | I115: 20004 | J115: 1 | K115: 50 | L115: 1 | M115: 3 | O115: =IF(M115="","",CONCATENATE(VLOOKUP(M115,[1]PlacesConfig!$A:$C,3,FALSE),IF(N115="",""," - "&VLOOKUP(N115,[1]SmallPlacesConfig!$A:$I,9,FALSE)))) -> 藐姑射山 | V115: 4378 | W115: 4393 | X115: 法力之泉-甘露 | Y115: 获取甘露 | Z115: =COUNTIF(EventLinkConfig!O:O,EventConfig!A115) -> 1 | AA115: 3001201 | AU115: 20004 | AV115: 1 | BA115: =IF(AU115="","",CONCATENATE(VLOOKUP(AU115,[2]DropConfig!$A:$F,3,FALSE),"×",AV115)) -> 甘露×1 | BB115: =IF(AW115="","",CONCATENATE(VLOOKUP(AW115,[2]DropConfig!$A:$F,3,FALSE),"×",AX115)) ->  | BC115: =IF(AY115="","",CONCATENATE(VLOOKUP(AY115,[2]DropConfig!$A:$F,3,FALSE),"×",AZ115)) ->  | BH115: =IF(BD115="","",VLOOKUP(BD115,条件类型查询!A:B,2,FALSE)) ->  | BI115: =IF(BF115="","",VLOOKUP(BF115,条件类型查询!A:B,2,FALSE)) -> 
A116: 30013 | B116: 3001301;102;103 | C116: 98 | D116: 6 | E116: 1 | F116: 0 | G116: 1 | I116: 20005 | J116: 1 | K116: 50 | L116: 1 | M116: 1 | O116: =IF(M116="","",CONCATENATE(VLOOKUP(M116,[1]PlacesConfig!$A:$C,3,FALSE),IF(N116="",""," - "&VLOOKUP(N116,[1]SmallPlacesConfig!$A:$I,9,FALSE)))) -> 北海 | U116: 3 | V116: 4163 | W116: 4164 | X116: 风铃寻趣-搜集风铃 | Y116: 为雀灵儿搜集风铃 | Z116: =COUNTIF(EventLinkConfig!O:O,EventConfig!A116) -> 1 | AA116: 3001301 | AU116: 20005 | AV116: 1 | BA116: =IF(AU116="","",CONCATENATE(VLOOKUP(AU116,[2]DropConfig!$A:$F,3,FALSE),"×",AV116)) -> 风铃×1 | BB116: =IF(AW116="","",CONCATENATE(VLOOKUP(AW116,[2]DropConfig!$A:$F,3,FALSE),"×",AX116)) ->  | BC116: =IF(AY116="","",CONCATENATE(VLOOKUP(AY116,[2]DropConfig!$A:$F,3,FALSE),"×",AZ116)) ->  | BH116: =IF(BD116="","",VLOOKUP(BD116,条件类型查询!A:B,2,FALSE)) ->  | BI116: =IF(BF116="","",VLOOKUP(BF116,条件类型查询!A:B,2,FALSE)) -> 
A117: 30014 | B117: 3001401;102;103 | C117: 98 | D117: 6 | E117: 1 | F117: 0 | G117: 1 | K117: 50 | L117: 1 | M117: 1 | O117: =IF(M117="","",CONCATENATE(VLOOKUP(M117,[1]PlacesConfig!$A:$C,3,FALSE),IF(N117="",""," - "&VLOOKUP(N117,[1]SmallPlacesConfig!$A:$I,9,FALSE)))) -> 北海 | U117: 1 | V117: 4177 | W117: 4178 | X117: 绿林试探-击败风妖 | Y117: 击败风妖 | Z117: =COUNTIF(EventLinkConfig!O:O,EventConfig!A117) -> 1 | AA117: 3001401 | BA117: =IF(AU117="","",CONCATENATE(VLOOKUP(AU117,[2]DropConfig!$A:$F,3,FALSE),"×",AV117)) ->  | BB117: =IF(AW117="","",CONCATENATE(VLOOKUP(AW117,[2]DropConfig!$A:$F,3,FALSE),"×",AX117)) ->  | BC117: =IF(AY117="","",CONCATENATE(VLOOKUP(AY117,[2]DropConfig!$A:$F,3,FALSE),"×",AZ117)) ->  | BH117: =IF(BD117="","",VLOOKUP(BD117,条件类型查询!A:B,2,FALSE)) ->  | BI117: =IF(BF117="","",VLOOKUP(BF117,条件类型查询!A:B,2,FALSE)) -> 
A118: 30015 | B118: 3001501;102;103 | C118: 98 | D118: 6 | E118: 1 | F118: 0 | G118: 1 | I118: 20006 | J118: 1 | K118: 50 | L118: 1 | M118: 1 | O118: =IF(M118="","",CONCATENATE(VLOOKUP(M118,[1]PlacesConfig!$A:$C,3,FALSE),IF(N118="",""," - "&VLOOKUP(N118,[1]SmallPlacesConfig!$A:$I,9,FALSE)))) -> 北海 | U118: 3 | V118: 4193 | W118: 4194 | X118: 风灵碎片-搜集 | Y118: 获取风灵碎片 | Z118: =COUNTIF(EventLinkConfig!O:O,EventConfig!A118) -> 1 | AA118: 3001501 | AU118: 20006 | AV118: 1 | BA118: =IF(AU118="","",CONCATENATE(VLOOKUP(AU118,[2]DropConfig!$A:$F,3,FALSE),"×",AV118)) -> 风灵碎片×1 | BB118: =IF(AW118="","",CONCATENATE(VLOOKUP(AW118,[2]DropConfig!$A:$F,3,FALSE),"×",AX118)) ->  | BC118: =IF(AY118="","",CONCATENATE(VLOOKUP(AY118,[2]DropConfig!$A:$F,3,FALSE),"×",AZ118)) ->  | BH118: =IF(BD118="","",VLOOKUP(BD118,条件类型查询!A:B,2,FALSE)) ->  | BI118: =IF(BF118="","",VLOOKUP(BF118,条件类型查询!A:B,2,FALSE)) -> 
A119: 30016 | B119: 3001601;3001602;3001603;3001604;102;103 | C119: 98 | D119: 6 | E119: 1 | F119: 0 | G119: 1 | K119: 50 | L119: 1 | M119: 1 | O119: =IF(M119="","",CONCATENATE(VLOOKUP(M119,[1]PlacesConfig!$A:$C,3,FALSE),IF(N119="",""," - "&VLOOKUP(N119,[1]SmallPlacesConfig!$A:$I,9,FALSE)))) -> 北海 | U119: 1 | V119: 4195 | W119: 4196 | X119: 风中疑云-云隐秘闻 | Y119: 获取信息 | Z119: =COUNTIF(EventLinkConfig!O:O,EventConfig!A119) -> 4 | AA119: =IF($Z119>=AA$3,$A119*100+AA$3,"") -> 3001601 | AB119: 3001602 | AC119: 3001603 | AD119: 3001604 | AP119: =IF($Z119>=AP$3,$A119*100+AP$3,"") ->  | BA119: =IF(AU119="","",CONCATENATE(VLOOKUP(AU119,[2]DropConfig!$A:$F,3,FALSE),"×",AV119)) ->  | BB119: =IF(AW119="","",CONCATENATE(VLOOKUP(AW119,[2]DropConfig!$A:$F,3,FALSE),"×",AX119)) ->  | BC119: =IF(AY119="","",CONCATENATE(VLOOKUP(AY119,[2]DropConfig!$A:$F,3,FALSE),"×",AZ119)) ->  | BH119: =IF(BD119="","",VLOOKUP(BD119,条件类型查询!A:B,2,FALSE)) ->  | BI119: =IF(BF119="","",VLOOKUP(BF119,条件类型查询!A:B,2,FALSE)) -> 
A120: =A119+1 -> 30017 | B120: 3001701;102;103 | C120: 98 | D120: 6 | E120: 1 | F120: 0 | G120: 1 | I120: 20007 | J120: 1 | K120: 50 | L120: 1 | M120: 1 | O120: =IF(M120="","",CONCATENATE(VLOOKUP(M120,[1]PlacesConfig!$A:$C,3,FALSE),IF(N120="",""," - "&VLOOKUP(N120,[1]SmallPlacesConfig!$A:$I,9,FALSE)))) -> 北海 | P120: =P153 -> 36 | U120: 3 | V120: 4197 | W120: 4198 | X120: 隐秘信物-浮岛灵石 | Y120: 获取浮岛灵石 | Z120: =COUNTIF(EventLinkConfig!O:O,EventConfig!A120) -> 1 | AA120: 3001701 | AU120: 20007 | AV120: 1 | BA120: =IF(AU120="","",CONCATENATE(VLOOKUP(AU120,[2]DropConfig!$A:$F,3,FALSE),"×",AV120)) -> 浮岛灵石×1 | BB120: =IF(AW120="","",CONCATENATE(VLOOKUP(AW120,[2]DropConfig!$A:$F,3,FALSE),"×",AX120)) ->  | BC120: =IF(AY120="","",CONCATENATE(VLOOKUP(AY120,[2]DropConfig!$A:$F,3,FALSE),"×",AZ120)) ->  | BH120: =IF(BD120="","",VLOOKUP(BD120,条件类型查询!A:B,2,FALSE)) ->  | BI120: =IF(BF120="","",VLOOKUP(BF120,条件类型查询!A:B,2,FALSE)) -> 
A121: 30018 | B121: 3001801;102;103 | C121: 98 | D121: 6 | E121: 1 | F121: 0 | G121: 1 | I121: 20008 | J121: 1 | K121: 50 | L121: 1 | M121: 1 | O121: =IF(M121="","",CONCATENATE(VLOOKUP(M121,[1]PlacesConfig!$A:$C,3,FALSE),IF(N121="",""," - "&VLOOKUP(N121,[1]SmallPlacesConfig!$A:$I,9,FALSE)))) -> 北海 | U121: 1 | V121: 4199 | W121: 4200 | X121: 风中密信-长老密信 | Y121: 截获情报 | Z121: =COUNTIF(EventLinkConfig!O:O,EventConfig!A121) -> 1 | AA121: 3001801 | AU121: 20008 | AV121: 1 | BA121: =IF(AU121="","",CONCATENATE(VLOOKUP(AU121,[2]DropConfig!$A:$F,3,FALSE),"×",AV121)) -> 云隐宗长老密信×1 | BB121: =IF(AW121="","",CONCATENATE(VLOOKUP(AW121,[2]DropConfig!$A:$F,3,FALSE),"×",AX121)) ->  | BC121: =IF(AY121="","",CONCATENATE(VLOOKUP(AY121,[2]DropConfig!$A:$F,3,FALSE),"×",AZ121)) ->  | BH121: =IF(BD121="","",VLOOKUP(BD121,条件类型查询!A:B,2,FALSE)) ->  | BI121: =IF(BF121="","",VLOOKUP(BF121,条件类型查询!A:B,2,FALSE)) -> 
A122: 30019 | B122: 3001901;102;103 | C122: 98 | D122: 6 | E122: 1 | F122: 0 | G122: 1 | I122: 20009 | J122: 1 | K122: 50 | L122: 1 | M122: 2 | O122: =IF(M122="","",CONCATENATE(VLOOKUP(M122,[1]PlacesConfig!$A:$C,3,FALSE),IF(N122="",""," - "&VLOOKUP(N122,[1]SmallPlacesConfig!$A:$I,9,FALSE)))) -> 尧之都 | U122: 2 | V122: 4213 | W122: 4214 | X122: 玉佩稳灵-尧都玉佩 | Y122: 击败小妖获取信物 | Z122: =COUNTIF(EventLinkConfig!O:O,EventConfig!A122) -> 1 | AA122: 3001901 | AU122: 20009 | AV122: 1 | BA122: =IF(AU122="","",CONCATENATE(VLOOKUP(AU122,[2]DropConfig!$A:$F,3,FALSE),"×",AV122)) -> 尧都玉佩×1 | BB122: =IF(AW122="","",CONCATENATE(VLOOKUP(AW122,[2]DropConfig!$A:$F,3,FALSE),"×",AX122)) ->  | BC122: =IF(AY122="","",CONCATENATE(VLOOKUP(AY122,[2]DropConfig!$A:$F,3,FALSE),"×",AZ122)) ->  | BH122: =IF(BD122="","",VLOOKUP(BD122,条件类型查询!A:B,2,FALSE)) ->  | BI122: =IF(BF122="","",VLOOKUP(BF122,条件类型查询!A:B,2,FALSE)) -> 
A123: 30020 | B123: 3002001;102;103 | C123: 98 | D123: 6 | E123: 1 | F123: 0 | G123: 1 | I123: 20010 | J123: 1 | K123: 50 | L123: 1 | M123: 2 | O123: =IF(M123="","",CONCATENATE(VLOOKUP(M123,[1]PlacesConfig!$A:$C,3,FALSE),IF(N123="",""," - "&VLOOKUP(N123,[1]SmallPlacesConfig!$A:$I,9,FALSE)))) -> 尧之都 | U123: 3 | V123: 4227 | W123: 4228 | X123: 山野采草-收集灵草 | Y123: 获取炼丹的灵草 | Z123: =COUNTIF(EventLinkConfig!O:O,EventConfig!A123) -> 1 | AA123: 3002001 | AU123: 20010 | AV123: 1 | BA123: =IF(AU123="","",CONCATENATE(VLOOKUP(AU123,[2]DropConfig!$A:$F,3,FALSE),"×",AV123)) -> 山野灵草×1 | BB123: =IF(AW123="","",CONCATENATE(VLOOKUP(AW123,[2]DropConfig!$A:$F,3,FALSE),"×",AX123)) ->  | BC123: =IF(AY123="","",CONCATENATE(VLOOKUP(AY123,[2]DropConfig!$A:$F,3,FALSE),"×",AZ123)) ->  | BH123: =IF(BD123="","",VLOOKUP(BD123,条件类型查询!A:B,2,FALSE)) ->  | BI123: =IF(BF123="","",VLOOKUP(BF123,条件类型查询!A:B,2,FALSE)) -> 
A124: 30021 | B124: 3002101;3002102;3002103;102;103 | C124: 98 | D124: 6 | E124: 1 | F124: 0 | G124: 1 | I124: 20011 | J124: 1 | K124: 50 | L124: 1 | M124: 2 | O124: =IF(M124="","",CONCATENATE(VLOOKUP(M124,[1]PlacesConfig!$A:$C,3,FALSE),IF(N124="",""," - "&VLOOKUP(N124,[1]SmallPlacesConfig!$A:$I,9,FALSE)))) -> 尧之都 | U124: 2 | V124: 4229 | W124: 4230 | X124: 玉佩镇丹-秘境种子 | Y124: 获取秘境种子 | Z124: =COUNTIF(EventLinkConfig!O:O,EventConfig!A124) -> 3 | AA124: 3002101 | AB124: 3002102 | AC124: 3002103 | AU124: 20011 | AV124: 1 | BA124: =IF(AU124="","",CONCATENATE(VLOOKUP(AU124,[2]DropConfig!$A:$F,3,FALSE),"×",AV124)) -> 秘境种子×1 | BB124: =IF(AW124="","",CONCATENATE(VLOOKUP(AW124,[2]DropConfig!$A:$F,3,FALSE),"×",AX124)) ->  | BC124: =IF(AY124="","",CONCATENATE(VLOOKUP(AY124,[2]DropConfig!$A:$F,3,FALSE),"×",AZ124)) ->  | BH124: =IF(BD124="","",VLOOKUP(BD124,条件类型查询!A:B,2,FALSE)) ->  | BI124: =IF(BF124="","",VLOOKUP(BF124,条件类型查询!A:B,2,FALSE)) -> 
A125: 30022 | B125: 3002201;3002202;102;103 | C125: 98 | D125: 6 | E125: 1 | F125: 0 | G125: 1 | I125: 20012 | J125: 1 | K125: 50 | L125: 1 | M125: 3 | O125: =IF(M125="","",CONCATENATE(VLOOKUP(M125,[1]PlacesConfig!$A:$C,3,FALSE),IF(N125="",""," - "&VLOOKUP(N125,[1]SmallPlacesConfig!$A:$I,9,FALSE)))) -> 藐姑射山 | U125: 3 | V125: 4242 | W125: 4243 | X125: 途中解乏-甜蜜果实 | Y125: 采集疯道人想要的果实 | Z125: =COUNTIF(EventLinkConfig!O:O,EventConfig!A125) -> 2 | AA125: 3002201 | AB125: 3002202 | AU125: 20012 | AV125: 1 | BA125: =IF(AU125="","",CONCATENATE(VLOOKUP(AU125,[2]DropConfig!$A:$F,3,FALSE),"×",AV125)) -> 甜蜜果实×1 | BB125: =IF(AW125="","",CONCATENATE(VLOOKUP(AW125,[2]DropConfig!$A:$F,3,FALSE),"×",AX125)) ->  | BC125: =IF(AY125="","",CONCATENATE(VLOOKUP(AY125,[2]DropConfig!$A:$F,3,FALSE),"×",AZ125)) ->  | BH125: =IF(BD125="","",VLOOKUP(BD125,条件类型查询!A:B,2,FALSE)) ->  | BI125: =IF(BF125="","",VLOOKUP(BF125,条件类型查询!A:B,2,FALSE)) -> 
A126: 30023 | B126: 3002301;3002302;102;103 | C126: 98 | D126: 6 | E126: 1 | F126: 0 | G126: 1 | K126: 50 | L126: 5 | M126: 3 | O126: =IF(M126="","",CONCATENATE(VLOOKUP(M126,[1]PlacesConfig!$A:$C,3,FALSE),IF(N126="",""," - "&VLOOKUP(N126,[1]SmallPlacesConfig!$A:$I,9,FALSE)))) -> 藐姑射山 | U126: 3 | V126: 4275 | W126: 4394 | X126: 灵泉异动平息-消灭妖邪 | Y126: 消灭妖邪 | Z126: =COUNTIF(EventLinkConfig!O:O,EventConfig!A126) -> 2 | AA126: 3002301 | AB126: 3002302 | BA126: =IF(AU126="","",CONCATENATE(VLOOKUP(AU126,[2]DropConfig!$A:$F,3,FALSE),"×",AV126)) ->  | BB126: =IF(AW126="","",CONCATENATE(VLOOKUP(AW126,[2]DropConfig!$A:$F,3,FALSE),"×",AX126)) ->  | BC126: =IF(AY126="","",CONCATENATE(VLOOKUP(AY126,[2]DropConfig!$A:$F,3,FALSE),"×",AZ126)) ->  | BH126: =IF(BD126="","",VLOOKUP(BD126,条件类型查询!A:B,2,FALSE)) ->  | BI126: =IF(BF126="","",VLOOKUP(BF126,条件类型查询!A:B,2,FALSE)) -> 
A127: 30024 | B127: 3002401;3002402;102;103 | C127: 98 | D127: 6 | E127: 1 | F127: 0 | G127: 1 | K127: 50 | L127: 5 | M127: 3 | O127: =IF(M127="","",CONCATENATE(VLOOKUP(M127,[1]PlacesConfig!$A:$C,3,FALSE),IF(N127="",""," - "&VLOOKUP(N127,[1]SmallPlacesConfig!$A:$I,9,FALSE)))) -> 藐姑射山 | U127: 3 | V127: 4276 | W127: 4395 | X127: 清理山间的妖物-西边妖物 | Y127: 清剿妖兽 | Z127: =COUNTIF(EventLinkConfig!O:O,EventConfig!A127) -> 2 | AA127: 3002401 | AB127: 3002402 | BA127: =IF(AU127="","",CONCATENATE(VLOOKUP(AU127,[2]DropConfig!$A:$F,3,FALSE),"×",AV127)) ->  | BB127: =IF(AW127="","",CONCATENATE(VLOOKUP(AW127,[2]DropConfig!$A:$F,3,FALSE),"×",AX127)) ->  | BC127: =IF(AY127="","",CONCATENATE(VLOOKUP(AY127,[2]DropConfig!$A:$F,3,FALSE),"×",AZ127)) ->  | BH127: =IF(BD127="","",VLOOKUP(BD127,条件类型查询!A:B,2,FALSE)) ->  | BI127: =IF(BF127="","",VLOOKUP(BF127,条件类型查询!A:B,2,FALSE)) -> 
O128: =IF(M128="","",CONCATENATE(VLOOKUP(M128,[1]PlacesConfig!$A:$C,3,FALSE),IF(N128="",""," - "&VLOOKUP(N128,[1]SmallPlacesConfig!$A:$I,9,FALSE)))) ->  | BA128: =IF(AU128="","",CONCATENATE(VLOOKUP(AU128,[2]DropConfig!$A:$F,3,FALSE),"×",AV128)) ->  | BB128: =IF(AW128="","",CONCATENATE(VLOOKUP(AW128,[2]DropConfig!$A:$F,3,FALSE),"×",AX128)) ->  | BC128: =IF(AY128="","",CONCATENATE(VLOOKUP(AY128,[2]DropConfig!$A:$F,3,FALSE),"×",AZ128)) ->  | BH128: =IF(BD128="","",VLOOKUP(BD128,条件类型查询!A:B,2,FALSE)) ->  | BI128: =IF(BF128="","",VLOOKUP(BF128,条件类型查询!A:B,2,FALSE)) -> 
O129: =IF(M129="","",CONCATENATE(VLOOKUP(M129,[1]PlacesConfig!$A:$C,3,FALSE),IF(N129="",""," - "&VLOOKUP(N129,[1]SmallPlacesConfig!$A:$I,9,FALSE)))) ->  | BC129: =IF(AY129="","",CONCATENATE(VLOOKUP(AY129,[2]DropConfig!$A:$F,3,FALSE),"×",AZ129)) ->  | BH129: =IF(BD129="","",VLOOKUP(BD129,条件类型查询!A:B,2,FALSE)) ->  | BI129: =IF(BF129="","",VLOOKUP(BF129,条件类型查询!A:B,2,FALSE)) -> 
O130: =IF(M130="","",CONCATENATE(VLOOKUP(M130,[1]PlacesConfig!$A:$C,3,FALSE),IF(N130="",""," - "&VLOOKUP(N130,[1]SmallPlacesConfig!$A:$I,9,FALSE)))) ->  | BC130: =IF(AY130="","",CONCATENATE(VLOOKUP(AY130,[2]DropConfig!$A:$F,3,FALSE),"×",AZ130)) ->  | BH130: =IF(BD130="","",VLOOKUP(BD130,条件类型查询!A:B,2,FALSE)) ->  | BI130: =IF(BF130="","",VLOOKUP(BF130,条件类型查询!A:B,2,FALSE)) -> 
O131: =IF(M131="","",CONCATENATE(VLOOKUP(M131,[1]PlacesConfig!$A:$C,3,FALSE),IF(N131="",""," - "&VLOOKUP(N131,[1]SmallPlacesConfig!$A:$I,9,FALSE)))) ->  | BC131: =IF(AY131="","",CONCATENATE(VLOOKUP(AY131,[2]DropConfig!$A:$F,3,FALSE),"×",AZ131)) ->  | BH131: =IF(BD131="","",VLOOKUP(BD131,条件类型查询!A:B,2,FALSE)) ->  | BI131: =IF(BF131="","",VLOOKUP(BF131,条件类型查询!A:B,2,FALSE)) -> 
A132: 5004 | B132: 500401;102;103 | C132: 99 | D132: 7 | E132: 1 | F132: 0 | G132: 1 | H132: 1 | O132: =IF(M132="","",CONCATENATE(VLOOKUP(M132,[1]PlacesConfig!$A:$C,3,FALSE),IF(N132="",""," - "&VLOOKUP(N132,[1]SmallPlacesConfig!$A:$I,9,FALSE)))) ->  | V132: 4072 | W132: 4147 | X132: 【纳福】灵石 | Y132: 大量获取灵石 | Z132: =COUNTIF(EventLinkConfig!O:O,EventConfig!A132) -> 1 | AA132: =IF($Z132>=AA$3,$A132*100+AA$3,"") -> 500401 | AK132: =IF($Z132>=AK$3,$A132*100+AK$3,"") ->  | BA132: =IF(AU132="","",CONCATENATE(VLOOKUP(AU132,[2]DropConfig!$A:$F,3,FALSE),"×",AV132)) ->  | BB132: =IF(AW132="","",CONCATENATE(VLOOKUP(AW132,[2]DropConfig!$A:$F,3,FALSE),"×",AX132)) ->  | BC132: =IF(AY132="","",CONCATENATE(VLOOKUP(AY132,[2]DropConfig!$A:$F,3,FALSE),"×",AZ132)) ->  | BH132: =IF(BD132="","",VLOOKUP(BD132,条件类型查询!A:B,2,FALSE)) ->  | BI132: =IF(BF132="","",VLOOKUP(BF132,条件类型查询!A:B,2,FALSE)) -> 
A133: 5005 | B133: 500501;102;103 | C133: 99 | D133: 7 | E133: 1 | F133: 0 | G133: 1 | H133: 1 | O133: =IF(M133="","",CONCATENATE(VLOOKUP(M133,[1]PlacesConfig!$A:$C,3,FALSE),IF(N133="",""," - "&VLOOKUP(N133,[1]SmallPlacesConfig!$A:$I,9,FALSE)))) ->  | V133: 4073 | W133: 4148 | X133: 【纳福】修为 | Y133: 大量获取修为 | Z133: =COUNTIF(EventLinkConfig!O:O,EventConfig!A133) -> 1 | AA133: 500501 | BA133: =IF(AU133="","",CONCATENATE(VLOOKUP(AU133,[2]DropConfig!$A:$F,3,FALSE),"×",AV133)) ->  | BB133: =IF(AW133="","",CONCATENATE(VLOOKUP(AW133,[2]DropConfig!$A:$F,3,FALSE),"×",AX133)) ->  | BC133: =IF(AY133="","",CONCATENATE(VLOOKUP(AY133,[2]DropConfig!$A:$F,3,FALSE),"×",AZ133)) ->  | BH133: =IF(BD133="","",VLOOKUP(BD133,条件类型查询!A:B,2,FALSE)) ->  | BI133: =IF(BF133="","",VLOOKUP(BF133,条件类型查询!A:B,2,FALSE)) -> 
A134: 5006 | B134: 500601;102;103 | C134: 99 | D134: 7 | E134: 1 | F134: 0 | G134: 1 | H134: 1 | I134: =_xlfn.TEXTJOIN(";",1,AU134,AW134,AY134) ->  | J134: =_xlfn.TEXTJOIN(";",1,AV134,AX134,AZ134) ->  | O134: =IF(M134="","",CONCATENATE(VLOOKUP(M134,[1]PlacesConfig!$A:$C,3,FALSE),IF(N134="",""," - "&VLOOKUP(N134,[1]SmallPlacesConfig!$A:$I,9,FALSE)))) ->  | S134: =_xlfn.TEXTJOIN(";",-1,BD134,BF134) ->  | T134: =_xlfn.TEXTJOIN(";",-1,BE134,BG134) ->  | V134: 4074 | W134: 4149 | X134: 【纳福】灵气 | Y134: 大量获取灵气 | Z134: =COUNTIF(EventLinkConfig!O:O,EventConfig!A134) -> 1 | AA134: 500601 | BA134: =IF(AU134="","",CONCATENATE(VLOOKUP(AU134,[2]DropConfig!$A:$F,3,FALSE),"×",AV134)) ->  | BB134: =IF(AW134="","",CONCATENATE(VLOOKUP(AW134,[2]DropConfig!$A:$F,3,FALSE),"×",AX134)) ->  | BC134: =IF(AY134="","",CONCATENATE(VLOOKUP(AY134,[2]DropConfig!$A:$F,3,FALSE),"×",AZ134)) ->  | BH134: =IF(BD134="","",VLOOKUP(BD134,条件类型查询!A:B,2,FALSE)) ->  | BI134: =IF(BF134="","",VLOOKUP(BF134,条件类型查询!A:B,2,FALSE)) -> 
A135: 5007 | B135: 500701;102;103 | C135: 99 | D135: 7 | E135: 1 | F135: 0 | G135: 1 | H135: 1 | O135: =IF(M135="","",CONCATENATE(VLOOKUP(M135,[1]PlacesConfig!$A:$C,3,FALSE),IF(N135="",""," - "&VLOOKUP(N135,[1]SmallPlacesConfig!$A:$I,9,FALSE)))) ->  | V135: 4075 | W135: 4150 | X135: 【纳福】玄晶 | Y135: 大量获取玄晶 | Z135: =COUNTIF(EventLinkConfig!O:O,EventConfig!A135) -> 1 | AA135: 500701 | BA135: =IF(AU135="","",CONCATENATE(VLOOKUP(AU135,[2]DropConfig!$A:$F,3,FALSE),"×",AV135)) ->  | BB135: =IF(AW135="","",CONCATENATE(VLOOKUP(AW135,[2]DropConfig!$A:$F,3,FALSE),"×",AX135)) ->  | BC135: =IF(AY135="","",CONCATENATE(VLOOKUP(AY135,[2]DropConfig!$A:$F,3,FALSE),"×",AZ135)) ->  | BH135: =IF(BD135="","",VLOOKUP(BD135,条件类型查询!A:B,2,FALSE)) ->  | BI135: =IF(BF135="","",VLOOKUP(BF135,条件类型查询!A:B,2,FALSE)) -> 
O136: =IF(M136="","",CONCATENATE(VLOOKUP(M136,[1]PlacesConfig!$A:$C,3,FALSE),IF(N136="",""," - "&VLOOKUP(N136,[1]SmallPlacesConfig!$A:$I,9,FALSE)))) ->  | BA136: =IF(AU136="","",CONCATENATE(VLOOKUP(AU136,[2]DropConfig!$A:$F,3,FALSE),"×",AV136)) ->  | BB136: =IF(AW136="","",CONCATENATE(VLOOKUP(AW136,[2]DropConfig!$A:$F,3,FALSE),"×",AX136)) ->  | BC136: =IF(AY136="","",CONCATENATE(VLOOKUP(AY136,[2]DropConfig!$A:$F,3,FALSE),"×",AZ136)) ->  | BH136: =IF(BD136="","",VLOOKUP(BD136,条件类型查询!A:B,2,FALSE)) ->  | BI136: =IF(BF136="","",VLOOKUP(BF136,条件类型查询!A:B,2,FALSE)) -> 
A137: 6001 | B137: 600101;600102;600103;600104;600105;600106;600107;600108;600109;600110;600111;600112;600113;600114;600115;600116;600117;102;103 | C137: 6 | D137: 5 | E137: 1 | F137: 1 | G137: 4 | I137: 1501;1601;1003 | J137: 1;1;550 | K137: 30 | L137: 1 | M137: 1 | O137: =IF(M137="","",CONCATENATE(VLOOKUP(M137,[1]PlacesConfig!$A:$C,3,FALSE),IF(N137="",""," - "&VLOOKUP(N137,[1]SmallPlacesConfig!$A:$I,9,FALSE)))) -> 北海 | P137: 6 | Q137: 13 | S137: 10;3 | T137: 10003;1 | V137: 4151 | W137: 4152 | X137: 树间闲聊.灵儿 | Y137: 调皮的麻雀精灵儿缠着你去树顶赛跑，却被护短的姐姐云枝强行制止。 | Z137: =COUNTIF(EventLinkConfig!O:O,EventConfig!A137) -> 17 | AA137: =IF($Z137>=AA$3,$A137*100+AA$3,"") -> 600101 | AB137: 600102 | AC137: 600103 | AD137: 600104 | AE137: 600105 | AF137: 600106 | AG137: 600107 | AH137: 600108 | AI137: 600109 | AJ137: 600110 | AK137: =IF($Z137>=AK$3,$A137*100+AK$3,"") -> 600111 | AL137: 600112 | AM137: 600113 | AN137: 600114 | AO137: 600115 | AP137: 600116 | AQ137: 600117 | AU137: 1501 | AV137: 1 | AW137: 1601 | AX137: 1 | AY137: 1003 | AZ137: =VLOOKUP(P137,[3]ResourceLevelConfig!$A:$E,5,FALSE)*5 -> 550 | BA137: =IF(AU137="","",CONCATENATE(VLOOKUP(AU137,[2]DropConfig!$A:$F,3,FALSE),"×",AV137)) -> 清茶×1 | BB137: =IF(AW137="","",CONCATENATE(VLOOKUP(AW137,[2]DropConfig!$A:$F,3,FALSE),"×",AX137)) -> 妃子笑×1 | BC137: =IF(AY137="","",CONCATENATE(VLOOKUP(AY137,[2]DropConfig!$A:$F,3,FALSE),"×",AZ137)) -> 修为×550 | BD137: 10 | BE137: 10003 | BF137: 3 | BG137: 1 | BH137: =IF(BD137="","",VLOOKUP(BD137,条件类型查询!A:B,2,FALSE)) -> 前置事件 | BI137: =IF(BF137="","",VLOOKUP(BF137,条件类型查询!A:B,2,FALSE)) -> 境界判断
A138: 6002 | B138: 600201;600202;600203;600204;600205;600206;600207;102;103 | C138: 6 | D138: 5 | E138: 1 | F138: 1 | G138: 4 | I138: 1501;1601;1003 | J138: 1;1;550 | K138: 25 | L138: 1 | M138: 1 | O138: =IF(M138="","",CONCATENATE(VLOOKUP(M138,[1]PlacesConfig!$A:$C,3,FALSE),IF(N138="",""," - "&VLOOKUP(N138,[1]SmallPlacesConfig!$A:$I,9,FALSE)))) -> 北海 | P138: 11 | Q138: 13 | S138: 10;3 | T138: 6001;11 | V138: 4153 | W138: 4154 | X138: 风铃寻趣.灵儿 | Y138: 灵儿让你找回风铃，听到铃声就不再害怕北海的寂寞。 | Z138: =COUNTIF(EventLinkConfig!O:O,EventConfig!A138) -> 7 | AA138: 600201 | AB138: 600202 | AC138: 600203 | AD138: 600204 | AE138: 600205 | AF138: 600206 | AG138: 600207 | AU138: 1501 | AV138: 1 | AW138: 1601 | AX138: 1 | AY138: 1003 | AZ138: =VLOOKUP(P138,[3]ResourceLevelConfig!$A:$E,5,FALSE)*5 -> 550 | BA138: =IF(AU138="","",CONCATENATE(VLOOKUP(AU138,[2]DropConfig!$A:$F,3,FALSE),"×",AV138)) -> 清茶×1 | BB138: =IF(AW138="","",CONCATENATE(VLOOKUP(AW138,[2]DropConfig!$A:$F,3,FALSE),"×",AX138)) -> 妃子笑×1 | BC138: =IF(AY138="","",CONCATENATE(VLOOKUP(AY138,[2]DropConfig!$A:$F,3,FALSE),"×",AZ138)) -> 修为×550 | BD138: 10 | BE138: 6001 | BF138: 3 | BG138: =P138 -> 11 | BH138: =IF(BD138="","",VLOOKUP(BD138,条件类型查询!A:B,2,FALSE)) -> 前置事件 | BI138: =IF(BF138="","",VLOOKUP(BF138,条件类型查询!A:B,2,FALSE)) -> 境界判断
A139: 6003 | B139: 600301;600302;600303;600304;600305;600306;600307;600308;600309;600310;600311;600312;600313;600314;600315;102;103 | C139: 6 | D139: 5 | E139: 1 | F139: 1 | G139: 4 | I139: 1501;1601;1003 | J139: 1;1;600 | K139: 20 | L139: 1 | M139: 1 | O139: =IF(M139="","",CONCATENATE(VLOOKUP(M139,[1]PlacesConfig!$A:$C,3,FALSE),IF(N139="",""," - "&VLOOKUP(N139,[1]SmallPlacesConfig!$A:$I,9,FALSE)))) -> 北海 | P139: 16 | Q139: 13 | S139: 10;3 | T139: 6002;16 | V139: 4155 | W139: 4156 | X139: 守护雀巢.灵儿 | Y139: 灵儿拉着你击退风妖，月光下的树林从战场变回她最珍视的乐园。 | Z139: =COUNTIF(EventLinkConfig!O:O,EventConfig!A139) -> 15 | AA139: 600301 | AB139: 600302 | AC139: 600303 | AD139: 600304 | AE139: 600305 | AF139: 600306 | AG139: 600307 | AH139: 600308 | AI139: 600309 | AJ139: 600310 | AK139: 600311 | AL139: 600312 | AM139: 600313 | AN139: 600314 | AO139: 600315 | AU139: 1501 | AV139: 1 | AW139: 1601 | AX139: 1 | AY139: 1003 | AZ139: =VLOOKUP(P139,[3]ResourceLevelConfig!$A:$E,5,FALSE)*5 -> 600 | BA139: =IF(AU139="","",CONCATENATE(VLOOKUP(AU139,[2]DropConfig!$A:$F,3,FALSE),"×",AV139)) -> 清茶×1 | BB139: =IF(AW139="","",CONCATENATE(VLOOKUP(AW139,[2]DropConfig!$A:$F,3,FALSE),"×",AX139)) -> 妃子笑×1 | BC139: =IF(AY139="","",CONCATENATE(VLOOKUP(AY139,[2]DropConfig!$A:$F,3,FALSE),"×",AZ139)) -> 修为×600 | BD139: 10 | BE139: 6002 | BF139: 3 | BG139: 16 | BH139: =IF(BD139="","",VLOOKUP(BD139,条件类型查询!A:B,2,FALSE)) -> 前置事件 | BI139: =IF(BF139="","",VLOOKUP(BF139,条件类型查询!A:B,2,FALSE)) -> 境界判断
A140: 6004 | B140: 600401;600402;600403;600404;600405;600406;600407;600408;600409;102;103 | C140: 6 | D140: 5 | E140: 1 | F140: 1 | G140: 4 | I140: 1502;1601;1003 | J140: 1;2;600 | K140: 20 | L140: 1 | M140: 1 | O140: =IF(M140="","",CONCATENATE(VLOOKUP(M140,[1]PlacesConfig!$A:$C,3,FALSE),IF(N140="",""," - "&VLOOKUP(N140,[1]SmallPlacesConfig!$A:$I,9,FALSE)))) -> 北海 | P140: 21 | Q140: 13 | S140: 10;3 | T140: 6003;21 | V140: 4157 | W140: 4158 | X140: 小飞试胆.灵儿 | Y140: 灵儿在你的陪伴下初尝飞翔远方，从此向往更远的天空。 | Z140: =COUNTIF(EventLinkConfig!O:O,EventConfig!A140) -> 9 | AA140: 600401 | AB140: 600402 | AC140: 600403 | AD140: 600404 | AE140: 600405 | AF140: 600406 | AG140: 600407 | AH140: 600408 | AI140: 600409 | AU140: 1502 | AV140: 1 | AW140: 1601 | AX140: 2 | AY140: 1003 | AZ140: =VLOOKUP(P140,[3]ResourceLevelConfig!$A:$E,5,FALSE)*5 -> 600 | BA140: =IF(AU140="","",CONCATENATE(VLOOKUP(AU140,[2]DropConfig!$A:$F,3,FALSE),"×",AV140)) -> 茉莉花茶×1 | BB140: =IF(AW140="","",CONCATENATE(VLOOKUP(AW140,[2]DropConfig!$A:$F,3,FALSE),"×",AX140)) -> 妃子笑×2 | BC140: =IF(AY140="","",CONCATENATE(VLOOKUP(AY140,[2]DropConfig!$A:$F,3,FALSE),"×",AZ140)) -> 修为×600 | BD140: 10 | BE140: 6003 | BF140: 3 | BG140: 21 | BH140: =IF(BD140="","",VLOOKUP(BD140,条件类型查询!A:B,2,FALSE)) -> 前置事件 | BI140: =IF(BF140="","",VLOOKUP(BF140,条件类型查询!A:B,2,FALSE)) -> 境界判断
A141: 6005 | B141: 600501;600502;600503;600504;600505;600506;102;103 | C141: 6 | D141: 5 | E141: 1 | F141: 1 | G141: 4 | I141: 1502;1601;1003 | J141: 1;2;650 | K141: 20 | L141: 1 | M141: 1 | O141: =IF(M141="","",CONCATENATE(VLOOKUP(M141,[1]PlacesConfig!$A:$C,3,FALSE),IF(N141="",""," - "&VLOOKUP(N141,[1]SmallPlacesConfig!$A:$I,9,FALSE)))) -> 北海 | P141: 26 | Q141: 13 | S141: 10;3 | T141: 6004;26 | V141: 4159 | W141: 4160 | X141: 风涡营救.灵儿 | Y141: 你从风妖口中救下灵儿，破碎的飞翔梦在她紧握的手中愈合。 | Z141: =COUNTIF(EventLinkConfig!O:O,EventConfig!A141) -> 6 | AA141: 600501 | AB141: 600502 | AC141: 600503 | AD141: 600504 | AE141: 600505 | AF141: 600506 | AU141: 1502 | AV141: 1 | AW141: 1601 | AX141: 2 | AY141: 1003 | AZ141: =VLOOKUP(P141,[3]ResourceLevelConfig!$A:$E,5,FALSE)*5 -> 650 | BA141: =IF(AU141="","",CONCATENATE(VLOOKUP(AU141,[2]DropConfig!$A:$F,3,FALSE),"×",AV141)) -> 茉莉花茶×1 | BB141: =IF(AW141="","",CONCATENATE(VLOOKUP(AW141,[2]DropConfig!$A:$F,3,FALSE),"×",AX141)) -> 妃子笑×2 | BC141: =IF(AY141="","",CONCATENATE(VLOOKUP(AY141,[2]DropConfig!$A:$F,3,FALSE),"×",AZ141)) -> 修为×650 | BD141: 10 | BE141: 6004 | BF141: 3 | BG141: 26 | BH141: =IF(BD141="","",VLOOKUP(BD141,条件类型查询!A:B,2,FALSE)) -> 前置事件 | BI141: =IF(BF141="","",VLOOKUP(BF141,条件类型查询!A:B,2,FALSE)) -> 境界判断
A142: 6006 | B142: 600601;600602;600603;600604;600605;600606;600607;600608;600609;102;103 | C142: 6 | D142: 5 | E142: 1 | F142: 1 | G142: 4 | I142: 1502;22008;1003 | J142: 1;1;700 | K142: 20 | L142: 1 | M142: 1 | O142: =IF(M142="","",CONCATENATE(VLOOKUP(M142,[1]PlacesConfig!$A:$C,3,FALSE),IF(N142="",""," - "&VLOOKUP(N142,[1]SmallPlacesConfig!$A:$I,9,FALSE)))) -> 北海 | P142: 31 | Q142: 13 | S142: 10;3 | T142: 6005;31 | V142: 4161 | W142: 4162 | X142: 雀侣同行.灵儿 | Y142: 灵儿褪去怯懦，主动牵起你的手奔向比天池更远的未来 | Z142: =COUNTIF(EventLinkConfig!O:O,EventConfig!A142) -> 9 | AA142: 600601 | AB142: 600602 | AC142: 600603 | AD142: 600604 | AE142: 600605 | AF142: 600606 | AG142: 600607 | AH142: 600608 | AI142: 600609 | AU142: 1502 | AV142: 1 | AW142: 22008 | AX142: 1 | AY142: 1003 | AZ142: =VLOOKUP(P142,[3]ResourceLevelConfig!$A:$E,5,FALSE)*5 -> 700 | BA142: =IF(AU142="","",CONCATENATE(VLOOKUP(AU142,[2]DropConfig!$A:$F,3,FALSE),"×",AV142)) -> 茉莉花茶×1 | BB142: =IF(AW142="","",CONCATENATE(VLOOKUP(AW142,[2]DropConfig!$A:$F,3,FALSE),"×",AX142)) -> 支线感悟点1×1 | BC142: =IF(AY142="","",CONCATENATE(VLOOKUP(AY142,[2]DropConfig!$A:$F,3,FALSE),"×",AZ142)) -> 修为×700 | BD142: 10 | BE142: 6005 | BF142: 3 | BG142: 31 | BH142: =IF(BD142="","",VLOOKUP(BD142,条件类型查询!A:B,2,FALSE)) -> 前置事件 | BI142: =IF(BF142="","",VLOOKUP(BF142,条件类型查询!A:B,2,FALSE)) -> 境界判断
O143: =IF(M143="","",CONCATENATE(VLOOKUP(M143,[1]PlacesConfig!$A:$C,3,FALSE),IF(N143="",""," - "&VLOOKUP(N143,[1]SmallPlacesConfig!$A:$I,9,FALSE)))) ->  | BA143: =IF(AU143="","",CONCATENATE(VLOOKUP(AU143,[2]DropConfig!$A:$F,3,FALSE),"×",AV143)) ->  | BB143: =IF(AW143="","",CONCATENATE(VLOOKUP(AW143,[2]DropConfig!$A:$F,3,FALSE),"×",AX143)) ->  | BC143: =IF(AY143="","",CONCATENATE(VLOOKUP(AY143,[2]DropConfig!$A:$F,3,FALSE),"×",AZ143)) ->  | BH143: =IF(BD143="","",VLOOKUP(BD143,条件类型查询!A:B,2,FALSE)) ->  | BI143: =IF(BF143="","",VLOOKUP(BF143,条件类型查询!A:B,2,FALSE)) -> 
A144: 6011 | B144: 601101;601102;601103;601104;601105;601106;601107;102;103 | C144: 6 | D144: 5 | E144: 1 | F144: 1 | G144: 4 | I144: 1501;1601;1003 | J144: 1;1;600 | K144: 30 | L144: 1 | M144: 1 | O144: =IF(M144="","",CONCATENATE(VLOOKUP(M144,[1]PlacesConfig!$A:$C,3,FALSE),IF(N144="",""," - "&VLOOKUP(N144,[1]SmallPlacesConfig!$A:$I,9,FALSE)))) -> 北海 | P144: 16 | Q144: 14 | S144: 10;3 | T144: 6001;11 | V144: 4165 | W144: 4171 | X144: 绿林试探.云枝 | Y144: 云枝以风妖为考题，冰冷试探你保护灵儿的资格。 | Z144: =COUNTIF(EventLinkConfig!O:O,EventConfig!A144) -> 7 | AA144: =IF($Z144>=AA$3,$A144*100+AA$3,"") -> 601101 | AB144: 601102 | AC144: 601103 | AD144: 601104 | AE144: 601105 | AF144: 601106 | AG144: 601107 | AK144: =IF($Z144>=AK$3,$A144*100+AK$3,"") ->  | AU144: 1501 | AV144: 1 | AW144: 1601 | AX144: 1 | AY144: 1003 | AZ144: =VLOOKUP(P144,[3]ResourceLevelConfig!$A:$E,5,FALSE)*5 -> 600 | BA144: =IF(AU144="","",CONCATENATE(VLOOKUP(AU144,[2]DropConfig!$A:$F,3,FALSE),"×",AV144)) -> 清茶×1 | BB144: =IF(AW144="","",CONCATENATE(VLOOKUP(AW144,[2]DropConfig!$A:$F,3,FALSE),"×",AX144)) -> 妃子笑×1 | BC144: =IF(AY144="","",CONCATENATE(VLOOKUP(AY144,[2]DropConfig!$A:$F,3,FALSE),"×",AZ144)) -> 修为×600 | BD144: 10 | BE144: 6001 | BF144: 3 | BG144: 11 | BH144: =IF(BD144="","",VLOOKUP(BD144,条件类型查询!A:B,2,FALSE)) -> 前置事件 | BI144: =IF(BF144="","",VLOOKUP(BF144,条件类型查询!A:B,2,FALSE)) -> 境界判断
A145: 6012 | B145: 601201;601202;601203;601204;601205;601206;601207;601208;102;103 | C145: 6 | D145: 5 | E145: 1 | F145: 1 | G145: 4 | I145: 1501;1601;1003 | J145: 1;1;600 | K145: 25 | L145: 1 | M145: 1 | O145: =IF(M145="","",CONCATENATE(VLOOKUP(M145,[1]PlacesConfig!$A:$C,3,FALSE),IF(N145="",""," - "&VLOOKUP(N145,[1]SmallPlacesConfig!$A:$I,9,FALSE)))) -> 北海 | P145: 21 | Q145: 14 | S145: 10;3 | T145: 6011;21 | V145: 4166 | W145: 4172 | X145: 风林除妖.云枝 | Y145: 云枝借风妖试探玩家实力，冰冷态度随妖兽溃败而稍缓。 | Z145: =COUNTIF(EventLinkConfig!O:O,EventConfig!A145) -> 8 | AA145: 601201 | AB145: 601202 | AC145: 601203 | AD145: 601204 | AE145: 601205 | AF145: 601206 | AG145: 601207 | AH145: 601208 | AU145: 1501 | AV145: 1 | AW145: 1601 | AX145: 1 | AY145: 1003 | AZ145: =VLOOKUP(P145,[3]ResourceLevelConfig!$A:$E,5,FALSE)*5 -> 600 | BA145: =IF(AU145="","",CONCATENATE(VLOOKUP(AU145,[2]DropConfig!$A:$F,3,FALSE),"×",AV145)) -> 清茶×1 | BB145: =IF(AW145="","",CONCATENATE(VLOOKUP(AW145,[2]DropConfig!$A:$F,3,FALSE),"×",AX145)) -> 妃子笑×1 | BC145: =IF(AY145="","",CONCATENATE(VLOOKUP(AY145,[2]DropConfig!$A:$F,3,FALSE),"×",AZ145)) -> 修为×600 | BD145: 10 | BE145: 6011 | BF145: 3 | BG145: =P145 -> 21 | BH145: =IF(BD145="","",VLOOKUP(BD145,条件类型查询!A:B,2,FALSE)) -> 前置事件 | BI145: =IF(BF145="","",VLOOKUP(BF145,条件类型查询!A:B,2,FALSE)) -> 境界判断
A146: 6013 | B146: 601301;601302;601303;601304;601305;601306;601307;601308;601309;601310;102;103 | C146: 6 | D146: 5 | E146: 1 | F146: 1 | G146: 4 | I146: 1501;1601;1003 | J146: 1;1;650 | K146: 20 | L146: 1 | M146: 1 | O146: =IF(M146="","",CONCATENATE(VLOOKUP(M146,[1]PlacesConfig!$A:$C,3,FALSE),IF(N146="",""," - "&VLOOKUP(N146,[1]SmallPlacesConfig!$A:$I,9,FALSE)))) -> 北海 | P146: 26 | Q146: 14 | S146: 10;3 | T146: 6012;26 | V146: 4167 | W146: 4173 | X146: 琴音守护.云枝 | Y146: 云枝抚琴护草，你剑斩风妖，冷傲守护者首次交付信任。 | Z146: =COUNTIF(EventLinkConfig!O:O,EventConfig!A146) -> 10 | AA146: 601301 | AB146: 601302 | AC146: 601303 | AD146: 601304 | AE146: 601305 | AF146: 601306 | AG146: 601307 | AH146: 601308 | AI146: 601309 | AJ146: 601310 | AU146: 1501 | AV146: 1 | AW146: 1601 | AX146: 1 | AY146: 1003 | AZ146: =VLOOKUP(P146,[3]ResourceLevelConfig!$A:$E,5,FALSE)*5 -> 650 | BA146: =IF(AU146="","",CONCATENATE(VLOOKUP(AU146,[2]DropConfig!$A:$F,3,FALSE),"×",AV146)) -> 清茶×1 | BB146: =IF(AW146="","",CONCATENATE(VLOOKUP(AW146,[2]DropConfig!$A:$F,3,FALSE),"×",AX146)) -> 妃子笑×1 | BC146: =IF(AY146="","",CONCATENATE(VLOOKUP(AY146,[2]DropConfig!$A:$F,3,FALSE),"×",AZ146)) -> 修为×650 | BD146: 10 | BE146: 6012 | BF146: 3 | BG146: 26 | BH146: =IF(BD146="","",VLOOKUP(BD146,条件类型查询!A:B,2,FALSE)) -> 前置事件 | BI146: =IF(BF146="","",VLOOKUP(BF146,条件类型查询!A:B,2,FALSE)) -> 境界判断
A147: 6014 | B147: 601401;601402;601403;601404;601405;601406;601407;601408;601409;601410;102;103 | C147: 6 | D147: 5 | E147: 1 | F147: 1 | G147: 4 | I147: 1502;1601;1003 | J147: 1;2;700 | K147: 20 | L147: 1 | M147: 1 | O147: =IF(M147="","",CONCATENATE(VLOOKUP(M147,[1]PlacesConfig!$A:$C,3,FALSE),IF(N147="",""," - "&VLOOKUP(N147,[1]SmallPlacesConfig!$A:$I,9,FALSE)))) -> 北海 | P147: 31 | Q147: 14 | S147: 10;3 | T147: 6013;31 | V147: 4168 | W147: 4174 | X147: 往事如风.云枝 | Y147: 云枝泪诉父母殒于风暴的往事，袒露束缚灵儿的真相。 | Z147: =COUNTIF(EventLinkConfig!O:O,EventConfig!A147) -> 10 | AA147: 601401 | AB147: 601402 | AC147: 601403 | AD147: 601404 | AE147: 601405 | AF147: 601406 | AG147: 601407 | AH147: 601408 | AI147: 601409 | AJ147: 601410 | AU147: 1502 | AV147: 1 | AW147: 1601 | AX147: 2 | AY147: 1003 | AZ147: =VLOOKUP(P147,[3]ResourceLevelConfig!$A:$E,5,FALSE)*5 -> 700 | BA147: =IF(AU147="","",CONCATENATE(VLOOKUP(AU147,[2]DropConfig!$A:$F,3,FALSE),"×",AV147)) -> 茉莉花茶×1 | BB147: =IF(AW147="","",CONCATENATE(VLOOKUP(AW147,[2]DropConfig!$A:$F,3,FALSE),"×",AX147)) -> 妃子笑×2 | BC147: =IF(AY147="","",CONCATENATE(VLOOKUP(AY147,[2]DropConfig!$A:$F,3,FALSE),"×",AZ147)) -> 修为×700 | BD147: 10 | BE147: 6013 | BF147: 3 | BG147: 31 | BH147: =IF(BD147="","",VLOOKUP(BD147,条件类型查询!A:B,2,FALSE)) -> 前置事件 | BI147: =IF(BF147="","",VLOOKUP(BF147,条件类型查询!A:B,2,FALSE)) -> 境界判断
A148: 6015 | B148: 601501;601502;601503;601504;601505;601506;601507;601508;601509;601510;601511;102;103 | C148: 6 | D148: 5 | E148: 1 | F148: 1 | G148: 4 | I148: 1502;1601;1003 | J148: 1;2;700 | K148: 20 | L148: 1 | M148: 1 | O148: =IF(M148="","",CONCATENATE(VLOOKUP(M148,[1]PlacesConfig!$A:$C,3,FALSE),IF(N148="",""," - "&VLOOKUP(N148,[1]SmallPlacesConfig!$A:$I,9,FALSE)))) -> 北海 | P148: 36 | Q148: 14 | S148: 10;3 | T148: 6014;36 | V148: 4169 | W148: 4175 | X148: 大风危机.云枝 | Y148: 妖兽群袭中，云枝重伤仍护妹，你的剑光成为姐妹新的守护结界。 | Z148: =COUNTIF(EventLinkConfig!O:O,EventConfig!A148) -> 11 | AA148: 601501 | AB148: 601502 | AC148: 601503 | AD148: 601504 | AE148: 601505 | AF148: 601506 | AG148: 601507 | AH148: 601508 | AI148: 601509 | AJ148: 601510 | AK148: 601511 | AU148: 1502 | AV148: 1 | AW148: 1601 | AX148: 2 | AY148: 1003 | AZ148: =VLOOKUP(P148,[3]ResourceLevelConfig!$A:$E,5,FALSE)*5 -> 700 | BA148: =IF(AU148="","",CONCATENATE(VLOOKUP(AU148,[2]DropConfig!$A:$F,3,FALSE),"×",AV148)) -> 茉莉花茶×1 | BB148: =IF(AW148="","",CONCATENATE(VLOOKUP(AW148,[2]DropConfig!$A:$F,3,FALSE),"×",AX148)) -> 妃子笑×2 | BC148: =IF(AY148="","",CONCATENATE(VLOOKUP(AY148,[2]DropConfig!$A:$F,3,FALSE),"×",AZ148)) -> 修为×700 | BD148: 10 | BE148: 6014 | BF148: 3 | BG148: 36 | BH148: =IF(BD148="","",VLOOKUP(BD148,条件类型查询!A:B,2,FALSE)) -> 前置事件 | BI148: =IF(BF148="","",VLOOKUP(BF148,条件类型查询!A:B,2,FALSE)) -> 境界判断
A149: 6016 | B149: 601601;601602;601603;601604;601605;102;103 | C149: 6 | D149: 5 | E149: 1 | F149: 1 | G149: 4 | I149: 1502;22008;1003 | J149: 1;1;750 | K149: 20 | L149: 1 | M149: 1 | O149: =IF(M149="","",CONCATENATE(VLOOKUP(M149,[1]PlacesConfig!$A:$C,3,FALSE),IF(N149="",""," - "&VLOOKUP(N149,[1]SmallPlacesConfig!$A:$I,9,FALSE)))) -> 北海 | P149: 41 | Q149: 14 | S149: 10;3 | T149: 6015;41 | V149: 4170 | W149: 4176 | X149: 枝侣同行.云枝 | Y149: 云枝褪尽冷傲，与你携手飞向象征自由的云海尽头。 | Z149: =COUNTIF(EventLinkConfig!O:O,EventConfig!A149) -> 5 | AA149: 601601 | AB149: 601602 | AC149: 601603 | AD149: 601604 | AE149: 601605 | AU149: 1502 | AV149: 1 | AW149: 22008 | AX149: 1 | AY149: 1003 | AZ149: =VLOOKUP(P149,[3]ResourceLevelConfig!$A:$E,5,FALSE)*5 -> 750 | BA149: =IF(AU149="","",CONCATENATE(VLOOKUP(AU149,[2]DropConfig!$A:$F,3,FALSE),"×",AV149)) -> 茉莉花茶×1 | BB149: =IF(AW149="","",CONCATENATE(VLOOKUP(AW149,[2]DropConfig!$A:$F,3,FALSE),"×",AX149)) -> 支线感悟点1×1 | BC149: =IF(AY149="","",CONCATENATE(VLOOKUP(AY149,[2]DropConfig!$A:$F,3,FALSE),"×",AZ149)) -> 修为×750 | BD149: 10 | BE149: 6015 | BF149: 3 | BG149: 41 | BH149: =IF(BD149="","",VLOOKUP(BD149,条件类型查询!A:B,2,FALSE)) -> 前置事件 | BI149: =IF(BF149="","",VLOOKUP(BF149,条件类型查询!A:B,2,FALSE)) -> 境界判断
O150: =IF(M150="","",CONCATENATE(VLOOKUP(M150,[1]PlacesConfig!$A:$C,3,FALSE),IF(N150="",""," - "&VLOOKUP(N150,[1]SmallPlacesConfig!$A:$I,9,FALSE)))) ->  | BA150: =IF(AU150="","",CONCATENATE(VLOOKUP(AU150,[2]DropConfig!$A:$F,3,FALSE),"×",AV150)) ->  | BB150: =IF(AW150="","",CONCATENATE(VLOOKUP(AW150,[2]DropConfig!$A:$F,3,FALSE),"×",AX150)) ->  | BC150: =IF(AY150="","",CONCATENATE(VLOOKUP(AY150,[2]DropConfig!$A:$F,3,FALSE),"×",AZ150)) ->  | BH150: =IF(BD150="","",VLOOKUP(BD150,条件类型查询!A:B,2,FALSE)) ->  | BI150: =IF(BF150="","",VLOOKUP(BF150,条件类型查询!A:B,2,FALSE)) -> 
A151: 6021 | B151: 602101;602102;602103;602104;102;103 | C151: 6 | D151: 5 | E151: 1 | F151: 1 | G151: 4 | I151: 1501;1601;1003 | J151: 1;1;650 | K151: 30 | L151: 1 | M151: 1 | O151: =IF(M151="","",CONCATENATE(VLOOKUP(M151,[1]PlacesConfig!$A:$C,3,FALSE),IF(N151="",""," - "&VLOOKUP(N151,[1]SmallPlacesConfig!$A:$I,9,FALSE)))) -> 北海 | P151: 26 | Q151: 15 | S151: 3 | T151: 21 | V151: 4179 | W151: 4185 | X151: 浮岛边缘.风瑶 | Y151: 在浮岛邂逅风瑶，接过她收集风灵碎片的委托。 | Z151: =COUNTIF(EventLinkConfig!O:O,EventConfig!A151) -> 4 | AA151: =IF($Z151>=AA$3,$A151*100+AA$3,"") -> 602101 | AB151: 602102 | AC151: 602103 | AD151: 602104 | AK151: =IF($Z151>=AK$3,$A151*100+AK$3,"") ->  | AU151: 1501 | AV151: 1 | AW151: 1601 | AX151: 1 | AY151: 1003 | AZ151: =VLOOKUP(P151,[3]ResourceLevelConfig!$A:$E,5,FALSE)*5 -> 650 | BA151: =IF(AU151="","",CONCATENATE(VLOOKUP(AU151,[2]DropConfig!$A:$F,3,FALSE),"×",AV151)) -> 清茶×1 | BB151: =IF(AW151="","",CONCATENATE(VLOOKUP(AW151,[2]DropConfig!$A:$F,3,FALSE),"×",AX151)) -> 妃子笑×1 | BC151: =IF(AY151="","",CONCATENATE(VLOOKUP(AY151,[2]DropConfig!$A:$F,3,FALSE),"×",AZ151)) -> 修为×650 | BF151: 3 | BG151: 21 | BH151: =IF(BD151="","",VLOOKUP(BD151,条件类型查询!A:B,2,FALSE)) ->  | BI151: =IF(BF151="","",VLOOKUP(BF151,条件类型查询!A:B,2,FALSE)) -> 境界判断
A152: 6022 | B152: 602201;602202;602203;602204;602205;602206;102;103 | C152: 6 | D152: 5 | E152: 1 | F152: 1 | G152: 4 | I152: 1501;1601;1003 | J152: 1;1;700 | K152: 25 | L152: 1 | M152: 1 | O152: =IF(M152="","",CONCATENATE(VLOOKUP(M152,[1]PlacesConfig!$A:$C,3,FALSE),IF(N152="",""," - "&VLOOKUP(N152,[1]SmallPlacesConfig!$A:$I,9,FALSE)))) -> 北海 | P152: 31 | Q152: 15 | S152: 10;3 | T152: 6021;31 | V152: 4180 | W152: 4186 | X152: 风灵碎片.风瑶 | Y152: 你集齐碎片，风瑶透露云隐宗长老勾结外域的魔气线索。 | Z152: =COUNTIF(EventLinkConfig!O:O,EventConfig!A152) -> 6 | AA152: 602201 | AB152: 602202 | AC152: 602203 | AD152: 602204 | AE152: 602205 | AF152: 602206 | AU152: 1501 | AV152: 1 | AW152: 1601 | AX152: 1 | AY152: 1003 | AZ152: =VLOOKUP(P152,[3]ResourceLevelConfig!$A:$E,5,FALSE)*5 -> 700 | BA152: =IF(AU152="","",CONCATENATE(VLOOKUP(AU152,[2]DropConfig!$A:$F,3,FALSE),"×",AV152)) -> 清茶×1 | BB152: =IF(AW152="","",CONCATENATE(VLOOKUP(AW152,[2]DropConfig!$A:$F,3,FALSE),"×",AX152)) -> 妃子笑×1 | BC152: =IF(AY152="","",CONCATENATE(VLOOKUP(AY152,[2]DropConfig!$A:$F,3,FALSE),"×",AZ152)) -> 修为×700 | BD152: 10 | BE152: 6021 | BF152: 3 | BG152: =P152 -> 31 | BH152: =IF(BD152="","",VLOOKUP(BD152,条件类型查询!A:B,2,FALSE)) -> 前置事件 | BI152: =IF(BF152="","",VLOOKUP(BF152,条件类型查询!A:B,2,FALSE)) -> 境界判断
A153: 6023 | B153: 602301;602302;602303;102;103 | C153: 6 | D153: 5 | E153: 1 | F153: 1 | G153: 4 | I153: 1501;1601;1003 | J153: 1;1;700 | K153: 20 | L153: 1 | M153: 1 | O153: =IF(M153="","",CONCATENATE(VLOOKUP(M153,[1]PlacesConfig!$A:$C,3,FALSE),IF(N153="",""," - "&VLOOKUP(N153,[1]SmallPlacesConfig!$A:$I,9,FALSE)))) -> 北海 | P153: 36 | Q153: 15 | S153: 10;3 | T153: 6022;36 | V153: 4181 | W153: 4187 | X153: 风中疑云.风瑶 | Y153: 收集云隐宗异常线索，风瑶确认长老勾结魔修的猜测。 | Z153: =COUNTIF(EventLinkConfig!O:O,EventConfig!A153) -> 3 | AA153: 602301 | AB153: 602302 | AC153: 602303 | AU153: 1501 | AV153: 1 | AW153: 1601 | AX153: 1 | AY153: 1003 | AZ153: =VLOOKUP(P153,[3]ResourceLevelConfig!$A:$E,5,FALSE)*5 -> 700 | BA153: =IF(AU153="","",CONCATENATE(VLOOKUP(AU153,[2]DropConfig!$A:$F,3,FALSE),"×",AV153)) -> 清茶×1 | BB153: =IF(AW153="","",CONCATENATE(VLOOKUP(AW153,[2]DropConfig!$A:$F,3,FALSE),"×",AX153)) -> 妃子笑×1 | BC153: =IF(AY153="","",CONCATENATE(VLOOKUP(AY153,[2]DropConfig!$A:$F,3,FALSE),"×",AZ153)) -> 修为×700 | BD153: 10 | BE153: 6022 | BF153: 3 | BG153: =P153 -> 36 | BH153: =IF(BD153="","",VLOOKUP(BD153,条件类型查询!A:B,2,FALSE)) -> 前置事件 | BI153: =IF(BF153="","",VLOOKUP(BF153,条件类型查询!A:B,2,FALSE)) -> 境界判断
A154: 6024 | B154: 602401;602402;602403;602404;102;103 | C154: 6 | D154: 5 | E154: 1 | F154: 1 | G154: 4 | I154: 1502;1601;1003 | J154: 1;2;750 | K154: 20 | L154: 1 | M154: 1 | O154: =IF(M154="","",CONCATENATE(VLOOKUP(M154,[1]PlacesConfig!$A:$C,3,FALSE),IF(N154="",""," - "&VLOOKUP(N154,[1]SmallPlacesConfig!$A:$I,9,FALSE)))) -> 北海 | P154: 41 | Q154: 15 | S154: 10;3 | T154: 6023;41 | V154: 4182 | W154: 4188 | X154: 隐秘信物.风瑶 | Y154: 妖兽体内灵石惊现禁地阵纹，宗门黑幕终现端倪。 | Z154: =COUNTIF(EventLinkConfig!O:O,EventConfig!A154) -> 4 | AA154: 602401 | AB154: 602402 | AC154: 602403 | AD154: 602404 | AU154: 1502 | AV154: 1 | AW154: 1601 | AX154: 2 | AY154: 1003 | AZ154: =VLOOKUP(P154,[3]ResourceLevelConfig!$A:$E,5,FALSE)*5 -> 750 | BA154: =IF(AU154="","",CONCATENATE(VLOOKUP(AU154,[2]DropConfig!$A:$F,3,FALSE),"×",AV154)) -> 茉莉花茶×1 | BB154: =IF(AW154="","",CONCATENATE(VLOOKUP(AW154,[2]DropConfig!$A:$F,3,FALSE),"×",AX154)) -> 妃子笑×2 | BC154: =IF(AY154="","",CONCATENATE(VLOOKUP(AY154,[2]DropConfig!$A:$F,3,FALSE),"×",AZ154)) -> 修为×750 | BD154: 10 | BE154: 6023 | BF154: 3 | BG154: 41 | BH154: =IF(BD154="","",VLOOKUP(BD154,条件类型查询!A:B,2,FALSE)) -> 前置事件 | BI154: =IF(BF154="","",VLOOKUP(BF154,条件类型查询!A:B,2,FALSE)) -> 境界判断
A155: 6025 | B155: 602501;602502;602503;602504;102;103 | C155: 6 | D155: 5 | E155: 1 | F155: 1 | G155: 4 | I155: 1502;1601;1003 | J155: 1;2;800 | K155: 20 | L155: 1 | M155: 1 | O155: =IF(M155="","",CONCATENATE(VLOOKUP(M155,[1]PlacesConfig!$A:$C,3,FALSE),IF(N155="",""," - "&VLOOKUP(N155,[1]SmallPlacesConfig!$A:$I,9,FALSE)))) -> 北海 | P155: 46 | Q155: 15 | S155: 10;3 | T155: 6024;46 | V155: 4183 | W155: 4189 | X155: 风中密信.风瑶 | Y155: 截获风信证实长老禁术，风瑶急寻疯道人相助。 | Z155: =COUNTIF(EventLinkConfig!O:O,EventConfig!A155) -> 4 | AA155: 602501 | AB155: 602502 | AC155: 602503 | AD155: 602504 | AU155: 1502 | AV155: 1 | AW155: 1601 | AX155: 2 | AY155: 1003 | AZ155: =VLOOKUP(P155,[3]ResourceLevelConfig!$A:$E,5,FALSE)*5 -> 800 | BA155: =IF(AU155="","",CONCATENATE(VLOOKUP(AU155,[2]DropConfig!$A:$F,3,FALSE),"×",AV155)) -> 茉莉花茶×1 | BB155: =IF(AW155="","",CONCATENATE(VLOOKUP(AW155,[2]DropConfig!$A:$F,3,FALSE),"×",AX155)) -> 妃子笑×2 | BC155: =IF(AY155="","",CONCATENATE(VLOOKUP(AY155,[2]DropConfig!$A:$F,3,FALSE),"×",AZ155)) -> 修为×800 | BD155: 10 | BE155: 6024 | BF155: 3 | BG155: 46 | BH155: =IF(BD155="","",VLOOKUP(BD155,条件类型查询!A:B,2,FALSE)) -> 前置事件 | BI155: =IF(BF155="","",VLOOKUP(BF155,条件类型查询!A:B,2,FALSE)) -> 境界判断
A156: 6026 | B156: 602601;602602;602603;602604;602605;602606;602607;102;103 | C156: 6 | D156: 5 | E156: 1 | F156: 1 | G156: 4 | I156: 1502;22008;1003 | J156: 1;1;850 | K156: 20 | L156: 1 | M156: 1 | O156: =IF(M156="","",CONCATENATE(VLOOKUP(M156,[1]PlacesConfig!$A:$C,3,FALSE),IF(N156="",""," - "&VLOOKUP(N156,[1]SmallPlacesConfig!$A:$I,9,FALSE)))) -> 北海 | P156: 51 | Q156: 15 | S156: 10;3 | T156: 6025;51 | V156: 4184 | W156: 4190 | X156: 兄妹密谈.风瑶 | Y156: 疯道人坦露早知宗门黑幕，兄妹对峙揭示正道抉择。 | Z156: =COUNTIF(EventLinkConfig!O:O,EventConfig!A156) -> 7 | AA156: 602601 | AB156: 602602 | AC156: 602603 | AD156: 602604 | AE156: 602605 | AF156: 602606 | AG156: 602607 | AU156: 1502 | AV156: 1 | AW156: 22008 | AX156: 1 | AY156: 1003 | AZ156: =VLOOKUP(P156,[3]ResourceLevelConfig!$A:$E,5,FALSE)*5 -> 850 | BA156: =IF(AU156="","",CONCATENATE(VLOOKUP(AU156,[2]DropConfig!$A:$F,3,FALSE),"×",AV156)) -> 茉莉花茶×1 | BB156: =IF(AW156="","",CONCATENATE(VLOOKUP(AW156,[2]DropConfig!$A:$F,3,FALSE),"×",AX156)) -> 支线感悟点1×1 | BC156: =IF(AY156="","",CONCATENATE(VLOOKUP(AY156,[2]DropConfig!$A:$F,3,FALSE),"×",AZ156)) -> 修为×850 | BD156: 10 | BE156: 6025 | BF156: 3 | BG156: 51 | BH156: =IF(BD156="","",VLOOKUP(BD156,条件类型查询!A:B,2,FALSE)) -> 前置事件 | BI156: =IF(BF156="","",VLOOKUP(BF156,条件类型查询!A:B,2,FALSE)) -> 境界判断
O157: =IF(M157="","",CONCATENATE(VLOOKUP(M157,[1]PlacesConfig!$A:$C,3,FALSE),IF(N157="",""," - "&VLOOKUP(N157,[1]SmallPlacesConfig!$A:$I,9,FALSE)))) ->  | BA157: =IF(AU157="","",CONCATENATE(VLOOKUP(AU157,[2]DropConfig!$A:$F,3,FALSE),"×",AV157)) ->  | BB157: =IF(AW157="","",CONCATENATE(VLOOKUP(AW157,[2]DropConfig!$A:$F,3,FALSE),"×",AX157)) ->  | BC157: =IF(AY157="","",CONCATENATE(VLOOKUP(AY157,[2]DropConfig!$A:$F,3,FALSE),"×",AZ157)) ->  | BH157: =IF(BD157="","",VLOOKUP(BD157,条件类型查询!A:B,2,FALSE)) ->  | BI157: =IF(BF157="","",VLOOKUP(BF157,条件类型查询!A:B,2,FALSE)) -> 
A158: 6031 | B158: 603101;603102;603103;603104;603105;603106;603107;603108;102;103 | C158: 6 | D158: 5 | E158: 1 | F158: 1 | G158: 4 | I158: 1501;1601;1003 | J158: 1;1;2050 | K158: 30 | L158: 1 | M158: 2 | O158: =IF(M158="","",CONCATENATE(VLOOKUP(M158,[1]PlacesConfig!$A:$C,3,FALSE),IF(N158="",""," - "&VLOOKUP(N158,[1]SmallPlacesConfig!$A:$I,9,FALSE)))) -> 尧之都 | P158: 141 | Q158: 16 | S158: 10 | T158: 10030 | V158: 4201 | W158: 4207 | X158: 山溪小屋.婉溪 | Y158: 隐士婉溪邀你共护灵田，茶香中暗藏七道心境线索。 | Z158: =COUNTIF(EventLinkConfig!O:O,EventConfig!A158) -> 8 | AA158: =IF($Z158>=AA$3,$A158*100+AA$3,"") -> 603101 | AB158: 603102 | AC158: 603103 | AD158: 603104 | AE158: 603105 | AF158: 603106 | AG158: 603107 | AH158: 603108 | AK158: =IF($Z158>=AK$3,$A158*100+AK$3,"") ->  | AU158: 1501 | AV158: 1 | AW158: 1601 | AX158: 1 | AY158: 1003 | AZ158: =VLOOKUP(P158,[3]ResourceLevelConfig!$A:$E,5,FALSE)*5 -> 2050 | BA158: =IF(AU158="","",CONCATENATE(VLOOKUP(AU158,[2]DropConfig!$A:$F,3,FALSE),"×",AV158)) -> 清茶×1 | BB158: =IF(AW158="","",CONCATENATE(VLOOKUP(AW158,[2]DropConfig!$A:$F,3,FALSE),"×",AX158)) -> 妃子笑×1 | BC158: =IF(AY158="","",CONCATENATE(VLOOKUP(AY158,[2]DropConfig!$A:$F,3,FALSE),"×",AZ158)) -> 修为×2050 | BD158: 10 | BE158: 10030 | BH158: =IF(BD158="","",VLOOKUP(BD158,条件类型查询!A:B,2,FALSE)) -> 前置事件 | BI158: =IF(BF158="","",VLOOKUP(BF158,条件类型查询!A:B,2,FALSE)) -> 
A159: 6032 | B159: 603201;603202;603203;603204;102;103 | C159: 6 | D159: 5 | E159: 1 | F159: 1 | G159: 4 | I159: 1501;1601;1003 | J159: 1;1;2050 | K159: 25 | L159: 1 | M159: 2 | O159: =IF(M159="","",CONCATENATE(VLOOKUP(M159,[1]PlacesConfig!$A:$C,3,FALSE),IF(N159="",""," - "&VLOOKUP(N159,[1]SmallPlacesConfig!$A:$I,9,FALSE)))) -> 尧之都 | P159: 142 | Q159: 16 | S159: 10;3 | T159: 6031;142 | V159: 4202 | W159: 4208 | X159: 溪边劳作.婉溪 | Y159: 灵田水影映照道心蜕变，婉溪以茶道为引助玩家悟境。 | Z159: =COUNTIF(EventLinkConfig!O:O,EventConfig!A159) -> 4 | AA159: 603201 | AB159: 603202 | AC159: 603203 | AD159: 603204 | AU159: 1501 | AV159: 1 | AW159: 1601 | AX159: 1 | AY159: 1003 | AZ159: =VLOOKUP(P159,[3]ResourceLevelConfig!$A:$E,5,FALSE)*5 -> 2050 | BA159: =IF(AU159="","",CONCATENATE(VLOOKUP(AU159,[2]DropConfig!$A:$F,3,FALSE),"×",AV159)) -> 清茶×1 | BB159: =IF(AW159="","",CONCATENATE(VLOOKUP(AW159,[2]DropConfig!$A:$F,3,FALSE),"×",AX159)) -> 妃子笑×1 | BC159: =IF(AY159="","",CONCATENATE(VLOOKUP(AY159,[2]DropConfig!$A:$F,3,FALSE),"×",AZ159)) -> 修为×2050 | BD159: 10 | BE159: 6031 | BF159: 3 | BG159: =P159 -> 142 | BH159: =IF(BD159="","",VLOOKUP(BD159,条件类型查询!A:B,2,FALSE)) -> 前置事件 | BI159: =IF(BF159="","",VLOOKUP(BF159,条件类型查询!A:B,2,FALSE)) -> 境界判断
A160: 6033 | B160: 603301;603302;603303;603304;603305;102;103 | C160: 6 | D160: 5 | E160: 1 | F160: 1 | G160: 4 | I160: 1501;1601;1003 | J160: 1;1;2050 | K160: 20 | L160: 1 | M160: 2 | O160: =IF(M160="","",CONCATENATE(VLOOKUP(M160,[1]PlacesConfig!$A:$C,3,FALSE),IF(N160="",""," - "&VLOOKUP(N160,[1]SmallPlacesConfig!$A:$I,9,FALSE)))) -> 尧之都 | P160: 143 | Q160: 16 | S160: 10;3 | T160: 6032;143 | V160: 4203 | W160: 4209 | X160: 清茶闲话.婉溪 | Y160: 你讲述外界故事，婉溪茶雾中的眼眸初现波澜。 | Z160: =COUNTIF(EventLinkConfig!O:O,EventConfig!A160) -> 5 | AA160: 603301 | AB160: 603302 | AC160: 603303 | AD160: 603304 | AE160: 603305 | AU160: 1501 | AV160: 1 | AW160: 1601 | AX160: 1 | AY160: 1003 | AZ160: =VLOOKUP(P160,[3]ResourceLevelConfig!$A:$E,5,FALSE)*5 -> 2050 | BA160: =IF(AU160="","",CONCATENATE(VLOOKUP(AU160,[2]DropConfig!$A:$F,3,FALSE),"×",AV160)) -> 清茶×1 | BB160: =IF(AW160="","",CONCATENATE(VLOOKUP(AW160,[2]DropConfig!$A:$F,3,FALSE),"×",AX160)) -> 妃子笑×1 | BC160: =IF(AY160="","",CONCATENATE(VLOOKUP(AY160,[2]DropConfig!$A:$F,3,FALSE),"×",AZ160)) -> 修为×2050 | BD160: 10 | BE160: 6032 | BF160: 3 | BG160: =P160 -> 143 | BH160: =IF(BD160="","",VLOOKUP(BD160,条件类型查询!A:B,2,FALSE)) -> 前置事件 | BI160: =IF(BF160="","",VLOOKUP(BF160,条件类型查询!A:B,2,FALSE)) -> 境界判断
A161: 6034 | B161: 603401;603402;603403;102;103 | C161: 6 | D161: 5 | E161: 1 | F161: 1 | G161: 4 | I161: 1502;1601;1003 | J161: 1;2;2100 | K161: 20 | L161: 1 | M161: 2 | O161: =IF(M161="","",CONCATENATE(VLOOKUP(M161,[1]PlacesConfig!$A:$C,3,FALSE),IF(N161="",""," - "&VLOOKUP(N161,[1]SmallPlacesConfig!$A:$I,9,FALSE)))) -> 尧之都 | P161: 144 | Q161: 16 | S161: 10;3 | T161: 6033;144 | V161: 4204 | W161: 4210 | X161: 玉佩稳灵.婉溪 | Y161: 玩家寻来尧都玉佩稳茶树灵气，婉溪展露隐世家族的秘辛。 | Z161: =COUNTIF(EventLinkConfig!O:O,EventConfig!A161) -> 3 | AA161: 603401 | AB161: 603402 | AC161: 603403 | AU161: 1502 | AV161: 1 | AW161: 1601 | AX161: 2 | AY161: 1003 | AZ161: =VLOOKUP(P161,[3]ResourceLevelConfig!$A:$E,5,FALSE)*5 -> 2100 | BA161: =IF(AU161="","",CONCATENATE(VLOOKUP(AU161,[2]DropConfig!$A:$F,3,FALSE),"×",AV161)) -> 茉莉花茶×1 | BB161: =IF(AW161="","",CONCATENATE(VLOOKUP(AW161,[2]DropConfig!$A:$F,3,FALSE),"×",AX161)) -> 妃子笑×2 | BC161: =IF(AY161="","",CONCATENATE(VLOOKUP(AY161,[2]DropConfig!$A:$F,3,FALSE),"×",AZ161)) -> 修为×2100 | BD161: 10 | BE161: 6033 | BF161: 3 | BG161: 144 | BH161: =IF(BD161="","",VLOOKUP(BD161,条件类型查询!A:B,2,FALSE)) -> 前置事件 | BI161: =IF(BF161="","",VLOOKUP(BF161,条件类型查询!A:B,2,FALSE)) -> 境界判断
A162: 6035 | B162: 603501;603502;603503;102;103 | C162: 6 | D162: 5 | E162: 1 | F162: 1 | G162: 4 | I162: 1502;1601;1003 | J162: 1;2;2100 | K162: 20 | L162: 1 | M162: 2 | O162: =IF(M162="","",CONCATENATE(VLOOKUP(M162,[1]PlacesConfig!$A:$C,3,FALSE),IF(N162="",""," - "&VLOOKUP(N162,[1]SmallPlacesConfig!$A:$I,9,FALSE)))) -> 尧之都 | P162: 145 | Q162: 16 | S162: 10;3 | T162: 6034;145 | V162: 4205 | W162: 4211 | X162: 溪水异动.婉溪 | Y162: 玩家清除溪水灵影，发现暗藏外来修士的窥探痕迹。 | Z162: =COUNTIF(EventLinkConfig!O:O,EventConfig!A162) -> 3 | AA162: 603501 | AB162: 603502 | AC162: 603503 | AU162: 1502 | AV162: 1 | AW162: 1601 | AX162: 2 | AY162: 1003 | AZ162: =VLOOKUP(P162,[3]ResourceLevelConfig!$A:$E,5,FALSE)*5 -> 2100 | BA162: =IF(AU162="","",CONCATENATE(VLOOKUP(AU162,[2]DropConfig!$A:$F,3,FALSE),"×",AV162)) -> 茉莉花茶×1 | BB162: =IF(AW162="","",CONCATENATE(VLOOKUP(AW162,[2]DropConfig!$A:$F,3,FALSE),"×",AX162)) -> 妃子笑×2 | BC162: =IF(AY162="","",CONCATENATE(VLOOKUP(AY162,[2]DropConfig!$A:$F,3,FALSE),"×",AZ162)) -> 修为×2100 | BD162: 10 | BE162: 6034 | BF162: 3 | BG162: 145 | BH162: =IF(BD162="","",VLOOKUP(BD162,条件类型查询!A:B,2,FALSE)) -> 前置事件 | BI162: =IF(BF162="","",VLOOKUP(BF162,条件类型查询!A:B,2,FALSE)) -> 境界判断
A163: 6036 | B163: 603601;603602;603603;603604;603605;603606;102;103 | C163: 6 | D163: 5 | E163: 1 | F163: 1 | G163: 4 | I163: 1502;22008;1003 | J163: 1;1;2150 | K163: 20 | L163: 1 | M163: 2 | O163: =IF(M163="","",CONCATENATE(VLOOKUP(M163,[1]PlacesConfig!$A:$C,3,FALSE),IF(N163="",""," - "&VLOOKUP(N163,[1]SmallPlacesConfig!$A:$I,9,FALSE)))) -> 尧之都 | P163: 146 | Q163: 16 | S163: 10;3 | T163: 6035;146 | V163: 4206 | W163: 4212 | X163: 兄妹心语.婉溪 | Y163: 许由婉溪对峙家族秘密，旧敌阴影随溪流暗涌。 | Z163: =COUNTIF(EventLinkConfig!O:O,EventConfig!A163) -> 6 | AA163: 603601 | AB163: 603602 | AC163: 603603 | AD163: 603604 | AE163: 603605 | AF163: 603606 | AU163: 1502 | AV163: 1 | AW163: 22008 | AX163: 1 | AY163: 1003 | AZ163: =VLOOKUP(P163,[3]ResourceLevelConfig!$A:$E,5,FALSE)*5 -> 2150 | BA163: =IF(AU163="","",CONCATENATE(VLOOKUP(AU163,[2]DropConfig!$A:$F,3,FALSE),"×",AV163)) -> 茉莉花茶×1 | BB163: =IF(AW163="","",CONCATENATE(VLOOKUP(AW163,[2]DropConfig!$A:$F,3,FALSE),"×",AX163)) -> 支线感悟点1×1 | BC163: =IF(AY163="","",CONCATENATE(VLOOKUP(AY163,[2]DropConfig!$A:$F,3,FALSE),"×",AZ163)) -> 修为×2150 | BD163: 10 | BE163: 6035 | BF163: 3 | BG163: 146 | BH163: =IF(BD163="","",VLOOKUP(BD163,条件类型查询!A:B,2,FALSE)) -> 前置事件 | BI163: =IF(BF163="","",VLOOKUP(BF163,条件类型查询!A:B,2,FALSE)) -> 境界判断
O164: =IF(M164="","",CONCATENATE(VLOOKUP(M164,[1]PlacesConfig!$A:$C,3,FALSE),IF(N164="",""," - "&VLOOKUP(N164,[1]SmallPlacesConfig!$A:$I,9,FALSE)))) ->  | BA164: =IF(AU164="","",CONCATENATE(VLOOKUP(AU164,[2]DropConfig!$A:$F,3,FALSE),"×",AV164)) ->  | BB164: =IF(AW164="","",CONCATENATE(VLOOKUP(AW164,[2]DropConfig!$A:$F,3,FALSE),"×",AX164)) ->  | BC164: =IF(AY164="","",CONCATENATE(VLOOKUP(AY164,[2]DropConfig!$A:$F,3,FALSE),"×",AZ164)) ->  | BH164: =IF(BD164="","",VLOOKUP(BD164,条件类型查询!A:B,2,FALSE)) ->  | BI164: =IF(BF164="","",VLOOKUP(BF164,条件类型查询!A:B,2,FALSE)) -> 
A165: 6041 | B165: 604101;604102;604103;604104;102;103 | C165: 6 | D165: 5 | E165: 1 | F165: 1 | G165: 4 | I165: 1501;1601;1003 | J165: 1;1;850 | K165: 30 | L165: 1 | M165: 2 | O165: =IF(M165="","",CONCATENATE(VLOOKUP(M165,[1]PlacesConfig!$A:$C,3,FALSE),IF(N165="",""," - "&VLOOKUP(N165,[1]SmallPlacesConfig!$A:$I,9,FALSE)))) -> 尧之都 | P165: 56 | Q165: 17 | S165: 3 | T165: 51 | V165: 4215 | W165: 4221 | X165: 山林重逢.许由 | Y165: 拜访许由，受托采药延续修行机缘。 | Z165: =COUNTIF(EventLinkConfig!O:O,EventConfig!A165) -> 4 | AA165: =IF($Z165>=AA$3,$A165*100+AA$3,"") -> 604101 | AB165: 604102 | AC165: 604103 | AD165: 604104 | AK165: =IF($Z165>=AK$3,$A165*100+AK$3,"") ->  | AU165: 1501 | AV165: 1 | AW165: 1601 | AX165: 1 | AY165: 1003 | AZ165: =VLOOKUP(P165,[3]ResourceLevelConfig!$A:$E,5,FALSE)*5 -> 850 | BA165: =IF(AU165="","",CONCATENATE(VLOOKUP(AU165,[2]DropConfig!$A:$F,3,FALSE),"×",AV165)) -> 清茶×1 | BB165: =IF(AW165="","",CONCATENATE(VLOOKUP(AW165,[2]DropConfig!$A:$F,3,FALSE),"×",AX165)) -> 妃子笑×1 | BC165: =IF(AY165="","",CONCATENATE(VLOOKUP(AY165,[2]DropConfig!$A:$F,3,FALSE),"×",AZ165)) -> 修为×850 | BD165: 3 | BE165: 51 | BH165: =IF(BD165="","",VLOOKUP(BD165,条件类型查询!A:B,2,FALSE)) -> 境界判断 | BI165: =IF(BF165="","",VLOOKUP(BF165,条件类型查询!A:B,2,FALSE)) -> 
A166: 6042 | B166: 604201;604202;604203;604204;102;103 | C166: 6 | D166: 5 | E166: 1 | F166: 1 | G166: 4 | I166: 1501;1601;1003 | J166: 1;1;950 | K166: 25 | L166: 1 | M166: 2 | O166: =IF(M166="","",CONCATENATE(VLOOKUP(M166,[1]PlacesConfig!$A:$C,3,FALSE),IF(N166="",""," - "&VLOOKUP(N166,[1]SmallPlacesConfig!$A:$I,9,FALSE)))) -> 尧之都 | P166: 66 | Q166: 17 | S166: 10;3 | T166: 6041;66 | V166: 4216 | W166: 4222 | X166: 山野采草.许由 | Y166: 许由借采药时辰喻修道机缘，点化玩家顺时而行。 | Z166: =COUNTIF(EventLinkConfig!O:O,EventConfig!A166) -> 4 | AA166: 604201 | AB166: 604202 | AC166: 604203 | AD166: 604204 | AU166: 1501 | AV166: 1 | AW166: 1601 | AX166: 1 | AY166: 1003 | AZ166: =VLOOKUP(P166,[3]ResourceLevelConfig!$A:$E,5,FALSE)*5 -> 950 | BA166: =IF(AU166="","",CONCATENATE(VLOOKUP(AU166,[2]DropConfig!$A:$F,3,FALSE),"×",AV166)) -> 清茶×1 | BB166: =IF(AW166="","",CONCATENATE(VLOOKUP(AW166,[2]DropConfig!$A:$F,3,FALSE),"×",AX166)) -> 妃子笑×1 | BC166: =IF(AY166="","",CONCATENATE(VLOOKUP(AY166,[2]DropConfig!$A:$F,3,FALSE),"×",AZ166)) -> 修为×950 | BD166: 10 | BE166: 6041 | BF166: 3 | BG166: =P166 -> 66 | BH166: =IF(BD166="","",VLOOKUP(BD166,条件类型查询!A:B,2,FALSE)) -> 前置事件 | BI166: =IF(BF166="","",VLOOKUP(BF166,条件类型查询!A:B,2,FALSE)) -> 境界判断
A167: 6043 | B167: 604301;604302;604303;102;103 | C167: 6 | D167: 5 | E167: 1 | F167: 1 | G167: 4 | I167: 1501;1601;1003 | J167: 1;1;1050 | K167: 20 | L167: 1 | M167: 2 | O167: =IF(M167="","",CONCATENATE(VLOOKUP(M167,[1]PlacesConfig!$A:$C,3,FALSE),IF(N167="",""," - "&VLOOKUP(N167,[1]SmallPlacesConfig!$A:$I,9,FALSE)))) -> 尧之都 | P167: 76 | Q167: 17 | S167: 10;3 | T167: 6042;76 | V167: 4217 | W167: 4223 | X167: 丹炉论道.许由 | Y167: 许由控火时流露道心困惑，避世与执着之辩随丹烟升起。 | Z167: =COUNTIF(EventLinkConfig!O:O,EventConfig!A167) -> 3 | AA167: 604301 | AB167: 604302 | AC167: 604303 | AU167: 1501 | AV167: 1 | AW167: 1601 | AX167: 1 | AY167: 1003 | AZ167: =VLOOKUP(P167,[3]ResourceLevelConfig!$A:$E,5,FALSE)*5 -> 1050 | BA167: =IF(AU167="","",CONCATENATE(VLOOKUP(AU167,[2]DropConfig!$A:$F,3,FALSE),"×",AV167)) -> 清茶×1 | BB167: =IF(AW167="","",CONCATENATE(VLOOKUP(AW167,[2]DropConfig!$A:$F,3,FALSE),"×",AX167)) -> 妃子笑×1 | BC167: =IF(AY167="","",CONCATENATE(VLOOKUP(AY167,[2]DropConfig!$A:$F,3,FALSE),"×",AZ167)) -> 修为×1050 | BD167: 10 | BE167: 6042 | BF167: 3 | BG167: 76 | BH167: =IF(BD167="","",VLOOKUP(BD167,条件类型查询!A:B,2,FALSE)) -> 前置事件 | BI167: =IF(BF167="","",VLOOKUP(BF167,条件类型查询!A:B,2,FALSE)) -> 境界判断
A168: 6044 | B168: 604401;604402;604403;604404;102;103 | C168: 6 | D168: 5 | E168: 1 | F168: 1 | G168: 4 | I168: 1502;1601;1003 | J168: 1;2;1150 | K168: 20 | L168: 1 | M168: 2 | O168: =IF(M168="","",CONCATENATE(VLOOKUP(M168,[1]PlacesConfig!$A:$C,3,FALSE),IF(N168="",""," - "&VLOOKUP(N168,[1]SmallPlacesConfig!$A:$I,9,FALSE)))) -> 尧之都 | P168: 86 | Q168: 17 | S168: 10;3 | T168: 6043;86 | V168: 4218 | W168: 4224 | X168: 玉佩镇丹.许由 | Y168: 许由借秘境种子引发大小之辩，你应答展露修道悟性。 | Z168: =COUNTIF(EventLinkConfig!O:O,EventConfig!A168) -> 4 | AA168: 604401 | AB168: 604402 | AC168: 604403 | AD168: 604404 | AU168: 1502 | AV168: 1 | AW168: 1601 | AX168: 2 | AY168: 1003 | AZ168: =VLOOKUP(P168,[3]ResourceLevelConfig!$A:$E,5,FALSE)*5 -> 1150 | BA168: =IF(AU168="","",CONCATENATE(VLOOKUP(AU168,[2]DropConfig!$A:$F,3,FALSE),"×",AV168)) -> 茉莉花茶×1 | BB168: =IF(AW168="","",CONCATENATE(VLOOKUP(AW168,[2]DropConfig!$A:$F,3,FALSE),"×",AX168)) -> 妃子笑×2 | BC168: =IF(AY168="","",CONCATENATE(VLOOKUP(AY168,[2]DropConfig!$A:$F,3,FALSE),"×",AZ168)) -> 修为×1150 | BD168: 10 | BE168: 6043 | BF168: 3 | BG168: =P168 -> 86 | BH168: =IF(BD168="","",VLOOKUP(BD168,条件类型查询!A:B,2,FALSE)) -> 前置事件 | BI168: =IF(BF168="","",VLOOKUP(BF168,条件类型查询!A:B,2,FALSE)) -> 境界判断
A169: 6045 | B169: =IF(A169="","",_xlfn.TEXTJOIN(";",1,AA169:AT169,102,103)) -> 604501;604502;604503;604504;102;103 | C169: 6 | D169: 5 | E169: 1 | F169: 1 | G169: 4 | I169: 1502;1601;1003 | J169: 1;2;1300 | K169: 20 | L169: 1 | M169: 2 | O169: =IF(M169="","",CONCATENATE(VLOOKUP(M169,[1]PlacesConfig!$A:$C,3,FALSE),IF(N169="",""," - "&VLOOKUP(N169,[1]SmallPlacesConfig!$A:$I,9,FALSE)))) -> 尧之都 | P169: 96 | Q169: 17 | S169: 10;3 | T169: 6044;96 | V169: 4219 | W169: 4225 | X169: 茶丹相融.许由 | Y169: 许由借茶论道，以三则典故诘问修道本质。 | Z169: =COUNTIF(EventLinkConfig!O:O,EventConfig!A169) -> 4 | AA169: 604501 | AB169: 604502 | AC169: 604503 | AD169: 604504 | AU169: 1502 | AV169: 1 | AW169: 1601 | AX169: 2 | AY169: 1003 | AZ169: =VLOOKUP(P169,[3]ResourceLevelConfig!$A:$E,5,FALSE)*5 -> 1300 | BA169: =IF(AU169="","",CONCATENATE(VLOOKUP(AU169,[2]DropConfig!$A:$F,3,FALSE),"×",AV169)) -> 茉莉花茶×1 | BB169: =IF(AW169="","",CONCATENATE(VLOOKUP(AW169,[2]DropConfig!$A:$F,3,FALSE),"×",AX169)) -> 妃子笑×2 | BC169: =IF(AY169="","",CONCATENATE(VLOOKUP(AY169,[2]DropConfig!$A:$F,3,FALSE),"×",AZ169)) -> 修为×1300 | BD169: 10 | BE169: 6044 | BF169: 3 | BG169: 96 | BH169: =IF(BD169="","",VLOOKUP(BD169,条件类型查询!A:B,2,FALSE)) -> 前置事件 | BI169: =IF(BF169="","",VLOOKUP(BF169,条件类型查询!A:B,2,FALSE)) -> 境界判断
A170: 6046 | B170: 604601;604602;102;103 | C170: 6 | D170: 5 | E170: 1 | F170: 1 | G170: 4 | I170: 1502;22008;1003 | J170: 1;1;1450 | K170: 20 | L170: 1 | M170: 2 | O170: =IF(M170="","",CONCATENATE(VLOOKUP(M170,[1]PlacesConfig!$A:$C,3,FALSE),IF(N170="",""," - "&VLOOKUP(N170,[1]SmallPlacesConfig!$A:$I,9,FALSE)))) -> 尧之都 | P170: 106 | Q170: 17 | S170: 10;3 | T170: 6045;106 | V170: 4220 | W170: 4226 | X170: 隐士心语.许由 | Y170: 许以茶烟送别，将修行感悟系于你未来旅途。 | Z170: =COUNTIF(EventLinkConfig!O:O,EventConfig!A170) -> 2 | AA170: 604601 | AB170: 604602 | AU170: 1502 | AV170: 1 | AW170: 22008 | AX170: 1 | AY170: 1003 | AZ170: =VLOOKUP(P170,[3]ResourceLevelConfig!$A:$E,5,FALSE)*5 -> 1450 | BA170: =IF(AU170="","",CONCATENATE(VLOOKUP(AU170,[2]DropConfig!$A:$F,3,FALSE),"×",AV170)) -> 茉莉花茶×1 | BB170: =IF(AW170="","",CONCATENATE(VLOOKUP(AW170,[2]DropConfig!$A:$F,3,FALSE),"×",AX170)) -> 支线感悟点1×1 | BC170: =IF(AY170="","",CONCATENATE(VLOOKUP(AY170,[2]DropConfig!$A:$F,3,FALSE),"×",AZ170)) -> 修为×1450 | BD170: 10 | BE170: 6045 | BF170: 3 | BG170: 106 | BH170: =IF(BD170="","",VLOOKUP(BD170,条件类型查询!A:B,2,FALSE)) -> 前置事件 | BI170: =IF(BF170="","",VLOOKUP(BF170,条件类型查询!A:B,2,FALSE)) -> 境界判断
O171: =IF(M171="","",CONCATENATE(VLOOKUP(M171,[1]PlacesConfig!$A:$C,3,FALSE),IF(N171="",""," - "&VLOOKUP(N171,[1]SmallPlacesConfig!$A:$I,9,FALSE)))) ->  | BA171: =IF(AU171="","",CONCATENATE(VLOOKUP(AU171,[2]DropConfig!$A:$F,3,FALSE),"×",AV171)) ->  | BB171: =IF(AW171="","",CONCATENATE(VLOOKUP(AW171,[2]DropConfig!$A:$F,3,FALSE),"×",AX171)) ->  | BC171: =IF(AY171="","",CONCATENATE(VLOOKUP(AY171,[2]DropConfig!$A:$F,3,FALSE),"×",AZ171)) ->  | BH171: =IF(BD171="","",VLOOKUP(BD171,条件类型查询!A:B,2,FALSE)) ->  | BI171: =IF(BF171="","",VLOOKUP(BF171,条件类型查询!A:B,2,FALSE)) -> 
A172: 6051 | B172: 605101;605102;605103;605104;102;103 | C172: 6 | D172: 5 | E172: 1 | F172: 1 | G172: 4 | I172: 1501;1601;1003 | J172: 1;1;1150 | K172: 30 | L172: 1 | M172: 3 | O172: =IF(M172="","",CONCATENATE(VLOOKUP(M172,[1]PlacesConfig!$A:$C,3,FALSE),IF(N172="",""," - "&VLOOKUP(N172,[1]SmallPlacesConfig!$A:$I,9,FALSE)))) -> 藐姑射山 | P172: 86 | Q172: 18 | S172: 3 | T172: 81 | V172: 4231 | W172: 4237 | X172: 随风偶遇.疯道人 | Y172: 疯道人笑揽清风，讨甜果润喉 | Z172: =COUNTIF(EventLinkConfig!O:O,EventConfig!A172) -> 4 | AA172: =IF($Z172>=AA$3,$A172*100+AA$3,"") -> 605101 | AB172: 605102 | AC172: 605103 | AD172: 605104 | AK172: =IF($Z172>=AK$3,$A172*100+AK$3,"") ->  | AU172: 1501 | AV172: 1 | AW172: 1601 | AX172: 1 | AY172: 1003 | AZ172: =VLOOKUP(P172,[3]ResourceLevelConfig!$A:$E,5,FALSE)*5 -> 1150 | BA172: =IF(AU172="","",CONCATENATE(VLOOKUP(AU172,[2]DropConfig!$A:$F,3,FALSE),"×",AV172)) -> 清茶×1 | BB172: =IF(AW172="","",CONCATENATE(VLOOKUP(AW172,[2]DropConfig!$A:$F,3,FALSE),"×",AX172)) -> 妃子笑×1 | BC172: =IF(AY172="","",CONCATENATE(VLOOKUP(AY172,[2]DropConfig!$A:$F,3,FALSE),"×",AZ172)) -> 修为×1150 | BD172: 3 | BE172: 81 | BH172: =IF(BD172="","",VLOOKUP(BD172,条件类型查询!A:B,2,FALSE)) -> 境界判断 | BI172: =IF(BF172="","",VLOOKUP(BF172,条件类型查询!A:B,2,FALSE)) -> 
A173: 6052 | B173: 605201;605202;605203;605204;102;103 | C173: 6 | D173: 5 | E173: 1 | F173: 1 | G173: 4 | I173: 1501;1601;1003 | J173: 1;1;1300 | K173: 25 | L173: 1 | M173: 3 | O173: =IF(M173="","",CONCATENATE(VLOOKUP(M173,[1]PlacesConfig!$A:$C,3,FALSE),IF(N173="",""," - "&VLOOKUP(N173,[1]SmallPlacesConfig!$A:$I,9,FALSE)))) -> 藐姑射山 | P173: 96 | Q173: 18 | S173: 10;3 | T173: 6051;96 | V173: 4232 | W173: 4238 | X173: 途中解乏.疯道人 | Y173: 为疯仙寻得灵果，巧避守护兽归来 | Z173: =COUNTIF(EventLinkConfig!O:O,EventConfig!A173) -> 4 | AA173: 605201 | AB173: 605202 | AC173: 605203 | AD173: 605204 | AU173: 1501 | AV173: 1 | AW173: 1601 | AX173: 1 | AY173: 1003 | AZ173: =VLOOKUP(P173,[3]ResourceLevelConfig!$A:$E,5,FALSE)*5 -> 1300 | BA173: =IF(AU173="","",CONCATENATE(VLOOKUP(AU173,[2]DropConfig!$A:$F,3,FALSE),"×",AV173)) -> 清茶×1 | BB173: =IF(AW173="","",CONCATENATE(VLOOKUP(AW173,[2]DropConfig!$A:$F,3,FALSE),"×",AX173)) -> 妃子笑×1 | BC173: =IF(AY173="","",CONCATENATE(VLOOKUP(AY173,[2]DropConfig!$A:$F,3,FALSE),"×",AZ173)) -> 修为×1300 | BD173: 10 | BE173: 6051 | BF173: 3 | BG173: =P173 -> 96 | BH173: =IF(BD173="","",VLOOKUP(BD173,条件类型查询!A:B,2,FALSE)) -> 前置事件 | BI173: =IF(BF173="","",VLOOKUP(BF173,条件类型查询!A:B,2,FALSE)) -> 境界判断
A174: 6053 | B174: 605301;605302;605303;605304;102;103 | C174: 6 | D174: 5 | E174: 1 | F174: 1 | G174: 4 | I174: 1502;1601;1003 | J174: 1;1;1450 | K174: 20 | L174: 1 | M174: 3 | O174: =IF(M174="","",CONCATENATE(VLOOKUP(M174,[1]PlacesConfig!$A:$C,3,FALSE),IF(N174="",""," - "&VLOOKUP(N174,[1]SmallPlacesConfig!$A:$I,9,FALSE)))) -> 藐姑射山 | P174: 106 | Q174: 18 | S174: 10;3 | T174: 6052;106 | V174: 4233 | W174: 4239 | X174: 游乐论道.疯道人 | Y174: 疯道人需灵果驱妖，你冒险采集相助 | Z174: =COUNTIF(EventLinkConfig!O:O,EventConfig!A174) -> 4 | AA174: 605301 | AB174: 605302 | AC174: 605303 | AD174: 605304 | AU174: 1502 | AV174: 1 | AW174: 1601 | AX174: 1 | AY174: 1003 | AZ174: =VLOOKUP(P174,[3]ResourceLevelConfig!$A:$E,5,FALSE)*5 -> 1450 | BA174: =IF(AU174="","",CONCATENATE(VLOOKUP(AU174,[2]DropConfig!$A:$F,3,FALSE),"×",AV174)) -> 茉莉花茶×1 | BB174: =IF(AW174="","",CONCATENATE(VLOOKUP(AW174,[2]DropConfig!$A:$F,3,FALSE),"×",AX174)) -> 妃子笑×1 | BC174: =IF(AY174="","",CONCATENATE(VLOOKUP(AY174,[2]DropConfig!$A:$F,3,FALSE),"×",AZ174)) -> 修为×1450 | BD174: 10 | BE174: 6052 | BF174: 3 | BG174: 106 | BH174: =IF(BD174="","",VLOOKUP(BD174,条件类型查询!A:B,2,FALSE)) -> 前置事件 | BI174: =IF(BF174="","",VLOOKUP(BF174,条件类型查询!A:B,2,FALSE)) -> 境界判断
A175: 6054 | B175: 605401;605402;605403;605404;102;103 | C175: 6 | D175: 5 | E175: 1 | F175: 1 | G175: 4 | I175: 1502;1601;1003 | J175: 1;2;1600 | K175: 20 | L175: 1 | M175: 3 | O175: =IF(M175="","",CONCATENATE(VLOOKUP(M175,[1]PlacesConfig!$A:$C,3,FALSE),IF(N175="",""," - "&VLOOKUP(N175,[1]SmallPlacesConfig!$A:$I,9,FALSE)))) -> 藐姑射山 | P175: 116 | Q175: 18 | S175: 10;3 | T175: 6053;116 | V175: 4234 | W175: 4240 | X175: 灵石稳身.疯道人 | Y175: 疯道人灵石耗尽，你慷慨相助 | Z175: =COUNTIF(EventLinkConfig!O:O,EventConfig!A175) -> 4 | AA175: 605401 | AB175: 605402 | AC175: 605403 | AD175: 605404 | AU175: 1502 | AV175: 1 | AW175: 1601 | AX175: 2 | AY175: 1003 | AZ175: =VLOOKUP(P175,[3]ResourceLevelConfig!$A:$E,5,FALSE)*5 -> 1600 | BA175: =IF(AU175="","",CONCATENATE(VLOOKUP(AU175,[2]DropConfig!$A:$F,3,FALSE),"×",AV175)) -> 茉莉花茶×1 | BB175: =IF(AW175="","",CONCATENATE(VLOOKUP(AW175,[2]DropConfig!$A:$F,3,FALSE),"×",AX175)) -> 妃子笑×2 | BC175: =IF(AY175="","",CONCATENATE(VLOOKUP(AY175,[2]DropConfig!$A:$F,3,FALSE),"×",AZ175)) -> 修为×1600 | BD175: 10 | BE175: 6053 | BF175: 3 | BG175: 116 | BH175: =IF(BD175="","",VLOOKUP(BD175,条件类型查询!A:B,2,FALSE)) -> 前置事件 | BI175: =IF(BF175="","",VLOOKUP(BF175,条件类型查询!A:B,2,FALSE)) -> 境界判断
A176: 6055 | B176: 605501;605502;605503;605504;605505;605506;102;103 | C176: 6 | D176: 5 | E176: 1 | F176: 1 | G176: 4 | I176: 1502;22008;1003 | J176: 1;1;1750 | K176: 20 | L176: 1 | M176: 3 | O176: =IF(M176="","",CONCATENATE(VLOOKUP(M176,[1]PlacesConfig!$A:$C,3,FALSE),IF(N176="",""," - "&VLOOKUP(N176,[1]SmallPlacesConfig!$A:$I,9,FALSE)))) -> 藐姑射山 | P176: 126 | Q176: 18 | S176: 10;3 | T176: 6054;126 | V176: 4235 | W176: 4241 | X176: 沉迷赌博.疯道人 | Y176: 疯道人把借的灵石全赌输了，你气得直接动手 | Z176: =COUNTIF(EventLinkConfig!O:O,EventConfig!A176) -> 6 | AA176: 605501 | AB176: 605502 | AC176: 605503 | AD176: 605504 | AE176: 605505 | AF176: 605506 | AU176: 1502 | AV176: 1 | AW176: 22008 | AX176: 1 | AY176: 1003 | AZ176: =VLOOKUP(P176,[3]ResourceLevelConfig!$A:$E,5,FALSE)*5 -> 1750 | BA176: =IF(AU176="","",CONCATENATE(VLOOKUP(AU176,[2]DropConfig!$A:$F,3,FALSE),"×",AV176)) -> 茉莉花茶×1 | BB176: =IF(AW176="","",CONCATENATE(VLOOKUP(AW176,[2]DropConfig!$A:$F,3,FALSE),"×",AX176)) -> 支线感悟点1×1 | BC176: =IF(AY176="","",CONCATENATE(VLOOKUP(AY176,[2]DropConfig!$A:$F,3,FALSE),"×",AZ176)) -> 修为×1750 | BD176: 10 | BE176: 6054 | BF176: 3 | BG176: 126 | BH176: =IF(BD176="","",VLOOKUP(BD176,条件类型查询!A:B,2,FALSE)) -> 前置事件 | BI176: =IF(BF176="","",VLOOKUP(BF176,条件类型查询!A:B,2,FALSE)) -> 境界判断
O177: =IF(M177="","",CONCATENATE(VLOOKUP(M177,[1]PlacesConfig!$A:$C,3,FALSE),IF(N177="",""," - "&VLOOKUP(N177,[1]SmallPlacesConfig!$A:$I,9,FALSE)))) ->  | BA177: =IF(AU177="","",CONCATENATE(VLOOKUP(AU177,[2]DropConfig!$A:$F,3,FALSE),"×",AV177)) ->  | BB177: =IF(AW177="","",CONCATENATE(VLOOKUP(AW177,[2]DropConfig!$A:$F,3,FALSE),"×",AX177)) ->  | BC177: =IF(AY177="","",CONCATENATE(VLOOKUP(AY177,[2]DropConfig!$A:$F,3,FALSE),"×",AZ177)) ->  | BH177: =IF(BD177="","",VLOOKUP(BD177,条件类型查询!A:B,2,FALSE)) ->  | BI177: =IF(BF177="","",VLOOKUP(BF177,条件类型查询!A:B,2,FALSE)) -> 
A178: 9111 | B178: =IF(Z178>0,_xlfn.TEXTJOIN(";",1,ROW(INDIRECT(CONCATENATE("",A178*100+1,":",A178*100+Z178,""))),102,103),"") -> 911101;911102;911103;911104;911105;911106;911107;911108;911109;911110;911111;911112;911113;911114;911115;911116;102;103 | C178: 6 | D178: 2 | E178: 1 | F178: 1 | G178: 3 | I178: 1001;1003 | J178: 5300;550 | K178: 35 | L178: 1 | M178: 1 | N178: 1 | O178: =IF(M178="","",CONCATENATE(VLOOKUP(M178,[1]PlacesConfig!$A:$C,3,FALSE),IF(N178="",""," - "&VLOOKUP(N178,[1]SmallPlacesConfig!$A:$I,9,FALSE)))) -> 北海 - 海边 | P178: 6 | Q178: 2 | S178: 3 | T178: 6 | V178: 4244 | W178: 4326 | X178: 渔民的帮助 | Y178: 渔民遇海怪求助，你收下线索准备行动 | Z178: =COUNTIF(EventLinkConfig!O:O,EventConfig!A178) -> 16 | AW178: 1001 | AX178: =ROUND(VLOOKUP(P178,[3]ResourceLevelConfig!$A:$C,3,FALSE)*5*0.01,0)*100 -> 5300 | AY178: 1003 | AZ178: =VLOOKUP(P178,[3]ResourceLevelConfig!$A:$E,5,FALSE)*5 -> 550 | BA178: =IF(AU178="","",CONCATENATE(VLOOKUP(AU178,[2]DropConfig!$A:$F,3,FALSE),"×",AV178)) ->  | BB178: =IF(AW178="","",CONCATENATE(VLOOKUP(AW178,[2]DropConfig!$A:$F,3,FALSE),"×",AX178)) -> 灵石×5300 | BC178: =IF(AY178="","",CONCATENATE(VLOOKUP(AY178,[2]DropConfig!$A:$F,3,FALSE),"×",AZ178)) -> 修为×550 | BD178: 3 | BE178: 6 | BH178: =IF(BD178="","",VLOOKUP(BD178,条件类型查询!A:B,2,FALSE)) -> 境界判断 | BI178: =IF(BF178="","",VLOOKUP(BF178,条件类型查询!A:B,2,FALSE)) -> 
A179: =A178+1 -> 9112 | B179: =IF(Z179>0,_xlfn.TEXTJOIN(";",1,ROW(INDIRECT(CONCATENATE("",A179*100+1,":",A179*100+Z179,""))),102,103),"") -> 911201;911202;911203;911204;911205;911206;911207;102;103 | C179: 6 | D179: 2 | E179: 1 | F179: 1 | G179: 3 | I179: 1001;1003 | J179: 5500;550 | K179: 35 | L179: 1 | M179: 1 | N179: 1 | O179: =IF(M179="","",CONCATENATE(VLOOKUP(M179,[1]PlacesConfig!$A:$C,3,FALSE),IF(N179="",""," - "&VLOOKUP(N179,[1]SmallPlacesConfig!$A:$I,9,FALSE)))) -> 北海 - 海边 | P179: 11 | Q179: 2 | S179: 10;3 | T179: 9111;11 | V179: 4245 | W179: 4327 | X179: 妖物调查 | Y179: 傀儡真相终揭晓，神秘龙鳞引争夺 | Z179: =COUNTIF(EventLinkConfig!O:O,EventConfig!A179) -> 7 | AW179: 1001 | AX179: =ROUND(VLOOKUP(P179,[3]ResourceLevelConfig!$A:$C,3,FALSE)*5*0.01,0)*100 -> 5500 | AY179: 1003 | AZ179: =VLOOKUP(P179,[3]ResourceLevelConfig!$A:$E,5,FALSE)*5 -> 550 | BA179: =IF(AU179="","",CONCATENATE(VLOOKUP(AU179,[2]DropConfig!$A:$F,3,FALSE),"×",AV179)) ->  | BB179: =IF(AW179="","",CONCATENATE(VLOOKUP(AW179,[2]DropConfig!$A:$F,3,FALSE),"×",AX179)) -> 灵石×5500 | BC179: =IF(AY179="","",CONCATENATE(VLOOKUP(AY179,[2]DropConfig!$A:$F,3,FALSE),"×",AZ179)) -> 修为×550 | BD179: 10 | BE179: 9111 | BF179: 3 | BG179: =P179 -> 11 | BH179: =IF(BD179="","",VLOOKUP(BD179,条件类型查询!A:B,2,FALSE)) -> 前置事件 | BI179: =IF(BF179="","",VLOOKUP(BF179,条件类型查询!A:B,2,FALSE)) -> 境界判断
A180: 9113 | B180: =IF(Z180>0,_xlfn.TEXTJOIN(";",1,ROW(INDIRECT(CONCATENATE("",A180*100+1,":",A180*100+Z180,""))),102,103),"") -> 911301;911302;911303;911304;911305;102;103 | C180: 6 | D180: 2 | E180: 1 | F180: 1 | G180: 3 | I180: 22008;1001;1003 | J180: 1;5800;600 | K180: 30 | L180: 1 | M180: 1 | N180: 1 | O180: =IF(M180="","",CONCATENATE(VLOOKUP(M180,[1]PlacesConfig!$A:$C,3,FALSE),IF(N180="",""," - "&VLOOKUP(N180,[1]SmallPlacesConfig!$A:$I,9,FALSE)))) -> 北海 - 海边 | P180: 16 | Q180: 2 | S180: 10;3 | T180: 9112;16 | V180: 4246 | W180: 4328 | X180: 渔民汇报消息 | Y180: 水怪虽除，老李攥着儿子的平安符沉默不语 | Z180: =COUNTIF(EventLinkConfig!O:O,EventConfig!A180) -> 5 | AU180: 22008 | AV180: 1 | AW180: 1001 | AX180: =ROUND(VLOOKUP(P180,[3]ResourceLevelConfig!$A:$C,3,FALSE)*5*0.01,0)*100 -> 5800 | AY180: 1003 | AZ180: =VLOOKUP(P180,[3]ResourceLevelConfig!$A:$E,5,FALSE)*5 -> 600 | BA180: =IF(AU180="","",CONCATENATE(VLOOKUP(AU180,[2]DropConfig!$A:$F,3,FALSE),"×",AV180)) -> 支线感悟点1×1 | BB180: =IF(AW180="","",CONCATENATE(VLOOKUP(AW180,[2]DropConfig!$A:$F,3,FALSE),"×",AX180)) -> 灵石×5800 | BC180: =IF(AY180="","",CONCATENATE(VLOOKUP(AY180,[2]DropConfig!$A:$F,3,FALSE),"×",AZ180)) -> 修为×600 | BD180: 10 | BE180: 9112 | BF180: 3 | BG180: 16 | BH180: =IF(BD180="","",VLOOKUP(BD180,条件类型查询!A:B,2,FALSE)) -> 前置事件 | BI180: =IF(BF180="","",VLOOKUP(BF180,条件类型查询!A:B,2,FALSE)) -> 境界判断
A181: 9114 | B181: =IF(Z181>0,_xlfn.TEXTJOIN(";",1,ROW(INDIRECT(CONCATENATE("",A181*100+1,":",A181*100+Z181,""))),102,103),"") -> 911401;911402;911403;911404;911405;911406;911407;911408;102;103 | C181: 6 | D181: 2 | E181: 1 | F181: 1 | G181: 3 | I181: 1001;1003 | J181: 6100;600 | K181: 25 | L181: 1 | M181: 1 | N181: 1 | O181: =IF(M181="","",CONCATENATE(VLOOKUP(M181,[1]PlacesConfig!$A:$C,3,FALSE),IF(N181="",""," - "&VLOOKUP(N181,[1]SmallPlacesConfig!$A:$I,9,FALSE)))) -> 北海 - 海边 | P181: 21 | Q181: 3 | S181: 10;3 | T181: 9113;21 | V181: 4247 | W181: 4329 | X181: 初遇幽魂 | Y181: 灵姬托你取三颗幽魂石，镇压古战场暴动怨魂。 | Z181: =COUNTIF(EventLinkConfig!O:O,EventConfig!A181) -> 8 | AW181: 1001 | AX181: =ROUND(VLOOKUP(P181,[3]ResourceLevelConfig!$A:$C,3,FALSE)*5*0.01,0)*100 -> 6100 | AY181: 1003 | AZ181: =VLOOKUP(P181,[3]ResourceLevelConfig!$A:$E,5,FALSE)*5 -> 600 | BA181: =IF(AU181="","",CONCATENATE(VLOOKUP(AU181,[2]DropConfig!$A:$F,3,FALSE),"×",AV181)) ->  | BB181: =IF(AW181="","",CONCATENATE(VLOOKUP(AW181,[2]DropConfig!$A:$F,3,FALSE),"×",AX181)) -> 灵石×6100 | BC181: =IF(AY181="","",CONCATENATE(VLOOKUP(AY181,[2]DropConfig!$A:$F,3,FALSE),"×",AZ181)) -> 修为×600 | BD181: 10 | BE181: 9113 | BF181: 3 | BG181: =P181 -> 21 | BH181: =IF(BD181="","",VLOOKUP(BD181,条件类型查询!A:B,2,FALSE)) -> 前置事件 | BI181: =IF(BF181="","",VLOOKUP(BF181,条件类型查询!A:B,2,FALSE)) -> 境界判断
A182: 9115 | B182: =IF(Z182>0,_xlfn.TEXTJOIN(";",1,ROW(INDIRECT(CONCATENATE("",A182*100+1,":",A182*100+Z182,""))),102,103),"") -> 911501;911502;102;103 | C182: 6 | D182: 2 | E182: 1 | F182: 1 | G182: 3 | I182: 20013;1001;1003 | J182: 3;6400;650 | K182: 20 | L182: 1 | M182: 1 | N182: 1 | O182: =IF(M182="","",CONCATENATE(VLOOKUP(M182,[1]PlacesConfig!$A:$C,3,FALSE),IF(N182="",""," - "&VLOOKUP(N182,[1]SmallPlacesConfig!$A:$I,9,FALSE)))) -> 北海 - 海边 | P182: 26 | Q182: 3 | S182: 10;3 | T182: 9114;26 | V182: 4248 | W182: 4330 | X182: 幽魂石守护兽 | Y182: 击败幽魂石守护兽 | Z182: =COUNTIF(EventLinkConfig!O:O,EventConfig!A182) -> 2 | AU182: 20013 | AV182: 3 | AW182: 1001 | AX182: =ROUND(VLOOKUP(P182,[3]ResourceLevelConfig!$A:$C,3,FALSE)*5*0.01,0)*100 -> 6400 | AY182: 1003 | AZ182: =VLOOKUP(P182,[3]ResourceLevelConfig!$A:$E,5,FALSE)*5 -> 650 | BA182: =IF(AU182="","",CONCATENATE(VLOOKUP(AU182,[2]DropConfig!$A:$F,3,FALSE),"×",AV182)) -> 幽魂石×3 | BB182: =IF(AW182="","",CONCATENATE(VLOOKUP(AW182,[2]DropConfig!$A:$F,3,FALSE),"×",AX182)) -> 灵石×6400 | BC182: =IF(AY182="","",CONCATENATE(VLOOKUP(AY182,[2]DropConfig!$A:$F,3,FALSE),"×",AZ182)) -> 修为×650 | BD182: 10 | BE182: 9114 | BF182: 3 | BG182: 26 | BH182: =IF(BD182="","",VLOOKUP(BD182,条件类型查询!A:B,2,FALSE)) -> 前置事件 | BI182: =IF(BF182="","",VLOOKUP(BF182,条件类型查询!A:B,2,FALSE)) -> 境界判断
A183: 9116 | B183: =IF(Z183>0,_xlfn.TEXTJOIN(";",1,ROW(INDIRECT(CONCATENATE("",A183*100+1,":",A183*100+Z183,""))),102,103),"") -> 911601;911602;911603;911604;911605;911606;911607;911608;911609;911610;911611;911612;911613;911614;911615;911616;911617;911618;911619;911620;102;103 | C183: 6 | D183: 2 | E183: 1 | F183: 1 | G183: 3 | I183: 22008;1001;1003 | J183: 1;6800;700 | K183: 15 | L183: 1 | M183: 1 | N183: 1 | O183: =IF(M183="","",CONCATENATE(VLOOKUP(M183,[1]PlacesConfig!$A:$C,3,FALSE),IF(N183="",""," - "&VLOOKUP(N183,[1]SmallPlacesConfig!$A:$I,9,FALSE)))) -> 北海 - 海边 | P183: 31 | Q183: 3 | S183: 1 | T183: 20013 | U183: 3 | V183: 4249 | W183: 4331 | X183: 带回幽魂石 | Y183: 灵姬借幽魂石镇压仙宗怨魂，赠龙鳞指引圣地之谜。 | Z183: =COUNTIF(EventLinkConfig!O:O,EventConfig!A183) -> 20 | AU183: 22008 | AV183: 1 | AW183: 1001 | AX183: =ROUND(VLOOKUP(P183,[3]ResourceLevelConfig!$A:$C,3,FALSE)*5*0.01,0)*100 -> 6800 | AY183: 1003 | AZ183: =VLOOKUP(P183,[3]ResourceLevelConfig!$A:$E,5,FALSE)*5 -> 700 | BA183: =IF(AU183="","",CONCATENATE(VLOOKUP(AU183,[2]DropConfig!$A:$F,3,FALSE),"×",AV183)) -> 支线感悟点1×1 | BB183: =IF(AW183="","",CONCATENATE(VLOOKUP(AW183,[2]DropConfig!$A:$F,3,FALSE),"×",AX183)) -> 灵石×6800 | BC183: =IF(AY183="","",CONCATENATE(VLOOKUP(AY183,[2]DropConfig!$A:$F,3,FALSE),"×",AZ183)) -> 修为×700 | BD183: 1 | BE183: 20013 | BH183: =IF(BD183="","",VLOOKUP(BD183,条件类型查询!A:B,2,FALSE)) -> 拥有特定道具 | BI183: =IF(BF183="","",VLOOKUP(BF183,条件类型查询!A:B,2,FALSE)) -> 
A184: 9117 | B184: =IF(Z184>0,_xlfn.TEXTJOIN(";",1,ROW(INDIRECT(CONCATENATE("",A184*100+1,":",A184*100+Z184,""))),102,103),"") -> 911701;911702;911703;911704;911705;911706;911707;911708;911709;911710;911711;102;103 | C184: 6 | D184: 2 | E184: 1 | F184: 1 | G184: 3 | I184: 1001;1003 | J184: 5500;550 | K184: 40 | L184: 1 | M184: 1 | N184: 2 | O184: =IF(M184="","",CONCATENATE(VLOOKUP(M184,[1]PlacesConfig!$A:$C,3,FALSE),IF(N184="",""," - "&VLOOKUP(N184,[1]SmallPlacesConfig!$A:$I,9,FALSE)))) -> 北海 - 秘境 | P184: 11 | Q184: 4 | S184: 3 | T184: 11 | V184: 4250 | W184: 4332 | X184: 初遇馨儿 | Y184: 馨儿强拉你去寻密信，雾林中铃铛与威胁齐飞。 | Z184: =COUNTIF(EventLinkConfig!O:O,EventConfig!A184) -> 11 | AW184: 1001 | AX184: =ROUND(VLOOKUP(P184,[3]ResourceLevelConfig!$A:$C,3,FALSE)*5*0.01,0)*100 -> 5500 | AY184: 1003 | AZ184: =VLOOKUP(P184,[3]ResourceLevelConfig!$A:$E,5,FALSE)*5 -> 550 | BA184: =IF(AU184="","",CONCATENATE(VLOOKUP(AU184,[2]DropConfig!$A:$F,3,FALSE),"×",AV184)) ->  | BB184: =IF(AW184="","",CONCATENATE(VLOOKUP(AW184,[2]DropConfig!$A:$F,3,FALSE),"×",AX184)) -> 灵石×5500 | BC184: =IF(AY184="","",CONCATENATE(VLOOKUP(AY184,[2]DropConfig!$A:$F,3,FALSE),"×",AZ184)) -> 修为×550 | BD184: 3 | BE184: 11 | BH184: =IF(BD184="","",VLOOKUP(BD184,条件类型查询!A:B,2,FALSE)) -> 境界判断 | BI184: =IF(BF184="","",VLOOKUP(BF184,条件类型查询!A:B,2,FALSE)) -> 
A185: 9118 | B185: =IF(Z185>0,_xlfn.TEXTJOIN(";",1,ROW(INDIRECT(CONCATENATE("",A185*100+1,":",A185*100+Z185,""))),102,103),"") -> 911801;911802;911803;911804;911805;911806;911807;911808;102;103 | C185: 6 | D185: 2 | E185: 1 | F185: 1 | G185: 3 | I185: 1001;1003 | J185: 5800;600 | K185: 35 | L185: 1 | M185: 1 | N185: 2 | O185: =IF(M185="","",CONCATENATE(VLOOKUP(M185,[1]PlacesConfig!$A:$C,3,FALSE),IF(N185="",""," - "&VLOOKUP(N185,[1]SmallPlacesConfig!$A:$I,9,FALSE)))) -> 北海 - 秘境 | P185: 16 | Q185: 4 | S185: 10;3 | T185: 9117;16 | V185: 4251 | W185: 4333 | X185: 迷雾妖怪 | Y185: 雾妖伏诛，密信危机现转机。 | Z185: =COUNTIF(EventLinkConfig!O:O,EventConfig!A185) -> 8 | AW185: 1001 | AX185: =ROUND(VLOOKUP(P185,[3]ResourceLevelConfig!$A:$C,3,FALSE)*5*0.01,0)*100 -> 5800 | AY185: 1003 | AZ185: =VLOOKUP(P185,[3]ResourceLevelConfig!$A:$E,5,FALSE)*5 -> 600 | BA185: =IF(AU185="","",CONCATENATE(VLOOKUP(AU185,[2]DropConfig!$A:$F,3,FALSE),"×",AV185)) ->  | BB185: =IF(AW185="","",CONCATENATE(VLOOKUP(AW185,[2]DropConfig!$A:$F,3,FALSE),"×",AX185)) -> 灵石×5800 | BC185: =IF(AY185="","",CONCATENATE(VLOOKUP(AY185,[2]DropConfig!$A:$F,3,FALSE),"×",AZ185)) -> 修为×600 | BD185: 10 | BE185: 9117 | BF185: 3 | BG185: =P185 -> 16 | BH185: =IF(BD185="","",VLOOKUP(BD185,条件类型查询!A:B,2,FALSE)) -> 前置事件 | BI185: =IF(BF185="","",VLOOKUP(BF185,条件类型查询!A:B,2,FALSE)) -> 境界判断
A186: 9119 | B186: =IF(Z186>0,_xlfn.TEXTJOIN(";",1,ROW(INDIRECT(CONCATENATE("",A186*100+1,":",A186*100+Z186,""))),102,103),"") -> 911901;911902;911903;911904;911905;911906;911907;911908;911909;911910;911911;911912;911913;102;103 | C186: 6 | D186: 2 | E186: 1 | F186: 1 | G186: 3 | I186: 1001;1003 | J186: 6100;600 | K186: 30 | L186: 1 | M186: 1 | N186: 2 | O186: =IF(M186="","",CONCATENATE(VLOOKUP(M186,[1]PlacesConfig!$A:$C,3,FALSE),IF(N186="",""," - "&VLOOKUP(N186,[1]SmallPlacesConfig!$A:$I,9,FALSE)))) -> 北海 - 秘境 | P186: 21 | Q186: 4 | S186: 10;3 | T186: 9118;21 | V186: 4252 | W186: 4334 | X186: 发现信使 | Y186: 你亲自护法助馨儿破阵，云隐密信危机终解。 | Z186: =COUNTIF(EventLinkConfig!O:O,EventConfig!A186) -> 13 | AW186: 1001 | AX186: =ROUND(VLOOKUP(P186,[3]ResourceLevelConfig!$A:$C,3,FALSE)*5*0.01,0)*100 -> 6100 | AY186: 1003 | AZ186: =VLOOKUP(P186,[3]ResourceLevelConfig!$A:$E,5,FALSE)*5 -> 600 | BA186: =IF(AU186="","",CONCATENATE(VLOOKUP(AU186,[2]DropConfig!$A:$F,3,FALSE),"×",AV186)) ->  | BB186: =IF(AW186="","",CONCATENATE(VLOOKUP(AW186,[2]DropConfig!$A:$F,3,FALSE),"×",AX186)) -> 灵石×6100 | BC186: =IF(AY186="","",CONCATENATE(VLOOKUP(AY186,[2]DropConfig!$A:$F,3,FALSE),"×",AZ186)) -> 修为×600 | BD186: 10 | BE186: 9118 | BF186: 3 | BG186: 21 | BH186: =IF(BD186="","",VLOOKUP(BD186,条件类型查询!A:B,2,FALSE)) -> 前置事件 | BI186: =IF(BF186="","",VLOOKUP(BF186,条件类型查询!A:B,2,FALSE)) -> 境界判断
A187: 9120 | B187: =IF(Z187>0,_xlfn.TEXTJOIN(";",1,ROW(INDIRECT(CONCATENATE("",A187*100+1,":",A187*100+Z187,""))),102,103),"") -> 912001;912002;912003;912004;912005;912006;912007;912008;102;103 | C187: 6 | D187: 2 | E187: 1 | F187: 1 | G187: 3 | I187: 22008;1001;1003 | J187: 1;6400;650 | K187: 25 | L187: 1 | M187: 1 | N187: 3 | O187: =IF(M187="","",CONCATENATE(VLOOKUP(M187,[1]PlacesConfig!$A:$C,3,FALSE),IF(N187="",""," - "&VLOOKUP(N187,[1]SmallPlacesConfig!$A:$I,9,FALSE)))) -> 北海 - 浮岛 | P187: 26 | Q187: 5 | S187: 10;3 | T187: 9119;26 | V187: 4253 | W187: 4335 | X187: 风灵鸟的宝藏 | Y187: 助馨儿智擒偷盗灵草的风灵鸟。 | Z187: =COUNTIF(EventLinkConfig!O:O,EventConfig!A187) -> 8 | AU187: 22008 | AV187: 1 | AW187: 1001 | AX187: =ROUND(VLOOKUP(P187,[3]ResourceLevelConfig!$A:$C,3,FALSE)*5*0.01,0)*100 -> 6400 | AY187: 1003 | AZ187: =VLOOKUP(P187,[3]ResourceLevelConfig!$A:$E,5,FALSE)*5 -> 650 | BA187: =IF(AU187="","",CONCATENATE(VLOOKUP(AU187,[2]DropConfig!$A:$F,3,FALSE),"×",AV187)) -> 支线感悟点1×1 | BB187: =IF(AW187="","",CONCATENATE(VLOOKUP(AW187,[2]DropConfig!$A:$F,3,FALSE),"×",AX187)) -> 灵石×6400 | BC187: =IF(AY187="","",CONCATENATE(VLOOKUP(AY187,[2]DropConfig!$A:$F,3,FALSE),"×",AZ187)) -> 修为×650 | BD187: 10 | BE187: 9119 | BF187: 3 | BG187: =P187 -> 26 | BH187: =IF(BD187="","",VLOOKUP(BD187,条件类型查询!A:B,2,FALSE)) -> 前置事件 | BI187: =IF(BF187="","",VLOOKUP(BF187,条件类型查询!A:B,2,FALSE)) -> 境界判断
A188: 9121 | B188: =IF(Z188>0,_xlfn.TEXTJOIN(";",1,ROW(INDIRECT(CONCATENATE("",A188*100+1,":",A188*100+Z188,""))),102,103),"") -> 912101;912102;912103;912104;912105;912106;102;103 | C188: 6 | D188: 2 | E188: 1 | F188: 1 | G188: 3 | I188: 1001;1003 | J188: 6800;700 | K188: 20 | L188: 1 | M188: 1 | N188: 3 | O188: =IF(M188="","",CONCATENATE(VLOOKUP(M188,[1]PlacesConfig!$A:$C,3,FALSE),IF(N188="",""," - "&VLOOKUP(N188,[1]SmallPlacesConfig!$A:$I,9,FALSE)))) -> 北海 - 浮岛 | P188: 31 | Q188: 5 | S188: 10;3 | T188: 9120;31 | V188: 4254 | W188: 4336 | X188: 浮岛灵泉的净化 | Y188: 协馨儿斩泉中妖物，灵泉复清，暗藏宗门算计。 | Z188: =COUNTIF(EventLinkConfig!O:O,EventConfig!A188) -> 6 | AW188: 1001 | AX188: =ROUND(VLOOKUP(P188,[3]ResourceLevelConfig!$A:$C,3,FALSE)*5*0.01,0)*100 -> 6800 | AY188: 1003 | AZ188: =VLOOKUP(P188,[3]ResourceLevelConfig!$A:$E,5,FALSE)*5 -> 700 | BA188: =IF(AU188="","",CONCATENATE(VLOOKUP(AU188,[2]DropConfig!$A:$F,3,FALSE),"×",AV188)) ->  | BB188: =IF(AW188="","",CONCATENATE(VLOOKUP(AW188,[2]DropConfig!$A:$F,3,FALSE),"×",AX188)) -> 灵石×6800 | BC188: =IF(AY188="","",CONCATENATE(VLOOKUP(AY188,[2]DropConfig!$A:$F,3,FALSE),"×",AZ188)) -> 修为×700 | BD188: 10 | BE188: 9120 | BF188: 3 | BG188: 31 | BH188: =IF(BD188="","",VLOOKUP(BD188,条件类型查询!A:B,2,FALSE)) -> 前置事件 | BI188: =IF(BF188="","",VLOOKUP(BF188,条件类型查询!A:B,2,FALSE)) -> 境界判断
A189: 9122 | B189: =IF(Z189>0,_xlfn.TEXTJOIN(";",1,ROW(INDIRECT(CONCATENATE("",A189*100+1,":",A189*100+Z189,""))),102,103),"") -> 912201;912202;912203;912204;912205;912206;912207;912208;912209;912210;912211;912212;912213;912214;912215;102;103 | C189: 6 | D189: 2 | E189: 1 | F189: 1 | G189: 3 | I189: 22008;1001;1003 | J189: 1;7100;700 | K189: 15 | L189: 1 | M189: 1 | N189: 3 | O189: =IF(M189="","",CONCATENATE(VLOOKUP(M189,[1]PlacesConfig!$A:$C,3,FALSE),IF(N189="",""," - "&VLOOKUP(N189,[1]SmallPlacesConfig!$A:$I,9,FALSE)))) -> 北海 - 浮岛 | P189: 36 | Q189: 5 | S189: 10;3 | T189: 9121;36 | V189: 4255 | W189: 4337 | X189: 浮岛盗修的阴谋 | Y189: 协助馨儿击败浮岛盗修获得宝盒 | Z189: =COUNTIF(EventLinkConfig!O:O,EventConfig!A189) -> 15 | AU189: 22008 | AV189: 1 | AW189: 1001 | AX189: =ROUND(VLOOKUP(P189,[3]ResourceLevelConfig!$A:$C,3,FALSE)*5*0.01,0)*100 -> 7100 | AY189: 1003 | AZ189: =VLOOKUP(P189,[3]ResourceLevelConfig!$A:$E,5,FALSE)*5 -> 700 | BA189: =IF(AU189="","",CONCATENATE(VLOOKUP(AU189,[2]DropConfig!$A:$F,3,FALSE),"×",AV189)) -> 支线感悟点1×1 | BB189: =IF(AW189="","",CONCATENATE(VLOOKUP(AW189,[2]DropConfig!$A:$F,3,FALSE),"×",AX189)) -> 灵石×7100 | BC189: =IF(AY189="","",CONCATENATE(VLOOKUP(AY189,[2]DropConfig!$A:$F,3,FALSE),"×",AZ189)) -> 修为×700 | BD189: 10 | BE189: 9121 | BF189: 3 | BG189: 36 | BH189: =IF(BD189="","",VLOOKUP(BD189,条件类型查询!A:B,2,FALSE)) -> 前置事件 | BI189: =IF(BF189="","",VLOOKUP(BF189,条件类型查询!A:B,2,FALSE)) -> 境界判断
A190: 9123 | B190: =IF(Z190>0,_xlfn.TEXTJOIN(";",1,ROW(INDIRECT(CONCATENATE("",A190*100+1,":",A190*100+Z190,""))),102,103),"") -> 912301;912302;912303;912304;912305;912306;912307;912308;912309;912310;912311;912312;912313;912314;912315;912316;912317;912318;912319;912320;912321;912322;912323;912324;912325;912326;912327;912328;912329;102;103 | C190: 6 | D190: 2 | E190: 1 | F190: 1 | G190: 3 | I190: 1001;1003 | J190: 6100;600 | K190: 40 | L190: 1 | M190: 1 | N190: 4 | O190: =IF(M190="","",CONCATENATE(VLOOKUP(M190,[1]PlacesConfig!$A:$C,3,FALSE),IF(N190="",""," - "&VLOOKUP(N190,[1]SmallPlacesConfig!$A:$I,9,FALSE)))) -> 北海 - 深处 | P190: 21 | Q190: 6 | S190: 3 | T190: 21 | V190: 4256 | W190: 4338 | X190: 初遇柳轻烟 | Y190: 被迫卷入秘钥争夺，重伤柳轻烟托付宗门存亡重任。 | Z190: =COUNTIF(EventLinkConfig!O:O,EventConfig!A190) -> 29 | AW190: 1001 | AX190: =ROUND(VLOOKUP(P190,[3]ResourceLevelConfig!$A:$C,3,FALSE)*5*0.01,0)*100 -> 6100 | AY190: 1003 | AZ190: =VLOOKUP(P190,[3]ResourceLevelConfig!$A:$E,5,FALSE)*5 -> 600 | BA190: =IF(AU190="","",CONCATENATE(VLOOKUP(AU190,[2]DropConfig!$A:$F,3,FALSE),"×",AV190)) ->  | BB190: =IF(AW190="","",CONCATENATE(VLOOKUP(AW190,[2]DropConfig!$A:$F,3,FALSE),"×",AX190)) -> 灵石×6100 | BC190: =IF(AY190="","",CONCATENATE(VLOOKUP(AY190,[2]DropConfig!$A:$F,3,FALSE),"×",AZ190)) -> 修为×600 | BD190: 3 | BE190: 21 | BH190: =IF(BD190="","",VLOOKUP(BD190,条件类型查询!A:B,2,FALSE)) -> 境界判断 | BI190: =IF(BF190="","",VLOOKUP(BF190,条件类型查询!A:B,2,FALSE)) -> 
A191: 9124 | B191: =IF(Z191>0,_xlfn.TEXTJOIN(";",1,ROW(INDIRECT(CONCATENATE("",A191*100+1,":",A191*100+Z191,""))),102,103),"") -> 912401;912402;912403;102;103 | C191: 6 | D191: 2 | E191: 1 | F191: 1 | G191: 3 | I191: 1001;1003 | J191: 6400;650 | K191: 35 | L191: 1 | M191: 1 | N191: 4 | O191: =IF(M191="","",CONCATENATE(VLOOKUP(M191,[1]PlacesConfig!$A:$C,3,FALSE),IF(N191="",""," - "&VLOOKUP(N191,[1]SmallPlacesConfig!$A:$I,9,FALSE)))) -> 北海 - 深处 | P191: 26 | Q191: 6 | S191: 10;3 | T191: 9123;26 | V191: 4257 | W191: 4339 | X191: 血海丹心护秘钥 | Y191: 击败血海宗敌人 | Z191: =COUNTIF(EventLinkConfig!O:O,EventConfig!A191) -> 3 | AW191: 1001 | AX191: =ROUND(VLOOKUP(P191,[3]ResourceLevelConfig!$A:$C,3,FALSE)*5*0.01,0)*100 -> 6400 | AY191: 1003 | AZ191: =VLOOKUP(P191,[3]ResourceLevelConfig!$A:$E,5,FALSE)*5 -> 650 | BA191: =IF(AU191="","",CONCATENATE(VLOOKUP(AU191,[2]DropConfig!$A:$F,3,FALSE),"×",AV191)) ->  | BB191: =IF(AW191="","",CONCATENATE(VLOOKUP(AW191,[2]DropConfig!$A:$F,3,FALSE),"×",AX191)) -> 灵石×6400 | BC191: =IF(AY191="","",CONCATENATE(VLOOKUP(AY191,[2]DropConfig!$A:$F,3,FALSE),"×",AZ191)) -> 修为×650 | BD191: 10 | BE191: 9123 | BF191: 3 | BG191: =P191 -> 26 | BH191: =IF(BD191="","",VLOOKUP(BD191,条件类型查询!A:B,2,FALSE)) -> 前置事件 | BI191: =IF(BF191="","",VLOOKUP(BF191,条件类型查询!A:B,2,FALSE)) -> 境界判断
A192: 9125 | B192: =IF(Z192>0,_xlfn.TEXTJOIN(";",1,ROW(INDIRECT(CONCATENATE("",A192*100+1,":",A192*100+Z192,""))),102,103),"") -> 912501;912502;912503;102;103 | C192: 6 | D192: 2 | E192: 1 | F192: 1 | G192: 3 | I192: 20014;1001;1003 | J192: 1;6800;700 | K192: 30 | L192: 1 | M192: 1 | N192: 4 | O192: =IF(M192="","",CONCATENATE(VLOOKUP(M192,[1]PlacesConfig!$A:$C,3,FALSE),IF(N192="",""," - "&VLOOKUP(N192,[1]SmallPlacesConfig!$A:$I,9,FALSE)))) -> 北海 - 深处 | P192: 31 | Q192: 6 | S192: 10;3 | T192: 9124;31 | V192: 4258 | W192: 4340 | X192: 北海劫钥 | Y192: 击败血海宗敌人 | Z192: =COUNTIF(EventLinkConfig!O:O,EventConfig!A192) -> 3 | AU192: 20014 | AV192: 1 | AW192: 1001 | AX192: =ROUND(VLOOKUP(P192,[3]ResourceLevelConfig!$A:$C,3,FALSE)*5*0.01,0)*100 -> 6800 | AY192: 1003 | AZ192: =VLOOKUP(P192,[3]ResourceLevelConfig!$A:$E,5,FALSE)*5 -> 700 | BA192: =IF(AU192="","",CONCATENATE(VLOOKUP(AU192,[2]DropConfig!$A:$F,3,FALSE),"×",AV192)) -> 云雾秘钥×1 | BB192: =IF(AW192="","",CONCATENATE(VLOOKUP(AW192,[2]DropConfig!$A:$F,3,FALSE),"×",AX192)) -> 灵石×6800 | BC192: =IF(AY192="","",CONCATENATE(VLOOKUP(AY192,[2]DropConfig!$A:$F,3,FALSE),"×",AZ192)) -> 修为×700 | BD192: 10 | BE192: 9124 | BF192: 3 | BG192: 31 | BH192: =IF(BD192="","",VLOOKUP(BD192,条件类型查询!A:B,2,FALSE)) -> 前置事件 | BI192: =IF(BF192="","",VLOOKUP(BF192,条件类型查询!A:B,2,FALSE)) -> 境界判断
A193: 9126 | B193: =IF(Z193>0,_xlfn.TEXTJOIN(";",1,ROW(INDIRECT(CONCATENATE("",A193*100+1,":",A193*100+Z193,""))),102,103),"") -> 912601;912602;912603;912604;102;103 | C193: 6 | D193: 2 | E193: 1 | F193: 1 | G193: 3 | I193: 22008;1001;1003 | J193: 1;7100;700 | K193: 25 | L193: 1 | M193: 1 | N193: 4 | O193: =IF(M193="","",CONCATENATE(VLOOKUP(M193,[1]PlacesConfig!$A:$C,3,FALSE),IF(N193="",""," - "&VLOOKUP(N193,[1]SmallPlacesConfig!$A:$I,9,FALSE)))) -> 北海 - 深处 | P193: 36 | Q193: 6 | S193: 10;3 | T193: 9125;36 | V193: 4259 | W193: 4341 | X193: 秘钥还主 | Y193: 归还秘钥，柳轻烟以宗门承诺相赠，江湖再会。 | Z193: =COUNTIF(EventLinkConfig!O:O,EventConfig!A193) -> 4 | AU193: 22008 | AV193: 1 | AW193: 1001 | AX193: =ROUND(VLOOKUP(P193,[3]ResourceLevelConfig!$A:$C,3,FALSE)*5*0.01,0)*100 -> 7100 | AY193: 1003 | AZ193: =VLOOKUP(P193,[3]ResourceLevelConfig!$A:$E,5,FALSE)*5 -> 700 | BA193: =IF(AU193="","",CONCATENATE(VLOOKUP(AU193,[2]DropConfig!$A:$F,3,FALSE),"×",AV193)) -> 支线感悟点1×1 | BB193: =IF(AW193="","",CONCATENATE(VLOOKUP(AW193,[2]DropConfig!$A:$F,3,FALSE),"×",AX193)) -> 灵石×7100 | BC193: =IF(AY193="","",CONCATENATE(VLOOKUP(AY193,[2]DropConfig!$A:$F,3,FALSE),"×",AZ193)) -> 修为×700 | BD193: 10 | BE193: 9125 | BF193: 3 | BG193: =P193 -> 36 | BH193: =IF(BD193="","",VLOOKUP(BD193,条件类型查询!A:B,2,FALSE)) -> 前置事件 | BI193: =IF(BF193="","",VLOOKUP(BF193,条件类型查询!A:B,2,FALSE)) -> 境界判断
A194: 9127 | B194: =IF(Z194>0,_xlfn.TEXTJOIN(";",1,ROW(INDIRECT(CONCATENATE("",A194*100+1,":",A194*100+Z194,""))),102,103),"") -> 912701;912702;912703;912704;912705;912706;912707;912708;912709;102;103 | C194: 6 | D194: 2 | E194: 1 | F194: 1 | G194: 3 | I194: 1001;1003 | J194: 6800;700 | K194: 30 | L194: 1 | M194: 2 | N194: 5 | O194: =IF(M194="","",CONCATENATE(VLOOKUP(M194,[1]PlacesConfig!$A:$C,3,FALSE),IF(N194="",""," - "&VLOOKUP(N194,[1]SmallPlacesConfig!$A:$I,9,FALSE)))) -> 尧之都 - 主城 | P194: 31 | Q194: 7 | S194: 3 | T194: 31 | V194: 4260 | W194: 4342 | X194: 灵花 | Y194: 协战夺灵花，馨儿邀你前去拍卖会 | Z194: =COUNTIF(EventLinkConfig!O:O,EventConfig!A194) -> 9 | AW194: 1001 | AX194: =ROUND(VLOOKUP(P194,[3]ResourceLevelConfig!$A:$C,3,FALSE)*5*0.01,0)*100 -> 6800 | AY194: 1003 | AZ194: =VLOOKUP(P194,[3]ResourceLevelConfig!$A:$E,5,FALSE)*5 -> 700 | BA194: =IF(AU194="","",CONCATENATE(VLOOKUP(AU194,[2]DropConfig!$A:$F,3,FALSE),"×",AV194)) ->  | BB194: =IF(AW194="","",CONCATENATE(VLOOKUP(AW194,[2]DropConfig!$A:$F,3,FALSE),"×",AX194)) -> 灵石×6800 | BC194: =IF(AY194="","",CONCATENATE(VLOOKUP(AY194,[2]DropConfig!$A:$F,3,FALSE),"×",AZ194)) -> 修为×700 | BD194: 3 | BE194: 31 | BH194: =IF(BD194="","",VLOOKUP(BD194,条件类型查询!A:B,2,FALSE)) -> 境界判断 | BI194: =IF(BF194="","",VLOOKUP(BF194,条件类型查询!A:B,2,FALSE)) -> 
A195: 9128 | B195: =IF(Z195>0,_xlfn.TEXTJOIN(";",1,ROW(INDIRECT(CONCATENATE("",A195*100+1,":",A195*100+Z195,""))),102,103),"") -> 912801;912802;912803;912804;912805;912806;912807;102;103 | C195: 6 | D195: 2 | E195: 1 | F195: 1 | G195: 3 | I195: 1001;1003 | J195: 7500;750 | K195: 20 | L195: 1 | M195: 2 | N195: 5 | O195: =IF(M195="","",CONCATENATE(VLOOKUP(M195,[1]PlacesConfig!$A:$C,3,FALSE),IF(N195="",""," - "&VLOOKUP(N195,[1]SmallPlacesConfig!$A:$I,9,FALSE)))) -> 尧之都 - 主城 | P195: 41 | Q195: 7 | S195: 10;3 | T195: 9127;41 | V195: =V194+1 -> 4261 | W195: 4343 | X195: 散修劫掠 | Y195: 馨儿笑退拦路散修，你警觉暗处危机。 | Z195: =COUNTIF(EventLinkConfig!O:O,EventConfig!A195) -> 7 | AW195: 1001 | AX195: =ROUND(VLOOKUP(P195,[3]ResourceLevelConfig!$A:$C,3,FALSE)*5*0.01,0)*100 -> 7500 | AY195: 1003 | AZ195: =VLOOKUP(P195,[3]ResourceLevelConfig!$A:$E,5,FALSE)*5 -> 750 | BA195: =IF(AU195="","",CONCATENATE(VLOOKUP(AU195,[2]DropConfig!$A:$F,3,FALSE),"×",AV195)) ->  | BB195: =IF(AW195="","",CONCATENATE(VLOOKUP(AW195,[2]DropConfig!$A:$F,3,FALSE),"×",AX195)) -> 灵石×7500 | BC195: =IF(AY195="","",CONCATENATE(VLOOKUP(AY195,[2]DropConfig!$A:$F,3,FALSE),"×",AZ195)) -> 修为×750 | BD195: 10 | BE195: 9127 | BF195: 3 | BG195: =P195 -> 41 | BH195: =IF(BD195="","",VLOOKUP(BD195,条件类型查询!A:B,2,FALSE)) -> 前置事件 | BI195: =IF(BF195="","",VLOOKUP(BF195,条件类型查询!A:B,2,FALSE)) -> 境界判断
A196: 9129 | B196: =IF(Z196>0,_xlfn.TEXTJOIN(";",1,ROW(INDIRECT(CONCATENATE("",A196*100+1,":",A196*100+Z196,""))),102,103),"") -> 912901;912902;912903;912904;912905;912906;912907;912908;912909;912910;912911;912912;912913;912914;912915;102;103 | C196: 6 | D196: 2 | E196: 1 | F196: 1 | G196: 3 | I196: 22008;1001;1003 | J196: 1;8300;850 | K196: 15 | L196: 1 | M196: 2 | N196: 5 | O196: =IF(M196="","",CONCATENATE(VLOOKUP(M196,[1]PlacesConfig!$A:$C,3,FALSE),IF(N196="",""," - "&VLOOKUP(N196,[1]SmallPlacesConfig!$A:$I,9,FALSE)))) -> 尧之都 - 主城 | P196: 51 | Q196: 7 | S196: 10;3 | T196: 9128;51 | V196: 4262 | W196: 4344 | X196: 劫掠覆来 | Y196: 斩除精英散修，馨儿拐楚云缪组队奔赴拍卖会。 | Z196: =COUNTIF(EventLinkConfig!O:O,EventConfig!A196) -> 15 | AU196: 22008 | AV196: 1 | AW196: 1001 | AX196: =ROUND(VLOOKUP(P196,[3]ResourceLevelConfig!$A:$C,3,FALSE)*5*0.01,0)*100 -> 8300 | AY196: 1003 | AZ196: =VLOOKUP(P196,[3]ResourceLevelConfig!$A:$E,5,FALSE)*5 -> 850 | BA196: =IF(AU196="","",CONCATENATE(VLOOKUP(AU196,[2]DropConfig!$A:$F,3,FALSE),"×",AV196)) -> 支线感悟点1×1 | BB196: =IF(AW196="","",CONCATENATE(VLOOKUP(AW196,[2]DropConfig!$A:$F,3,FALSE),"×",AX196)) -> 灵石×8300 | BC196: =IF(AY196="","",CONCATENATE(VLOOKUP(AY196,[2]DropConfig!$A:$F,3,FALSE),"×",AZ196)) -> 修为×850 | BD196: 10 | BE196: 9128 | BF196: 3 | BG196: 51 | BH196: =IF(BD196="","",VLOOKUP(BD196,条件类型查询!A:B,2,FALSE)) -> 前置事件 | BI196: =IF(BF196="","",VLOOKUP(BF196,条件类型查询!A:B,2,FALSE)) -> 境界判断
A197: 9130 | B197: =IF(Z197>0,_xlfn.TEXTJOIN(";",1,ROW(INDIRECT(CONCATENATE("",A197*100+1,":",A197*100+Z197,""))),102,103),"") -> 913001;913002;913003;913004;913005;913006;913007;102;103 | C197: 6 | D197: 2 | E197: 1 | F197: 1 | G197: 3 | I197: 1001;1003 | J197: 7900;800 | K197: 30 | L197: 1 | M197: 2 | N197: 5 | O197: =IF(M197="","",CONCATENATE(VLOOKUP(M197,[1]PlacesConfig!$A:$C,3,FALSE),IF(N197="",""," - "&VLOOKUP(N197,[1]SmallPlacesConfig!$A:$I,9,FALSE)))) -> 尧之都 - 主城 | P197: 46 | Q197: 8 | S197: 3 | T197: 41 | V197: 4263 | W197: 4345 | X197: 灵宝 | Y197: 楚云缪遇袭失碧云佩，你赶赴东南救援被追击的馨儿。 | Z197: =COUNTIF(EventLinkConfig!O:O,EventConfig!A197) -> 7 | AW197: 1001 | AX197: =ROUND(VLOOKUP(P197,[3]ResourceLevelConfig!$A:$C,3,FALSE)*5*0.01,0)*100 -> 7900 | AY197: 1003 | AZ197: =VLOOKUP(P197,[3]ResourceLevelConfig!$A:$E,5,FALSE)*5 -> 800 | BA197: =IF(AU197="","",CONCATENATE(VLOOKUP(AU197,[2]DropConfig!$A:$F,3,FALSE),"×",AV197)) ->  | BB197: =IF(AW197="","",CONCATENATE(VLOOKUP(AW197,[2]DropConfig!$A:$F,3,FALSE),"×",AX197)) -> 灵石×7900 | BC197: =IF(AY197="","",CONCATENATE(VLOOKUP(AY197,[2]DropConfig!$A:$F,3,FALSE),"×",AZ197)) -> 修为×800 | BD197: 3 | BE197: 41 | BH197: =IF(BD197="","",VLOOKUP(BD197,条件类型查询!A:B,2,FALSE)) -> 境界判断 | BI197: =IF(BF197="","",VLOOKUP(BF197,条件类型查询!A:B,2,FALSE)) -> 
A198: 9131 | B198: =IF(Z198>0,_xlfn.TEXTJOIN(";",1,ROW(INDIRECT(CONCATENATE("",A198*100+1,":",A198*100+Z198,""))),102,103),"") -> 913101;913102;913103;913104;102;103 | C198: 6 | D198: 2 | E198: 1 | F198: 1 | G198: 3 | I198: =_xlfn.TEXTJOIN(";",1,AU198,AW198,AY198) -> 1001;1003 | J198: =_xlfn.TEXTJOIN(";",1,AV198,AX198,AZ198) -> 8700;850 | K198: 20 | L198: 1 | M198: 2 | N198: 5 | O198: =IF(M198="","",CONCATENATE(VLOOKUP(M198,[1]PlacesConfig!$A:$C,3,FALSE),IF(N198="",""," - "&VLOOKUP(N198,[1]SmallPlacesConfig!$A:$I,9,FALSE)))) -> 尧之都 - 主城 | P198: 56 | Q198: 8 | S198: =_xlfn.TEXTJOIN(";",-1,BD198,BF198) -> 10;3 | T198: =_xlfn.TEXTJOIN(";",-1,BE198,BG198) -> 9130;56 | V198: 4264 | W198: 4346 | X198: 追逐抢夺之人 | Y198: 你与馨儿发现偷袭者另有接应，劫案背后暗藏更大阴谋。 | Z198: =COUNTIF(EventLinkConfig!O:O,EventConfig!A198) -> 4 | AW198: 1001 | AX198: =ROUND(VLOOKUP(P198,[3]ResourceLevelConfig!$A:$C,3,FALSE)*5*0.01,0)*100 -> 8700 | AY198: 1003 | AZ198: =VLOOKUP(P198,[3]ResourceLevelConfig!$A:$E,5,FALSE)*5 -> 850 | BA198: =IF(AU198="","",CONCATENATE(VLOOKUP(AU198,[2]DropConfig!$A:$F,3,FALSE),"×",AV198)) ->  | BB198: =IF(AW198="","",CONCATENATE(VLOOKUP(AW198,[2]DropConfig!$A:$F,3,FALSE),"×",AX198)) -> 灵石×8700 | BC198: =IF(AY198="","",CONCATENATE(VLOOKUP(AY198,[2]DropConfig!$A:$F,3,FALSE),"×",AZ198)) -> 修为×850 | BD198: 10 | BE198: 9130 | BF198: 3 | BG198: =P198 -> 56 | BH198: =IF(BD198="","",VLOOKUP(BD198,条件类型查询!A:B,2,FALSE)) -> 前置事件 | BI198: =IF(BF198="","",VLOOKUP(BF198,条件类型查询!A:B,2,FALSE)) -> 境界判断
A199: 9132 | B199: =IF(Z199>0,_xlfn.TEXTJOIN(";",1,ROW(INDIRECT(CONCATENATE("",A199*100+1,":",A199*100+Z199,""))),102,103),"") -> 913201;913202;913203;913204;913205;913206;913207;913208;913209;913210;913211;913212;913213;102;103 | C199: 6 | D199: 2 | E199: 1 | F199: 1 | G199: 3 | I199: 22008;1001;1003 | J199: 1;9600;950 | K199: 15 | L199: 1 | M199: 2 | N199: 5 | O199: =IF(M199="","",CONCATENATE(VLOOKUP(M199,[1]PlacesConfig!$A:$C,3,FALSE),IF(N199="",""," - "&VLOOKUP(N199,[1]SmallPlacesConfig!$A:$I,9,FALSE)))) -> 尧之都 - 主城 | P199: 66 | Q199: 8 | S199: 10;3 | T199: 9131;66 | V199: 4265 | W199: 4347 | X199: 青狼散人 | Y199: 你与馨儿击败青狼散人夺回碧云佩，青狼帮的威胁还未散。 | Z199: =COUNTIF(EventLinkConfig!O:O,EventConfig!A199) -> 13 | AU199: 22008 | AV199: 1 | AW199: 1001 | AX199: =ROUND(VLOOKUP(P199,[3]ResourceLevelConfig!$A:$C,3,FALSE)*5*0.01,0)*100 -> 9600 | AY199: 1003 | AZ199: =VLOOKUP(P199,[3]ResourceLevelConfig!$A:$E,5,FALSE)*5 -> 950 | BA199: =IF(AU199="","",CONCATENATE(VLOOKUP(AU199,[2]DropConfig!$A:$F,3,FALSE),"×",AV199)) -> 支线感悟点1×1 | BB199: =IF(AW199="","",CONCATENATE(VLOOKUP(AW199,[2]DropConfig!$A:$F,3,FALSE),"×",AX199)) -> 灵石×9600 | BC199: =IF(AY199="","",CONCATENATE(VLOOKUP(AY199,[2]DropConfig!$A:$F,3,FALSE),"×",AZ199)) -> 修为×950 | BD199: 10 | BE199: 9131 | BF199: 3 | BG199: 66 | BH199: =IF(BD199="","",VLOOKUP(BD199,条件类型查询!A:B,2,FALSE)) -> 前置事件 | BI199: =IF(BF199="","",VLOOKUP(BF199,条件类型查询!A:B,2,FALSE)) -> 境界判断
A200: 9133 | B200: =IF(Z200>0,_xlfn.TEXTJOIN(";",1,ROW(INDIRECT(CONCATENATE("",A200*100+1,":",A200*100+Z200,""))),102,103),"") -> 913301;913302;913303;913304;913305;913306;913307;913308;913309;102;103 | C200: 6 | D200: 2 | E200: 1 | F200: 1 | G200: 3 | I200: 1001;1003 | J200: 9100;900 | K200: 40 | L200: 1 | M200: 2 | N200: 6 | O200: =IF(M200="","",CONCATENATE(VLOOKUP(M200,[1]PlacesConfig!$A:$C,3,FALSE),IF(N200="",""," - "&VLOOKUP(N200,[1]SmallPlacesConfig!$A:$I,9,FALSE)))) -> 尧之都 - 山林 | P200: 61 | Q200: 9 | S200: 3 | T200: 61 | V200: 4266 | W200: 4348 | X200: 血海宗的掠夺 | Y200: 击杀劫道的血海宗弟子，宗门恩怨初现端倪。 | Z200: =COUNTIF(EventLinkConfig!O:O,EventConfig!A200) -> 9 | AW200: 1001 | AX200: =ROUND(VLOOKUP(P200,[3]ResourceLevelConfig!$A:$C,3,FALSE)*5*0.01,0)*100 -> 9100 | AY200: 1003 | AZ200: =VLOOKUP(P200,[3]ResourceLevelConfig!$A:$E,5,FALSE)*5 -> 900 | BA200: =IF(AU200="","",CONCATENATE(VLOOKUP(AU200,[2]DropConfig!$A:$F,3,FALSE),"×",AV200)) ->  | BB200: =IF(AW200="","",CONCATENATE(VLOOKUP(AW200,[2]DropConfig!$A:$F,3,FALSE),"×",AX200)) -> 灵石×9100 | BC200: =IF(AY200="","",CONCATENATE(VLOOKUP(AY200,[2]DropConfig!$A:$F,3,FALSE),"×",AZ200)) -> 修为×900 | BD200: 3 | BE200: 61 | BH200: =IF(BD200="","",VLOOKUP(BD200,条件类型查询!A:B,2,FALSE)) -> 境界判断 | BI200: =IF(BF200="","",VLOOKUP(BF200,条件类型查询!A:B,2,FALSE)) -> 
... 30 more rows

Sheet EventLinkConfig
A1: ID | B1: conciseEventMessage | D1: EventConditionMessage | G1: PreShow | H1: PreShowPar | J1: NPCID | L1: LanID | N1: DialogueType | O1: EventID | P1: step | Q1: ConditionId | U1: optionType | V1: optionPara1 | W1: optionPara2 | AG1: PrizeIDs | AH1: PrizeNums | AI1: ResultType | AJ1: ResultOptions
A2: int | B2: int | D2: int | G2: int | H2: int | J2: int | L2: int[] | N2: int | O2: int | P2: int | Q2: int[] | U2: int | V2: int[] | W2: int[] | AG2: int[] | AH2: int[] | AI2: int | AJ2: int[]
C3: 5001 | AL3: 5000
A4: ID | B4: 任务列表中的简洁描述 | C4: 任务列表中的简洁描述 | D4: 无任务目标时的补充文本 | E4: 无任务目标时的补充文本 | G4: 前置表现 1飞行 | H4: 前置表现参数 | J4: 对话NPCID 空白=不显示 100=玩家 | K4: NPC | L4: 对话 | M4: 对话1 | N4: 对话框类型 | O4: 属于哪个事件 | P4: 步骤 | Q4: 条件判断类型 | R4: 任务目标1 | S4: 任务目标2 | T4: 条件判断内容 | U4: 步骤类型 1=提供选项 2=进入战斗 5=自动退出 3=获得奖励 4=扣除道具 | V4: 事件常量1 1=步骤IDs 2=战斗ID | W4: 事件常量2 1=事件文本 | X4: 选择1 | Y4: 选择1 步骤：填选项文本1 战斗：填战斗ID | Z4: 选择1 步骤1：跳转到哪一步 不填默认跳转到下一步 | AA4: 选择2 | AB4: 选择2 步骤：填选项文本2 | AC4: 选择1 步骤2：跳转到哪一步 不填默认跳转到下一步 | AD4: 选择3 | AE4: 选择3 步骤：填选项文本3 | AF4: 选择1 步骤3：跳转到哪一步 不填默认跳转到下一步 | AG4: 事件结局奖励 | AH4: 事件结局奖励数量 | AI4: 事件结束类型 1：跳转步骤 2：根据战斗结果跳转 3.触发新事件 | AJ4: 结局后提供选项 1.EventLinkId 2.胜利id;失败id 3.EventConfigId | AK4: 1.步骤ID 2.胜利ID 3.事件ID 不填：默认下一个步骤ID | AL4: 语言表最大值 | AM4: 事件ID
A5: 100 | B5: =IF(C5="","",IF(C5=C4,B4,MAX(AL4,AL3)+1)) ->  | D5: =IF(E5="","",IF(E5=E4,D4,MAX(AL4,AL3,B5)+1)) ->  | L5: =IF(M5="","",MAX(AL4,AL3,B5,D5)+1) -> 5001 | M5: 你被怪物击败，神识也随之消散了。 | P5: =IF(O5="","",IF(O5=O4,P4+1,1)) ->  | Q5: =_xlfn.TEXTJOIN(";",1,R5:S5) ->  | T5: =IF(R5="","","-"&VLOOKUP(R5,EventConditionConfig!A:C,3,FALSE)&IF(S5="","",CHAR(10)&"-"&VLOOKUP(S5,EventConditionConfig!A:C,3,FALSE))) ->  | U5: =IF(AG5>0,3,IF(Y5="","",IF(ISTEXT(Y5),1,2))) ->  | X5: =IF(OR(ISNUMBER(Y5),Y5=""),"",MAX(AL4,AL2,B5,D5,L5)+1) ->  | AA5: =IF(OR(ISNUMBER(AB5),AB5=""),"",X5+1) ->  | AD5: =IF(OR(ISNUMBER(AE5),AE5=""),"",AA5+1) ->  | AL5: =IF(A5="","",MAX(B5,D5,L5,X5,AA5,AL4,AL3,AD5)) -> 5001 | AM5: =O5 -> 0
A6: 101 | L6: =IF(M6="","",MAX(AL5,AL4,B6,D6)+1) -> 5002 | M6: 你败下阵来，感到头晕目眩，试图努力回忆起刚才发生的事情。 | P6: =IF(O6="","",IF(O6=O5,P5+1,1)) ->  | Q6: =_xlfn.TEXTJOIN(";",1,R6:S6) ->  | T6: =IF(R6="","","-"&VLOOKUP(R6,EventConditionConfig!A:C,3,FALSE)&IF(S6="","",CHAR(10)&"-"&VLOOKUP(S6,EventConditionConfig!A:C,3,FALSE))) ->  | U6: =IF(AG6>0,3,IF(Y6="","",IF(ISTEXT(Y6),1,2))) ->  | AL6: =IF(A6="","",MAX(B6,D6,L6,X6,AA6,AL5,AL4,AD6)) -> 5002 | AM6: =O6 -> 0
A7: 102 | B7: 5003 | C7: 事件已完成 | L7: 5004 | M7: 战斗胜利，你获得了丰厚的战利品。 | N7: 2 | AL7: 5004 | AM7: 0
A8: 999901 | L8: 5005 | M8: 失败了这么多次，这次一定要突破心魔。 | N8: 2 | O8: 9999 | P8: =IF(O8="","",IF(O8=O7,P7+1,1)) -> 1 | AL8: 5005 | AM8: 9999
A9: =O9*100+P9 -> 10101 | B9: 5006 | C9: 击败妖邪 | K9: =IF(J9="","",VLOOKUP(J9,EventNPC!A:F,5,FALSE)) ->  | L9: 5007 | M9: 你发现一只落单的妖邪，他炫耀着抢来的法宝，正向你扑来，应战！ | N9: 3 | O9: 101 | P9: 1 | Q9: =_xlfn.TEXTJOIN(";",1,R9:S9) ->  | T9: =IF(R9="","","-"&VLOOKUP(R9,EventConditionConfig!A:C,3,FALSE)&IF(S9="","",CHAR(10)&"-"&VLOOKUP(S9,EventConditionConfig!A:C,3,FALSE))) ->  | U9: 2 | V9: =IF(U9=1,_xlfn.TEXTJOIN(";",1,IF(Z9="",A9+1,Z9),IF(AND(AA9<>"",AC9=""),A9+1,AC9),IF(AND(AD9<>"",AF9=""),A9+1,AF9)),IF(U9=2,Y9,"")) -> 5001 | W9: =_xlfn.TEXTJOIN(";",1,X9,AA9,AD9) ->  | Y9: 5001 | AI9: =IF(OR(AK9="结尾",A9=""),"",IF(ISNUMBER(Y9),2,IF(AND(AK9="",A10="",VLOOKUP(O9,EventConfig!A:C,3,FALSE)=4),3,IF(AND(AK9="",A10=""),"",1)))) -> 2 | AJ9: =IF(OR(AK9="结尾",AI9=""),"",CHOOSE(AI9,IF(AK9="",A9+1,AK9),CONCATENATE(IF(AK9="",A9+1,AK9),";101"),IF(AK9="",O9+1,AK9))) -> 102;101 | AK9: 102 | AL9: 5007 | AM9: 101
P10: =IF(O10="","",IF(O10=O9,P9+1,1)) ->  | AI10: =IF(OR(AK10="结尾",A10=""),"",IF(ISNUMBER(Y10),2,IF(AND(AK10="",A11="",VLOOKUP(O10,EventConfig!A:C,3,FALSE)=4),3,IF(AND(AK10="",A11=""),"",1)))) ->  | AJ10: =IF(OR(AK10="结尾",AI10=""),"",CHOOSE(AI10,IF(AK10="",A10+1,AK10),CONCATENATE(IF(AK10="",A10+1,AK10),";101"),IF(AK10="",O10+1,AK10))) ->  | AM10: 0
A11: =O11*100+P11 -> 10201 | B11: 5008 | C11: 击败妖邪 | K11: =IF(J11="","",VLOOKUP(J11,EventNPC!A:F,5,FALSE)) ->  | L11: 5009 | M11: 你发现一只落单的妖邪，他嘴里念叨着才学会的功法秘诀，正向你扑来，应战！ | N11: 3 | O11: 102 | P11: 1 | Q11: =_xlfn.TEXTJOIN(";",1,R11:S11) ->  | T11: =IF(R11="","","-"&VLOOKUP(R11,EventConditionConfig!A:C,3,FALSE)&IF(S11="","",CHAR(10)&"-"&VLOOKUP(S11,EventConditionConfig!A:C,3,FALSE))) ->  | U11: 2 | V11: =IF(U11=1,_xlfn.TEXTJOIN(";",1,IF(Z11="",A11+1,Z11),IF(AND(AA11<>"",AC11=""),A11+1,AC11),IF(AND(AD11<>"",AF11=""),A11+1,AF11)),IF(U11=2,Y11,"")) -> 5006 | W11: =_xlfn.TEXTJOIN(";",1,X11,AA11,AD11) ->  | Y11: 5006 | AI11: =IF(OR(AK11="结尾",A11=""),"",IF(ISNUMBER(Y11),2,IF(AND(AK11="",A12="",VLOOKUP(O11,EventConfig!A:C,3,FALSE)=4),3,IF(AND(AK11="",A12=""),"",1)))) -> 2 | AJ11: 102;101 | AK11: 102 | AL11: 5009 | AM11: 102
AI12: =IF(OR(AK12="结尾",A12=""),"",IF(ISNUMBER(Y12),2,IF(AND(AK12="",A13="",VLOOKUP(O12,EventConfig!A:C,3,FALSE)=4),3,IF(AND(AK12="",A13=""),"",1)))) ->  | AM12: 0
A13: =O13*100+P13 -> 10301 | B13: 5010 | C13: 使用神识探得资源 | K13: =IF(J13="","",VLOOKUP(J13,EventNPC!A:F,5,FALSE)) ->  | L13: 5011 | M13: 你发现一只落单的妖邪，他口袋里的灵石正叮当作响，看来你要发财了，应战！ | N13: 3 | O13: 103 | P13: 1 | Q13: =_xlfn.TEXTJOIN(";",1,R13:S13) ->  | T13: =IF(R13="","","-"&VLOOKUP(R13,EventConditionConfig!A:C,3,FALSE)&IF(S13="","",CHAR(10)&"-"&VLOOKUP(S13,EventConditionConfig!A:C,3,FALSE))) ->  | U13: 2 | V13: =IF(U13=1,_xlfn.TEXTJOIN(";",1,IF(Z13="",A13+1,Z13),IF(AND(AA13<>"",AC13=""),A13+1,AC13),IF(AND(AD13<>"",AF13=""),A13+1,AF13)),IF(U13=2,Y13,"")) -> 5011 | W13: =_xlfn.TEXTJOIN(";",1,X13,AA13,AD13) ->  | Y13: 5011 | AI13: =IF(OR(AK13="结尾",A13=""),"",IF(ISNUMBER(Y13),2,IF(AND(AK13="",A14="",VLOOKUP(O13,EventConfig!A:C,3,FALSE)=4),3,IF(AND(AK13="",A14=""),"",1)))) -> 2 | AJ13: 10302;101 | AL13: 5011 | AM13: 103
AI14: =IF(OR(AK14="结尾",A14=""),"",IF(ISNUMBER(Y14),2,IF(AND(AK14="",A15="",VLOOKUP(O14,EventConfig!A:C,3,FALSE)=4),3,IF(AND(AK14="",A15=""),"",1)))) ->  | AM14: 0
A15: =O15*100+P15 -> 10401 | B15: 5012 | C15: 使用神识探得资源 | K15: =IF(J15="","",VLOOKUP(J15,EventNPC!A:F,5,FALSE)) ->  | L15: 5013 | M15: 此处仙气缭绕，你用神识一探，果然探得丰富的功法灵气！ | N15: 2 | O15: 104 | P15: 1 | Q15: =_xlfn.TEXTJOIN(";",1,R15:S15) ->  | T15: =IF(R15="","","-"&VLOOKUP(R15,EventConditionConfig!A:C,3,FALSE)&IF(S15="","",CHAR(10)&"-"&VLOOKUP(S15,EventConditionConfig!A:C,3,FALSE))) ->  | V15: =IF(U15=1,_xlfn.TEXTJOIN(";",1,IF(Z15="",A15+1,Z15),IF(AND(AA15<>"",AC15=""),A15+1,AC15),IF(AND(AD15<>"",AF15=""),A15+1,AF15)),IF(U15=2,Y15,"")) ->  | W15: =_xlfn.TEXTJOIN(";",1,X15,AA15,AD15) ->  | AI15: =IF(OR(AK15="结尾",A15=""),"",IF(ISNUMBER(Y15),2,IF(AND(AK15="",A16="",VLOOKUP(O15,EventConfig!A:C,3,FALSE)=4),3,IF(AND(AK15="",A16=""),"",1)))) ->  | AL15: 5013 | AM15: 104
AI16: =IF(OR(AK16="结尾",A16=""),"",IF(ISNUMBER(Y16),2,IF(AND(AK16="",A17="",VLOOKUP(O16,EventConfig!A:C,3,FALSE)=4),3,IF(AND(AK16="",A17=""),"",1)))) ->  | AM16: 0
A17: =O17*100+P17 -> 10501 | B17: 5014 | C17: 使用神识探得资源 | K17: =IF(J17="","",VLOOKUP(J17,EventNPC!A:F,5,FALSE)) ->  | L17: 5015 | M17: 此处仙气缭绕，你用神识一探，果然探得丰富的法宝玄晶！ | N17: 2 | O17: 105 | P17: 1 | Q17: =_xlfn.TEXTJOIN(";",1,R17:S17) ->  | T17: =IF(R17="","","-"&VLOOKUP(R17,EventConditionConfig!A:C,3,FALSE)&IF(S17="","",CHAR(10)&"-"&VLOOKUP(S17,EventConditionConfig!A:C,3,FALSE))) ->  | V17: =IF(U17=1,_xlfn.TEXTJOIN(";",1,IF(Z17="",A17+1,Z17),IF(AND(AA17<>"",AC17=""),A17+1,AC17),IF(AND(AD17<>"",AF17=""),A17+1,AF17)),IF(U17=2,Y17,"")) ->  | W17: =_xlfn.TEXTJOIN(";",1,X17,AA17,AD17) ->  | AI17: =IF(OR(AK17="结尾",A17=""),"",IF(ISNUMBER(Y17),2,IF(AND(AK17="",A18="",VLOOKUP(O17,EventConfig!A:C,3,FALSE)=4),3,IF(AND(AK17="",A18=""),"",1)))) ->  | AL17: 5015 | AM17: 105
AI18: =IF(OR(AK18="结尾",A18=""),"",IF(ISNUMBER(Y18),2,IF(AND(AK18="",A19="",VLOOKUP(O18,EventConfig!A:C,3,FALSE)=4),3,IF(AND(AK18="",A19=""),"",1)))) ->  | AM18: 0
A19: =O19*100+P19 -> 10601 | B19: 5016 | C19: 使用神识探得资源 | K19: =IF(J19="","",VLOOKUP(J19,EventNPC!A:F,5,FALSE)) ->  | L19: 5017 | M19: 你遭遇一只妖邪，他挥舞着不知从哪来的增元丹，示意要打劫，应战！ | N19: 2 | O19: 106 | P19: 1 | Q19: =_xlfn.TEXTJOIN(";",1,R19:S19) ->  | T19: =IF(R19="","","-"&VLOOKUP(R19,EventConditionConfig!A:C,3,FALSE)&IF(S19="","",CHAR(10)&"-"&VLOOKUP(S19,EventConditionConfig!A:C,3,FALSE))) ->  | U19: 2 | V19: =IF(U19=1,_xlfn.TEXTJOIN(";",1,IF(Z19="",A19+1,Z19),IF(AND(AA19<>"",AC19=""),A19+1,AC19),IF(AND(AD19<>"",AF19=""),A19+1,AF19)),IF(U19=2,Y19,"")) -> 5016 | W19: =_xlfn.TEXTJOIN(";",1,X19,AA19,AD19) ->  | Y19: 5016 | AI19: =IF(OR(AK19="结尾",A19=""),"",IF(ISNUMBER(Y19),2,IF(AND(AK19="",A20="",VLOOKUP(O19,EventConfig!A:C,3,FALSE)=4),3,IF(AND(AK19="",A20=""),"",1)))) -> 2 | AJ19: 102;101 | AK19: 102 | AL19: 5017 | AM19: 106
AI20: =IF(OR(AK20="结尾",A20=""),"",IF(ISNUMBER(Y20),2,IF(AND(AK20="",A21="",VLOOKUP(O20,EventConfig!A:C,3,FALSE)=4),3,IF(AND(AK20="",A21=""),"",1)))) ->  | AM20: 0
A21: =O21*100+P21 -> 10701 | B21: 5018 | C21: 使用神识探得资源 | K21: =IF(J21="","",VLOOKUP(J21,EventNPC!A:F,5,FALSE)) ->  | L21: 5019 | M21: 你发现两名实力不俗的邪修，正在炼制渡劫所需要的天材地宝，这等好事都让你遇上了！ | N21: 2 | O21: 107 | P21: 1 | Q21: =_xlfn.TEXTJOIN(";",1,R21:S21) ->  | T21: =IF(R21="","","-"&VLOOKUP(R21,EventConditionConfig!A:C,3,FALSE)&IF(S21="","",CHAR(10)&"-"&VLOOKUP(S21,EventConditionConfig!A:C,3,FALSE))) ->  | U21: 2 | V21: =IF(U21=1,_xlfn.TEXTJOIN(";",1,IF(Z21="",A21+1,Z21),IF(AND(AA21<>"",AC21=""),A21+1,AC21),IF(AND(AD21<>"",AF21=""),A21+1,AF21)),IF(U21=2,Y21,"")) -> 5021 | W21: =_xlfn.TEXTJOIN(";",1,X21,AA21,AD21) ->  | Y21: 5021 | AI21: =IF(OR(AK21="结尾",A21=""),"",IF(ISNUMBER(Y21),2,IF(AND(AK21="",A22="",VLOOKUP(O21,EventConfig!A:C,3,FALSE)=4),3,IF(AND(AK21="",A22=""),"",1)))) -> 2 | AJ21: 102;101 | AK21: 102 | AL21: 5019 | AM21: 107
AI22: =IF(OR(AK22="结尾",A22=""),"",IF(ISNUMBER(Y22),2,IF(AND(AK22="",A23="",VLOOKUP(O22,EventConfig!A:C,3,FALSE)=4),3,IF(AND(AK22="",A23=""),"",1)))) ->  | AM22: 0
A23: =O23*100+P23 -> 10801 | B23: 5020 | C23: 使用神识探得资源 | K23: =IF(J23="","",VLOOKUP(J23,EventNPC!A:F,5,FALSE)) ->  | L23: 5021 | M23: 你来到一片清香之地，漫山的茶叶散发着清香，你摘走了一些。 | N23: 2 | O23: 108 | P23: 1 | Q23: =_xlfn.TEXTJOIN(";",1,R23:S23) ->  | T23: =IF(R23="","","-"&VLOOKUP(R23,EventConditionConfig!A:C,3,FALSE)&IF(S23="","",CHAR(10)&"-"&VLOOKUP(S23,EventConditionConfig!A:C,3,FALSE))) ->  | V23: =IF(U23=1,_xlfn.TEXTJOIN(";",1,IF(Z23="",A23+1,Z23),IF(AND(AA23<>"",AC23=""),A23+1,AC23),IF(AND(AD23<>"",AF23=""),A23+1,AF23)),IF(U23=2,Y23,"")) ->  | W23: =_xlfn.TEXTJOIN(";",1,X23,AA23,AD23) ->  | AI23: =IF(OR(AK23="结尾",A23=""),"",IF(ISNUMBER(Y23),2,IF(AND(AK23="",A24="",VLOOKUP(O23,EventConfig!A:C,3,FALSE)=4),3,IF(AND(AK23="",A24=""),"",1)))) ->  | AL23: 5021 | AM23: 108
AI24: =IF(OR(AK24="结尾",A24=""),"",IF(ISNUMBER(Y24),2,IF(AND(AK24="",A25="",VLOOKUP(O24,EventConfig!A:C,3,FALSE)=4),3,IF(AND(AK24="",A25=""),"",1)))) ->  | AM24: 0
A25: =O25*100+P25 -> 10901 | B25: 5022 | C25: 使用神识探得资源 | K25: =IF(J25="","",VLOOKUP(J25,EventNPC!A:F,5,FALSE)) ->  | L25: 5023 | M25: 你偶然闯入一片隐秘的果林，突然发现这果实，不正好是可以让所有道友都开心的好东西么！ | N25: 2 | O25: 109 | P25: 1 | Q25: =_xlfn.TEXTJOIN(";",1,R25:S25) ->  | T25: =IF(R25="","","-"&VLOOKUP(R25,EventConditionConfig!A:C,3,FALSE)&IF(S25="","",CHAR(10)&"-"&VLOOKUP(S25,EventConditionConfig!A:C,3,FALSE))) ->  | V25: =IF(U25=1,_xlfn.TEXTJOIN(";",1,IF(Z25="",A25+1,Z25),IF(AND(AA25<>"",AC25=""),A25+1,AC25),IF(AND(AD25<>"",AF25=""),A25+1,AF25)),IF(U25=2,Y25,"")) ->  | W25: =_xlfn.TEXTJOIN(";",1,X25,AA25,AD25) ->  | AI25: =IF(OR(AK25="结尾",A25=""),"",IF(ISNUMBER(Y25),2,IF(AND(AK25="",A26="",VLOOKUP(O25,EventConfig!A:C,3,FALSE)=4),3,IF(AND(AK25="",A26=""),"",1)))) ->  | AL25: 5023 | AM25: 109
AI26: =IF(OR(AK26="结尾",A26=""),"",IF(ISNUMBER(Y26),2,IF(AND(AK26="",A27="",VLOOKUP(O26,EventConfig!A:C,3,FALSE)=4),3,IF(AND(AK26="",A27=""),"",1)))) ->  | AM26: 0
A27: =O27*100+P27 -> 11001 | B27: 5024 | C27: 击败妖邪 | K27: =IF(J27="","",VLOOKUP(J27,EventNPC!A:F,5,FALSE)) ->  | L27: 5025 | M27: 你发现一只落单的妖邪，他炫耀着抢来的法宝，正向你扑来，应战！ | N27: 3 | O27: 110 | P27: 1 | Q27: =_xlfn.TEXTJOIN(";",1,R27:S27) ->  | T27: =IF(R27="","","-"&VLOOKUP(R27,EventConditionConfig!A:C,3,FALSE)&IF(S27="","",CHAR(10)&"-"&VLOOKUP(S27,EventConditionConfig!A:C,3,FALSE))) ->  | U27: 2 | V27: =IF(U27=1,_xlfn.TEXTJOIN(";",1,IF(Z27="",A27+1,Z27),IF(AND(AA27<>"",AC27=""),A27+1,AC27),IF(AND(AD27<>"",AF27=""),A27+1,AF27)),IF(U27=2,Y27,"")) -> 5002 | W27: =_xlfn.TEXTJOIN(";",1,X27,AA27,AD27) ->  | Y27: 5002 | AI27: =IF(OR(AK27="结尾",A27=""),"",IF(ISNUMBER(Y27),2,IF(AND(AK27="",A28="",VLOOKUP(O27,EventConfig!A:C,3,FALSE)=4),3,IF(AND(AK27="",A28=""),"",1)))) -> 2 | AJ27: 102;101 | AK27: 102 | AL27: 5025 | AM27: 110
AI28: =IF(OR(AK28="结尾",A28=""),"",IF(ISNUMBER(Y28),2,IF(AND(AK28="",A29="",VLOOKUP(O28,EventConfig!A:C,3,FALSE)=4),3,IF(AND(AK28="",A29=""),"",1)))) ->  | AM28: 0
A29: =O29*100+P29 -> 11101 | B29: 5026 | C29: 击败妖邪 | K29: =IF(J29="","",VLOOKUP(J29,EventNPC!A:F,5,FALSE)) ->  | L29: 5027 | M29: 你发现一只落单的妖邪，他嘴里念叨着才学会的功法秘诀，正向你扑来，应战！ | N29: 3 | O29: 111 | P29: 1 | Q29: =_xlfn.TEXTJOIN(";",1,R29:S29) ->  | T29: =IF(R29="","","-"&VLOOKUP(R29,EventConditionConfig!A:C,3,FALSE)&IF(S29="","",CHAR(10)&"-"&VLOOKUP(S29,EventConditionConfig!A:C,3,FALSE))) ->  | U29: 2 | V29: =IF(U29=1,_xlfn.TEXTJOIN(";",1,IF(Z29="",A29+1,Z29),IF(AND(AA29<>"",AC29=""),A29+1,AC29),IF(AND(AD29<>"",AF29=""),A29+1,AF29)),IF(U29=2,Y29,"")) -> 5007 | W29: =_xlfn.TEXTJOIN(";",1,X29,AA29,AD29) ->  | Y29: 5007 | AI29: =IF(OR(AK29="结尾",A29=""),"",IF(ISNUMBER(Y29),2,IF(AND(AK29="",A30="",VLOOKUP(O29,EventConfig!A:C,3,FALSE)=4),3,IF(AND(AK29="",A30=""),"",1)))) -> 2 | AJ29: 102;101 | AK29: 102 | AL29: 5027 | AM29: 111
AI30: =IF(OR(AK30="结尾",A30=""),"",IF(ISNUMBER(Y30),2,IF(AND(AK30="",A31="",VLOOKUP(O30,EventConfig!A:C,3,FALSE)=4),3,IF(AND(AK30="",A31=""),"",1)))) ->  | AM30: 0
A31: =O31*100+P31 -> 11201 | B31: 5028 | C31: 使用神识探得资源 | K31: =IF(J31="","",VLOOKUP(J31,EventNPC!A:F,5,FALSE)) ->  | L31: 5029 | M31: 你发现一只落单的妖邪，他口袋里的灵石正叮当作响，看来你要发财了，应战！ | N31: 3 | O31: 112 | P31: =IF(O31="","",IF(O31=O30,P30+1,1)) -> 1 | Q31: =_xlfn.TEXTJOIN(";",1,R31:S31) ->  | T31: =IF(R31="","","-"&VLOOKUP(R31,EventConditionConfig!A:C,3,FALSE)&IF(S31="","",CHAR(10)&"-"&VLOOKUP(S31,EventConditionConfig!A:C,3,FALSE))) ->  | U31: 2 | V31: =IF(U31=1,_xlfn.TEXTJOIN(";",1,IF(Z31="",A31+1,Z31),IF(AND(AA31<>"",AC31=""),A31+1,AC31),IF(AND(AD31<>"",AF31=""),A31+1,AF31)),IF(U31=2,Y31,"")) -> 5012 | W31: =_xlfn.TEXTJOIN(";",1,X31,AA31,AD31) ->  | Y31: 5012 | AI31: =IF(OR(AK31="结尾",A31=""),"",IF(ISNUMBER(Y31),2,IF(AND(AK31="",A32="",VLOOKUP(O31,EventConfig!A:C,3,FALSE)=4),3,IF(AND(AK31="",A32=""),"",1)))) -> 2 | AJ31: 11202;101 | AL31: 5029 | AM31: 112
AI32: =IF(OR(AK32="结尾",A32=""),"",IF(ISNUMBER(Y32),2,IF(AND(AK32="",A33="",VLOOKUP(O32,EventConfig!A:C,3,FALSE)=4),3,IF(AND(AK32="",A33=""),"",1)))) ->  | AM32: 0
A33: =O33*100+P33 -> 11301 | B33: 5030 | C33: 使用神识探得资源 | K33: =IF(J33="","",VLOOKUP(J33,EventNPC!A:F,5,FALSE)) ->  | L33: 5031 | M33: 此处仙气缭绕，你用神识一探，果然探得丰富的功法灵气！ | N33: 2 | O33: 113 | P33: 1 | Q33: =_xlfn.TEXTJOIN(";",1,R33:S33) ->  | T33: =IF(R33="","","-"&VLOOKUP(R33,EventConditionConfig!A:C,3,FALSE)&IF(S33="","",CHAR(10)&"-"&VLOOKUP(S33,EventConditionConfig!A:C,3,FALSE))) ->  | V33: =IF(U33=1,_xlfn.TEXTJOIN(";",1,IF(Z33="",A33+1,Z33),IF(AND(AA33<>"",AC33=""),A33+1,AC33),IF(AND(AD33<>"",AF33=""),A33+1,AF33)),IF(U33=2,Y33,"")) ->  | W33: =_xlfn.TEXTJOIN(";",1,X33,AA33,AD33) ->  | AI33: =IF(OR(AK33="结尾",A33=""),"",IF(ISNUMBER(Y33),2,IF(AND(AK33="",A34="",VLOOKUP(O33,EventConfig!A:C,3,FALSE)=4),3,IF(AND(AK33="",A34=""),"",1)))) ->  | AL33: 5031 | AM33: 113
AI34: =IF(OR(AK34="结尾",A34=""),"",IF(ISNUMBER(Y34),2,IF(AND(AK34="",A35="",VLOOKUP(O34,EventConfig!A:C,3,FALSE)=4),3,IF(AND(AK34="",A35=""),"",1)))) ->  | AM34: 0
A35: =O35*100+P35 -> 11401 | B35: 5032 | C35: 使用神识探得资源 | K35: =IF(J35="","",VLOOKUP(J35,EventNPC!A:F,5,FALSE)) ->  | L35: 5033 | M35: 此处仙气缭绕，你用神识一探，果然探得丰富的法宝玄晶！ | N35: 2 | O35: 114 | P35: 1 | Q35: =_xlfn.TEXTJOIN(";",1,R35:S35) ->  | T35: =IF(R35="","","-"&VLOOKUP(R35,EventConditionConfig!A:C,3,FALSE)&IF(S35="","",CHAR(10)&"-"&VLOOKUP(S35,EventConditionConfig!A:C,3,FALSE))) ->  | V35: =IF(U35=1,_xlfn.TEXTJOIN(";",1,IF(Z35="",A35+1,Z35),IF(AND(AA35<>"",AC35=""),A35+1,AC35),IF(AND(AD35<>"",AF35=""),A35+1,AF35)),IF(U35=2,Y35,"")) ->  | W35: =_xlfn.TEXTJOIN(";",1,X35,AA35,AD35) ->  | AI35: =IF(OR(AK35="结尾",A35=""),"",IF(ISNUMBER(Y35),2,IF(AND(AK35="",A36="",VLOOKUP(O35,EventConfig!A:C,3,FALSE)=4),3,IF(AND(AK35="",A36=""),"",1)))) ->  | AL35: 5033 | AM35: 114
AI36: =IF(OR(AK36="结尾",A36=""),"",IF(ISNUMBER(Y36),2,IF(AND(AK36="",A37="",VLOOKUP(O36,EventConfig!A:C,3,FALSE)=4),3,IF(AND(AK36="",A37=""),"",1)))) ->  | AM36: 0
A37: =O37*100+P37 -> 11501 | B37: 5034 | C37: 使用神识探得资源 | K37: =IF(J37="","",VLOOKUP(J37,EventNPC!A:F,5,FALSE)) ->  | L37: 5035 | M37: 你遭遇一只妖邪，他挥舞着不知从哪来的增元丹，示意要打劫，应战！ | N37: 2 | O37: 115 | P37: 1 | Q37: =_xlfn.TEXTJOIN(";",1,R37:S37) ->  | T37: =IF(R37="","","-"&VLOOKUP(R37,EventConditionConfig!A:C,3,FALSE)&IF(S37="","",CHAR(10)&"-"&VLOOKUP(S37,EventConditionConfig!A:C,3,FALSE))) ->  | U37: 2 | V37: =IF(U37=1,_xlfn.TEXTJOIN(";",1,IF(Z37="",A37+1,Z37),IF(AND(AA37<>"",AC37=""),A37+1,AC37),IF(AND(AD37<>"",AF37=""),A37+1,AF37)),IF(U37=2,Y37,"")) -> 5017 | W37: =_xlfn.TEXTJOIN(";",1,X37,AA37,AD37) ->  | Y37: 5017 | AI37: =IF(OR(AK37="结尾",A37=""),"",IF(ISNUMBER(Y37),2,IF(AND(AK37="",A38="",VLOOKUP(O37,EventConfig!A:C,3,FALSE)=4),3,IF(AND(AK37="",A38=""),"",1)))) -> 2 | AJ37: 102;101 | AK37: 102 | AL37: 5035 | AM37: 115
AI38: =IF(OR(AK38="结尾",A38=""),"",IF(ISNUMBER(Y38),2,IF(AND(AK38="",A39="",VLOOKUP(O38,EventConfig!A:C,3,FALSE)=4),3,IF(AND(AK38="",A39=""),"",1)))) ->  | AM38: 0
A39: =O39*100+P39 -> 11601 | B39: 5036 | C39: 使用神识探得资源 | K39: =IF(J39="","",VLOOKUP(J39,EventNPC!A:F,5,FALSE)) ->  | L39: 5037 | M39: 你发现两名实力不俗的邪修，正在炼制渡劫所需要的天材地宝，这等好事都让你遇上了！ | N39: 2 | O39: 116 | P39: 1 | Q39: =_xlfn.TEXTJOIN(";",1,R39:S39) ->  | T39: =IF(R39="","","-"&VLOOKUP(R39,EventConditionConfig!A:C,3,FALSE)&IF(S39="","",CHAR(10)&"-"&VLOOKUP(S39,EventConditionConfig!A:C,3,FALSE))) ->  | U39: 2 | V39: =IF(U39=1,_xlfn.TEXTJOIN(";",1,IF(Z39="",A39+1,Z39),IF(AND(AA39<>"",AC39=""),A39+1,AC39),IF(AND(AD39<>"",AF39=""),A39+1,AF39)),IF(U39=2,Y39,"")) -> 5022 | W39: =_xlfn.TEXTJOIN(";",1,X39,AA39,AD39) ->  | Y39: 5022 | AI39: =IF(OR(AK39="结尾",A39=""),"",IF(ISNUMBER(Y39),2,IF(AND(AK39="",A40="",VLOOKUP(O39,EventConfig!A:C,3,FALSE)=4),3,IF(AND(AK39="",A40=""),"",1)))) -> 2 | AJ39: 102;101 | AK39: 102 | AL39: 5037 | AM39: 116
AI40: =IF(OR(AK40="结尾",A40=""),"",IF(ISNUMBER(Y40),2,IF(AND(AK40="",A41="",VLOOKUP(O40,EventConfig!A:C,3,FALSE)=4),3,IF(AND(AK40="",A41=""),"",1)))) ->  | AM40: 0
A41: =O41*100+P41 -> 11701 | B41: 5038 | C41: 使用神识探得资源 | K41: =IF(J41="","",VLOOKUP(J41,EventNPC!A:F,5,FALSE)) ->  | L41: 5039 | M41: 你来到一片清香之地，漫山的茶叶散发着清香，你摘走了一些。 | N41: 2 | O41: 117 | P41: 1 | Q41: =_xlfn.TEXTJOIN(";",1,R41:S41) ->  | T41: =IF(R41="","","-"&VLOOKUP(R41,EventConditionConfig!A:C,3,FALSE)&IF(S41="","",CHAR(10)&"-"&VLOOKUP(S41,EventConditionConfig!A:C,3,FALSE))) ->  | V41: =IF(U41=1,_xlfn.TEXTJOIN(";",1,IF(Z41="",A41+1,Z41),IF(AND(AA41<>"",AC41=""),A41+1,AC41),IF(AND(AD41<>"",AF41=""),A41+1,AF41)),IF(U41=2,Y41,"")) ->  | W41: =_xlfn.TEXTJOIN(";",1,X41,AA41,AD41) ->  | AI41: =IF(OR(AK41="结尾",A41=""),"",IF(ISNUMBER(Y41),2,IF(AND(AK41="",A42="",VLOOKUP(O41,EventConfig!A:C,3,FALSE)=4),3,IF(AND(AK41="",A42=""),"",1)))) ->  | AL41: 5039 | AM41: 117
AI42: =IF(OR(AK42="结尾",A42=""),"",IF(ISNUMBER(Y42),2,IF(AND(AK42="",A43="",VLOOKUP(O42,EventConfig!A:C,3,FALSE)=4),3,IF(AND(AK42="",A43=""),"",1)))) ->  | AM42: 0
A43: =O43*100+P43 -> 11801 | B43: 5040 | C43: 使用神识探得资源 | K43: =IF(J43="","",VLOOKUP(J43,EventNPC!A:F,5,FALSE)) ->  | L43: 5041 | M43: 你偶然闯入一片隐秘的果林，突然发现这果实，不正好是可以让所有道友都开心的好东西么！ | N43: 2 | O43: 118 | P43: 1 | Q43: =_xlfn.TEXTJOIN(";",1,R43:S43) ->  | T43: =IF(R43="","","-"&VLOOKUP(R43,EventConditionConfig!A:C,3,FALSE)&IF(S43="","",CHAR(10)&"-"&VLOOKUP(S43,EventConditionConfig!A:C,3,FALSE))) ->  | V43: =IF(U43=1,_xlfn.TEXTJOIN(";",1,IF(Z43="",A43+1,Z43),IF(AND(AA43<>"",AC43=""),A43+1,AC43),IF(AND(AD43<>"",AF43=""),A43+1,AF43)),IF(U43=2,Y43,"")) ->  | W43: =_xlfn.TEXTJOIN(";",1,X43,AA43,AD43) ->  | AI43: =IF(OR(AK43="结尾",A43=""),"",IF(ISNUMBER(Y43),2,IF(AND(AK43="",A44="",VLOOKUP(O43,EventConfig!A:C,3,FALSE)=4),3,IF(AND(AK43="",A44=""),"",1)))) ->  | AL43: 5041 | AM43: 118
AI44: =IF(OR(AK44="结尾",A44=""),"",IF(ISNUMBER(Y44),2,IF(AND(AK44="",A45="",VLOOKUP(O44,EventConfig!A:C,3,FALSE)=4),3,IF(AND(AK44="",A45=""),"",1)))) ->  | AM44: 0
A45: =O45*100+P45 -> 11901 | B45: 5042 | C45: 击败妖邪 | K45: =IF(J45="","",VLOOKUP(J45,EventNPC!A:F,5,FALSE)) ->  | L45: 5043 | M45: 你发现一只落单的妖邪，他炫耀着抢来的法宝，正向你扑来，应战！ | N45: 3 | O45: 119 | P45: 1 | Q45: =_xlfn.TEXTJOIN(";",1,R45:S45) ->  | T45: =IF(R45="","","-"&VLOOKUP(R45,EventConditionConfig!A:C,3,FALSE)&IF(S45="","",CHAR(10)&"-"&VLOOKUP(S45,EventConditionConfig!A:C,3,FALSE))) ->  | U45: 2 | V45: =IF(U45=1,_xlfn.TEXTJOIN(";",1,IF(Z45="",A45+1,Z45),IF(AND(AA45<>"",AC45=""),A45+1,AC45),IF(AND(AD45<>"",AF45=""),A45+1,AF45)),IF(U45=2,Y45,"")) -> 5003 | W45: =_xlfn.TEXTJOIN(";",1,X45,AA45,AD45) ->  | Y45: 5003 | AI45: =IF(OR(AK45="结尾",A45=""),"",IF(ISNUMBER(Y45),2,IF(AND(AK45="",A46="",VLOOKUP(O45,EventConfig!A:C,3,FALSE)=4),3,IF(AND(AK45="",A46=""),"",1)))) -> 2 | AJ45: 102;101 | AK45: 102 | AL45: 5043 | AM45: 119
AI46: =IF(OR(AK46="结尾",A46=""),"",IF(ISNUMBER(Y46),2,IF(AND(AK46="",A47="",VLOOKUP(O46,EventConfig!A:C,3,FALSE)=4),3,IF(AND(AK46="",A47=""),"",1)))) ->  | AM46: 0
A47: =O47*100+P47 -> 12001 | B47: 5044 | C47: 击败妖邪 | K47: =IF(J47="","",VLOOKUP(J47,EventNPC!A:F,5,FALSE)) ->  | L47: 5045 | M47: 你发现一只落单的妖邪，他嘴里念叨着才学会的功法秘诀，正向你扑来，应战！ | N47: 3 | O47: 120 | P47: 1 | Q47: =_xlfn.TEXTJOIN(";",1,R47:S47) ->  | T47: =IF(R47="","","-"&VLOOKUP(R47,EventConditionConfig!A:C,3,FALSE)&IF(S47="","",CHAR(10)&"-"&VLOOKUP(S47,EventConditionConfig!A:C,3,FALSE))) ->  | U47: 2 | V47: =IF(U47=1,_xlfn.TEXTJOIN(";",1,IF(Z47="",A47+1,Z47),IF(AND(AA47<>"",AC47=""),A47+1,AC47),IF(AND(AD47<>"",AF47=""),A47+1,AF47)),IF(U47=2,Y47,"")) -> 5008 | W47: =_xlfn.TEXTJOIN(";",1,X47,AA47,AD47) ->  | Y47: 5008 | AI47: =IF(OR(AK47="结尾",A47=""),"",IF(ISNUMBER(Y47),2,IF(AND(AK47="",A48="",VLOOKUP(O47,EventConfig!A:C,3,FALSE)=4),3,IF(AND(AK47="",A48=""),"",1)))) -> 2 | AJ47: 102;101 | AK47: 102 | AL47: 5045 | AM47: 120
AI48: =IF(OR(AK48="结尾",A48=""),"",IF(ISNUMBER(Y48),2,IF(AND(AK48="",A49="",VLOOKUP(O48,EventConfig!A:C,3,FALSE)=4),3,IF(AND(AK48="",A49=""),"",1)))) ->  | AM48: 0
A49: =O49*100+P49 -> 12101 | B49: 5046 | C49: 使用神识探得资源 | K49: =IF(J49="","",VLOOKUP(J49,EventNPC!A:F,5,FALSE)) ->  | L49: 5047 | M49: 你发现一只落单的妖邪，他口袋里的灵石正叮当作响，看来你要发财了，应战！ | N49: 3 | O49: 121 | P49: =IF(O49="","",IF(O49=O48,P48+1,1)) -> 1 | Q49: =_xlfn.TEXTJOIN(";",1,R49:S49) ->  | T49: =IF(R49="","","-"&VLOOKUP(R49,EventConditionConfig!A:C,3,FALSE)&IF(S49="","",CHAR(10)&"-"&VLOOKUP(S49,EventConditionConfig!A:C,3,FALSE))) ->  | U49: 2 | V49: =IF(U49=1,_xlfn.TEXTJOIN(";",1,IF(Z49="",A49+1,Z49),IF(AND(AA49<>"",AC49=""),A49+1,AC49),IF(AND(AD49<>"",AF49=""),A49+1,AF49)),IF(U49=2,Y49,"")) -> 5013 | W49: =_xlfn.TEXTJOIN(";",1,X49,AA49,AD49) ->  | Y49: 5013 | AI49: =IF(OR(AK49="结尾",A49=""),"",IF(ISNUMBER(Y49),2,IF(AND(AK49="",A50="",VLOOKUP(O49,EventConfig!A:C,3,FALSE)=4),3,IF(AND(AK49="",A50=""),"",1)))) -> 2 | AJ49: 12102;101 | AL49: 5047 | AM49: 121
AI50: =IF(OR(AK50="结尾",A50=""),"",IF(ISNUMBER(Y50),2,IF(AND(AK50="",A51="",VLOOKUP(O50,EventConfig!A:C,3,FALSE)=4),3,IF(AND(AK50="",A51=""),"",1)))) ->  | AM50: 0
A51: =O51*100+P51 -> 12201 | B51: 5048 | C51: 使用神识探得资源 | K51: =IF(J51="","",VLOOKUP(J51,EventNPC!A:F,5,FALSE)) ->  | L51: 5049 | M51: 此处仙气缭绕，你用神识一探，果然探得丰富的功法灵气！ | N51: 2 | O51: 122 | P51: 1 | Q51: =_xlfn.TEXTJOIN(";",1,R51:S51) ->  | T51: =IF(R51="","","-"&VLOOKUP(R51,EventConditionConfig!A:C,3,FALSE)&IF(S51="","",CHAR(10)&"-"&VLOOKUP(S51,EventConditionConfig!A:C,3,FALSE))) ->  | V51: =IF(U51=1,_xlfn.TEXTJOIN(";",1,IF(Z51="",A51+1,Z51),IF(AND(AA51<>"",AC51=""),A51+1,AC51),IF(AND(AD51<>"",AF51=""),A51+1,AF51)),IF(U51=2,Y51,"")) ->  | W51: =_xlfn.TEXTJOIN(";",1,X51,AA51,AD51) ->  | AI51: =IF(OR(AK51="结尾",A51=""),"",IF(ISNUMBER(Y51),2,IF(AND(AK51="",A52="",VLOOKUP(O51,EventConfig!A:C,3,FALSE)=4),3,IF(AND(AK51="",A52=""),"",1)))) ->  | AL51: 5049 | AM51: 122
AI52: =IF(OR(AK52="结尾",A52=""),"",IF(ISNUMBER(Y52),2,IF(AND(AK52="",A53="",VLOOKUP(O52,EventConfig!A:C,3,FALSE)=4),3,IF(AND(AK52="",A53=""),"",1)))) ->  | AM52: 0
A53: =O53*100+P53 -> 12301 | B53: 5050 | C53: 使用神识探得资源 | K53: =IF(J53="","",VLOOKUP(J53,EventNPC!A:F,5,FALSE)) ->  | L53: 5051 | M53: 此处仙气缭绕，你用神识一探，果然探得丰富的法宝玄晶！ | N53: 2 | O53: 123 | P53: 1 | Q53: =_xlfn.TEXTJOIN(";",1,R53:S53) ->  | T53: =IF(R53="","","-"&VLOOKUP(R53,EventConditionConfig!A:C,3,FALSE)&IF(S53="","",CHAR(10)&"-"&VLOOKUP(S53,EventConditionConfig!A:C,3,FALSE))) ->  | V53: =IF(U53=1,_xlfn.TEXTJOIN(";",1,IF(Z53="",A53+1,Z53),IF(AND(AA53<>"",AC53=""),A53+1,AC53),IF(AND(AD53<>"",AF53=""),A53+1,AF53)),IF(U53=2,Y53,"")) ->  | W53: =_xlfn.TEXTJOIN(";",1,X53,AA53,AD53) ->  | AI53: =IF(OR(AK53="结尾",A53=""),"",IF(ISNUMBER(Y53),2,IF(AND(AK53="",A54="",VLOOKUP(O53,EventConfig!A:C,3,FALSE)=4),3,IF(AND(AK53="",A54=""),"",1)))) ->  | AL53: 5051 | AM53: 123
AI54: =IF(OR(AK54="结尾",A54=""),"",IF(ISNUMBER(Y54),2,IF(AND(AK54="",A55="",VLOOKUP(O54,EventConfig!A:C,3,FALSE)=4),3,IF(AND(AK54="",A55=""),"",1)))) ->  | AM54: 0
A55: =O55*100+P55 -> 12401 | B55: 5052 | C55: 使用神识探得资源 | K55: =IF(J55="","",VLOOKUP(J55,EventNPC!A:F,5,FALSE)) ->  | L55: 5053 | M55: 你遭遇一只妖邪，他挥舞着不知从哪来的增元丹，示意要打劫，应战！ | N55: 2 | O55: 124 | P55: 1 | Q55: =_xlfn.TEXTJOIN(";",1,R55:S55) ->  | T55: =IF(R55="","","-"&VLOOKUP(R55,EventConditionConfig!A:C,3,FALSE)&IF(S55="","",CHAR(10)&"-"&VLOOKUP(S55,EventConditionConfig!A:C,3,FALSE))) ->  | U55: 2 | V55: =IF(U55=1,_xlfn.TEXTJOIN(";",1,IF(Z55="",A55+1,Z55),IF(AND(AA55<>"",AC55=""),A55+1,AC55),IF(AND(AD55<>"",AF55=""),A55+1,AF55)),IF(U55=2,Y55,"")) -> 5018 | W55: =_xlfn.TEXTJOIN(";",1,X55,AA55,AD55) ->  | Y55: 5018 | AI55: =IF(OR(AK55="结尾",A55=""),"",IF(ISNUMBER(Y55),2,IF(AND(AK55="",A56="",VLOOKUP(O55,EventConfig!A:C,3,FALSE)=4),3,IF(AND(AK55="",A56=""),"",1)))) -> 2 | AJ55: 102;101 | AK55: 102 | AL55: 5053 | AM55: 124
AI56: =IF(OR(AK56="结尾",A56=""),"",IF(ISNUMBER(Y56),2,IF(AND(AK56="",A57="",VLOOKUP(O56,EventConfig!A:C,3,FALSE)=4),3,IF(AND(AK56="",A57=""),"",1)))) ->  | AM56: 0
A57: =O57*100+P57 -> 12501 | B57: 5054 | C57: 使用神识探得资源 | K57: =IF(J57="","",VLOOKUP(J57,EventNPC!A:F,5,FALSE)) ->  | L57: 5055 | M57: 你发现两名实力不俗的邪修，正在炼制渡劫所需要的天材地宝，这等好事都让你遇上了！ | N57: 2 | O57: 125 | P57: 1 | Q57: =_xlfn.TEXTJOIN(";",1,R57:S57) ->  | T57: =IF(R57="","","-"&VLOOKUP(R57,EventConditionConfig!A:C,3,FALSE)&IF(S57="","",CHAR(10)&"-"&VLOOKUP(S57,EventConditionConfig!A:C,3,FALSE))) ->  | U57: 2 | V57: =IF(U57=1,_xlfn.TEXTJOIN(";",1,IF(Z57="",A57+1,Z57),IF(AND(AA57<>"",AC57=""),A57+1,AC57),IF(AND(AD57<>"",AF57=""),A57+1,AF57)),IF(U57=2,Y57,"")) -> 5023 | W57: =_xlfn.TEXTJOIN(";",1,X57,AA57,AD57) ->  | Y57: 5023 | AI57: =IF(OR(AK57="结尾",A57=""),"",IF(ISNUMBER(Y57),2,IF(AND(AK57="",A58="",VLOOKUP(O57,EventConfig!A:C,3,FALSE)=4),3,IF(AND(AK57="",A58=""),"",1)))) -> 2 | AJ57: 102;101 | AK57: 102 | AL57: 5055 | AM57: 125
AI58: =IF(OR(AK58="结尾",A58=""),"",IF(ISNUMBER(Y58),2,IF(AND(AK58="",A59="",VLOOKUP(O58,EventConfig!A:C,3,FALSE)=4),3,IF(AND(AK58="",A59=""),"",1)))) ->  | AM58: 0
A59: =O59*100+P59 -> 12601 | B59: 5056 | C59: 使用神识探得资源 | K59: =IF(J59="","",VLOOKUP(J59,EventNPC!A:F,5,FALSE)) ->  | L59: 5057 | M59: 你来到一片清香之地，漫山的茶叶散发着清香，你摘走了一些。 | N59: 2 | O59: 126 | P59: 1 | Q59: =_xlfn.TEXTJOIN(";",1,R59:S59) ->  | T59: =IF(R59="","","-"&VLOOKUP(R59,EventConditionConfig!A:C,3,FALSE)&IF(S59="","",CHAR(10)&"-"&VLOOKUP(S59,EventConditionConfig!A:C,3,FALSE))) ->  | V59: =IF(U59=1,_xlfn.TEXTJOIN(";",1,IF(Z59="",A59+1,Z59),IF(AND(AA59<>"",AC59=""),A59+1,AC59),IF(AND(AD59<>"",AF59=""),A59+1,AF59)),IF(U59=2,Y59,"")) ->  | W59: =_xlfn.TEXTJOIN(";",1,X59,AA59,AD59) ->  | AI59: =IF(OR(AK59="结尾",A59=""),"",IF(ISNUMBER(Y59),2,IF(AND(AK59="",A60="",VLOOKUP(O59,EventConfig!A:C,3,FALSE)=4),3,IF(AND(AK59="",A60=""),"",1)))) ->  | AL59: 5057 | AM59: 126
AI60: =IF(OR(AK60="结尾",A60=""),"",IF(ISNUMBER(Y60),2,IF(AND(AK60="",A61="",VLOOKUP(O60,EventConfig!A:C,3,FALSE)=4),3,IF(AND(AK60="",A61=""),"",1)))) ->  | AM60: 0
A61: =O61*100+P61 -> 12701 | B61: 5058 | C61: 使用神识探得资源 | K61: =IF(J61="","",VLOOKUP(J61,EventNPC!A:F,5,FALSE)) ->  | L61: 5059 | M61: 你偶然闯入一片隐秘的果林，突然发现这果实，不正好是可以让所有道友都开心的好东西么！ | N61: 2 | O61: 127 | P61: 1 | Q61: =_xlfn.TEXTJOIN(";",1,R61:S61) ->  | T61: =IF(R61="","","-"&VLOOKUP(R61,EventConditionConfig!A:C,3,FALSE)&IF(S61="","",CHAR(10)&"-"&VLOOKUP(S61,EventConditionConfig!A:C,3,FALSE))) ->  | V61: =IF(U61=1,_xlfn.TEXTJOIN(";",1,IF(Z61="",A61+1,Z61),IF(AND(AA61<>"",AC61=""),A61+1,AC61),IF(AND(AD61<>"",AF61=""),A61+1,AF61)),IF(U61=2,Y61,"")) ->  | W61: =_xlfn.TEXTJOIN(";",1,X61,AA61,AD61) ->  | AI61: =IF(OR(AK61="结尾",A61=""),"",IF(ISNUMBER(Y61),2,IF(AND(AK61="",A62="",VLOOKUP(O61,EventConfig!A:C,3,FALSE)=4),3,IF(AND(AK61="",A62=""),"",1)))) ->  | AL61: 5059 | AM61: 127
AI62: =IF(OR(AK62="结尾",A62=""),"",IF(ISNUMBER(Y62),2,IF(AND(AK62="",A63="",VLOOKUP(O62,EventConfig!A:C,3,FALSE)=4),3,IF(AND(AK62="",A63=""),"",1)))) ->  | AM62: 0
A63: =O63*100+P63 -> 12801 | B63: 5060 | C63: 击败妖邪 | K63: =IF(J63="","",VLOOKUP(J63,EventNPC!A:F,5,FALSE)) ->  | L63: 5061 | M63: 你发现一只落单的妖邪，他炫耀着抢来的法宝，正向你扑来，应战！ | N63: 3 | O63: 128 | P63: 1 | Q63: =_xlfn.TEXTJOIN(";",1,R63:S63) ->  | T63: =IF(R63="","","-"&VLOOKUP(R63,EventConditionConfig!A:C,3,FALSE)&IF(S63="","",CHAR(10)&"-"&VLOOKUP(S63,EventConditionConfig!A:C,3,FALSE))) ->  | U63: 2 | V63: =IF(U63=1,_xlfn.TEXTJOIN(";",1,IF(Z63="",A63+1,Z63),IF(AND(AA63<>"",AC63=""),A63+1,AC63),IF(AND(AD63<>"",AF63=""),A63+1,AF63)),IF(U63=2,Y63,"")) -> 5004 | W63: =_xlfn.TEXTJOIN(";",1,X63,AA63,AD63) ->  | Y63: 5004 | AI63: =IF(OR(AK63="结尾",A63=""),"",IF(ISNUMBER(Y63),2,IF(AND(AK63="",A64="",VLOOKUP(O63,EventConfig!A:C,3,FALSE)=4),3,IF(AND(AK63="",A64=""),"",1)))) -> 2 | AJ63: 102;101 | AK63: 102 | AL63: 5061 | AM63: 128
AI64: =IF(OR(AK64="结尾",A64=""),"",IF(ISNUMBER(Y64),2,IF(AND(AK64="",A65="",VLOOKUP(O64,EventConfig!A:C,3,FALSE)=4),3,IF(AND(AK64="",A65=""),"",1)))) ->  | AM64: 0
A65: =O65*100+P65 -> 12901 | B65: 5062 | C65: 击败妖邪 | K65: =IF(J65="","",VLOOKUP(J65,EventNPC!A:F,5,FALSE)) ->  | L65: 5063 | M65: 你发现一只落单的妖邪，他嘴里念叨着才学会的功法秘诀，正向你扑来，应战！ | N65: 3 | O65: 129 | P65: 1 | Q65: =_xlfn.TEXTJOIN(";",1,R65:S65) ->  | T65: =IF(R65="","","-"&VLOOKUP(R65,EventConditionConfig!A:C,3,FALSE)&IF(S65="","",CHAR(10)&"-"&VLOOKUP(S65,EventConditionConfig!A:C,3,FALSE))) ->  | U65: 2 | V65: =IF(U65=1,_xlfn.TEXTJOIN(";",1,IF(Z65="",A65+1,Z65),IF(AND(AA65<>"",AC65=""),A65+1,AC65),IF(AND(AD65<>"",AF65=""),A65+1,AF65)),IF(U65=2,Y65,"")) -> 5009 | W65: =_xlfn.TEXTJOIN(";",1,X65,AA65,AD65) ->  | Y65: 5009 | AI65: =IF(OR(AK65="结尾",A65=""),"",IF(ISNUMBER(Y65),2,IF(AND(AK65="",A66="",VLOOKUP(O65,EventConfig!A:C,3,FALSE)=4),3,IF(AND(AK65="",A66=""),"",1)))) -> 2 | AJ65: 102;101 | AK65: 102 | AL65: 5063 | AM65: 129
AI66: =IF(OR(AK66="结尾",A66=""),"",IF(ISNUMBER(Y66),2,IF(AND(AK66="",A67="",VLOOKUP(O66,EventConfig!A:C,3,FALSE)=4),3,IF(AND(AK66="",A67=""),"",1)))) ->  | AM66: 0
A67: =O67*100+P67 -> 13001 | B67: 5064 | C67: 使用神识探得资源 | K67: =IF(J67="","",VLOOKUP(J67,EventNPC!A:F,5,FALSE)) ->  | L67: 5065 | M67: 你发现一只落单的妖邪，他口袋里的灵石正叮当作响，看来你要发财了，应战！ | N67: 3 | O67: 130 | P67: =IF(O67="","",IF(O67=O66,P66+1,1)) -> 1 | Q67: =_xlfn.TEXTJOIN(";",1,R67:S67) ->  | T67: =IF(R67="","","-"&VLOOKUP(R67,EventConditionConfig!A:C,3,FALSE)&IF(S67="","",CHAR(10)&"-"&VLOOKUP(S67,EventConditionConfig!A:C,3,FALSE))) ->  | U67: 2 | V67: =IF(U67=1,_xlfn.TEXTJOIN(";",1,IF(Z67="",A67+1,Z67),IF(AND(AA67<>"",AC67=""),A67+1,AC67),IF(AND(AD67<>"",AF67=""),A67+1,AF67)),IF(U67=2,Y67,"")) -> 5014 | W67: =_xlfn.TEXTJOIN(";",1,X67,AA67,AD67) ->  | Y67: 5014 | AI67: =IF(OR(AK67="结尾",A67=""),"",IF(ISNUMBER(Y67),2,IF(AND(AK67="",A68="",VLOOKUP(O67,EventConfig!A:C,3,FALSE)=4),3,IF(AND(AK67="",A68=""),"",1)))) -> 2 | AJ67: 13002;101 | AL67: 5065 | AM67: 130
AI68: =IF(OR(AK68="结尾",A68=""),"",IF(ISNUMBER(Y68),2,IF(AND(AK68="",A69="",VLOOKUP(O68,EventConfig!A:C,3,FALSE)=4),3,IF(AND(AK68="",A69=""),"",1)))) ->  | AM68: 0
A69: =O69*100+P69 -> 13101 | B69: =IF(C69="","",IF(C69=C68,B68,MAX(AL68,AL67)+1)) -> 5066 | C69: 使用神识探得资源 | D69: =IF(E69="","",IF(E69=E68,D68,MAX(AL68,AL67,B69)+1)) ->  | K69: =IF(J69="","",VLOOKUP(J69,EventNPC!A:F,5,FALSE)) ->  | L69: 5067 | M69: 此处仙气缭绕，你用神识一探，果然探得丰富的功法灵气！ | N69: 2 | O69: 131 | P69: 1 | Q69: =_xlfn.TEXTJOIN(";",1,R69:S69) ->  | T69: =IF(R69="","","-"&VLOOKUP(R69,EventConditionConfig!A:C,3,FALSE)&IF(S69="","",CHAR(10)&"-"&VLOOKUP(S69,EventConditionConfig!A:C,3,FALSE))) ->  | V69: =IF(U69=1,_xlfn.TEXTJOIN(";",1,IF(Z69="",A69+1,Z69),IF(AND(AA69<>"",AC69=""),A69+1,AC69),IF(AND(AD69<>"",AF69=""),A69+1,AF69)),IF(U69=2,Y69,"")) ->  | W69: =_xlfn.TEXTJOIN(";",1,X69,AA69,AD69) ->  | X69: =IF(OR(ISNUMBER(Y69),Y69=""),"",MAX(AL68,AL66,B69,D69,L69)+1) ->  | AA69: =IF(OR(ISNUMBER(AB69),AB69=""),"",X69+1) ->  | AD69: =IF(OR(ISNUMBER(AE69),AE69=""),"",AA69+1) ->  | AI69: =IF(OR(AK69="结尾",A69=""),"",IF(ISNUMBER(Y69),2,IF(AND(AK69="",A70="",VLOOKUP(O69,EventConfig!A:C,3,FALSE)=4),3,IF(AND(AK69="",A70=""),"",1)))) ->  | AL69: 5067 | AM69: 131
L70: =IF(M70="","",MAX(AL69,AL68,B70,D70)+1) ->  | U70: =IF(AG70>0,3,IF(Y70="","",IF(ISTEXT(Y70),1,2))) ->  | AI70: =IF(OR(AK70="结尾",A70=""),"",IF(ISNUMBER(Y70),2,IF(AND(AK70="",A71="",VLOOKUP(O70,EventConfig!A:C,3,FALSE)=4),3,IF(AND(AK70="",A71=""),"",1)))) ->  | AL70: =IF(A70="","",MAX(B70,D70,L70,X70,AA70,AL69,AL68,AD70)) ->  | AM70: =O70 -> 0
A71: =O71*100+P71 -> 13201 | B71: 5068 | C71: 使用神识探得资源 | K71: =IF(J71="","",VLOOKUP(J71,EventNPC!A:F,5,FALSE)) ->  | L71: 5069 | M71: 此处仙气缭绕，你用神识一探，果然探得丰富的法宝玄晶！ | N71: 2 | O71: 132 | P71: 1 | Q71: =_xlfn.TEXTJOIN(";",1,R71:S71) ->  | T71: =IF(R71="","","-"&VLOOKUP(R71,EventConditionConfig!A:C,3,FALSE)&IF(S71="","",CHAR(10)&"-"&VLOOKUP(S71,EventConditionConfig!A:C,3,FALSE))) ->  | V71: =IF(U71=1,_xlfn.TEXTJOIN(";",1,IF(Z71="",A71+1,Z71),IF(AND(AA71<>"",AC71=""),A71+1,AC71),IF(AND(AD71<>"",AF71=""),A71+1,AF71)),IF(U71=2,Y71,"")) ->  | W71: =_xlfn.TEXTJOIN(";",1,X71,AA71,AD71) ->  | AI71: =IF(OR(AK71="结尾",A71=""),"",IF(ISNUMBER(Y71),2,IF(AND(AK71="",A72="",VLOOKUP(O71,EventConfig!A:C,3,FALSE)=4),3,IF(AND(AK71="",A72=""),"",1)))) ->  | AL71: 5069 | AM71: 132
AI72: =IF(OR(AK72="结尾",A72=""),"",IF(ISNUMBER(Y72),2,IF(AND(AK72="",A73="",VLOOKUP(O72,EventConfig!A:C,3,FALSE)=4),3,IF(AND(AK72="",A73=""),"",1)))) ->  | AM72: 0
A73: =O73*100+P73 -> 13301 | B73: 5070 | C73: 使用神识探得资源 | K73: =IF(J73="","",VLOOKUP(J73,EventNPC!A:F,5,FALSE)) ->  | L73: 5071 | M73: 你遭遇一只妖邪，他挥舞着不知从哪来的增元丹，示意要打劫，应战！ | N73: 2 | O73: 133 | P73: 1 | Q73: =_xlfn.TEXTJOIN(";",1,R73:S73) ->  | T73: =IF(R73="","","-"&VLOOKUP(R73,EventConditionConfig!A:C,3,FALSE)&IF(S73="","",CHAR(10)&"-"&VLOOKUP(S73,EventConditionConfig!A:C,3,FALSE))) ->  | U73: 2 | V73: =IF(U73=1,_xlfn.TEXTJOIN(";",1,IF(Z73="",A73+1,Z73),IF(AND(AA73<>"",AC73=""),A73+1,AC73),IF(AND(AD73<>"",AF73=""),A73+1,AF73)),IF(U73=2,Y73,"")) -> 5019 | W73: =_xlfn.TEXTJOIN(";",1,X73,AA73,AD73) ->  | Y73: 5019 | AI73: =IF(OR(AK73="结尾",A73=""),"",IF(ISNUMBER(Y73),2,IF(AND(AK73="",A74="",VLOOKUP(O73,EventConfig!A:C,3,FALSE)=4),3,IF(AND(AK73="",A74=""),"",1)))) -> 2 | AJ73: 102;101 | AK73: 102 | AL73: 5071 | AM73: 133
P74: =IF(O74="","",IF(O74=O73,P73+1,1)) ->  | AI74: =IF(OR(AK74="结尾",A74=""),"",IF(ISNUMBER(Y74),2,IF(AND(AK74="",A75="",VLOOKUP(O74,EventConfig!A:C,3,FALSE)=4),3,IF(AND(AK74="",A75=""),"",1)))) ->  | AJ74: =IF(OR(AK74="结尾",AI74=""),"",CHOOSE(AI74,IF(AK74="",A74+1,AK74),CONCATENATE(IF(AK74="",A74+1,AK74),";101"),IF(AK74="",O74+1,AK74))) ->  | AM74: 0
A75: =O75*100+P75 -> 13401 | B75: 5072 | C75: 使用神识探得资源 | K75: =IF(J75="","",VLOOKUP(J75,EventNPC!A:F,5,FALSE)) ->  | L75: 5073 | M75: 你发现两名实力不俗的邪修，正在炼制渡劫所需要的天材地宝，这等好事都让你遇上了！ | N75: 2 | O75: 134 | P75: 1 | Q75: =_xlfn.TEXTJOIN(";",1,R75:S75) ->  | T75: =IF(R75="","","-"&VLOOKUP(R75,EventConditionConfig!A:C,3,FALSE)&IF(S75="","",CHAR(10)&"-"&VLOOKUP(S75,EventConditionConfig!A:C,3,FALSE))) ->  | U75: 2 | V75: =IF(U75=1,_xlfn.TEXTJOIN(";",1,IF(Z75="",A75+1,Z75),IF(AND(AA75<>"",AC75=""),A75+1,AC75),IF(AND(AD75<>"",AF75=""),A75+1,AF75)),IF(U75=2,Y75,"")) -> 5024 | W75: =_xlfn.TEXTJOIN(";",1,X75,AA75,AD75) ->  | Y75: 5024 | AI75: =IF(OR(AK75="结尾",A75=""),"",IF(ISNUMBER(Y75),2,IF(AND(AK75="",A76="",VLOOKUP(O75,EventConfig!A:C,3,FALSE)=4),3,IF(AND(AK75="",A76=""),"",1)))) -> 2 | AJ75: 102;101 | AK75: 102 | AL75: 5073 | AM75: 134
AI76: =IF(OR(AK76="结尾",A76=""),"",IF(ISNUMBER(Y76),2,IF(AND(AK76="",A77="",VLOOKUP(O76,EventConfig!A:C,3,FALSE)=4),3,IF(AND(AK76="",A77=""),"",1)))) ->  | AM76: 0
A77: =O77*100+P77 -> 13501 | B77: 5074 | C77: 使用神识探得资源 | K77: =IF(J77="","",VLOOKUP(J77,EventNPC!A:F,5,FALSE)) ->  | L77: 5075 | M77: 你来到一片清香之地，漫山的茶叶散发着清香，你摘走了一些。 | N77: 2 | O77: 135 | P77: 1 | Q77: =_xlfn.TEXTJOIN(";",1,R77:S77) ->  | T77: =IF(R77="","","-"&VLOOKUP(R77,EventConditionConfig!A:C,3,FALSE)&IF(S77="","",CHAR(10)&"-"&VLOOKUP(S77,EventConditionConfig!A:C,3,FALSE))) ->  | V77: =IF(U77=1,_xlfn.TEXTJOIN(";",1,IF(Z77="",A77+1,Z77),IF(AND(AA77<>"",AC77=""),A77+1,AC77),IF(AND(AD77<>"",AF77=""),A77+1,AF77)),IF(U77=2,Y77,"")) ->  | W77: =_xlfn.TEXTJOIN(";",1,X77,AA77,AD77) ->  | AI77: =IF(OR(AK77="结尾",A77=""),"",IF(ISNUMBER(Y77),2,IF(AND(AK77="",A78="",VLOOKUP(O77,EventConfig!A:C,3,FALSE)=4),3,IF(AND(AK77="",A78=""),"",1)))) ->  | AL77: 5075 | AM77: 135
AI78: =IF(OR(AK78="结尾",A78=""),"",IF(ISNUMBER(Y78),2,IF(AND(AK78="",A79="",VLOOKUP(O78,EventConfig!A:C,3,FALSE)=4),3,IF(AND(AK78="",A79=""),"",1)))) ->  | AM78: 0
A79: =O79*100+P79 -> 13601 | B79: 5076 | C79: 使用神识探得资源 | K79: =IF(J79="","",VLOOKUP(J79,EventNPC!A:F,5,FALSE)) ->  | L79: 5077 | M79: 你偶然闯入一片隐秘的果林，突然发现这果实，不正好是可以让所有道友都开心的好东西么！ | N79: 2 | O79: 136 | P79: 1 | Q79: =_xlfn.TEXTJOIN(";",1,R79:S79) ->  | T79: =IF(R79="","","-"&VLOOKUP(R79,EventConditionConfig!A:C,3,FALSE)&IF(S79="","",CHAR(10)&"-"&VLOOKUP(S79,EventConditionConfig!A:C,3,FALSE))) ->  | V79: =IF(U79=1,_xlfn.TEXTJOIN(";",1,IF(Z79="",A79+1,Z79),IF(AND(AA79<>"",AC79=""),A79+1,AC79),IF(AND(AD79<>"",AF79=""),A79+1,AF79)),IF(U79=2,Y79,"")) ->  | W79: =_xlfn.TEXTJOIN(";",1,X79,AA79,AD79) ->  | AI79: =IF(OR(AK79="结尾",A79=""),"",IF(ISNUMBER(Y79),2,IF(AND(AK79="",A80="",VLOOKUP(O79,EventConfig!A:C,3,FALSE)=4),3,IF(AND(AK79="",A80=""),"",1)))) ->  | AL79: 5077 | AM79: 136
T80: =IF(R80="","","-"&VLOOKUP(R80,EventConditionConfig!A:C,3,FALSE)&IF(S80="","",CHAR(10)&"-"&VLOOKUP(S80,EventConditionConfig!A:C,3,FALSE))) ->  | W80: =_xlfn.TEXTJOIN(";",1,X80,AA80,AD80) ->  | AI80: =IF(OR(AK80="结尾",A80=""),"",IF(ISNUMBER(Y80),2,IF(AND(AK80="",A81="",VLOOKUP(O80,EventConfig!A:C,3,FALSE)=4),3,IF(AND(AK80="",A81=""),"",1)))) ->  | AM80: 0
A81: =O81*100+P81 -> 13701 | B81: 5078 | C81: 击败妖邪 | K81: =IF(J81="","",VLOOKUP(J81,EventNPC!A:F,5,FALSE)) ->  | L81: 5079 | M81: 你发现一只落单的妖邪，他炫耀着抢来的法宝，正向你扑来，应战！ | N81: 3 | O81: 137 | P81: 1 | Q81: =_xlfn.TEXTJOIN(";",1,R81:S81) ->  | T81: =IF(R81="","","-"&VLOOKUP(R81,EventConditionConfig!A:C,3,FALSE)&IF(S81="","",CHAR(10)&"-"&VLOOKUP(S81,EventConditionConfig!A:C,3,FALSE))) ->  | U81: 2 | V81: =IF(U81=1,_xlfn.TEXTJOIN(";",1,IF(Z81="",A81+1,Z81),IF(AND(AA81<>"",AC81=""),A81+1,AC81),IF(AND(AD81<>"",AF81=""),A81+1,AF81)),IF(U81=2,Y81,"")) -> 5005 | Y81: 5005 | AI81: =IF(OR(AK81="结尾",A81=""),"",IF(ISNUMBER(Y81),2,IF(AND(AK81="",A82="",VLOOKUP(O81,EventConfig!A:C,3,FALSE)=4),3,IF(AND(AK81="",A82=""),"",1)))) -> 2 | AJ81: 102;101 | AK81: 102 | AL81: 5079 | AM81: 137
AI82: =IF(OR(AK82="结尾",A82=""),"",IF(ISNUMBER(Y82),2,IF(AND(AK82="",A83="",VLOOKUP(O82,EventConfig!A:C,3,FALSE)=4),3,IF(AND(AK82="",A83=""),"",1)))) ->  | AM82: 0
A83: =O83*100+P83 -> 13801 | B83: 5080 | C83: 击败妖邪 | K83: =IF(J83="","",VLOOKUP(J83,EventNPC!A:F,5,FALSE)) ->  | L83: 5081 | M83: 你发现一只落单的妖邪，他嘴里念叨着才学会的功法秘诀，正向你扑来，应战！ | N83: 3 | O83: 138 | P83: 1 | Q83: =_xlfn.TEXTJOIN(";",1,R83:S83) ->  | T83: =IF(R83="","","-"&VLOOKUP(R83,EventConditionConfig!A:C,3,FALSE)&IF(S83="","",CHAR(10)&"-"&VLOOKUP(S83,EventConditionConfig!A:C,3,FALSE))) ->  | U83: 2 | V83: =IF(U83=1,_xlfn.TEXTJOIN(";",1,IF(Z83="",A83+1,Z83),IF(AND(AA83<>"",AC83=""),A83+1,AC83),IF(AND(AD83<>"",AF83=""),A83+1,AF83)),IF(U83=2,Y83,"")) -> 5010 | Y83: 5010 | AI83: =IF(OR(AK83="结尾",A83=""),"",IF(ISNUMBER(Y83),2,IF(AND(AK83="",A84="",VLOOKUP(O83,EventConfig!A:C,3,FALSE)=4),3,IF(AND(AK83="",A84=""),"",1)))) -> 2 | AJ83: 102;101 | AK83: 102 | AL83: 5081 | AM83: 138
AI84: =IF(OR(AK84="结尾",A84=""),"",IF(ISNUMBER(Y84),2,IF(AND(AK84="",A85="",VLOOKUP(O84,EventConfig!A:C,3,FALSE)=4),3,IF(AND(AK84="",A85=""),"",1)))) ->  | AM84: 0
A85: =O85*100+P85 -> 13901 | B85: 5082 | C85: 使用神识探得资源 | K85: =IF(J85="","",VLOOKUP(J85,EventNPC!A:F,5,FALSE)) ->  | L85: 5083 | M85: 你发现一只落单的妖邪，他口袋里的灵石正叮当作响，看来你要发财了，应战！ | N85: 3 | O85: 139 | P85: 1 | Q85: =_xlfn.TEXTJOIN(";",1,R85:S85) ->  | T85: =IF(R85="","","-"&VLOOKUP(R85,EventConditionConfig!A:C,3,FALSE)&IF(S85="","",CHAR(10)&"-"&VLOOKUP(S85,EventConditionConfig!A:C,3,FALSE))) ->  | U85: 2 | V85: =IF(U85=1,_xlfn.TEXTJOIN(";",1,IF(Z85="",A85+1,Z85),IF(AND(AA85<>"",AC85=""),A85+1,AC85),IF(AND(AD85<>"",AF85=""),A85+1,AF85)),IF(U85=2,Y85,"")) -> 5015 | Y85: 5015 | AI85: =IF(OR(AK85="结尾",A85=""),"",IF(ISNUMBER(Y85),2,IF(AND(AK85="",A86="",VLOOKUP(O85,EventConfig!A:C,3,FALSE)=4),3,IF(AND(AK85="",A86=""),"",1)))) -> 2 | AJ85: 13902;101 | AL85: 5083 | AM85: 139
AI86: =IF(OR(AK86="结尾",A86=""),"",IF(ISNUMBER(Y86),2,IF(AND(AK86="",A87="",VLOOKUP(O86,EventConfig!A:C,3,FALSE)=4),3,IF(AND(AK86="",A87=""),"",1)))) ->  | AM86: 0
A87: =O87*100+P87 -> 14001 | B87: 5084 | C87: 使用神识探得资源 | K87: =IF(J87="","",VLOOKUP(J87,EventNPC!A:F,5,FALSE)) ->  | L87: 5085 | M87: 此处仙气缭绕，你用神识一探，果然探得丰富的功法灵气！ | N87: 2 | O87: 140 | P87: 1 | Q87: =_xlfn.TEXTJOIN(";",1,R87:S87) ->  | T87: =IF(R87="","","-"&VLOOKUP(R87,EventConditionConfig!A:C,3,FALSE)&IF(S87="","",CHAR(10)&"-"&VLOOKUP(S87,EventConditionConfig!A:C,3,FALSE))) ->  | V87: =IF(U87=1,_xlfn.TEXTJOIN(";",1,IF(Z87="",A87+1,Z87),IF(AND(AA87<>"",AC87=""),A87+1,AC87),IF(AND(AD87<>"",AF87=""),A87+1,AF87)),IF(U87=2,Y87,"")) ->  | AI87: =IF(OR(AK87="结尾",A87=""),"",IF(ISNUMBER(Y87),2,IF(AND(AK87="",A88="",VLOOKUP(O87,EventConfig!A:C,3,FALSE)=4),3,IF(AND(AK87="",A88=""),"",1)))) ->  | AL87: 5085 | AM87: 140
AI88: =IF(OR(AK88="结尾",A88=""),"",IF(ISNUMBER(Y88),2,IF(AND(AK88="",A89="",VLOOKUP(O88,EventConfig!A:C,3,FALSE)=4),3,IF(AND(AK88="",A89=""),"",1)))) ->  | AM88: 0
A89: =O89*100+P89 -> 14101 | B89: 5086 | C89: 使用神识探得资源 | K89: =IF(J89="","",VLOOKUP(J89,EventNPC!A:F,5,FALSE)) ->  | L89: 5087 | M89: 此处仙气缭绕，你用神识一探，果然探得丰富的法宝玄晶！ | N89: 2 | O89: 141 | P89: 1 | Q89: =_xlfn.TEXTJOIN(";",1,R89:S89) ->  | T89: =IF(R89="","","-"&VLOOKUP(R89,EventConditionConfig!A:C,3,FALSE)&IF(S89="","",CHAR(10)&"-"&VLOOKUP(S89,EventConditionConfig!A:C,3,FALSE))) ->  | V89: =IF(U89=1,_xlfn.TEXTJOIN(";",1,IF(Z89="",A89+1,Z89),IF(AND(AA89<>"",AC89=""),A89+1,AC89),IF(AND(AD89<>"",AF89=""),A89+1,AF89)),IF(U89=2,Y89,"")) ->  | AI89: =IF(OR(AK89="结尾",A89=""),"",IF(ISNUMBER(Y89),2,IF(AND(AK89="",A90="",VLOOKUP(O89,EventConfig!A:C,3,FALSE)=4),3,IF(AND(AK89="",A90=""),"",1)))) ->  | AL89: 5087 | AM89: 141
AI90: =IF(OR(AK90="结尾",A90=""),"",IF(ISNUMBER(Y90),2,IF(AND(AK90="",A91="",VLOOKUP(O90,EventConfig!A:C,3,FALSE)=4),3,IF(AND(AK90="",A91=""),"",1)))) ->  | AM90: 0
A91: =O91*100+P91 -> 14201 | B91: 5088 | C91: 使用神识探得资源 | K91: =IF(J91="","",VLOOKUP(J91,EventNPC!A:F,5,FALSE)) ->  | L91: 5089 | M91: 你遭遇一只妖邪，他挥舞着不知从哪来的增元丹，示意要打劫，应战！ | N91: 2 | O91: 142 | P91: 1 | Q91: =_xlfn.TEXTJOIN(";",1,R91:S91) ->  | T91: =IF(R91="","","-"&VLOOKUP(R91,EventConditionConfig!A:C,3,FALSE)&IF(S91="","",CHAR(10)&"-"&VLOOKUP(S91,EventConditionConfig!A:C,3,FALSE))) ->  | U91: 2 | V91: =IF(U91=1,_xlfn.TEXTJOIN(";",1,IF(Z91="",A91+1,Z91),IF(AND(AA91<>"",AC91=""),A91+1,AC91),IF(AND(AD91<>"",AF91=""),A91+1,AF91)),IF(U91=2,Y91,"")) -> 5020 | Y91: 5020 | AI91: =IF(OR(AK91="结尾",A91=""),"",IF(ISNUMBER(Y91),2,IF(AND(AK91="",A92="",VLOOKUP(O91,EventConfig!A:C,3,FALSE)=4),3,IF(AND(AK91="",A92=""),"",1)))) -> 2 | AJ91: 102;101 | AK91: 102 | AL91: 5089 | AM91: 142
AI92: =IF(OR(AK92="结尾",A92=""),"",IF(ISNUMBER(Y92),2,IF(AND(AK92="",A93="",VLOOKUP(O92,EventConfig!A:C,3,FALSE)=4),3,IF(AND(AK92="",A93=""),"",1)))) ->  | AM92: 0
A93: =O93*100+P93 -> 14301 | B93: 5090 | C93: 使用神识探得资源 | K93: =IF(J93="","",VLOOKUP(J93,EventNPC!A:F,5,FALSE)) ->  | L93: 5091 | M93: 你发现两名实力不俗的邪修，正在炼制渡劫所需要的天材地宝，这等好事都让你遇上了！ | N93: 2 | O93: 143 | P93: 1 | Q93: =_xlfn.TEXTJOIN(";",1,R93:S93) ->  | T93: =IF(R93="","","-"&VLOOKUP(R93,EventConditionConfig!A:C,3,FALSE)&IF(S93="","",CHAR(10)&"-"&VLOOKUP(S93,EventConditionConfig!A:C,3,FALSE))) ->  | U93: 2 | V93: =IF(U93=1,_xlfn.TEXTJOIN(";",1,IF(Z93="",A93+1,Z93),IF(AND(AA93<>"",AC93=""),A93+1,AC93),IF(AND(AD93<>"",AF93=""),A93+1,AF93)),IF(U93=2,Y93,"")) -> 5025 | Y93: 5025 | AI93: =IF(OR(AK93="结尾",A93=""),"",IF(ISNUMBER(Y93),2,IF(AND(AK93="",A94="",VLOOKUP(O93,EventConfig!A:C,3,FALSE)=4),3,IF(AND(AK93="",A94=""),"",1)))) -> 2 | AJ93: 102;101 | AK93: 102 | AL93: 5091 | AM93: 143
AI94: =IF(OR(AK94="结尾",A94=""),"",IF(ISNUMBER(Y94),2,IF(AND(AK94="",A95="",VLOOKUP(O94,EventConfig!A:C,3,FALSE)=4),3,IF(AND(AK94="",A95=""),"",1)))) ->  | AM94: 0
A95: =O95*100+P95 -> 14401 | B95: 5092 | C95: 使用神识探得资源 | K95: =IF(J95="","",VLOOKUP(J95,EventNPC!A:F,5,FALSE)) ->  | L95: 5093 | M95: 你来到一片清香之地，漫山的茶叶散发着清香，你摘走了一些。 | N95: 2 | O95: 144 | P95: 1 | Q95: =_xlfn.TEXTJOIN(";",1,R95:S95) ->  | T95: =IF(R95="","","-"&VLOOKUP(R95,EventConditionConfig!A:C,3,FALSE)&IF(S95="","",CHAR(10)&"-"&VLOOKUP(S95,EventConditionConfig!A:C,3,FALSE))) ->  | V95: =IF(U95=1,_xlfn.TEXTJOIN(";",1,IF(Z95="",A95+1,Z95),IF(AND(AA95<>"",AC95=""),A95+1,AC95),IF(AND(AD95<>"",AF95=""),A95+1,AF95)),IF(U95=2,Y95,"")) ->  | AI95: =IF(OR(AK95="结尾",A95=""),"",IF(ISNUMBER(Y95),2,IF(AND(AK95="",A96="",VLOOKUP(O95,EventConfig!A:C,3,FALSE)=4),3,IF(AND(AK95="",A96=""),"",1)))) ->  | AL95: 5093 | AM95: 144
AI96: =IF(OR(AK96="结尾",A96=""),"",IF(ISNUMBER(Y96),2,IF(AND(AK96="",A97="",VLOOKUP(O96,EventConfig!A:C,3,FALSE)=4),3,IF(AND(AK96="",A97=""),"",1)))) ->  | AM96: 0
A97: =O97*100+P97 -> 14501 | B97: 5094 | C97: 使用神识探得资源 | K97: =IF(J97="","",VLOOKUP(J97,EventNPC!A:F,5,FALSE)) ->  | L97: 5095 | M97: 你偶然闯入一片隐秘的果林，突然发现这果实，不正好是可以让所有道友都开心的好东西么！ | N97: 2 | O97: 145 | P97: 1 | Q97: =_xlfn.TEXTJOIN(";",1,R97:S97) ->  | T97: =IF(R97="","","-"&VLOOKUP(R97,EventConditionConfig!A:C,3,FALSE)&IF(S97="","",CHAR(10)&"-"&VLOOKUP(S97,EventConditionConfig!A:C,3,FALSE))) ->  | V97: =IF(U97=1,_xlfn.TEXTJOIN(";",1,IF(Z97="",A97+1,Z97),IF(AND(AA97<>"",AC97=""),A97+1,AC97),IF(AND(AD97<>"",AF97=""),A97+1,AF97)),IF(U97=2,Y97,"")) ->  | AI97: =IF(OR(AK97="结尾",A97=""),"",IF(ISNUMBER(Y97),2,IF(AND(AK97="",A98="",VLOOKUP(O97,EventConfig!A:C,3,FALSE)=4),3,IF(AND(AK97="",A98=""),"",1)))) ->  | AL97: 5095 | AM97: 145
P98: =IF(O98="","",IF(O98=O53,P53+1,1)) ->  | Q98: =_xlfn.TEXTJOIN(";",1,R98:S98) ->  | T98: =IF(R98="","","-"&VLOOKUP(R98,EventConditionConfig!A:C,3,FALSE)&IF(S98="","",CHAR(10)&"-"&VLOOKUP(S98,EventConditionConfig!A:C,3,FALSE))) ->  | AI98: =IF(OR(AK98="结尾",A98=""),"",IF(ISNUMBER(Y98),2,IF(AND(AK98="",A99="",VLOOKUP(O98,EventConfig!A:C,3,FALSE)=4),3,IF(AND(AK98="",A99=""),"",1)))) ->  | AM98: 0
A99: =O99*100+P99 -> 1101 | L99: 5096 | M99: 你遇到一只拦路的妖兽，它看起来饥肠辘辘 | N99: 2 | O99: 11 | P99: =IF(O99="","",IF(O99=O80,P80+1,1)) -> 1 | T99: =IF(R99="","","-"&VLOOKUP(R99,EventConditionConfig!A:C,3,FALSE)&IF(S99="","",CHAR(10)&"-"&VLOOKUP(S99,EventConditionConfig!A:C,3,FALSE))) ->  | AI99: =IF(OR(AK99="结尾",A99=""),"",IF(ISNUMBER(Y99),2,IF(AND(AK99="",A100="",VLOOKUP(O99,EventConfig!A:C,3,FALSE)=4),3,IF(AND(AK99="",A100=""),"",1)))) ->  | AL99: 5096 | AM99: 11
A100: =O100*100+P100 -> 1102 | L100: 5097 | M100: 你扔出一块鹿肉，趁它抢食之际，你祭出腰间的法宝 | N100: 2 | O100: 11 | P100: 2 | T100: =IF(R100="","","-"&VLOOKUP(R100,EventConditionConfig!A:C,3,FALSE)&IF(S100="","",CHAR(10)&"-"&VLOOKUP(S100,EventConditionConfig!A:C,3,FALSE))) ->  | AI100: =IF(OR(AK100="结尾",A100=""),"",IF(ISNUMBER(Y100),2,IF(AND(AK100="",A101="",VLOOKUP(O100,EventConfig!A:C,3,FALSE)=4),3,IF(AND(AK100="",A101=""),"",1)))) ->  | AL100: 5097 | AM100: 11
A101: =O101*100+P101 -> 1103 | L101: 5098 | M101: 你成功诱捕了怪物，并从它身上吸取了一些修为 | N101: 2 | O101: 11 | P101: 3 | Q101: =_xlfn.TEXTJOIN(";",1,R101:S101) ->  | T101: =IF(R101="","","-"&VLOOKUP(R101,EventConditionConfig!A:C,3,FALSE)&IF(S101="","",CHAR(10)&"-"&VLOOKUP(S101,EventConditionConfig!A:C,3,FALSE))) ->  | AI101: =IF(OR(AK101="结尾",A101=""),"",IF(ISNUMBER(Y101),2,IF(AND(AK101="",A102="",VLOOKUP(O101,EventConfig!A:C,3,FALSE)=4),3,IF(AND(AK101="",A102=""),"",1)))) ->  | AL101: 5098 | AM101: 11
T102: =IF(R102="","","-"&VLOOKUP(R102,EventConditionConfig!A:C,3,FALSE)&IF(S102="","",CHAR(10)&"-"&VLOOKUP(S102,EventConditionConfig!A:C,3,FALSE))) ->  | AI102: =IF(OR(AK102="结尾",A102=""),"",IF(ISNUMBER(Y102),2,IF(AND(AK102="",A103="",VLOOKUP(O102,EventConfig!A:C,3,FALSE)=4),3,IF(AND(AK102="",A103=""),"",1)))) ->  | AM102: 0
A103: =O103*100+P103 -> 1201 | L103: 5099 | M103: 你偶遇一处仙气四溢无人生活的洞穴 | N103: 2 | O103: 12 | P103: 1 | T103: =IF(R103="","","-"&VLOOKUP(R103,EventConditionConfig!A:C,3,FALSE)&IF(S103="","",CHAR(10)&"-"&VLOOKUP(S103,EventConditionConfig!A:C,3,FALSE))) ->  | AI103: =IF(OR(AK103="结尾",A103=""),"",IF(ISNUMBER(Y103),2,IF(AND(AK103="",A104="",VLOOKUP(O103,EventConfig!A:C,3,FALSE)=4),3,IF(AND(AK103="",A104=""),"",1)))) ->  | AL103: 5099 | AM103: 12
A104: =O104*100+P104 -> 1202 | L104: 5100 | M104: 不知哪位高人在洞穴内壁留下绝世秘籍 | O104: 12 | P104: 2 | T104: =IF(R104="","","-"&VLOOKUP(R104,EventConditionConfig!A:C,3,FALSE)&IF(S104="","",CHAR(10)&"-"&VLOOKUP(S104,EventConditionConfig!A:C,3,FALSE))) ->  | AI104: =IF(OR(AK104="结尾",A104=""),"",IF(ISNUMBER(Y104),2,IF(AND(AK104="",A105="",VLOOKUP(O104,EventConfig!A:C,3,FALSE)=4),3,IF(AND(AK104="",A105=""),"",1)))) ->  | AL104: 5100 | AM104: 12
A105: =O105*100+P105 -> 1203 | L105: 5101 | M105: 你仔细研读后，功法得到精进 | O105: 12 | P105: 3 | T105: =IF(R105="","","-"&VLOOKUP(R105,EventConditionConfig!A:C,3,FALSE)&IF(S105="","",CHAR(10)&"-"&VLOOKUP(S105,EventConditionConfig!A:C,3,FALSE))) ->  | AI105: =IF(OR(AK105="结尾",A105=""),"",IF(ISNUMBER(Y105),2,IF(AND(AK105="",A106="",VLOOKUP(O105,EventConfig!A:C,3,FALSE)=4),3,IF(AND(AK105="",A106=""),"",1)))) ->  | AL105: 5101 | AM105: 12
T106: =IF(R106="","","-"&VLOOKUP(R106,EventConditionConfig!A:C,3,FALSE)&IF(S106="","",CHAR(10)&"-"&VLOOKUP(S106,EventConditionConfig!A:C,3,FALSE))) ->  | AI106: =IF(OR(AK106="结尾",A106=""),"",IF(ISNUMBER(Y106),2,IF(AND(AK106="",A107="",VLOOKUP(O106,EventConfig!A:C,3,FALSE)=4),3,IF(AND(AK106="",A107=""),"",1)))) ->  | AM106: 0
A107: =O107*100+P107 -> 1301 | L107: 5102 | M107: 你偶然发现一只枯萎的葫芦，但泛着蓝光 | O107: 13 | P107: 1 | T107: =IF(R107="","","-"&VLOOKUP(R107,EventConditionConfig!A:C,3,FALSE)&IF(S107="","",CHAR(10)&"-"&VLOOKUP(S107,EventConditionConfig!A:C,3,FALSE))) ->  | AI107: =IF(OR(AK107="结尾",A107=""),"",IF(ISNUMBER(Y107),2,IF(AND(AK107="",A108="",VLOOKUP(O107,EventConfig!A:C,3,FALSE)=4),3,IF(AND(AK107="",A108=""),"",1)))) ->  | AL107: 5102 | AM107: 13
A108: =O108*100+P108 -> 1302 | L108: 5103 | M108: 好奇的你凑近一看，不知谁将这件法宝遗落于此 | O108: 13 | P108: 2 | T108: =IF(R108="","","-"&VLOOKUP(R108,EventConditionConfig!A:C,3,FALSE)&IF(S108="","",CHAR(10)&"-"&VLOOKUP(S108,EventConditionConfig!A:C,3,FALSE))) ->  | AI108: =IF(OR(AK108="结尾",A108=""),"",IF(ISNUMBER(Y108),2,IF(AND(AK108="",A109="",VLOOKUP(O108,EventConfig!A:C,3,FALSE)=4),3,IF(AND(AK108="",A109=""),"",1)))) ->  | AL108: 5103 | AM108: 13
A109: =O109*100+P109 -> 1303 | L109: 5104 | M109: 但法宝已经枯竭，你后悔没有早点发现它 | O109: 13 | P109: 3 | T109: =IF(R109="","","-"&VLOOKUP(R109,EventConditionConfig!A:C,3,FALSE)&IF(S109="","",CHAR(10)&"-"&VLOOKUP(S109,EventConditionConfig!A:C,3,FALSE))) ->  | AI109: =IF(OR(AK109="结尾",A109=""),"",IF(ISNUMBER(Y109),2,IF(AND(AK109="",A110="",VLOOKUP(O109,EventConfig!A:C,3,FALSE)=4),3,IF(AND(AK109="",A110=""),"",1)))) ->  | AL109: 5104 | AM109: 13
A110: =O110*100+P110 -> 1304 | L110: 5105 | M110: 最后你从法宝中回收了一些玄晶 | O110: 13 | P110: 4 | T110: =IF(R110="","","-"&VLOOKUP(R110,EventConditionConfig!A:C,3,FALSE)&IF(S110="","",CHAR(10)&"-"&VLOOKUP(S110,EventConditionConfig!A:C,3,FALSE))) ->  | AI110: =IF(OR(AK110="结尾",A110=""),"",IF(ISNUMBER(Y110),2,IF(AND(AK110="",A111="",VLOOKUP(O110,EventConfig!A:C,3,FALSE)=4),3,IF(AND(AK110="",A111=""),"",1)))) ->  | AL110: 5105 | AM110: 13
T111: =IF(R111="","","-"&VLOOKUP(R111,EventConditionConfig!A:C,3,FALSE)&IF(S111="","",CHAR(10)&"-"&VLOOKUP(S111,EventConditionConfig!A:C,3,FALSE))) ->  | AI111: =IF(OR(AK111="结尾",A111=""),"",IF(ISNUMBER(Y111),2,IF(AND(AK111="",A112="",VLOOKUP(O111,EventConfig!A:C,3,FALSE)=4),3,IF(AND(AK111="",A112=""),"",1)))) ->  | AM111: 0
A112: =O112*100+P112 -> 1401 | L112: 5106 | M112: 你路过一座矿山，一个闪光点引起了你的注意 | O112: 14 | P112: 1 | Q112: =_xlfn.TEXTJOIN(";",1,R112:S112) ->  | T112: =IF(R112="","","-"&VLOOKUP(R112,EventConditionConfig!A:C,3,FALSE)&IF(S112="","",CHAR(10)&"-"&VLOOKUP(S112,EventConditionConfig!A:C,3,FALSE))) ->  | AI112: =IF(OR(AK112="结尾",A112=""),"",IF(ISNUMBER(Y112),2,IF(AND(AK112="",A113="",VLOOKUP(O112,EventConfig!A:C,3,FALSE)=4),3,IF(AND(AK112="",A113=""),"",1)))) ->  | AL112: 5106 | AM112: 14
A113: =O113*100+P113 -> 1402 | L113: 5107 | M113: 原来这是一颗珍贵的绿玛瑙 | O113: 14 | P113: 2 | Q113: =_xlfn.TEXTJOIN(";",1,R113:S113) ->  | T113: =IF(R113="","","-"&VLOOKUP(R113,EventConditionConfig!A:C,3,FALSE)&IF(S113="","",CHAR(10)&"-"&VLOOKUP(S113,EventConditionConfig!A:C,3,FALSE))) ->  | AI113: =IF(OR(AK113="结尾",A113=""),"",IF(ISNUMBER(Y113),2,IF(AND(AK113="",A114="",VLOOKUP(O113,EventConfig!A:C,3,FALSE)=4),3,IF(AND(AK113="",A114=""),"",1)))) ->  | AL113: 5107 | AM113: 14
A114: =O114*100+P114 -> 1403 | L114: 5108 | M114: 你祭出法宝，将它转化成一些灵石 | O114: 14 | P114: 3 | Q114: =_xlfn.TEXTJOIN(";",1,R114:S114) ->  | T114: =IF(R114="","","-"&VLOOKUP(R114,EventConditionConfig!A:C,3,FALSE)&IF(S114="","",CHAR(10)&"-"&VLOOKUP(S114,EventConditionConfig!A:C,3,FALSE))) ->  | AI114: =IF(OR(AK114="结尾",A114=""),"",IF(ISNUMBER(Y114),2,IF(AND(AK114="",A115="",VLOOKUP(O114,EventConfig!A:C,3,FALSE)=4),3,IF(AND(AK114="",A115=""),"",1)))) ->  | AL114: 5108 | AM114: 14
AI115: =IF(OR(AK115="结尾",A115=""),"",IF(ISNUMBER(Y115),2,IF(AND(AK115="",A116="",VLOOKUP(O115,EventConfig!A:C,3,FALSE)=4),3,IF(AND(AK115="",A116=""),"",1)))) ->  | AM115: 0
A116: =O116*100+P116 -> 1501 | L116: 5109 | M116: 漫漫旅途，你通过神识释放增进不少阅历 | O116: 15 | P116: 1 | Q116: =_xlfn.TEXTJOIN(";",1,R116:S116) ->  | T116: =IF(R116="","","-"&VLOOKUP(R116,EventConditionConfig!A:C,3,FALSE)&IF(S116="","",CHAR(10)&"-"&VLOOKUP(S116,EventConditionConfig!A:C,3,FALSE))) ->  | AI116: =IF(OR(AK116="结尾",A116=""),"",IF(ISNUMBER(Y116),2,IF(AND(AK116="",A117="",VLOOKUP(O116,EventConfig!A:C,3,FALSE)=4),3,IF(AND(AK116="",A117=""),"",1)))) ->  | AL116: 5109 | AM116: 15
A117: =O117*100+P117 -> 1502 | L117: 5110 | M117: 但随之而来的是神识用尽的空虚感 | O117: 15 | P117: 2 | Q117: =_xlfn.TEXTJOIN(";",1,R117:S117) ->  | T117: =IF(R117="","","-"&VLOOKUP(R117,EventConditionConfig!A:C,3,FALSE)&IF(S117="","",CHAR(10)&"-"&VLOOKUP(S117,EventConditionConfig!A:C,3,FALSE))) ->  | AI117: =IF(OR(AK117="结尾",A117=""),"",IF(ISNUMBER(Y117),2,IF(AND(AK117="",A118="",VLOOKUP(O117,EventConfig!A:C,3,FALSE)=4),3,IF(AND(AK117="",A118=""),"",1)))) ->  | AL117: 5110 | AM117: 15
A118: =O118*100+P118 -> 1503 | L118: 5111 | M118: 但这种感受何尝又不是一种新的阅历呢 | O118: 15 | P118: 3 | Q118: =_xlfn.TEXTJOIN(";",1,R118:S118) ->  | T118: =IF(R118="","","-"&VLOOKUP(R118,EventConditionConfig!A:C,3,FALSE)&IF(S118="","",CHAR(10)&"-"&VLOOKUP(S118,EventConditionConfig!A:C,3,FALSE))) ->  | AI118: =IF(OR(AK118="结尾",A118=""),"",IF(ISNUMBER(Y118),2,IF(AND(AK118="",A119="",VLOOKUP(O118,EventConfig!A:C,3,FALSE)=4),3,IF(AND(AK118="",A119=""),"",1)))) ->  | AL118: 5111 | AM118: 15
A119: =O119*100+P119 -> 1504 | L119: 5112 | M119: 你将这些新的感悟存进了一颗神识丹 | O119: 15 | P119: 4 | Q119: =_xlfn.TEXTJOIN(";",1,R119:S119) ->  | T119: =IF(R119="","","-"&VLOOKUP(R119,EventConditionConfig!A:C,3,FALSE)&IF(S119="","",CHAR(10)&"-"&VLOOKUP(S119,EventConditionConfig!A:C,3,FALSE))) ->  | AI119: =IF(OR(AK119="结尾",A119=""),"",IF(ISNUMBER(Y119),2,IF(AND(AK119="",A120="",VLOOKUP(O119,EventConfig!A:C,3,FALSE)=4),3,IF(AND(AK119="",A120=""),"",1)))) ->  | AL119: 5112 | AM119: 15
AI120: =IF(OR(AK120="结尾",A120=""),"",IF(ISNUMBER(Y120),2,IF(AND(AK120="",A121="",VLOOKUP(O120,EventConfig!A:C,3,FALSE)=4),3,IF(AND(AK120="",A121=""),"",1)))) ->  | AM120: 0
A121: =O121*100+P121 -> 1601 | L121: 5113 | M121: 两只体型硕大的妖兽正在为了一颗灵丹而缠斗 | O121: 16 | P121: 1 | Q121: =_xlfn.TEXTJOIN(";",1,R121:S121) ->  | T121: =IF(R121="","","-"&VLOOKUP(R121,EventConditionConfig!A:C,3,FALSE)&IF(S121="","",CHAR(10)&"-"&VLOOKUP(S121,EventConditionConfig!A:C,3,FALSE))) ->  | AI121: =IF(OR(AK121="结尾",A121=""),"",IF(ISNUMBER(Y121),2,IF(AND(AK121="",A122="",VLOOKUP(O121,EventConfig!A:C,3,FALSE)=4),3,IF(AND(AK121="",A122=""),"",1)))) ->  | AL121: 5113 | AM121: 16
A122: =O122*100+P122 -> 1602 | L122: 5114 | M122: 突然一道闪电自天而降，正中两只妖兽 | O122: 16 | P122: 2 | Q122: =_xlfn.TEXTJOIN(";",1,R122:S122) ->  | T122: =IF(R122="","","-"&VLOOKUP(R122,EventConditionConfig!A:C,3,FALSE)&IF(S122="","",CHAR(10)&"-"&VLOOKUP(S122,EventConditionConfig!A:C,3,FALSE))) ->  | AI122: =IF(OR(AK122="结尾",A122=""),"",IF(ISNUMBER(Y122),2,IF(AND(AK122="",A123="",VLOOKUP(O122,EventConfig!A:C,3,FALSE)=4),3,IF(AND(AK122="",A123=""),"",1)))) ->  | AL122: 5114 | AM122: 16
A123: =O123*100+P123 -> 1603 | L123: 5115 | M123: 何其悲哉，念完往生咒，你顺手拿走了这颗珍贵的妖丹 | O123: 16 | P123: 3 | Q123: =_xlfn.TEXTJOIN(";",1,R123:S123) ->  | T123: =IF(R123="","","-"&VLOOKUP(R123,EventConditionConfig!A:C,3,FALSE)&IF(S123="","",CHAR(10)&"-"&VLOOKUP(S123,EventConditionConfig!A:C,3,FALSE))) ->  | AI123: =IF(OR(AK123="结尾",A123=""),"",IF(ISNUMBER(Y123),2,IF(AND(AK123="",A124="",VLOOKUP(O123,EventConfig!A:C,3,FALSE)=4),3,IF(AND(AK123="",A124=""),"",1)))) ->  | AL123: 5115 | AM123: 16
AI124: =IF(OR(AK124="结尾",A124=""),"",IF(ISNUMBER(Y124),2,IF(AND(AK124="",A125="",VLOOKUP(O124,EventConfig!A:C,3,FALSE)=4),3,IF(AND(AK124="",A125=""),"",1)))) ->  | AM124: 0
A125: 9003 | L125: 5116 | M125: 你在闭关修炼时，感受到一股凌厉的剑意波动。深入探查，发现一名白衣剑修“清霜”盘坐于谷中，周围剑气环绕，正与一柄散发不祥气息的灵剑对峙。她似在参悟剑诀，却灵气不足，剑灵桀骜。 | T125: =IF(R125="","","-"&VLOOKUP(R125,EventConditionConfig!A:C,3,FALSE)&IF(S125="","",CHAR(10)&"-"&VLOOKUP(S125,EventConditionConfig!A:C,3,FALSE))) ->  | V125: 9004;9006 | W125: 2041;2042 | AI125: =IF(OR(AK125="结尾",A125=""),"",IF(ISNUMBER(Y125),2,IF(AND(AK125="",A126="",VLOOKUP(O125,EventConfig!A:C,3,FALSE)=4),3,IF(AND(AK125="",A126=""),"",1)))) ->  | AL125: 5116 | AM125: 0
A126: 9004 | L126: 5117 | M126: 你上前以剑意对抗剑灵 | T126: =IF(R126="","","-"&VLOOKUP(R126,EventConditionConfig!A:C,3,FALSE)&IF(S126="","",CHAR(10)&"-"&VLOOKUP(S126,EventConditionConfig!A:C,3,FALSE))) ->  | V126: 100001 | AI126: =IF(OR(AK126="结尾",A126=""),"",IF(ISNUMBER(Y126),2,IF(AND(AK126="",A127="",VLOOKUP(O126,EventConfig!A:C,3,FALSE)=4),3,IF(AND(AK126="",A127=""),"",1)))) ->  | AL126: 5117 | AM126: 0
A127: 9005 | L127: 5118 | M127: 成功压制剑灵，清霜赠你“霜华剑符”并结下道友之谊 | T127: =IF(R127="","","-"&VLOOKUP(R127,EventConditionConfig!A:C,3,FALSE)&IF(S127="","",CHAR(10)&"-"&VLOOKUP(S127,EventConditionConfig!A:C,3,FALSE))) ->  | AI127: =IF(OR(AK127="结尾",A127=""),"",IF(ISNUMBER(Y127),2,IF(AND(AK127="",A128="",VLOOKUP(O127,EventConfig!A:C,3,FALSE)=4),3,IF(AND(AK127="",A128=""),"",1)))) ->  | AL127: 5118 | AM127: 0
A128: 9006 | L128: 5119 | M128: 你察觉谷中灵气匮乏，清霜剑意凝滞。神识探查得知，附近秘境可采集“玄冰花” | T128: =IF(R128="","","-"&VLOOKUP(R128,EventConditionConfig!A:C,3,FALSE)&IF(S128="","",CHAR(10)&"-"&VLOOKUP(S128,EventConditionConfig!A:C,3,FALSE))) ->  | AI128: =IF(OR(AK128="结尾",A128=""),"",IF(ISNUMBER(Y128),2,IF(AND(AK128="",A129="",VLOOKUP(O128,EventConfig!A:C,3,FALSE)=4),3,IF(AND(AK128="",A129=""),"",1)))) ->  | AL128: 5119 | AM128: 0
A129: 9007 | L129: 5120 | M129: 献上玄冰花，清霜炼化灵气突破瓶颈，赠你“玄霜剑意” | T129: =IF(R129="","","-"&VLOOKUP(R129,EventConditionConfig!A:C,3,FALSE)&IF(S129="","",CHAR(10)&"-"&VLOOKUP(S129,EventConditionConfig!A:C,3,FALSE))) ->  | AI129: =IF(OR(AK129="结尾",A129=""),"",IF(ISNUMBER(Y129),2,IF(AND(AK129="",A130="",VLOOKUP(O129,EventConfig!A:C,3,FALSE)=4),3,IF(AND(AK129="",A130=""),"",1)))) ->  | AL129: 5120 | AM129: 0
A130: 9008 | T130: =IF(R130="","","-"&VLOOKUP(R130,EventConditionConfig!A:C,3,FALSE)&IF(S130="","",CHAR(10)&"-"&VLOOKUP(S130,EventConditionConfig!A:C,3,FALSE))) ->  | U130: 3 | AG130: 1001 | AH130: 999 | AI130: =IF(OR(AK130="结尾",A130=""),"",IF(ISNUMBER(Y130),2,IF(AND(AK130="",A131="",VLOOKUP(O130,EventConfig!A:C,3,FALSE)=4),3,IF(AND(AK130="",A131=""),"",1)))) ->  | AL130: 5120 | AM130: 0
T131: =IF(R131="","","-"&VLOOKUP(R131,EventConditionConfig!A:C,3,FALSE)&IF(S131="","",CHAR(10)&"-"&VLOOKUP(S131,EventConditionConfig!A:C,3,FALSE))) ->  | AI131: =IF(OR(AK131="结尾",A131=""),"",IF(ISNUMBER(Y131),2,IF(AND(AK131="",A132="",VLOOKUP(O131,EventConfig!A:C,3,FALSE)=4),3,IF(AND(AK131="",A132=""),"",1)))) ->  | AM131: 0
A132: 9025 | D132: 5121 | E132: 和惠子交谈 | L132: 5122 | M132: 惠子种的葫芦没用，他非常生气，需要打败魔休 | P132: =IF(O132="","",IF(O132=O131,P131+1,1)) ->  | T132: =IF(R132="","","-"&VLOOKUP(R132,EventConditionConfig!A:C,3,FALSE)&IF(S132="","",CHAR(10)&"-"&VLOOKUP(S132,EventConditionConfig!A:C,3,FALSE))) ->  | V132: 9026 | W132: 2075 | AI132: =IF(OR(AK132="结尾",A132=""),"",IF(ISNUMBER(Y132),2,IF(AND(AK132="",A133="",VLOOKUP(O132,EventConfig!A:C,3,FALSE)=4),3,IF(AND(AK132="",A133=""),"",1)))) ->  | AL132: 5122 | AM132: 0
A133: 9026 | B133: =IF(C133="","",IF(C133=C132,B132,MAX(AL132,AL131)+1)) ->  | D133: =IF(E133="","",IF(E133=E132,D132,MAX(AL132,AL131,B133)+1)) ->  | L133: 5123 | M133: 选择后接新的事件 | T133: =IF(R133="","","-"&VLOOKUP(R133,EventConditionConfig!A:C,3,FALSE)&IF(S133="","",CHAR(10)&"-"&VLOOKUP(S133,EventConditionConfig!A:C,3,FALSE))) ->  | U133: 1 | X133: =IF(OR(ISNUMBER(Y133),Y133=""),"",MAX(AL132,AL130,B133,D133,L133)+1) -> 5124 | Y133: 接受任务 | AA133: =IF(OR(ISNUMBER(AB133),AB133=""),"",X133+1) ->  | AD133: =IF(OR(ISNUMBER(AE133),AE133=""),"",AA133+1) ->  | AI133: =IF(OR(AK133="结尾",A133=""),"",IF(ISNUMBER(Y133),2,IF(AND(AK133="",A134="",VLOOKUP(O133,EventConfig!A:C,3,FALSE)=4),3,IF(AND(AK133="",A134=""),"",1)))) ->  | AL133: 5124 | AM133: 0
L134: =IF(M134="","",MAX(AL133,AL132,B134,D134)+1) ->  | T134: =IF(R134="","","-"&VLOOKUP(R134,EventConditionConfig!A:C,3,FALSE)&IF(S134="","",CHAR(10)&"-"&VLOOKUP(S134,EventConditionConfig!A:C,3,FALSE))) ->  | U134: =IF(AG134>0,3,IF(Y134="","",IF(ISTEXT(Y134),1,2))) ->  | AI134: =IF(OR(AK134="结尾",A134=""),"",IF(ISNUMBER(Y134),2,IF(AND(AK134="",A135="",VLOOKUP(O134,EventConfig!A:C,3,FALSE)=4),3,IF(AND(AK134="",A135=""),"",1)))) ->  | AL134: =IF(A134="","",MAX(B134,D134,L134,X134,AA134,AL133,AL132,AD134)) ->  | AM134: =O134 -> 0
A135: 9014 | D135: 5125 | E135: 击杀魔休 | Q135: 3 | R135: 3 | T135: =IF(R135="","","-"&VLOOKUP(R135,EventConditionConfig!A:C,3,FALSE)&IF(S135="","",CHAR(10)&"-"&VLOOKUP(S135,EventConditionConfig!A:C,3,FALSE))) -> -击杀魔休 | AI135: =IF(OR(AK135="结尾",A135=""),"",IF(ISNUMBER(Y135),2,IF(AND(AK135="",A136="",VLOOKUP(O135,EventConfig!A:C,3,FALSE)=4),3,IF(AND(AK135="",A136=""),"",1)))) ->  | AL135: 5125 | AM135: 0
Q136: =_xlfn.TEXTJOIN(";",1,R136:S136) ->  | T136: =IF(R136="","","-"&VLOOKUP(R136,EventConditionConfig!A:C,3,FALSE)&IF(S136="","",CHAR(10)&"-"&VLOOKUP(S136,EventConditionConfig!A:C,3,FALSE))) ->  | AI136: =IF(OR(AK136="结尾",A136=""),"",IF(ISNUMBER(Y136),2,IF(AND(AK136="",A137="",VLOOKUP(O136,EventConfig!A:C,3,FALSE)=4),3,IF(AND(AK136="",A137=""),"",1)))) ->  | AM136: 0
A137: 9031 | B137: 5126 | C137: 出现Boss魔修 | D137: 5127 | E137: 打败魔修 | T137: =IF(R137="","","-"&VLOOKUP(R137,EventConditionConfig!A:C,3,FALSE)&IF(S137="","",CHAR(10)&"-"&VLOOKUP(S137,EventConditionConfig!A:C,3,FALSE))) ->  | V137: 100001 | AI137: =IF(OR(AK137="结尾",A137=""),"",IF(ISNUMBER(Y137),2,IF(AND(AK137="",A138="",VLOOKUP(O137,EventConfig!A:C,3,FALSE)=4),3,IF(AND(AK137="",A138=""),"",1)))) ->  | AL137: 5127 | AM137: 0
AI138: =IF(OR(AK138="结尾",A138=""),"",IF(ISNUMBER(Y138),2,IF(AND(AK138="",A139="",VLOOKUP(O138,EventConfig!A:C,3,FALSE)=4),3,IF(AND(AK138="",A139=""),"",1)))) ->  | AJ138: =IF(OR(AK138="结尾",AI138=""),"",CHOOSE(AI138,IF(AK138="",A138+1,AK138),CONCATENATE(IF(AK138="",A138+1,AK138),";101"),IF(AK138="",O138+1,AK138))) ->  | AM138: 0
A139: =O139*100+P139 -> 1000001 | J139: 157 | K139: =IF(J139="","",VLOOKUP(J139,EventNPC!A:F,6,FALSE)) -> 0 | L139: 5128 | M139: （渡劫失败后，悬浮于混沌虚空，破碎道袍微微飘动，丹田空虚。） | O139: 10000 | P139: =IF(O139="","",IF(O139=O138,P138+1,1)) -> 1 | Q139: =_xlfn.TEXTJOIN(";",1,R139:S139) ->  | T139: =IF(R139="","","-"&VLOOKUP(R139,EventConditionConfig!A:C,3,FALSE)&IF(S139="","",CHAR(10)&"-"&VLOOKUP(S139,EventConditionConfig!A:C,3,FALSE))) ->  | V139: =IF(AND(U139=1,A140=""),103,IF(U139=1,_xlfn.TEXTJOIN(";",1,IF(Z139="",A139+1,Z139),IF(AND(AA139<>"",AC139=""),A139+1,AC139),IF(AND(AD139<>"",AF139=""),A139+1,AF139)),IF(U139=2,Y139,""))) ->  | W139: =_xlfn.TEXTJOIN(";",1,X139,AA139,AD139) ->  | AI139: =IF(OR(AK139="结尾",A139=""),"",IF(ISNUMBER(Y139),2,IF(AND(AK139="",A140="",VLOOKUP(O139,EventConfig!A:C,3,FALSE)=4),3,IF(AND(AK139="",A140=""),"",1)))) -> 1 | AJ139: 1000002 | AL139: 5128 | AM139: 10000
A140: 1000002 | J140: 157 | K140: =IF(J140="","",VLOOKUP(J140,EventNPC!A:F,6,FALSE)) -> 0 | L140: 5129 | M140: 还是做不到吗……多次渡劫，又功亏一篑！ | O140: 10000 | P140: 2 | T140: =IF(R140="","","-"&VLOOKUP(R140,EventConditionConfig!A:C,3,FALSE)&IF(S140="","",CHAR(10)&"-"&VLOOKUP(S140,EventConditionConfig!A:C,3,FALSE))) ->  | V140: =IF(AND(U140=1,A141=""),103,IF(U140=1,_xlfn.TEXTJOIN(";",1,IF(Z140="",A140+1,Z140),IF(AND(AA140<>"",AC140=""),A140+1,AC140),IF(AND(AD140<>"",AF140=""),A140+1,AF140)),IF(U140=2,Y140,""))) ->  | W140: =_xlfn.TEXTJOIN(";",1,X140,AA140,AD140) ->  | AI140: =IF(OR(AK140="结尾",A140=""),"",IF(ISNUMBER(Y140),2,IF(AND(AK140="",A141="",VLOOKUP(O140,EventConfig!A:C,3,FALSE)=4),3,IF(AND(AK140="",A141=""),"",1)))) -> 1 | AJ140: 1000003 | AL140: 5129 | AM140: =O140 -> 10000
A141: 1000003 | J141: 157 | K141: =IF(J141="","",VLOOKUP(J141,EventNPC!A:F,6,FALSE)) -> 0 | L141: 5130 | M141: 好在神魂未灭，不过一身修为几乎散尽，只剩练气修为…… | O141: 10000 | P141: 3 | T141: =IF(R141="","","-"&VLOOKUP(R141,EventConditionConfig!A:C,3,FALSE)&IF(S141="","",CHAR(10)&"-"&VLOOKUP(S141,EventConditionConfig!A:C,3,FALSE))) ->  | AI141: =IF(OR(AK141="结尾",A141=""),"",IF(ISNUMBER(Y141),2,IF(AND(AK141="",A142="",VLOOKUP(O141,EventConfig!A:C,3,FALSE)=4),3,IF(AND(AK141="",A142=""),"",1)))) -> 1 | AJ141: 1000004 | AL141: 5130 | AM141: 10000
A142: 1000004 | J142: 158 | K142: =IF(J142="","",VLOOKUP(J142,EventNPC!A:F,6,FALSE)) -> 0 | L142: 5131 | M142: 此处是何地？ | O142: 10000 | P142: 4 | T142: =IF(R142="","","-"&VLOOKUP(R142,EventConditionConfig!A:C,3,FALSE)&IF(S142="","",CHAR(10)&"-"&VLOOKUP(S142,EventConditionConfig!A:C,3,FALSE))) ->  | AI142: =IF(OR(AK142="结尾",A142=""),"",IF(ISNUMBER(Y142),2,IF(AND(AK142="",A143="",VLOOKUP(O142,EventConfig!A:C,3,FALSE)=4),3,IF(AND(AK142="",A143=""),"",1)))) -> 1 | AJ142: 1000005 | AL142: 5131 | AM142: 10000
A143: 1000005 | J143: 158 | K143: =IF(J143="","",VLOOKUP(J143,EventNPC!A:F,6,FALSE)) -> 0 | L143: 5132 | M143: （虚空中，一块石碑若隐若现，上书：“无何有之乡”。） | O143: 10000 | P143: 5 | T143: =IF(R143="","","-"&VLOOKUP(R143,EventConditionConfig!A:C,3,FALSE)&IF(S143="","",CHAR(10)&"-"&VLOOKUP(S143,EventConditionConfig!A:C,3,FALSE))) ->  | AI143: =IF(OR(AK143="结尾",A143=""),"",IF(ISNUMBER(Y143),2,IF(AND(AK143="",A144="",VLOOKUP(O143,EventConfig!A:C,3,FALSE)=4),3,IF(AND(AK143="",A144=""),"",1)))) -> 1 | AJ143: 1000006 | AL143: 5132 | AM143: 10000
A144: 1000006 | J144: 159 | K144: =IF(J144="","",VLOOKUP(J144,EventNPC!A:F,6,FALSE)) -> 0 | L144: 5133 | M144: （忽然，一本古卷从天而落，落入掌中） | O144: 10000 | P144: 6 | T144: =IF(R144="","","-"&VLOOKUP(R144,EventConditionConfig!A:C,3,FALSE)&IF(S144="","",CHAR(10)&"-"&VLOOKUP(S144,EventConditionConfig!A:C,3,FALSE))) ->  | AI144: =IF(OR(AK144="结尾",A144=""),"",IF(ISNUMBER(Y144),2,IF(AND(AK144="",A145="",VLOOKUP(O144,EventConfig!A:C,3,FALSE)=4),3,IF(AND(AK144="",A145=""),"",1)))) -> 1 | AJ144: 1000007 | AL144: 5133 | AM144: 10000
A145: 1000007 | J145: 159 | K145: =IF(J145="","",VLOOKUP(J145,EventNPC!A:F,6,FALSE)) -> 0 | L145: 5134 | M145: （书封斑驳，触之微凉，似有灵气流转） | O145: 10000 | P145: 7 | T145: =IF(R145="","","-"&VLOOKUP(R145,EventConditionConfig!A:C,3,FALSE)&IF(S145="","",CHAR(10)&"-"&VLOOKUP(S145,EventConditionConfig!A:C,3,FALSE))) ->  | AI145: =IF(OR(AK145="结尾",A145=""),"",IF(ISNUMBER(Y145),2,IF(AND(AK145="",A146="",VLOOKUP(O145,EventConfig!A:C,3,FALSE)=4),3,IF(AND(AK145="",A146=""),"",1)))) -> 1 | AJ145: 1000008 | AL145: 5134 | AM145: 10000
A146: 1000008 | J146: 159 | K146: =IF(J146="","",VLOOKUP(J146,EventNPC!A:F,6,FALSE)) -> 0 | L146: 5135 | M146: （你翻开书页，不自觉的低声诵读..） | O146: 10000 | P146: 8 | Q146: =_xlfn.TEXTJOIN(";",1,R146:S146) ->  | T146: =IF(R146="","","-"&VLOOKUP(R146,EventConditionConfig!A:C,3,FALSE)&IF(S146="","",CHAR(10)&"-"&VLOOKUP(S146,EventConditionConfig!A:C,3,FALSE))) ->  | AI146: =IF(OR(AK146="结尾",A146=""),"",IF(ISNUMBER(Y146),2,IF(AND(AK146="",A147="",VLOOKUP(O146,EventConfig!A:C,3,FALSE)=4),3,IF(AND(AK146="",A147=""),"",1)))) -> 1 | AJ146: 1000009 | AL146: 5135 | AM146: 10000
A147: 1000009 | J147: 159 | K147: =IF(J147="","",VLOOKUP(J147,EventNPC!A:F,6,FALSE)) -> 0 | L147: 5136 | M147: 北冥有鱼，其名为鲲。鲲之大，不知其几千里也…… | O147: 10000 | P147: 9 | T147: =IF(R147="","","-"&VLOOKUP(R147,EventConditionConfig!A:C,3,FALSE)&IF(S147="","",CHAR(10)&"-"&VLOOKUP(S147,EventConditionConfig!A:C,3,FALSE))) ->  | AI147: =IF(OR(AK147="结尾",A147=""),"",IF(ISNUMBER(Y147),2,IF(AND(AK147="",A148="",VLOOKUP(O147,EventConfig!A:C,3,FALSE)=4),3,IF(AND(AK147="",A148=""),"",1)))) -> 1 | AJ147: 1000010 | AL147: 5136 | AM147: 10000
A148: 1000010 | J148: 160 | K148: =IF(J148="","",VLOOKUP(J148,EventNPC!A:F,6,FALSE)) -> 0 | L148: 5137 | M148: （随着吟诵，泛起缕缕清气，虚空震颤，一道白鹤般的身影自混沌中现身，仙风道骨，目光如星。） | O148: 10000 | P148: 10 | T148: =IF(R148="","","-"&VLOOKUP(R148,EventConditionConfig!A:C,3,FALSE)&IF(S148="","",CHAR(10)&"-"&VLOOKUP(S148,EventConditionConfig!A:C,3,FALSE))) ->  | AI148: =IF(OR(AK148="结尾",A148=""),"",IF(ISNUMBER(Y148),2,IF(AND(AK148="",A149="",VLOOKUP(O148,EventConfig!A:C,3,FALSE)=4),3,IF(AND(AK148="",A149=""),"",1)))) -> 1 | AJ148: 1000011 | AL148: 5137 | AM148: 10000
A149: 1000011 | J149: 137 | K149: =IF(J149="","",VLOOKUP(J149,EventNPC!A:F,6,FALSE)) -> 冲虚真人 | L149: 5138 | M149: “小友的诵读，出自《逍遥游》。可知逍遥为何物？ | O149: 10000 | P149: 11 | T149: =IF(R149="","","-"&VLOOKUP(R149,EventConditionConfig!A:C,3,FALSE)&IF(S149="","",CHAR(10)&"-"&VLOOKUP(S149,EventConditionConfig!A:C,3,FALSE))) ->  | AI149: =IF(OR(AK149="结尾",A149=""),"",IF(ISNUMBER(Y149),2,IF(AND(AK149="",A150="",VLOOKUP(O149,EventConfig!A:C,3,FALSE)=4),3,IF(AND(AK149="",A150=""),"",1)))) -> 1 | AJ149: 1000012 | AL149: 5138 | AM149: 10000
A150: 1000012 | J150: 137 | K150: =IF(J150="","",VLOOKUP(J150,EventNPC!A:F,6,FALSE)) -> 冲虚真人 | L150: 5139 | M150: 鲲鹏扶摇九天，究竟是真实存在，还是心之所向？ | O150: 10000 | P150: 12 | T150: =IF(R150="","","-"&VLOOKUP(R150,EventConditionConfig!A:C,3,FALSE)&IF(S150="","",CHAR(10)&"-"&VLOOKUP(S150,EventConditionConfig!A:C,3,FALSE))) ->  | U150: 1 | V150: 1000013;1000014 | W150: 5140;5141 | X150: 5140 | Y150: 渡劫失败，谈何逍遥？晚辈只求重返仙途！ | Z150: =A151 -> 1000013 | AA150: 5141 | AB150: 何为逍遥？请前辈开示。 | AC150: =A152 -> 1000014 | AF150: =D152 ->  | AI150: =IF(OR(AK150="结尾",A150=""),"",IF(ISNUMBER(Y150),2,IF(AND(AK150="",A151="",VLOOKUP(O150,EventConfig!A:C,3,FALSE)=4),3,IF(AND(AK150="",A151=""),"",1)))) -> 1 | AJ150: 1000013 | AL150: 5141 | AM150: 10000
A151: 1000013 | J151: 137 | K151: =IF(J151="","",VLOOKUP(J151,EventNPC!A:F,6,FALSE)) -> 冲虚真人 | L151: 5142 | M151: 你虽执着于飞升，却屡败不悟，谈何仙途？ | O151: 10000 | P151: 13 | T151: =IF(R151="","","-"&VLOOKUP(R151,EventConditionConfig!A:C,3,FALSE)&IF(S151="","",CHAR(10)&"-"&VLOOKUP(S151,EventConditionConfig!A:C,3,FALSE))) ->  | AI151: =IF(OR(AK151="结尾",A151=""),"",IF(ISNUMBER(Y151),2,IF(AND(AK151="",A152="",VLOOKUP(O151,EventConfig!A:C,3,FALSE)=4),3,IF(AND(AK151="",A152=""),"",1)))) -> 1 | AJ151: 1000015 | AK151: =A153 -> 1000015 | AL151: 5142 | AM151: 10000
A152: 1000014 | J152: 137 | K152: =IF(J152="","",VLOOKUP(J152,EventNPC!A:F,6,FALSE)) -> 冲虚真人 | L152: 5143 | M152: 逍遥存于内心。你心有执念，怎得逍遥？ | O152: 10000 | P152: 14 | T152: =IF(R152="","","-"&VLOOKUP(R152,EventConditionConfig!A:C,3,FALSE)&IF(S152="","",CHAR(10)&"-"&VLOOKUP(S152,EventConditionConfig!A:C,3,FALSE))) ->  | AI152: =IF(OR(AK152="结尾",A152=""),"",IF(ISNUMBER(Y152),2,IF(AND(AK152="",A153="",VLOOKUP(O152,EventConfig!A:C,3,FALSE)=4),3,IF(AND(AK152="",A153=""),"",1)))) -> 1 | AJ152: 1000015 | AK152: =A153 -> 1000015 | AL152: 5143 | AM152: 10000
A153: 1000015 | J153: 137 | K153: =IF(J153="","",VLOOKUP(J153,EventNPC!A:F,6,FALSE)) -> 冲虚真人 | L153: 5144 | M153: （冲虚真人扫过你破碎的道袍，叹息道）凡界、仙界、魔界，皆是棋盘，你只是棋子。 | O153: 10000 | P153: 15 | Q153: =_xlfn.TEXTJOIN(";",1,R153:S153) ->  | T153: =IF(R153="","","-"&VLOOKUP(R153,EventConditionConfig!A:C,3,FALSE)&IF(S153="","",CHAR(10)&"-"&VLOOKUP(S153,EventConditionConfig!A:C,3,FALSE))) ->  | AI153: =IF(OR(AK153="结尾",A153=""),"",IF(ISNUMBER(Y153),2,IF(AND(AK153="",A154="",VLOOKUP(O153,EventConfig!A:C,3,FALSE)=4),3,IF(AND(AK153="",A154=""),"",1)))) -> 1 | AJ153: 1000016 | AL153: 5144 | AM153: 10000
A154: 1000016 | J154: 137 | K154: =IF(J154="","",VLOOKUP(J154,EventNPC!A:F,6,FALSE)) -> 冲虚真人 | L154: 5145 | M154: 若只是棋子，又如何能窥见天道？ | O154: 10000 | P154: 16 | T154: =IF(R154="","","-"&VLOOKUP(R154,EventConditionConfig!A:C,3,FALSE)&IF(S154="","",CHAR(10)&"-"&VLOOKUP(S154,EventConditionConfig!A:C,3,FALSE))) ->  | U154: 1 | V154: 1000017 | W154: 5146 | X154: 5146 | Y154: 前辈说得玄妙，可有具体指引？ | Z154: =A155 -> 1000017 | AI154: =IF(OR(AK154="结尾",A154=""),"",IF(ISNUMBER(Y154),2,IF(AND(AK154="",A155="",VLOOKUP(O154,EventConfig!A:C,3,FALSE)=4),3,IF(AND(AK154="",A155=""),"",1)))) -> 1 | AJ154: 1000017 | AL154: 5146 | AM154: 10000
A155: 1000017 | J155: 137 | K155: =IF(J155="","",VLOOKUP(J155,EventNPC!A:F,6,FALSE)) -> 冲虚真人 | L155: 5147 | M155: 参透<color=red>七道心境</color>，才有望窥见天道.. 去吧，历红尘，破心障，游三界，方能领悟。 | O155: 10000 | P155: 17 | Q155: =_xlfn.TEXTJOIN(";",1,R155:S155) ->  | T155: =IF(R155="","","-"&VLOOKUP(R155,EventConditionConfig!A:C,3,FALSE)&IF(S155="","",CHAR(10)&"-"&VLOOKUP(S155,EventConditionConfig!A:C,3,FALSE))) ->  | U155: 1 | V155: 1000018 | W155: 5148 | X155: 5148 | Y155: 七道心境？那是何物，请前辈指点？ | Z155: =A156 -> 1000018 | AI155: =IF(OR(AK155="结尾",A155=""),"",IF(ISNUMBER(Y155),2,IF(AND(AK155="",A156="",VLOOKUP(O155,EventConfig!A:C,3,FALSE)=4),3,IF(AND(AK155="",A156=""),"",1)))) -> 1 | AJ155: 1000018 | AL155: 5148 | AM155: 10000
A156: 1000018 | J156: 137 | K156: =IF(J156="","",VLOOKUP(J156,EventNPC!A:F,6,FALSE)) -> 冲虚真人 | L156: 5149 | M156: 天机不可泄露。 （说罢，从袖中拿出一个风铃..） 但此风铃，可以为你指引前路。 | O156: 10000 | P156: 18 | T156: =IF(R156="","","-"&VLOOKUP(R156,EventConditionConfig!A:C,3,FALSE)&IF(S156="","",CHAR(10)&"-"&VLOOKUP(S156,EventConditionConfig!A:C,3,FALSE))) ->  | U156: 1 | V156: 1000019 | W156: 5150 | X156: 5150 | Y156: 多谢前辈赠铃.. | AI156: =IF(OR(AK156="结尾",A156=""),"",IF(ISNUMBER(Y156),2,IF(AND(AK156="",A157="",VLOOKUP(O156,EventConfig!A:C,3,FALSE)=4),3,IF(AND(AK156="",A157=""),"",1)))) -> 1 | AJ156: 1000019 | AL156: 5150 | AM156: 10000
A157: 1000019 | J157: 137 | K157: =IF(J157="","",VLOOKUP(J157,EventNPC!A:F,6,FALSE)) -> 冲虚真人 | L157: 5151 | M157: （凝视远方，喃喃道） 凡界有尧，欲让天下而不得其法； 惠子得大葫芦，却不知其用； 姑射仙山，藏无形之仙； 列子可御风而行，却任有所求。 （说完，便化作清风消散。） | O157: 10000 | P157: 19 | T157: =IF(R157="","","-"&VLOOKUP(R157,EventConditionConfig!A:C,3,FALSE)&IF(S157="","",CHAR(10)&"-"&VLOOKUP(S157,EventConditionConfig!A:C,3,FALSE))) ->  | AI157: =IF(OR(AK157="结尾",A157=""),"",IF(ISNUMBER(Y157),2,IF(AND(AK157="",A158="",VLOOKUP(O157,EventConfig!A:C,3,FALSE)=4),3,IF(AND(AK157="",A158=""),"",1)))) -> 1 | AJ157: 1000020 | AL157: 5151 | AM157: 10000
A158: 1000020 | J158: 157 | K158: =IF(J158="","",VLOOKUP(J158,EventNPC!A:F,6,FALSE)) -> 0 | L158: 5152 | M158: ..... “逍遥之意，何处可寻？” | O158: 10000 | P158: 20 | T158: =IF(R158="","","-"&VLOOKUP(R158,EventConditionConfig!A:C,3,FALSE)&IF(S158="","",CHAR(10)&"-"&VLOOKUP(S158,EventConditionConfig!A:C,3,FALSE))) ->  | AI158: =IF(OR(AK158="结尾",A158=""),"",IF(ISNUMBER(Y158),2,IF(AND(AK158="",A159="",VLOOKUP(O158,EventConfig!A:C,3,FALSE)=4),3,IF(AND(AK158="",A159=""),"",1)))) -> 1 | AJ158: 1000021 | AL158: 5152 | AM158: 10000
A159: 1000021 | J159: 161 | K159: =IF(J159="","",VLOOKUP(J159,EventNPC!A:F,6,FALSE)) -> 0 | L159: 5153 | M159: 算了，先看看这个风铃。 (你拿起刚刚获得的风铃，仔细看了一下) | O159: 10000 | P159: 21 | T159: =IF(R159="","","-"&VLOOKUP(R159,EventConditionConfig!A:C,3,FALSE)&IF(S159="","",CHAR(10)&"-"&VLOOKUP(S159,EventConditionConfig!A:C,3,FALSE))) ->  | AI159: =IF(OR(AK159="结尾",A159=""),"",IF(ISNUMBER(Y159),2,IF(AND(AK159="",A160="",VLOOKUP(O159,EventConfig!A:C,3,FALSE)=4),3,IF(AND(AK159="",A160=""),"",1)))) -> 1 | AJ159: 1000022 | AL159: 5153 | AM159: 10000
A160: 1000022 | K160: =IF(J160="","",VLOOKUP(J160,EventNPC!A:F,6,FALSE)) ->  | L160: 5154 | M160: 铃身刻有“逍遥”二字，铃声清脆悠远，似有灵性，隐约指向北海. | O160: 10000 | P160: 22 | T160: =IF(R160="","","-"&VLOOKUP(R160,EventConditionConfig!A:C,3,FALSE)&IF(S160="","",CHAR(10)&"-"&VLOOKUP(S160,EventConditionConfig!A:C,3,FALSE))) ->  | AI160: =IF(OR(AK160="结尾",A160=""),"",IF(ISNUMBER(Y160),2,IF(AND(AK160="",A161="",VLOOKUP(O160,EventConfig!A:C,3,FALSE)=4),3,IF(AND(AK160="",A161=""),"",1)))) ->  | AL160: 5154 | AM160: 10000
K161: =IF(J161="","",VLOOKUP(J161,EventNPC!A:F,6,FALSE)) ->  | T161: =IF(R161="","","-"&VLOOKUP(R161,EventConditionConfig!A:C,3,FALSE)&IF(S161="","",CHAR(10)&"-"&VLOOKUP(S161,EventConditionConfig!A:C,3,FALSE))) ->  | AI161: =IF(OR(AK161="结尾",A161=""),"",IF(ISNUMBER(Y161),2,IF(AND(AK161="",A162="",VLOOKUP(O161,EventConfig!A:C,3,FALSE)=4),3,IF(AND(AK161="",A162=""),"",1)))) ->  | AM161: 0
A162: =O162*100+P162 -> 1000101 | B162: 5155 | C162: 使用风铃唤醒还未泯灭的神识 | K162: =IF(J162="","",VLOOKUP(J162,EventNPC!A:F,6,FALSE)) ->  | L162: 5156 | M162: 北冥有鱼，其名为鲲…… | N162: 2 | O162: 10001 | P162: 1 | T162: =IF(R162="","","-"&VLOOKUP(R162,EventConditionConfig!A:C,3,FALSE)&IF(S162="","",CHAR(10)&"-"&VLOOKUP(S162,EventConditionConfig!A:C,3,FALSE))) ->  | AI162: =IF(OR(AK162="结尾",A162=""),"",IF(ISNUMBER(Y162),2,IF(AND(AK162="",A163="",VLOOKUP(O162,EventConfig!A:C,3,FALSE)=4),3,IF(AND(AK162="",A163=""),"",1)))) -> 1 | AJ162: 1000102 | AL162: 5156 | AM162: 10001
A163: =O163*100+P163 -> 1000102 | B163: 5155 | C163: 使用风铃唤醒还未泯灭的神识 | K163: =IF(J163="","",VLOOKUP(J163,EventNPC!A:F,6,FALSE)) ->  | L163: 5157 | M163: 不过北海遥远，何时能寻得鲲鹏的踪迹。 | N163: 2 | O163: 10001 | P163: 2 | T163: =IF(R163="","","-"&VLOOKUP(R163,EventConditionConfig!A:C,3,FALSE)&IF(S163="","",CHAR(10)&"-"&VLOOKUP(S163,EventConditionConfig!A:C,3,FALSE))) ->  | AI163: =IF(OR(AK163="结尾",A163=""),"",IF(ISNUMBER(Y163),2,IF(AND(AK163="",A164="",VLOOKUP(O163,EventConfig!A:C,3,FALSE)=4),3,IF(AND(AK163="",A164=""),"",1)))) -> 1 | AJ163: 1000103 | AL163: 5157 | AM163: 10001
A164: =O164*100+P164 -> 1000103 | B164: 5155 | C164: 使用风铃唤醒还未泯灭的神识 | K164: =IF(J164="","",VLOOKUP(J164,EventNPC!A:F,6,FALSE)) ->  | L164: 5158 | M164: 好在我的神识尚在，可探天地，再加上刚刚的风铃，或许能寻得前路线索。 | N164: 2 | O164: 10001 | P164: 3 | T164: =IF(R164="","","-"&VLOOKUP(R164,EventConditionConfig!A:C,3,FALSE)&IF(S164="","",CHAR(10)&"-"&VLOOKUP(S164,EventConditionConfig!A:C,3,FALSE))) ->  | AI164: =IF(OR(AK164="结尾",A164=""),"",IF(ISNUMBER(Y164),2,IF(AND(AK164="",A165="",VLOOKUP(O164,EventConfig!A:C,3,FALSE)=4),3,IF(AND(AK164="",A165=""),"",1)))) -> 1 | AJ164: 1000104 | AL164: 5158 | AM164: 10001
A165: =O165*100+P165 -> 1000104 | B165: 5155 | C165: 使用风铃唤醒还未泯灭的神识 | K165: =IF(J165="","",VLOOKUP(J165,EventNPC!A:F,6,FALSE)) ->  | O165: 10001 | P165: 4 | Q165: 5 | R165: 5 | T165: =IF(R165="","","-"&VLOOKUP(R165,EventConditionConfig!A:C,3,FALSE)&IF(S165="","",CHAR(10)&"-"&VLOOKUP(S165,EventConditionConfig!A:C,3,FALSE))) -> -使用神识 | AI165: =IF(OR(AK165="结尾",A165=""),"",IF(ISNUMBER(Y165),2,IF(AND(AK165="",A166="",VLOOKUP(O165,EventConfig!A:C,3,FALSE)=4),3,IF(AND(AK165="",A166=""),"",1)))) -> 3 | AJ165: 10002 | AL165: 5158 | AM165: 10001
K166: =IF(J166="","",VLOOKUP(J166,EventNPC!A:F,6,FALSE)) ->  | T166: =IF(R166="","","-"&VLOOKUP(R166,EventConditionConfig!A:C,3,FALSE)&IF(S166="","",CHAR(10)&"-"&VLOOKUP(S166,EventConditionConfig!A:C,3,FALSE))) ->  | AI166: =IF(OR(AK166="结尾",A166=""),"",IF(ISNUMBER(Y166),2,IF(AND(AK166="",A167="",VLOOKUP(O166,EventConfig!A:C,3,FALSE)=4),3,IF(AND(AK166="",A167=""),"",1)))) ->  | AM166: 0
A167: =O167*100+P167 -> 1000201 | B167: 5159 | C167: 前往妖兽盘踞的地方 | D167: 5160 | E167: 御剑飞行 | K167: =IF(J167="","",VLOOKUP(J167,EventNPC!A:F,6,FALSE)) ->  | L167: 5161 | M167: 神识发现有一条古径，隐于云山之间，不过似乎有妖兽盘踞。 | N167: 2 | O167: 10002 | P167: 1 | T167: =IF(R167="","","-"&VLOOKUP(R167,EventConditionConfig!A:C,3,FALSE)&IF(S167="","",CHAR(10)&"-"&VLOOKUP(S167,EventConditionConfig!A:C,3,FALSE))) ->  | AI167: =IF(OR(AK167="结尾",A167=""),"",IF(ISNUMBER(Y167),2,IF(AND(AK167="",A168="",VLOOKUP(O167,EventConfig!A:C,3,FALSE)=4),3,IF(AND(AK167="",A168=""),"",1)))) -> 1 | AJ167: 1000202 | AL167: 5161 | AM167: 10002
A168: =O168*100+P168 -> 1000202 | B168: 5159 | C168: 前往妖兽盘踞的地方 | D168: 5160 | E168: 御剑飞行 | K168: =IF(J168="","",VLOOKUP(J168,EventNPC!A:F,6,FALSE)) ->  | L168: 5162 | M168: 没其他办法了，过去看看吧。 | N168: 2 | O168: 10002 | P168: 2 | T168: =IF(R168="","","-"&VLOOKUP(R168,EventConditionConfig!A:C,3,FALSE)&IF(S168="","",CHAR(10)&"-"&VLOOKUP(S168,EventConditionConfig!A:C,3,FALSE))) ->  | AI168: =IF(OR(AK168="结尾",A168=""),"",IF(ISNUMBER(Y168),2,IF(AND(AK168="",A169="",VLOOKUP(O168,EventConfig!A:C,3,FALSE)=4),3,IF(AND(AK168="",A169=""),"",1)))) -> 1 | AJ168: 1000203 | AL168: 5162 | AM168: 10002
A169: =O169*100+P169 -> 1000203 | B169: 5159 | C169: 前往妖兽盘踞的地方 | D169: 5160 | E169: 御剑飞行 | G169: 1 | H169: 5 | K169: =IF(J169="","",VLOOKUP(J169,EventNPC!A:F,6,FALSE)) ->  | O169: 10002 | P169: 3 | T169: =IF(R169="","","-"&VLOOKUP(R169,EventConditionConfig!A:C,3,FALSE)&IF(S169="","",CHAR(10)&"-"&VLOOKUP(S169,EventConditionConfig!A:C,3,FALSE))) ->  | AI169: =IF(OR(AK169="结尾",A169=""),"",IF(ISNUMBER(Y169),2,IF(AND(AK169="",A170="",VLOOKUP(O169,EventConfig!A:C,3,FALSE)=4),3,IF(AND(AK169="",A170=""),"",1)))) -> 3 | AJ169: 10003 | AL169: 5162 | AM169: 10002
K170: =IF(J170="","",VLOOKUP(J170,EventNPC!A:F,6,FALSE)) ->  | T170: =IF(R170="","","-"&VLOOKUP(R170,EventConditionConfig!A:C,3,FALSE)&IF(S170="","",CHAR(10)&"-"&VLOOKUP(S170,EventConditionConfig!A:C,3,FALSE))) ->  | AI170: =IF(OR(AK170="结尾",A170=""),"",IF(ISNUMBER(Y170),2,IF(AND(AK170="",A171="",VLOOKUP(O170,EventConfig!A:C,3,FALSE)=4),3,IF(AND(AK170="",A171=""),"",1)))) ->  | AM170: 0
A171: =O171*100+P171 -> 1000301 | B171: 5163 | C171: 蜩鸟和小麻雀对你的到来很好奇 | K171: =IF(J171="","",VLOOKUP(J171,EventNPC!A:F,6,FALSE)) ->  | L171: 5164 | M171: 应该就是这里了，似乎有古老的阵法挡住了去路 | N171: 2 | O171: 10003 | P171: 1 | T171: =IF(R171="","","-"&VLOOKUP(R171,EventConditionConfig!A:C,3,FALSE)&IF(S171="","",CHAR(10)&"-"&VLOOKUP(S171,EventConditionConfig!A:C,3,FALSE))) ->  | AI171: =IF(OR(AK171="结尾",A171=""),"",IF(ISNUMBER(Y171),2,IF(AND(AK171="",A172="",VLOOKUP(O171,EventConfig!A:C,3,FALSE)=4),3,IF(AND(AK171="",A172=""),"",1)))) -> 1 | AJ171: 1000302 | AL171: 5164 | AM171: 10003
A172: 1000302 | B172: 5163 | C172: 蜩鸟和小麻雀对你的到来很好奇 | K172: =IF(J172="","",VLOOKUP(J172,EventNPC!A:F,6,FALSE)) ->  | L172: 5165 | M172: （结界门前，三只小鸟飞来，落在一旁古松上） | N172: 2 | O172: 10003 | P172: 2 | T172: =IF(R172="","","-"&VLOOKUP(R172,EventConditionConfig!A:C,3,FALSE)&IF(S172="","",CHAR(10)&"-"&VLOOKUP(S172,EventConditionConfig!A:C,3,FALSE))) ->  | AI172: =IF(OR(AK172="结尾",A172=""),"",IF(ISNUMBER(Y172),2,IF(AND(AK172="",A173="",VLOOKUP(O172,EventConfig!A:C,3,FALSE)=4),3,IF(AND(AK172="",A173=""),"",1)))) -> 1 | AJ172: 1000303 | AL172: 5165 | AM172: 10003
